Workbook

Sheet Thermal age Table
A1: =HYPERLINK("http://iridl.ldeo.columbia.edu/SOURCES/.NOAA/.NCDC/.GCPS/.MONTHLY/.STATION.cuf/","Site") -> Site | B1: Lat | C1: Long | D1: Alti (m) | E1: MAT (℃) | F1: Scale | G1: ΔT LGM ( ℃) | H1: Ref | I1: Age (ka) | J1: Age (yr) | K1: Rate | L1: Ea(kJ) | M1: ln A | N1: Model | O1: Mean (Ma) | P1: Min (Ma) | Q1: Max (Ma)
A2: Elsemere Island | B2: 78.55 | C2: -82.5 | D2: 292 | E2: -19.7 | F2: 5 | G2: -21 | H2: (Ballantyne et al. 2010) | I2: 3,600 | J2: =I2*1000 -> 3,600,000 | K2: Collagen | L2: =VLOOKUP($K2,Rates!A$4:D$6,2) -> 173 | M2: =VLOOKUP($K2,Rates!A$4:D$6,4) -> 61 | N2: Hansen et al. | O2: =VLOOKUP($J2,LookupTable!$A$5:$AX$4855,4)/1000/1000 -> 0.003 | P2: =VLOOKUP($J2,LookupTable!$A$5:$AX$4855,5)/1000/1000 -> 0.001 | Q2: =VLOOKUP($J2,LookupTable!$A$5:$AX$4855,6)/1000/1000 -> 0.007 | R2: =VLOOKUP("Time (yr)",LookupTable!$A$5:$AX$5,4) -> Elsemere Island Age at MAT -19.7oC | S2: =O2*1000000 -> 2,667 | T2: 1,062 | U2: 7,036
A3: Elsemere Island | B3: 78.55 | C3: -82.5 | D3: 292 | E3: -19.7 | F3: 5 | G3: -21 | H3: (Ballantyne et al. 2010) | I3: 3,800 | J3: 3,800,000 | K3: Collagen | L3: =VLOOKUP($K3,Rates!A$4:D$6,2) -> 173 | M3: =VLOOKUP($K3,Rates!A$4:D$6,4) -> 61 | N3: Hansen et al. | O3: =VLOOKUP($J3,LookupTable!$A$5:$AX$4855,4)/1000/1000 -> 0.004 | P3: =VLOOKUP($J3,LookupTable!$A$5:$AX$4855,5)/1000/1000 -> 0.001 | Q3: =VLOOKUP($J3,LookupTable!$A$5:$AX$4855,6)/1000/1000 -> 0.011 | R3: =VLOOKUP("Time (yr)",LookupTable!$A$5:$AX$5,4) -> Elsemere Island Age at MAT -19.7oC | S3: =O3*1000000 -> 3,940 | T3: 1,490 | U3: 10,815
A4: Poolepynten | B4: 79 | C4: 11.43 | D4: 4 | E4: -6.3 | F4: 4 | G4: -16 | H4: (Hubberten, 2004) | I4: 130 | J4: 130,000 | K4: DNA | L4: =VLOOKUP($K4,Rates!A$4:D$6,2) -> 127 | M4: =VLOOKUP($K4,Rates!A$4:D$6,4) -> 41.2 | N4: Hansen et al. | O4: =VLOOKUP($J4,LookupTable!$A$5:$AX$4855,8)/1000/1000 -> 0.002 | P4: =VLOOKUP($J4,LookupTable!$A$5:$AX$4855,9)/1000/1000 -> 0.002 | Q4: =VLOOKUP($J4,LookupTable!$A$5:$AX$4855,10)/1000/1000 -> 0.002 | R4: =VLOOKUP("Time (yr)",LookupTable!$A$5:$AX$5, 8) -> Poolepynten Age at MAT -6.3oC | S4: =O4*1000000 -> 1,770 | T4: 1,547 | U4: 2,121
A5: Thistle Creek | B5: 63.11 | C5: -139.54 | D5: 483 | E5: -4.1 | F5: 1 | G5: -4 | H5: (Elias, 2001) | I5: 560 | J5: 560,000 | K5: DNA | L5: =VLOOKUP($K5,Rates!A$4:D$6,2) -> 127 | M5: =VLOOKUP($K5,Rates!A$4:D$6,4) -> 41.2 | N5: Hansen et al. | O5: =VLOOKUP($J5,LookupTable!$A$5:$AX$4855,12)/1000/1000 -> 0.02 | P5: =VLOOKUP($J5,LookupTable!$A$5:$AX$4855,13)/1000/1000 -> 0.02 | Q5: =VLOOKUP($J5,LookupTable!$A$5:$AX$4855,14)/1000/1000 -> 0.02 | R5: =VLOOKUP("Time (yr)",LookupTable!$A$5:$AX$5,12) -> Thistle Creek Age at MAT -4.1oC | S5: =O5*1000000 -> 21,566 | T5: 24,691 | U5: 24,702
A6: Thistle Creek | B6: 63.11 | C6: -139.54 | D6: 483 | E6: -4.1 | F6: 1 | G6: -4 | H6: (Elias, 2001) | I6: 700 | J6: 700,000 | K6: DNA | L6: =VLOOKUP($K6,Rates!A$4:D$6,2) -> 127 | M6: =VLOOKUP($K6,Rates!A$4:D$6,4) -> 41.2 | N6: Hansen et al. | O6: =VLOOKUP($J6,LookupTable!$A$5:$AX$4855,12)/1000/1000 -> 0.03 | P6: =VLOOKUP($J6,LookupTable!$A$5:$AX$4855,13)/1000/1000 -> 0.03 | Q6: =VLOOKUP($J6,LookupTable!$A$5:$AX$4855,14)/1000/1000 -> 0.03 | R6: =VLOOKUP("Time (yr)",LookupTable!$A$5:$AX$5,12) -> Thistle Creek Age at MAT -4.1oC | S6: =O6*1000000 -> 26,976 | T6: 30,870 | U6: 30,888
A7: Happisburgh | B7: 52.82 | C7: 1.53 | D7: 2 | E7: 9.1 | F7: 2 | G7: -9 | H7: (Harrison et al., 2015) | I7: 700 | J7: 700,000 | K7: Collagen | L7: =VLOOKUP($K7,Rates!A$4:D$6,2) -> 173 | M7: =VLOOKUP($K7,Rates!A$4:D$6,4) -> 61 | N7: Hansen et al. | O7: =VLOOKUP($J7,LookupTable!$A$5:$AX$4855,16)/1000/1000 -> 0.22 | P7: =VLOOKUP($J7,LookupTable!$A$5:$AX$4855,17)/1000/1000 -> 0.19 | Q7: =VLOOKUP($J7,LookupTable!$A$5:$AX$4855,18)/1000/1000 -> 0.25 | R7: =VLOOKUP("Time (yr)",LookupTable!$A$5:$AX$5,16) -> Happisburgh Age at MAT 9.1oC | S7: =O7*1000000 -> 216,336 | T7: 193,538 | U7: 245,659
A8: Sima de los Huesos | B8: 42.35 | C8: -3.52 | D8: 1004 | E8: 9.5 | F8: 1 | G8: -4 | H8: (Moreno et al., 2012) | I8: 400 | J8: 400,000 | K8: DNA | L8: =VLOOKUP($K8,Rates!A$4:D$6,2) -> 127 | M8: =VLOOKUP($K8,Rates!A$4:D$6,4) -> 41.2 | N8: Hansen et al. | O8: =VLOOKUP($J8,LookupTable!$A$5:$AX$4855,20)/1000/1000 -> 0.25 | P8: =VLOOKUP($J8,LookupTable!$A$5:$AX$4855,21)/1000/1000 -> 0.22 | Q8: =VLOOKUP($J8,LookupTable!$A$5:$AX$4855,22)/1000/1000 -> 0.28 | R8: =VLOOKUP("Time (yr)",LookupTable!$A$5:$AX$5,20) -> Sima de los Huesos Age at MAT 9.5oC | S8: =O8*1000000 -> 248,802 | T8: 220,174 | U8: 281,598
A9: Elands Bay Cave | B9: -32.32 | C9: 18.32 | D9: 10 | E9: 15.7 | F9: 1 | G9: -4 | H9: (Martínez-Méndez, 2010) | I9: 16 | J9: 16,000 | K9: Valine | L9: =VLOOKUP($K9,Rates!A$4:D$6,2) -> 118 | M9: =VLOOKUP($K9,Rates!A$4:D$6,4) -> 38 | N9: Hansen et al. | O9: =VLOOKUP($J9,LookupTable!$A$5:$AX$4855,24)/1000/1000 -> 0.04 | P9: =VLOOKUP($J9,LookupTable!$A$5:$AX$4855,25)/1000/1000 -> 0.03 | Q9: =VLOOKUP($J9,LookupTable!$A$5:$AX$4855,26)/1000/1000 -> 0.05 | R9: =VLOOKUP("Time (yr)",LookupTable!$A$5:$AX$5,24) -> Elands Bay Cave Age at MAT 15.7oC | S9: =O9*1000000 -> 40,323 | T9: 34,377 | U9: 47,280
A10: Pinnacle Point | B10: -34.2 | C10: 22.09 | D10: 20 | E10: 18 | F10: 1 | G10: -4 | H10: (Bar-Matthews et al., 2010) | I10: 150 | J10: 150,000 | K10: Valine | L10: =VLOOKUP($K10,Rates!A$4:D$6,2) -> 118 | M10: =VLOOKUP($K10,Rates!A$4:D$6,4) -> 38 | N10: Hansen et al. | O10: =VLOOKUP($J10,LookupTable!$A$5:$AX$4855,28)/1000/1000 -> 0.42 | P10: =VLOOKUP($J10,LookupTable!$A$5:$AX$4855,29)/1000/1000 -> 0.38 | Q10: =VLOOKUP($J10,LookupTable!$A$5:$AX$4855,30)/1000/1000 -> 0.47 | R10: =VLOOKUP("Time (yr)",LookupTable!$A$5:$AX$5,28) -> Pinnacle Point Age at MAT 18oC | S10: =O10*1000000 -> 420,243 | T10: 378,398 | U10: 467,602
A11: Wonderwerk | B11: 27.8 | C11: 23.55 | D11: 1645 | E11: 18.6 | F11: 0.6 | G11: -2.5 | H11: (Ecker et al., 2015) | I11: 1,000 | J11: 1,000,000 | K11: Valine | L11: =VLOOKUP($K11,Rates!A$4:D$6,2) -> 118 | M11: =VLOOKUP($K11,Rates!A$4:D$6,4) -> 38 | N11: Hansen et al. | O11: =VLOOKUP($J11,LookupTable!$A$5:$AX$4855,32)/1000/1000 -> 3.6 | P11: =VLOOKUP($J11,LookupTable!$A$5:$AX$4855,33)/1000/1000 -> 3.1 | Q11: =VLOOKUP($J11,LookupTable!$A$5:$AX$4855,34)/1000/1000 -> 4.1 | R11: =VLOOKUP("Time (yr)",LookupTable!$A$5:$AX$5,32) -> Wonderwerk Age at MAT 18.6oC | S11: =O11*1000000 -> 3,569,690 | T11: 3,139,683 | U11: 4,057,773
A12: Laetoli | B12: -3.22 | C12: 35.19 | D12: 1700 | E12: 18.7 | F12: 0.6 | G12: -2.5 | H12: (Tierney et al., 2010; Berke et al., 2012) | I12: 3,800 | J12: 3,800,000 | K12: Valine | L12: =VLOOKUP($K12,Rates!A$4:D$6,2) -> 118 | M12: =VLOOKUP($K12,Rates!A$4:D$6,4) -> 38 | N12: Hansen et al. | O12: =VLOOKUP($J12,LookupTable!$A$5:$AX$4855,36)/1000/1000 -> 16.0 | P12: =VLOOKUP($J12,LookupTable!$A$5:$AX$4855,37)/1000/1000 -> 13.6 | Q12: =VLOOKUP($J12,LookupTable!$A$5:$AX$4855,38)/1000/1000 -> 18.7 | R12: =VLOOKUP("Time (yr)",LookupTable!$A$5:$AX$5,36) -> Laetoli Age at MAT 18.7oC | S12: =O12*1000000 -> 15,983,443 | T12: 13,647,329 | U12: 18,717,848
A13: Dmanisi | B13: 41.34 | C13: 44.35 | D13: 1015 | E13: 11.2 | F13: 0 | G13: -0.2 | H13: (Blain et al., 2014) | I13: 1,800 | J13: 1,800,000 | K13: Valine | L13: =VLOOKUP($K13,Rates!A$4:D$6,2) -> 118 | M13: =VLOOKUP($K13,Rates!A$4:D$6,4) -> 38 | N13: Hansen et al. | O13: =VLOOKUP($J13,LookupTable!$A$5:$AX$4855,40)/1000/1000 -> 2.2 | P13: =VLOOKUP($J13,LookupTable!$A$5:$AX$4855,41)/1000/1000 -> 1.9 | Q13: =VLOOKUP($J13,LookupTable!$A$5:$AX$4855,42)/1000/1000 -> 2.6 | R13: =VLOOKUP("Time (yr)",LookupTable!$A$5:$AX$5,40) -> Dmanisi Age at MAT 11.2oC | S13: =O13*1000000 -> 2,223,389 | T13: 1,864,303 | U13: 2,648,368
A14: Olduvai | B14: -2.99 | C14: 35.35 | D14: 576 | E14: 26 | F14: 0.6 | G14: -2.5 | H14: (Tierney et al., 2010; Berke et al., 2012) | I14: 1,338 | J14: 1,338,000 | K14: Valine | L14: =VLOOKUP($K14,Rates!A$4:D$6,2) -> 118 | M14: =VLOOKUP($K14,Rates!A$4:D$6,4) -> 38 | N14: Hansen et al. | O14: =VLOOKUP($J14,LookupTable!$A$5:$AX$4855,44)/1000/1000 -> 16.3 | P14: =VLOOKUP($J14,LookupTable!$A$5:$AX$4855,45)/1000/1000 -> 14.4 | Q14: =VLOOKUP($J14,LookupTable!$A$5:$AX$4855,46)/1000/1000 -> 18.5 | R14: =VLOOKUP("Time (yr)",LookupTable!$A$5:$AX$5,44) -> Olduvai Age at MAT 26oC | S14: =O14*1000000 -> 16,299,256 | T14: 14,387,543 | U14: 18,460,416
A15: Chuifeng Cave | B15: 23.574167 | C15: 107.006111 | D15: 227 | E15: 21.9 | F15: 0.7 | G15: -3 | I15: 1,900 | J15: 1,900,000 | K15: Valine | L15: =VLOOKUP($K15,Rates!A$4:D$6,2) -> 118 | M15: =VLOOKUP($K15,Rates!A$4:D$6,4) -> 38 | N15: Hansen et al. | O15: =VLOOKUP($J15,LookupTable!$A$5:$AX$4855,48)/1000/1000 -> 11.8 | P15: =VLOOKUP($J15,LookupTable!$A$5:$AX$4855,49)/1000/1000 -> 10.4 | Q15: =VLOOKUP($J15,LookupTable!$A$5:$AX$4855,50)/1000/1000 -> 13.4 | R15: =VLOOKUP("Time (yr)",LookupTable!$A$5:$AX$5,48) -> Chuifeng Cave Age at MAT 21.9oC | S15: =O15*1000000 -> 11,835,061 | T15: 10,422,044 | U15: 13,437,656

Sheet Rates
B1: Universal Gas Constant
B2: 8.3144621 | E2: -0.0479
B3: Ea kJ mol-1 | C3: Ea/R | D3: lnA | E3: Temp | F3: rate 10oC
A4: Collagen | B4: 173 | C4: -20807.15848 | D4: 61 | E4: -0.0479 | F4: =EXP(((1/(E4+273.15))*C4)+D4) -> 2.53E-07 | G4: 2.53E-07
A5: DNA | B5: 127 | C5: -15274.61923 | D5: 41.2 | E5: -0.0479 | F5: 4.01E-07 | G5: 4.01E-07
A6: Valine | B6: 118 | C6: -14192.1659 | D6: 38 | E6: -0.0479 | F6: 8.60E-07 | G6: 8.60E-07

Sheet LookupTable
A1: http://www.columbia.edu/~mhs119/Sensitivity+SL+CO2/Table.txt | B1: Hansen, J., Sato, M., Russell, G., & Kharecha, P. (2013). Climate sensitivity, sea level and atmospheric carbon dioxide. Philosophical Transactions. Series A, Mathematical, Physical, and Engineering Sciences, 371(2001), 20120294.
C2: =D4-(AVERAGE(C6:C108)) -> -11.3 | D2: =D4855 -> 15,054 | E2: 4,985 | F2: 46,510 | G2: =H4-(AVERAGE(G6:G108)) -> -9.0 | H2: =H4855 -> 501,738 | I2: 296,080 | J2: 869,686 | K2: =L4-(AVERAGE(K6:K108)) -> -2 | L2: =L4855 -> 316,880 | M2: 402,494 | N2: 402,607 | O2: =P4-(AVERAGE(O6:O108)) -> -4.5 | P2: =P4855 -> 5,982,496 | Q2: 4,002,612 | R2: 9,098,202 | S2: =T4-(AVERAGE(S6:S108)) -> -2.3 | T2: =T4855 -> 4,805,550 | U2: 3,887,511 | V2: 5,955,655 | W2: =X4-(AVERAGE(W6:W108)) -> -2 | X2: =X4855 -> 14,042,988 | Y2: 11,653,241 | Z2: 16,956,190 | AA2: =AB4-(AVERAGE(AA6:AA108)) -> -2.3 | AB2: =AB4855 -> 20,673,092 | AC2: 17,209,949 | AD2: 24,880,565 | AE2: =AF4-(AVERAGE(AE6:AE108)) -> -1.4 | AF2: =AF4855 -> 22,222,127 | AG2: 18,698,514 | AH2: 26,409,612 | AI2: =AJ4-(AVERAGE(AI6:AI108)) -> -1.4 | AJ2: =AJ4855 -> 22,595,145 | AK2: 19,014,713 | AL2: 26,849,623 | AM2: =AN4-(AVERAGE(AM6:AM108)) -> -0.0 | AN2: =AN4855 -> 6,178,292 | AO2: 5,180,473 | AP2: 7,359,211 | AQ2: =AR4-(AVERAGE(AQ6:AQ108)) -> -1.4 | AR2: =AR4855 -> 73,916,077 | AS2: 62,740,445 | AT2: 87,080,118 | AU2: =AV4-(AVERAGE(AU6:AU108)) -> -1.6 | AV2: =AV4855 -> 38,466,339 | AW2: 32,433,574 | AX2: 45,637,960
C3: Depress | D3: LGM | E3: Plio | G3: Depress | H3: LGM | I3: Plio | K3: Depress | L3: LGM | M3: Plio | O3: Depress | P3: LGM | Q3: Plio | S3: Depress | T3: LGM | U3: Plio | W3: Depress | X3: LGM | Y3: Plio | AA3: Depress | AB3: LGM | AC3: Plio | AE3: Depress | AF3: LGM | AG3: Plio | AI3: Depress | AJ3: LGM | AK3: Plio | AM3: Depress | AN3: LGM | AO3: Plio | AQ3: Depress | AR3: LGM | AS3: Plio | AU3: Depress | AV3: LGM | AW3: Plio
B4: Scale | C4: ='Thermal age Table'!F2 -> 5.0 | D4: =C29 -> -43 | E4: =C3722 -> -0.3 | G4: ='Thermal age Table'!F4 -> 4.0 | H4: =(G29) -> -25 | I4: =G3722 -> 9 | K4: ='Thermal age Table'!F5 -> 1.0 | L4: =(K29) -> -9 | M4: =K3722 -> -0 | O4: 2.0 | P4: =(O29) -> -0 | Q4: =O3722 -> 17 | S4: ='Thermal age Table'!F8 -> 1.0 | T4: =(S29) -> 5 | U4: =S3722 -> 13 | W4: ='Thermal age Table'!F9 -> 1.0 | X4: =(W29) -> 11 | Y4: =W3722 -> 20 | AA4: ='Thermal age Table'!F10 -> 1.0 | AB4: =(AA29) -> 13 | AC4: =AA3722 -> 22 | AE4: ='Thermal age Table'!F11 -> 0.6 | AF4: =(AE29) -> 16 | AG4: =AE3722 -> 21 | AI4: ='Thermal age Table'!F12 -> 0.6 | AJ4: =(AI29) -> 16 | AK4: =AI3722 -> 21 | AM4: ='Thermal age Table'!F13 -> 0.0 | AN4: =(AM29) -> 11 | AO4: =AM3722 -> 11 | AQ4: ='Thermal age Table'!F14 -> 0.6 | AR4: =(AQ29) -> 23 | AS4: =AQ3722 -> 28 | AU4: ='Thermal age Table'!F15 -> 0.7 | AV4: =(AU29) -> 19 | AW4: =AU3722 -> 25
A5: Time (yr) | B5: Tsurf | C5: ='Thermal age Table'!$A2 -> Elsemere Island | D5: =CONCATENATE('Thermal age Table'!$A2," Age at MAT ",'Thermal age Table'!E2, "oC") -> Elsemere Island Age at MAT -19.7oC | G5: ='Thermal age Table'!$A4 -> Poolepynten | H5: =CONCATENATE('Thermal age Table'!$A4," Age at MAT ",'Thermal age Table'!$E4, "oC") -> Poolepynten Age at MAT -6.3oC | K5: ='Thermal age Table'!$A5 -> Thistle Creek | L5: =CONCATENATE('Thermal age Table'!$A5," Age at MAT ",'Thermal age Table'!$E5, "oC") -> Thistle Creek Age at MAT -4.1oC | O5: ='Thermal age Table'!$A7 -> Happisburgh | P5: =CONCATENATE('Thermal age Table'!$A7," Age at MAT ",'Thermal age Table'!E7, "oC") -> Happisburgh Age at MAT 9.1oC | S5: ='Thermal age Table'!$A8 -> Sima de los Huesos | T5: =CONCATENATE('Thermal age Table'!$A8," Age at MAT ",'Thermal age Table'!$E8, "oC") -> Sima de los Huesos Age at MAT 9.5oC | W5: ='Thermal age Table'!$A9 -> Elands Bay Cave | X5: =CONCATENATE('Thermal age Table'!$A9," Age at MAT ",'Thermal age Table'!$E9, "oC") -> Elands Bay Cave Age at MAT 15.7oC | AA5: ='Thermal age Table'!$A10 -> Pinnacle Point | AB5: =CONCATENATE('Thermal age Table'!$A10," Age at MAT ",'Thermal age Table'!$E10, "oC") -> Pinnacle Point Age at MAT 18oC | AE5: ='Thermal age Table'!$A11 -> Wonderwerk | AF5: =CONCATENATE('Thermal age Table'!$A11," Age at MAT ",'Thermal age Table'!$E11, "oC") -> Wonderwerk Age at MAT 18.6oC | AI5: ='Thermal age Table'!$A12 -> Laetoli | AJ5: =CONCATENATE('Thermal age Table'!$A12," Age at MAT ",'Thermal age Table'!$E12, "oC") -> Laetoli Age at MAT 18.7oC | AM5: ='Thermal age Table'!$A13 -> Dmanisi | AN5: =CONCATENATE('Thermal age Table'!$A13," Age at MAT ",'Thermal age Table'!$E13, "oC") -> Dmanisi Age at MAT 11.2oC | AQ5: ='Thermal age Table'!$A14 -> Olduvai | AR5: =CONCATENATE('Thermal age Table'!$A14," Age at MAT ",'Thermal age Table'!$E14, "oC") -> Olduvai Age at MAT 26oC | AU5: ='Thermal age Table'!$A15 -> Chuifeng Cave | AV5: =CONCATENATE('Thermal age Table'!$A15," Age at MAT ",'Thermal age Table'!$E15, "oC") -> Chuifeng Cave Age at MAT 21.9oC
A6: 0 | B6: -0.0 | C6: =('Thermal age Table'!$E$2)+($B6*C$4) -> -20 | D6: 0 | E6: 0 | F6: 0 | G6: =('Thermal age Table'!$E$4+($B6*G$4)) -> -6 | H6: 0 | I6: 0 | J6: 0 | K6: =('Thermal age Table'!$E$5+($B6*K$4)) -> -4 | L6: 0 | M6: 0 | N6: 0 | O6: =('Thermal age Table'!$E$7)+($B6*O$4) -> 9 | P6: 0 | Q6: 0 | R6: 0 | S6: =('Thermal age Table'!$E$8)+($B6*S$4) -> 9 | T6: 0 | U6: 0 | V6: 0 | W6: =('Thermal age Table'!$E$9+($B6*W$4)) -> 16 | X6: 0 | Y6: 0 | Z6: 0 | AA6: =('Thermal age Table'!$E$10+($B6*AA$4)) -> 18 | AB6: 0 | AC6: 0 | AD6: 0 | AE6: =('Thermal age Table'!$E$11+($B6*AE$4)) -> 19 | AF6: 0 | AG6: 0 | AH6: 0 | AI6: =('Thermal age Table'!$E$12+($B6*AI$4)) -> 19 | AJ6: 0 | AK6: 0 | AL6: 0 | AM6: =('Thermal age Table'!$E$13+($B6*AM$4)) -> 11 | AN6: 0 | AO6: 0 | AP6: 0 | AQ6: =('Thermal age Table'!$E$14+($B6*AQ$4)) -> 26 | AR6: 0 | AS6: 0 | AT6: 0 | AU6: =('Thermal age Table'!$E$15+($B6*AU$4)) -> 22 | AV6: 0 | AW6: 0 | AX6: 0
A7: 1,600 | B7: 0 | C7: =('Thermal age Table'!$E$2)+($B7*C$4) -> -20 | D7: =(($A7-$A6)*((EXP((1/(($B7*'Thermal age Table'!$F$2)+'Thermal age Table'!$E$2+273.15))*((-'Thermal age Table'!$L$2*1000)/8.3144598)+'Thermal age Table'!$M$2))/(EXP((1/(283.15))*((-'Thermal age Table'!$L$2*1000)/8.3144598)+'Thermal age Table'!$M$2))))+D6 -> 0 | E7: =(($A7-$A6)*((EXP((1/(($B7*('Thermal age Table'!$F$2*0.8))+('Thermal age Table'!$E$2-1)+273.15))*((-'Thermal age Table'!$L$2*1000)/8.3144598)+'Thermal age Table'!$M$2))/(EXP((1/(283.15))*((-'Thermal age Table'!$L$2*1000)/8.3144598)+'Thermal age Table'!$M$2))))+E6 -> 0 | F7: =(($A7-$A6)*((EXP((1/(($B7*('Thermal age Table'!$F$2*1.2))+('Thermal age Table'!$E$2+1)+273.15))*((-'Thermal age Table'!$L$2*1000)/8.3144598)+'Thermal age Table'!$M$2))/(EXP((1/(283.15))*((-'Thermal age Table'!$L$2*1000)/8.3144598)+'Thermal age Table'!$M$2))))+F6 -> 0 | G7: =('Thermal age Table'!$E$4+($B7*G$4)) -> -6 | H7: =(($A7-$A6)*((EXP((1/(($B7*'Thermal age Table'!$F$4)+'Thermal age Table'!$E$4+273.15))*((-'Thermal age Table'!$L$4*1000)/8.3144598)+'Thermal age Table'!$M$4))/(EXP((1/(283.15))*((-'Thermal age Table'!$L$4*1000)/8.3144598)+'Thermal age Table'!$M$4))))+H6 -> 59 | I7: =(($A7-$A6)*((EXP((1/(($B7*('Thermal age Table'!$F$4*0.8))+('Thermal age Table'!$E$4-1)+273.15))*((-'Thermal age Table'!$L$4*1000)/8.3144598)+'Thermal age Table'!$M$4))/(EXP((1/(283.15))*((-'Thermal age Table'!$L$4*1000)/8.3144598)+'Thermal age Table'!$M$4))))+I6 -> 48 | J7: =(($A7-$A6)*((EXP((1/(($B7*('Thermal age Table'!$F$4*1.2))+('Thermal age Table'!$E$4+1)+273.15))*((-'Thermal age Table'!$L$4*1000)/8.3144598)+'Thermal age Table'!$M$4))/(EXP((1/(283.15))*((-'Thermal age Table'!$L$4*1000)/8.3144598)+'Thermal age Table'!$M$4))))+J6 -> 73 | K7: =('Thermal age Table'!$E$5+($B7*K$4)) -> -4 | L7: =(($A7-$A6)*((EXP((1/(($B7*'Thermal age Table'!$F$5)+'Thermal age Table'!$E$5+273.15))*((-'Thermal age Table'!$L$5*1000)/8.3144598)+'Thermal age Table'!$M$5))/(EXP((1/(283.15))*((-'Thermal age Table'!$L$5*1000)/8.3144598)+'Thermal age Table'!$M$5))))+L6 -> 95 | M7: =(($A7-$A6)*((EXP((1/(($B7*('Thermal age Table'!$F$5*0.8))+('Thermal age Table'!$E$5-1)+273.15))*((-'Thermal age Table'!$L$5*1000)/8.3144598)+'Thermal age Table'!$M$5))/(EXP((1/(283.15))*((-'Thermal age Table'!$L$5*1000)/8.3144598)+'Thermal age Table'!$M$5))))+N6 -> 77 | N7: =(($A7-$A6)*((EXP((1/(($B7*('Thermal age Table'!$F$5*1.2))+('Thermal age Table'!$E$5+1)+273.15))*((-'Thermal age Table'!$L$5*1000)/8.3144598)+'Thermal age Table'!$M$5))/(EXP((1/(283.15))*((-'Thermal age Table'!$L$5*1000)/8.3144598)+'Thermal age Table'!$M$5))))+N6 -> 117 | O7: =('Thermal age Table'!$E$7)+($B7*O$4) -> 9 | P7: =(($A7-$A6)*((EXP((1/(($B7*'Thermal age Table'!$F$7)+'Thermal age Table'!$E$7+273.15))*((-'Thermal age Table'!$L$7*1000)/8.3144598)+'Thermal age Table'!$M$7))/(EXP((1/(283.15))*((-'Thermal age Table'!$L$7*1000)/8.3144598)+'Thermal age Table'!$M$7))))+P6 -> 1,266 | Q7: =(($A7-$A6)*((EXP((1/(($B7*('Thermal age Table'!$F$7*0.8))+('Thermal age Table'!$E$7-1)+273.15))*((-'Thermal age Table'!$L$7*1000)/8.3144598)+'Thermal age Table'!$M$7))/(EXP((1/(283.15))*((-'Thermal age Table'!$L$7*1000)/8.3144598)+'Thermal age Table'!$M$7))))+Q6 -> 974 | R7: =(($A7-$A6)*((EXP((1/(($B7*('Thermal age Table'!$F$7*1.2))+('Thermal age Table'!$E$7+1)+273.15))*((-'Thermal age Table'!$L$7*1000)/8.3144598)+'Thermal age Table'!$M$7))/(EXP((1/(283.15))*((-'Thermal age Table'!$L$7*1000)/8.3144598)+'Thermal age Table'!$M$7))))+R6 -> 1,642 | S7: =('Thermal age Table'!$E$8)+($B7*S$4) -> 10 | T7: =(($A7-$A6)*((EXP((1/(($B7*'Thermal age Table'!$F$8)+'Thermal age Table'!$E$8+273.15))*((-'Thermal age Table'!$L$8*1000)/8.3144598)+'Thermal age Table'!$M$8))/(EXP((1/(283.15))*((-'Thermal age Table'!$L$8*1000)/8.3144598)+'Thermal age Table'!$M$8))))+T6 -> 1,454 | U7: =(($A7-$A6)*((EXP((1/(($B7*('Thermal age Table'!$F$8*0.8))+('Thermal age Table'!$E$8-1)+273.15))*((-'Thermal age Table'!$L$8*1000)/8.3144598)+'Thermal age Table'!$M$8))/(EXP((1/(283.15))*((-'Thermal age Table'!$L$8*1000)/8.3144598)+'Thermal age Table'!$M$8))))+U6 -> 1,200 | V7: =(($A7-$A6)*((EXP((1/(($B7*('Thermal age Table'!$F$8*1.2))+('Thermal age Table'!$E$8+1)+273.15))*((-'Thermal age Table'!$L$8*1000)/8.3144598)+'Thermal age Table'!$M$8))/(EXP((1/(283.15))*((-'Thermal age Table'!$L$8*1000)/8.3144598)+'Thermal age Table'!$M$8))))+V6 -> 1,760 | W7: =('Thermal age Table'!$E$9+($B7*W$4)) -> 16 | X7: =(($A7-$A6)*((EXP((1/(($B7*'Thermal age Table'!$F$9)+'Thermal age Table'!$E$9+273.15))*((-'Thermal age Table'!$L$9*1000)/8.3144598)+'Thermal age Table'!$M$9))/(EXP((1/(283.15))*((-'Thermal age Table'!$L$9*1000)/8.3144598)+'Thermal age Table'!$M$9))))+X6 -> 4,302 | Y7: =(($A7-$A6)*((EXP((1/(($B7*('Thermal age Table'!$F$9*0.8))+('Thermal age Table'!$E$9-1)+273.15))*((-'Thermal age Table'!$L$9*1000)/8.3144598)+'Thermal age Table'!$M$9))/(EXP((1/(283.15))*((-'Thermal age Table'!$L$9*1000)/8.3144598)+'Thermal age Table'!$M$9))))+Y6 -> 3,627 | Z7: =(($A7-$A6)*((EXP((1/(($B7*('Thermal age Table'!$F$9*1.2))+('Thermal age Table'!$E$9+1)+273.15))*((-'Thermal age Table'!$L$9*1000)/8.3144598)+'Thermal age Table'!$M$9))/(EXP((1/(283.15))*((-'Thermal age Table'!$L$9*1000)/8.3144598)+'Thermal age Table'!$M$9))))+Z6 -> 5,097 | AA7: =('Thermal age Table'!$E$10+($B7*AA$4)) -> 18 | AB7: =(($A7-$A6)*((EXP((1/(($B7*'Thermal age Table'!$F$10)+'Thermal age Table'!$E$10+273.15))*((-'Thermal age Table'!$L$10*1000)/8.3144598)+'Thermal age Table'!$M$10))/(EXP((1/(283.15))*((-'Thermal age Table'!$L$10*1000)/8.3144598)+'Thermal age Table'!$M$10))))+AB6 -> 6,342 | AC7: =(($A7-$A6)*((EXP((1/(($B7*('Thermal age Table'!$F$10*0.8))+('Thermal age Table'!$E$10-1)+273.15))*((-'Thermal age Table'!$L$10*1000)/8.3144598)+'Thermal age Table'!$M$10))/(EXP((1/(283.15))*((-'Thermal age Table'!$L$9*1000)/8.3144598)+'Thermal age Table'!$M$10))))+AC6 -> 5,361 | AD7: =(($A7-$A6)*((EXP((1/(($B7*('Thermal age Table'!$F$10*1.2))+('Thermal age Table'!$E$10+1)+273.15))*((-'Thermal age Table'!$L$10*1000)/8.3144598)+'Thermal age Table'!$M$10))/(EXP((1/(283.15))*((-'Thermal age Table'!$L$10*1000)/8.3144598)+'Thermal age Table'!$M$10))))+AD6 -> 7,494 | AE7: =('Thermal age Table'!$E$11+($B7*AE$4)) -> 19 | AF7: =(($A7-$A6)*((EXP((1/(($B7*'Thermal age Table'!$F$11)+'Thermal age Table'!$E$11+273.15))*((-'Thermal age Table'!$L$11*1000)/8.3144598)+'Thermal age Table'!$M$11))/(EXP((1/(283.15))*((-'Thermal age Table'!$L$11*1000)/8.3144598)+'Thermal age Table'!$M$11))))+AF6 -> 7,011 | AG7: =(($A7-$A6)*((EXP((1/(($B7*('Thermal age Table'!$F$11*0.8))+('Thermal age Table'!$E$11-1)+273.15))*((-'Thermal age Table'!$L$11*1000)/8.3144598)+'Thermal age Table'!$M$11))/(EXP((1/(283.15))*((-'Thermal age Table'!$L$11*1000)/8.3144598)+'Thermal age Table'!$M$11))))+AG6 -> 5,931 | AH7: =(($A7-$A6)*((EXP((1/(($B7*('Thermal age Table'!$F$11*1.2))+('Thermal age Table'!$E$11+1)+273.15))*((-'Thermal age Table'!$L$11*1000)/8.3144598)+'Thermal age Table'!$M$11))/(EXP((1/(283.15))*((-'Thermal age Table'!$L$11*1000)/8.3144598)+'Thermal age Table'!$M$11))))+AH6 -> 8,278 | AI7: =('Thermal age Table'!$E$12+($B7*AI$4)) -> 19 | AJ7: =(($A7-$A6)*((EXP((1/(($B7*'Thermal age Table'!$F$12)+'Thermal age Table'!$E$12+273.15))*((-'Thermal age Table'!$L$12*1000)/8.3144598)+'Thermal age Table'!$M$12))/(EXP((1/(283.15))*((-'Thermal age Table'!$L$12*1000)/8.3144598)+'Thermal age Table'!$M$12))))+AJ6 -> 7,129 | AK7: =(($A7-$A6)*((EXP((1/(($B7*('Thermal age Table'!$F$12*0.8))+('Thermal age Table'!$E$12-1)+273.15))*((-'Thermal age Table'!$L$12*1000)/8.3144598)+'Thermal age Table'!$M$12))/(EXP((1/(283.15))*((-'Thermal age Table'!$L$12*1000)/8.3144598)+'Thermal age Table'!$M$12))))+AK6 -> 6,031 | AL7: =(($A7-$A6)*((EXP((1/(($B7*('Thermal age Table'!$F$12*1.2))+('Thermal age Table'!$E$12+1)+273.15))*((-'Thermal age Table'!$L$12*1000)/8.3144598)+'Thermal age Table'!$M$12))/(EXP((1/(283.15))*((-'Thermal age Table'!$L$12*1000)/8.3144598)+'Thermal age Table'!$M$12))))+AL6 -> 8,417 | AM7: =('Thermal age Table'!$E$13+($B7*AM$4)) -> 11.2 | AN7: =(($A7-$A6)*((EXP((1/(($B7*'Thermal age Table'!$F$13)+'Thermal age Table'!$E$13+273.15))*((-'Thermal age Table'!$L$13*1000)/8.3144598)+'Thermal age Table'!$M$13))/(EXP((1/(283.15))*((-'Thermal age Table'!$L$13*1000)/8.3144598)+'Thermal age Table'!$M$13))))+AN6 -> 1,977 | AO7: =(($A7-$A6)*((EXP((1/(($B7*('Thermal age Table'!$F$13*0.8))+('Thermal age Table'!$E$13-1)+273.15))*((-'Thermal age Table'!$L$13*1000)/8.3144598)+'Thermal age Table'!$M$13))/(EXP((1/(283.15))*((-'Thermal age Table'!$L$13*1000)/8.3144598)+'Thermal age Table'!$M$13))))+AO6 -> 1,658 | AP7: =(($A7-$A6)*((EXP((1/(($B7*('Thermal age Table'!$F$13*1.2))+('Thermal age Table'!$E$13+1)+273.15))*((-'Thermal age Table'!$L$13*1000)/8.3144598)+'Thermal age Table'!$M$13))/(EXP((1/(283.15))*((-'Thermal age Table'!$L$13*1000)/8.3144598)+'Thermal age Table'!$M$13))))+AP6 -> 2,355 | AQ7: =('Thermal age Table'!$E$14+($B7*AQ$4)) -> 26 | AR7: =(($A7-$A6)*((EXP((1/(($B7*'Thermal age Table'!$F$14)+'Thermal age Table'!$E$14+273.15))*((-'Thermal age Table'!$L$14*1000)/8.3144598)+'Thermal age Table'!$M$14))/(EXP((1/(283.15))*((-'Thermal age Table'!$L$14*1000)/8.3144598)+'Thermal age Table'!$M$14))))+AR6 -> 23,355 | AS7: =(($A7-$A6)*((EXP((1/(($B7*('Thermal age Table'!$F$14*0.8))+('Thermal age Table'!$E$14-1)+273.15))*((-'Thermal age Table'!$L$14*1000)/8.3144598)+'Thermal age Table'!$M$14))/(EXP((1/(283.15))*((-'Thermal age Table'!$L$14*1000)/8.3144598)+'Thermal age Table'!$M$14))))+AS6 -> 19,919 | AT7: =(($A7-$A6)*((EXP((1/(($B7*('Thermal age Table'!$F$14*1.2))+('Thermal age Table'!$E$14+1)+273.15))*((-'Thermal age Table'!$L$14*1000)/8.3144598)+'Thermal age Table'!$M$14))/(EXP((1/(283.15))*((-'Thermal age Table'!$L$14*1000)/8.3144598)+'Thermal age Table'!$M$14))))+AT6 -> 27,354 | AU7: =('Thermal age Table'!$E$15+($B7*AU$4)) -> 22 | AV7: =(($A7-$A6)*((EXP((1/(($B7*'Thermal age Table'!$F$15)+'Thermal age Table'!$E$15+273.15))*((-'Thermal age Table'!$L$15*1000)/8.3144598)+'Thermal age Table'!$M$15))/(EXP((1/(283.15))*((-'Thermal age Table'!$L$15*1000)/8.3144598)+'Thermal age Table'!$M$15))))+AV6 -> 12,080 | AW7: =(($A7-$A6)*((EXP((1/(($B7*('Thermal age Table'!$F$15*0.8))+('Thermal age Table'!$E$15-1)+273.15))*((-'Thermal age Table'!$L$15*1000)/8.3144598)+'Thermal age Table'!$M$15))/(EXP((1/(283.15))*((-'Thermal age Table'!$L$15*1000)/8.3144598)+'Thermal age Table'!$M$15))))+AW6 -> 10,257 | AX7: =(($A7-$A6)*((EXP((1/(($B7*('Thermal age Table'!$F$15*1.2))+('Thermal age Table'!$E$15+1)+273.15))*((-'Thermal age Table'!$L$15*1000)/8.3144598)+'Thermal age Table'!$M$15))/(EXP((1/(283.15))*((-'Thermal age Table'!$L$15*1000)/8.3144598)+'Thermal age Table'!$M$15))))+AX6 -> 14,211
A8: 2,400 | B8: 0.24 | C8: =('Thermal age Table'!$E$2)+($B8*C$4) -> -19 | D8: =(($A8-$A7)*((EXP((1/(($B8*'Thermal age Table'!$F$2)+'Thermal age Table'!$E$2+273.15))*((-'Thermal age Table'!$L$2*1000)/8.3144598)+'Thermal age Table'!$M$2))/(EXP((1/(283.15))*((-'Thermal age Table'!$L$2*1000)/8.3144598)+'Thermal age Table'!$M$2))))+D7 -> 1 | E8: =(($A8-$A7)*((EXP((1/(($B8*('Thermal age Table'!$F$2*0.8))+('Thermal age Table'!$E$2-1)+273.15))*((-'Thermal age Table'!$L$2*1000)/8.3144598)+'Thermal age Table'!$M$2))/(EXP((1/(283.15))*((-'Thermal age Table'!$L$2*1000)/8.3144598)+'Thermal age Table'!$M$2))))+E7 -> 0 | F8: =(($A8-$A7)*((EXP((1/(($B8*('Thermal age Table'!$F$2*1.2))+('Thermal age Table'!$E$2+1)+273.15))*((-'Thermal age Table'!$L$2*1000)/8.3144598)+'Thermal age Table'!$M$2))/(EXP((1/(283.15))*((-'Thermal age Table'!$L$2*1000)/8.3144598)+'Thermal age Table'!$M$2))))+F7 -> 1 | G8: =('Thermal age Table'!$E$4+($B8*G$4)) -> -5 | H8: =(($A8-$A7)*((EXP((1/(($B8*'Thermal age Table'!$F$4)+'Thermal age Table'!$E$4+273.15))*((-'Thermal age Table'!$L$4*1000)/8.3144598)+'Thermal age Table'!$M$4))/(EXP((1/(283.15))*((-'Thermal age Table'!$L$4*1000)/8.3144598)+'Thermal age Table'!$M$4))))+H7 -> 96 | I8: =(($A8-$A7)*((EXP((1/(($B8*('Thermal age Table'!$F$4*0.8))+('Thermal age Table'!$E$4-1)+273.15))*((-'Thermal age Table'!$L$4*1000)/8.3144598)+'Thermal age Table'!$M$4))/(EXP((1/(283.15))*((-'Thermal age Table'!$L$4*1000)/8.3144598)+'Thermal age Table'!$M$4))))+I7 -> 76 | J8: =(($A8-$A7)*((EXP((1/(($B8*('Thermal age Table'!$F$4*1.2))+('Thermal age Table'!$E$4+1)+273.15))*((-'Thermal age Table'!$L$4*1000)/8.3144598)+'Thermal age Table'!$M$4))/(EXP((1/(283.15))*((-'Thermal age Table'!$L$4*1000)/8.3144598)+'Thermal age Table'!$M$4))))+J7 -> 120 | K8: =('Thermal age Table'!$E$5+($B8*K$4)) -> -4 | L8: =(($A8-$A7)*((EXP((1/(($B8*'Thermal age Table'!$F$5)+'Thermal age Table'!$E$5+273.15))*((-'Thermal age Table'!$L$5*1000)/8.3144598)+'Thermal age Table'!$M$5))/(EXP((1/(283.15))*((-'Thermal age Table'!$L$5*1000)/8.3144598)+'Thermal age Table'!$M$5))))+L7 -> 145 | M8: =(($A8-$A7)*((EXP((1/(($B8*('Thermal age Table'!$F$5*0.8))+('Thermal age Table'!$E$5-1)+273.15))*((-'Thermal age Table'!$L$5*1000)/8.3144598)+'Thermal age Table'!$M$5))/(EXP((1/(283.15))*((-'Thermal age Table'!$L$5*1000)/8.3144598)+'Thermal age Table'!$M$5))))+N7 -> 157 | N8: =(($A8-$A7)*((EXP((1/(($B8*('Thermal age Table'!$F$5*1.2))+('Thermal age Table'!$E$5+1)+273.15))*((-'Thermal age Table'!$L$5*1000)/8.3144598)+'Thermal age Table'!$M$5))/(EXP((1/(283.15))*((-'Thermal age Table'!$L$5*1000)/8.3144598)+'Thermal age Table'!$M$5))))+N7 -> 179 | O8: =('Thermal age Table'!$E$7)+($B8*O$4) -> 10 | P8: =(($A8-$A7)*((EXP((1/(($B8*'Thermal age Table'!$F$7)+'Thermal age Table'!$E$7+273.15))*((-'Thermal age Table'!$L$7*1000)/8.3144598)+'Thermal age Table'!$M$7))/(EXP((1/(283.15))*((-'Thermal age Table'!$L$7*1000)/8.3144598)+'Thermal age Table'!$M$7))))+P7 -> 1,983 | Q8: =(($A8-$A7)*((EXP((1/(($B8*('Thermal age Table'!$F$7*0.8))+('Thermal age Table'!$E$7-1)+273.15))*((-'Thermal age Table'!$L$7*1000)/8.3144598)+'Thermal age Table'!$M$7))/(EXP((1/(283.15))*((-'Thermal age Table'!$L$7*1000)/8.3144598)+'Thermal age Table'!$M$7))))+Q7 -> 1,513 | R8: =(($A8-$A7)*((EXP((1/(($B8*('Thermal age Table'!$F$7*1.2))+('Thermal age Table'!$E$7+1)+273.15))*((-'Thermal age Table'!$L$7*1000)/8.3144598)+'Thermal age Table'!$M$7))/(EXP((1/(283.15))*((-'Thermal age Table'!$L$7*1000)/8.3144598)+'Thermal age Table'!$M$7))))+R7 -> 2,595 | S8: =('Thermal age Table'!$E$8)+($B8*S$4) -> 10 | T8: =(($A8-$A7)*((EXP((1/(($B8*'Thermal age Table'!$F$8)+'Thermal age Table'!$E$8+273.15))*((-'Thermal age Table'!$L$8*1000)/8.3144598)+'Thermal age Table'!$M$8))/(EXP((1/(283.15))*((-'Thermal age Table'!$L$8*1000)/8.3144598)+'Thermal age Table'!$M$8))))+T7 -> 2,216 | U8: =(($A8-$A7)*((EXP((1/(($B8*('Thermal age Table'!$F$8*0.8))+('Thermal age Table'!$E$8-1)+273.15))*((-'Thermal age Table'!$L$8*1000)/8.3144598)+'Thermal age Table'!$M$8))/(EXP((1/(283.15))*((-'Thermal age Table'!$L$8*1000)/8.3144598)+'Thermal age Table'!$M$8))))+U7 -> 1,823 | V8: =(($A8-$A7)*((EXP((1/(($B8*('Thermal age Table'!$F$8*1.2))+('Thermal age Table'!$E$8+1)+273.15))*((-'Thermal age Table'!$L$8*1000)/8.3144598)+'Thermal age Table'!$M$8))/(EXP((1/(283.15))*((-'Thermal age Table'!$L$8*1000)/8.3144598)+'Thermal age Table'!$M$8))))+V7 -> 2,689 | W8: =('Thermal age Table'!$E$9+($B8*W$4)) -> 16 | X8: =(($A8-$A7)*((EXP((1/(($B8*'Thermal age Table'!$F$9)+'Thermal age Table'!$E$9+273.15))*((-'Thermal age Table'!$L$9*1000)/8.3144598)+'Thermal age Table'!$M$9))/(EXP((1/(283.15))*((-'Thermal age Table'!$L$9*1000)/8.3144598)+'Thermal age Table'!$M$9))))+X7 -> 6,543 | Y8: =(($A8-$A7)*((EXP((1/(($B8*('Thermal age Table'!$F$9*0.8))+('Thermal age Table'!$E$9-1)+273.15))*((-'Thermal age Table'!$L$9*1000)/8.3144598)+'Thermal age Table'!$M$9))/(EXP((1/(283.15))*((-'Thermal age Table'!$L$9*1000)/8.3144598)+'Thermal age Table'!$M$9))))+Y7 -> 5,501 | Z8: =(($A8-$A7)*((EXP((1/(($B8*('Thermal age Table'!$F$9*1.2))+('Thermal age Table'!$E$9+1)+273.15))*((-'Thermal age Table'!$L$9*1000)/8.3144598)+'Thermal age Table'!$M$9))/(EXP((1/(283.15))*((-'Thermal age Table'!$L$9*1000)/8.3144598)+'Thermal age Table'!$M$9))))+Z7 -> 7,772 | AA8: =('Thermal age Table'!$E$10+($B8*AA$4)) -> 18 | AB8: =(($A8-$A7)*((EXP((1/(($B8*'Thermal age Table'!$F$10)+'Thermal age Table'!$E$10+273.15))*((-'Thermal age Table'!$L$10*1000)/8.3144598)+'Thermal age Table'!$M$10))/(EXP((1/(283.15))*((-'Thermal age Table'!$L$10*1000)/8.3144598)+'Thermal age Table'!$M$10))))+AB7 -> 9,643 | AC8: =(($A8-$A7)*((EXP((1/(($B8*('Thermal age Table'!$F$10*0.8))+('Thermal age Table'!$E$10-1)+273.15))*((-'Thermal age Table'!$L$10*1000)/8.3144598)+'Thermal age Table'!$M$10))/(EXP((1/(283.15))*((-'Thermal age Table'!$L$9*1000)/8.3144598)+'Thermal age Table'!$M$10))))+AC7 -> 8,130 | AD8: =(($A8-$A7)*((EXP((1/(($B8*('Thermal age Table'!$F$10*1.2))+('Thermal age Table'!$E$10+1)+273.15))*((-'Thermal age Table'!$L$10*1000)/8.3144598)+'Thermal age Table'!$M$10))/(EXP((1/(283.15))*((-'Thermal age Table'!$L$10*1000)/8.3144598)+'Thermal age Table'!$M$10))))+AD7 -> 11,424 | AE8: =('Thermal age Table'!$E$11+($B8*AE$4)) -> 19 | AF8: =(($A8-$A7)*((EXP((1/(($B8*'Thermal age Table'!$F$11)+'Thermal age Table'!$E$11+273.15))*((-'Thermal age Table'!$L$11*1000)/8.3144598)+'Thermal age Table'!$M$11))/(EXP((1/(283.15))*((-'Thermal age Table'!$L$11*1000)/8.3144598)+'Thermal age Table'!$M$11))))+AF7 -> 10,602 | AG8: =(($A8-$A7)*((EXP((1/(($B8*('Thermal age Table'!$F$11*0.8))+('Thermal age Table'!$E$11-1)+273.15))*((-'Thermal age Table'!$L$11*1000)/8.3144598)+'Thermal age Table'!$M$11))/(EXP((1/(283.15))*((-'Thermal age Table'!$L$11*1000)/8.3144598)+'Thermal age Table'!$M$11))))+AG7 -> 8,954 | AH8: =(($A8-$A7)*((EXP((1/(($B8*('Thermal age Table'!$F$11*1.2))+('Thermal age Table'!$E$11+1)+273.15))*((-'Thermal age Table'!$L$11*1000)/8.3144598)+'Thermal age Table'!$M$11))/(EXP((1/(283.15))*((-'Thermal age Table'!$L$11*1000)/8.3144598)+'Thermal age Table'!$M$11))))+AH7 -> 12,538 | AI8: =('Thermal age Table'!$E$12+($B8*AI$4)) -> 19 | AJ8: =(($A8-$A7)*((EXP((1/(($B8*'Thermal age Table'!$F$12)+'Thermal age Table'!$E$12+273.15))*((-'Thermal age Table'!$L$12*1000)/8.3144598)+'Thermal age Table'!$M$12))/(EXP((1/(283.15))*((-'Thermal age Table'!$L$12*1000)/8.3144598)+'Thermal age Table'!$M$12))))+AJ7 -> 10,780 | AK8: =(($A8-$A7)*((EXP((1/(($B8*('Thermal age Table'!$F$12*0.8))+('Thermal age Table'!$E$12-1)+273.15))*((-'Thermal age Table'!$L$12*1000)/8.3144598)+'Thermal age Table'!$M$12))/(EXP((1/(283.15))*((-'Thermal age Table'!$L$12*1000)/8.3144598)+'Thermal age Table'!$M$12))))+AK7 -> 9,106 | AL8: =(($A8-$A7)*((EXP((1/(($B8*('Thermal age Table'!$F$12*1.2))+('Thermal age Table'!$E$12+1)+273.15))*((-'Thermal age Table'!$L$12*1000)/8.3144598)+'Thermal age Table'!$M$12))/(EXP((1/(283.15))*((-'Thermal age Table'!$L$12*1000)/8.3144598)+'Thermal age Table'!$M$12))))+AL7 -> 12,747 | AM8: =('Thermal age Table'!$E$13+($B8*AM$4)) -> 11 | AN8: =(($A8-$A7)*((EXP((1/(($B8*'Thermal age Table'!$F$13)+'Thermal age Table'!$E$13+273.15))*((-'Thermal age Table'!$L$13*1000)/8.3144598)+'Thermal age Table'!$M$13))/(EXP((1/(283.15))*((-'Thermal age Table'!$L$13*1000)/8.3144598)+'Thermal age Table'!$M$13))))+AN7 -> 2,965 | AO8: =(($A8-$A7)*((EXP((1/(($B8*('Thermal age Table'!$F$13*0.8))+('Thermal age Table'!$E$13-1)+273.15))*((-'Thermal age Table'!$L$13*1000)/8.3144598)+'Thermal age Table'!$M$13))/(EXP((1/(283.15))*((-'Thermal age Table'!$L$13*1000)/8.3144598)+'Thermal age Table'!$M$13))))+AO7 -> 2,486 | AP8: =(($A8-$A7)*((EXP((1/(($B8*('Thermal age Table'!$F$13*1.2))+('Thermal age Table'!$E$13+1)+273.15))*((-'Thermal age Table'!$L$13*1000)/8.3144598)+'Thermal age Table'!$M$13))/(EXP((1/(283.15))*((-'Thermal age Table'!$L$13*1000)/8.3144598)+'Thermal age Table'!$M$13))))+AP7 -> 3,532 | AQ8: =('Thermal age Table'!$E$14+($B8*AQ$4)) -> 26 | AR8: =(($A8-$A7)*((EXP((1/(($B8*'Thermal age Table'!$F$14)+'Thermal age Table'!$E$14+273.15))*((-'Thermal age Table'!$L$14*1000)/8.3144598)+'Thermal age Table'!$M$14))/(EXP((1/(283.15))*((-'Thermal age Table'!$L$14*1000)/8.3144598)+'Thermal age Table'!$M$14))))+AR7 -> 35,301 | AS8: =(($A8-$A7)*((EXP((1/(($B8*('Thermal age Table'!$F$14*0.8))+('Thermal age Table'!$E$14-1)+273.15))*((-'Thermal age Table'!$L$14*1000)/8.3144598)+'Thermal age Table'!$M$14))/(EXP((1/(283.15))*((-'Thermal age Table'!$L$14*1000)/8.3144598)+'Thermal age Table'!$M$14))))+AS7 -> 30,063 | AT8: =(($A8-$A7)*((EXP((1/(($B8*('Thermal age Table'!$F$14*1.2))+('Thermal age Table'!$E$14+1)+273.15))*((-'Thermal age Table'!$L$14*1000)/8.3144598)+'Thermal age Table'!$M$14))/(EXP((1/(283.15))*((-'Thermal age Table'!$L$14*1000)/8.3144598)+'Thermal age Table'!$M$14))))+AT7 -> 41,408 | AU8: =('Thermal age Table'!$E$15+($B8*AU$4)) -> 22 | AV8: =(($A8-$A7)*((EXP((1/(($B8*'Thermal age Table'!$F$15)+'Thermal age Table'!$E$15+273.15))*((-'Thermal age Table'!$L$15*1000)/8.3144598)+'Thermal age Table'!$M$15))/(EXP((1/(283.15))*((-'Thermal age Table'!$L$15*1000)/8.3144598)+'Thermal age Table'!$M$15))))+AV7 -> 18,288 | AW8: =(($A8-$A7)*((EXP((1/(($B8*('Thermal age Table'!$F$15*0.8))+('Thermal age Table'!$E$15-1)+273.15))*((-'Thermal age Table'!$L$15*1000)/8.3144598)+'Thermal age Table'!$M$15))/(EXP((1/(283.15))*((-'Thermal age Table'!$L$15*1000)/8.3144598)+'Thermal age Table'!$M$15))))+AW7 -> 15,500 | AX8: =(($A8-$A7)*((EXP((1/(($B8*('Thermal age Table'!$F$15*1.2))+('Thermal age Table'!$E$15+1)+273.15))*((-'Thermal age Table'!$L$15*1000)/8.3144598)+'Thermal age Table'!$M$15))/(EXP((1/(283.15))*((-'Thermal age Table'!$L$15*1000)/8.3144598)+'Thermal age Table'!$M$15))))+AX7 -> 21,552
A9: 3,200 | B9: 0.24 | C9: =('Thermal age Table'!$E$2)+($B9*C$4) -> -19 | D9: =(($A9-$A8)*((EXP((1/(($B9*'Thermal age Table'!$F$2)+'Thermal age Table'!$E$2+273.15))*((-'Thermal age Table'!$L$2*1000)/8.3144598)+'Thermal age Table'!$M$2))/(EXP((1/(283.15))*((-'Thermal age Table'!$L$2*1000)/8.3144598)+'Thermal age Table'!$M$2))))+D8 -> 1 | E9: =(($A9-$A8)*((EXP((1/(($B9*('Thermal age Table'!$F$2*0.8))+('Thermal age Table'!$E$2-1)+273.15))*((-'Thermal age Table'!$L$2*1000)/8.3144598)+'Thermal age Table'!$M$2))/(EXP((1/(283.15))*((-'Thermal age Table'!$L$2*1000)/8.3144598)+'Thermal age Table'!$M$2))))+E8 -> 0 | F9: =(($A9-$A8)*((EXP((1/(($B9*('Thermal age Table'!$F$2*1.2))+('Thermal age Table'!$E$2+1)+273.15))*((-'Thermal age Table'!$L$2*1000)/8.3144598)+'Thermal age Table'!$M$2))/(EXP((1/(283.15))*((-'Thermal age Table'!$L$2*1000)/8.3144598)+'Thermal age Table'!$M$2))))+F8 -> 1 | G9: =('Thermal age Table'!$E$4+($B9*G$4)) -> -5 | H9: =(($A9-$A8)*((EXP((1/(($B9*'Thermal age Table'!$F$4)+'Thermal age Table'!$E$4+273.15))*((-'Thermal age Table'!$L$4*1000)/8.3144598)+'Thermal age Table'!$M$4))/(EXP((1/(283.15))*((-'Thermal age Table'!$L$4*1000)/8.3144598)+'Thermal age Table'!$M$4))))+H8 -> 132 | I9: =(($A9-$A8)*((EXP((1/(($B9*('Thermal age Table'!$F$4*0.8))+('Thermal age Table'!$E$4-1)+273.15))*((-'Thermal age Table'!$L$4*1000)/8.3144598)+'Thermal age Table'!$M$4))/(EXP((1/(283.15))*((-'Thermal age Table'!$L$4*1000)/8.3144598)+'Thermal age Table'!$M$4))))+I8 -> 104 | J9: =(($A9-$A8)*((EXP((1/(($B9*('Thermal age Table'!$F$4*1.2))+('Thermal age Table'!$E$4+1)+273.15))*((-'Thermal age Table'!$L$4*1000)/8.3144598)+'Thermal age Table'!$M$4))/(EXP((1/(283.15))*((-'Thermal age Table'!$L$4*1000)/8.3144598)+'Thermal age Table'!$M$4))))+J8 -> 167 | K9: =('Thermal age Table'!$E$5+($B9*K$4)) -> -4 | L9: =(($A9-$A8)*((EXP((1/(($B9*'Thermal age Table'!$F$5)+'Thermal age Table'!$E$5+273.15))*((-'Thermal age Table'!$L$5*1000)/8.3144598)+'Thermal age Table'!$M$5))/(EXP((1/(283.15))*((-'Thermal age Table'!$L$5*1000)/8.3144598)+'Thermal age Table'!$M$5))))+L8 -> 194 | M9: =(($A9-$A8)*((EXP((1/(($B9*('Thermal age Table'!$F$5*0.8))+('Thermal age Table'!$E$5-1)+273.15))*((-'Thermal age Table'!$L$5*1000)/8.3144598)+'Thermal age Table'!$M$5))/(EXP((1/(283.15))*((-'Thermal age Table'!$L$5*1000)/8.3144598)+'Thermal age Table'!$M$5))))+N8 -> 219 | N9: =(($A9-$A8)*((EXP((1/(($B9*('Thermal age Table'!$F$5*1.2))+('Thermal age Table'!$E$5+1)+273.15))*((-'Thermal age Table'!$L$5*1000)/8.3144598)+'Thermal age Table'!$M$5))/(EXP((1/(283.15))*((-'Thermal age Table'!$L$5*1000)/8.3144598)+'Thermal age Table'!$M$5))))+N8 -> 241 | O9: =('Thermal age Table'!$E$7)+($B9*O$4) -> 10 | P9: =(($A9-$A8)*((EXP((1/(($B9*'Thermal age Table'!$F$7)+'Thermal age Table'!$E$7+273.15))*((-'Thermal age Table'!$L$7*1000)/8.3144598)+'Thermal age Table'!$M$7))/(EXP((1/(283.15))*((-'Thermal age Table'!$L$7*1000)/8.3144598)+'Thermal age Table'!$M$7))))+P8 -> 2,700 | Q9: =(($A9-$A8)*((EXP((1/(($B9*('Thermal age Table'!$F$7*0.8))+('Thermal age Table'!$E$7-1)+273.15))*((-'Thermal age Table'!$L$7*1000)/8.3144598)+'Thermal age Table'!$M$7))/(EXP((1/(283.15))*((-'Thermal age Table'!$L$7*1000)/8.3144598)+'Thermal age Table'!$M$7))))+Q8 -> 2,051 | R9: =(($A9-$A8)*((EXP((1/(($B9*('Thermal age Table'!$F$7*1.2))+('Thermal age Table'!$E$7+1)+273.15))*((-'Thermal age Table'!$L$7*1000)/8.3144598)+'Thermal age Table'!$M$7))/(EXP((1/(283.15))*((-'Thermal age Table'!$L$7*1000)/8.3144598)+'Thermal age Table'!$M$7))))+R8 -> 3,548 | S9: =('Thermal age Table'!$E$8)+($B9*S$4) -> 10 | T9: =(($A9-$A8)*((EXP((1/(($B9*'Thermal age Table'!$F$8)+'Thermal age Table'!$E$8+273.15))*((-'Thermal age Table'!$L$8*1000)/8.3144598)+'Thermal age Table'!$M$8))/(EXP((1/(283.15))*((-'Thermal age Table'!$L$8*1000)/8.3144598)+'Thermal age Table'!$M$8))))+T8 -> 2,977 | U9: =(($A9-$A8)*((EXP((1/(($B9*('Thermal age Table'!$F$8*0.8))+('Thermal age Table'!$E$8-1)+273.15))*((-'Thermal age Table'!$L$8*1000)/8.3144598)+'Thermal age Table'!$M$8))/(EXP((1/(283.15))*((-'Thermal age Table'!$L$8*1000)/8.3144598)+'Thermal age Table'!$M$8))))+U8 -> 2,446 | V9: =(($A9-$A8)*((EXP((1/(($B9*('Thermal age Table'!$F$8*1.2))+('Thermal age Table'!$E$8+1)+273.15))*((-'Thermal age Table'!$L$8*1000)/8.3144598)+'Thermal age Table'!$M$8))/(EXP((1/(283.15))*((-'Thermal age Table'!$L$8*1000)/8.3144598)+'Thermal age Table'!$M$8))))+V8 -> 3,618 | W9: =('Thermal age Table'!$E$9+($B9*W$4)) -> 16 | X9: =(($A9-$A8)*((EXP((1/(($B9*'Thermal age Table'!$F$9)+'Thermal age Table'!$E$9+273.15))*((-'Thermal age Table'!$L$9*1000)/8.3144598)+'Thermal age Table'!$M$9))/(EXP((1/(283.15))*((-'Thermal age Table'!$L$9*1000)/8.3144598)+'Thermal age Table'!$M$9))))+X8 -> 8,783 | Y9: =(($A9-$A8)*((EXP((1/(($B9*('Thermal age Table'!$F$9*0.8))+('Thermal age Table'!$E$9-1)+273.15))*((-'Thermal age Table'!$L$9*1000)/8.3144598)+'Thermal age Table'!$M$9))/(EXP((1/(283.15))*((-'Thermal age Table'!$L$9*1000)/8.3144598)+'Thermal age Table'!$M$9))))+Y8 -> 7,375 | Z9: =(($A9-$A8)*((EXP((1/(($B9*('Thermal age Table'!$F$9*1.2))+('Thermal age Table'!$E$9+1)+273.15))*((-'Thermal age Table'!$L$9*1000)/8.3144598)+'Thermal age Table'!$M$9))/(EXP((1/(283.15))*((-'Thermal age Table'!$L$9*1000)/8.3144598)+'Thermal age Table'!$M$9))))+Z8 -> 10,447 | AA9: =('Thermal age Table'!$E$10+($B9*AA$4)) -> 18 | AB9: =(($A9-$A8)*((EXP((1/(($B9*'Thermal age Table'!$F$10)+'Thermal age Table'!$E$10+273.15))*((-'Thermal age Table'!$L$10*1000)/8.3144598)+'Thermal age Table'!$M$10))/(EXP((1/(283.15))*((-'Thermal age Table'!$L$10*1000)/8.3144598)+'Thermal age Table'!$M$10))))+AB8 -> 12,944 | AC9: =(($A9-$A8)*((EXP((1/(($B9*('Thermal age Table'!$F$10*0.8))+('Thermal age Table'!$E$10-1)+273.15))*((-'Thermal age Table'!$L$10*1000)/8.3144598)+'Thermal age Table'!$M$10))/(EXP((1/(283.15))*((-'Thermal age Table'!$L$9*1000)/8.3144598)+'Thermal age Table'!$M$10))))+AC8 -> 10,899 | AD9: =(($A9-$A8)*((EXP((1/(($B9*('Thermal age Table'!$F$10*1.2))+('Thermal age Table'!$E$10+1)+273.15))*((-'Thermal age Table'!$L$10*1000)/8.3144598)+'Thermal age Table'!$M$10))/(EXP((1/(283.15))*((-'Thermal age Table'!$L$10*1000)/8.3144598)+'Thermal age Table'!$M$10))))+AD8 -> 15,355 | AE9: =('Thermal age Table'!$E$11+($B9*AE$4)) -> 19 | AF9: =(($A9-$A8)*((EXP((1/(($B9*'Thermal age Table'!$F$11)+'Thermal age Table'!$E$11+273.15))*((-'Thermal age Table'!$L$11*1000)/8.3144598)+'Thermal age Table'!$M$11))/(EXP((1/(283.15))*((-'Thermal age Table'!$L$11*1000)/8.3144598)+'Thermal age Table'!$M$11))))+AF8 -> 14,192 | AG9: =(($A9-$A8)*((EXP((1/(($B9*('Thermal age Table'!$F$11*0.8))+('Thermal age Table'!$E$11-1)+273.15))*((-'Thermal age Table'!$L$11*1000)/8.3144598)+'Thermal age Table'!$M$11))/(EXP((1/(283.15))*((-'Thermal age Table'!$L$11*1000)/8.3144598)+'Thermal age Table'!$M$11))))+AG8 -> 11,977 | AH9: =(($A9-$A8)*((EXP((1/(($B9*('Thermal age Table'!$F$11*1.2))+('Thermal age Table'!$E$11+1)+273.15))*((-'Thermal age Table'!$L$11*1000)/8.3144598)+'Thermal age Table'!$M$11))/(EXP((1/(283.15))*((-'Thermal age Table'!$L$11*1000)/8.3144598)+'Thermal age Table'!$M$11))))+AH8 -> 16,797 | AI9: =('Thermal age Table'!$E$12+($B9*AI$4)) -> 19 | AJ9: =(($A9-$A8)*((EXP((1/(($B9*'Thermal age Table'!$F$12)+'Thermal age Table'!$E$12+273.15))*((-'Thermal age Table'!$L$12*1000)/8.3144598)+'Thermal age Table'!$M$12))/(EXP((1/(283.15))*((-'Thermal age Table'!$L$12*1000)/8.3144598)+'Thermal age Table'!$M$12))))+AJ8 -> 14,431 | AK9: =(($A9-$A8)*((EXP((1/(($B9*('Thermal age Table'!$F$12*0.8))+('Thermal age Table'!$E$12-1)+273.15))*((-'Thermal age Table'!$L$12*1000)/8.3144598)+'Thermal age Table'!$M$12))/(EXP((1/(283.15))*((-'Thermal age Table'!$L$12*1000)/8.3144598)+'Thermal age Table'!$M$12))))+AK8 -> 12,180 | AL9: =(($A9-$A8)*((EXP((1/(($B9*('Thermal age Table'!$F$12*1.2))+('Thermal age Table'!$E$12+1)+273.15))*((-'Thermal age Table'!$L$12*1000)/8.3144598)+'Thermal age Table'!$M$12))/(EXP((1/(283.15))*((-'Thermal age Table'!$L$12*1000)/8.3144598)+'Thermal age Table'!$M$12))))+AL8 -> 17,077 | AM9: =('Thermal age Table'!$E$13+($B9*AM$4)) -> 11 | AN9: =(($A9-$A8)*((EXP((1/(($B9*'Thermal age Table'!$F$13)+'Thermal age Table'!$E$13+273.15))*((-'Thermal age Table'!$L$13*1000)/8.3144598)+'Thermal age Table'!$M$13))/(EXP((1/(283.15))*((-'Thermal age Table'!$L$13*1000)/8.3144598)+'Thermal age Table'!$M$13))))+AN8 -> 3,954 | AO9: =(($A9-$A8)*((EXP((1/(($B9*('Thermal age Table'!$F$13*0.8))+('Thermal age Table'!$E$13-1)+273.15))*((-'Thermal age Table'!$L$13*1000)/8.3144598)+'Thermal age Table'!$M$13))/(EXP((1/(283.15))*((-'Thermal age Table'!$L$13*1000)/8.3144598)+'Thermal age Table'!$M$13))))+AO8 -> 3,315 | AP9: =(($A9-$A8)*((EXP((1/(($B9*('Thermal age Table'!$F$13*1.2))+('Thermal age Table'!$E$13+1)+273.15))*((-'Thermal age Table'!$L$13*1000)/8.3144598)+'Thermal age Table'!$M$13))/(EXP((1/(283.15))*((-'Thermal age Table'!$L$13*1000)/8.3144598)+'Thermal age Table'!$M$13))))+AP8 -> 4,710 | AQ9: =('Thermal age Table'!$E$14+($B9*AQ$4)) -> 26 | AR9: =(($A9-$A8)*((EXP((1/(($B9*'Thermal age Table'!$F$14)+'Thermal age Table'!$E$14+273.15))*((-'Thermal age Table'!$L$14*1000)/8.3144598)+'Thermal age Table'!$M$14))/(EXP((1/(283.15))*((-'Thermal age Table'!$L$14*1000)/8.3144598)+'Thermal age Table'!$M$14))))+AR8 -> 47,248 | AS9: =(($A9-$A8)*((EXP((1/(($B9*('Thermal age Table'!$F$14*0.8))+('Thermal age Table'!$E$14-1)+273.15))*((-'Thermal age Table'!$L$14*1000)/8.3144598)+'Thermal age Table'!$M$14))/(EXP((1/(283.15))*((-'Thermal age Table'!$L$14*1000)/8.3144598)+'Thermal age Table'!$M$14))))+AS8 -> 40,207 | AT9: =(($A9-$A8)*((EXP((1/(($B9*('Thermal age Table'!$F$14*1.2))+('Thermal age Table'!$E$14+1)+273.15))*((-'Thermal age Table'!$L$14*1000)/8.3144598)+'Thermal age Table'!$M$14))/(EXP((1/(283.15))*((-'Thermal age Table'!$L$14*1000)/8.3144598)+'Thermal age Table'!$M$14))))+AT8 -> 55,462 | AU9: =('Thermal age Table'!$E$15+($B9*AU$4)) -> 22 | AV9: =(($A9-$A8)*((EXP((1/(($B9*'Thermal age Table'!$F$15)+'Thermal age Table'!$E$15+273.15))*((-'Thermal age Table'!$L$15*1000)/8.3144598)+'Thermal age Table'!$M$15))/(EXP((1/(283.15))*((-'Thermal age Table'!$L$15*1000)/8.3144598)+'Thermal age Table'!$M$15))))+AV8 -> 24,495 | AW9: =(($A9-$A8)*((EXP((1/(($B9*('Thermal age Table'!$F$15*0.8))+('Thermal age Table'!$E$15-1)+273.15))*((-'Thermal age Table'!$L$15*1000)/8.3144598)+'Thermal age Table'!$M$15))/(EXP((1/(283.15))*((-'Thermal age Table'!$L$15*1000)/8.3144598)+'Thermal age Table'!$M$15))))+AW8 -> 20,743 | AX9: =(($A9-$A8)*((EXP((1/(($B9*('Thermal age Table'!$F$15*1.2))+('Thermal age Table'!$E$15+1)+273.15))*((-'Thermal age Table'!$L$15*1000)/8.3144598)+'Thermal age Table'!$M$15))/(EXP((1/(283.15))*((-'Thermal age Table'!$L$15*1000)/8.3144598)+'Thermal age Table'!$M$15))))+AX8 -> 28,893
A10: 4,000 | B10: 0.37 | C10: =('Thermal age Table'!$E$2)+($B10*C$4) -> -18 | D10: =(($A10-$A9)*((EXP((1/(($B10*'Thermal age Table'!$F$2)+'Thermal age Table'!$E$2+273.15))*((-'Thermal age Table'!$L$2*1000)/8.3144598)+'Thermal age Table'!$M$2))/(EXP((1/(283.15))*((-'Thermal age Table'!$L$2*1000)/8.3144598)+'Thermal age Table'!$M$2))))+D9 -> 1 | E10: =(($A10-$A9)*((EXP((1/(($B10*('Thermal age Table'!$F$2*0.8))+('Thermal age Table'!$E$2-1)+273.15))*((-'Thermal age Table'!$L$2*1000)/8.3144598)+'Thermal age Table'!$M$2))/(EXP((1/(283.15))*((-'Thermal age Table'!$L$2*1000)/8.3144598)+'Thermal age Table'!$M$2))))+E9 -> 1 | F10: =(($A10-$A9)*((EXP((1/(($B10*('Thermal age Table'!$F$2*1.2))+('Thermal age Table'!$E$2+1)+273.15))*((-'Thermal age Table'!$L$2*1000)/8.3144598)+'Thermal age Table'!$M$2))/(EXP((1/(283.15))*((-'Thermal age Table'!$L$2*1000)/8.3144598)+'Thermal age Table'!$M$2))))+F9 -> 1 | G10: =('Thermal age Table'!$E$4+($B10*G$4)) -> -5 | H10: =(($A10-$A9)*((EXP((1/(($B10*'Thermal age Table'!$F$4)+'Thermal age Table'!$E$4+273.15))*((-'Thermal age Table'!$L$4*1000)/8.3144598)+'Thermal age Table'!$M$4))/(EXP((1/(283.15))*((-'Thermal age Table'!$L$4*1000)/8.3144598)+'Thermal age Table'!$M$4))))+H9 -> 173 | I10: =(($A10-$A9)*((EXP((1/(($B10*('Thermal age Table'!$F$4*0.8))+('Thermal age Table'!$E$4-1)+273.15))*((-'Thermal age Table'!$L$4*1000)/8.3144598)+'Thermal age Table'!$M$4))/(EXP((1/(283.15))*((-'Thermal age Table'!$L$4*1000)/8.3144598)+'Thermal age Table'!$M$4))))+I9 -> 135 | J10: =(($A10-$A9)*((EXP((1/(($B10*('Thermal age Table'!$F$4*1.2))+('Thermal age Table'!$E$4+1)+273.15))*((-'Thermal age Table'!$L$4*1000)/8.3144598)+'Thermal age Table'!$M$4))/(EXP((1/(283.15))*((-'Thermal age Table'!$L$4*1000)/8.3144598)+'Thermal age Table'!$M$4))))+J9 -> 221 | K10: =('Thermal age Table'!$E$5+($B10*K$4)) -> -4 | L10: =(($A10-$A9)*((EXP((1/(($B10*'Thermal age Table'!$F$5)+'Thermal age Table'!$E$5+273.15))*((-'Thermal age Table'!$L$5*1000)/8.3144598)+'Thermal age Table'!$M$5))/(EXP((1/(283.15))*((-'Thermal age Table'!$L$5*1000)/8.3144598)+'Thermal age Table'!$M$5))))+L9 -> 245 | M10: =(($A10-$A9)*((EXP((1/(($B10*('Thermal age Table'!$F$5*0.8))+('Thermal age Table'!$E$5-1)+273.15))*((-'Thermal age Table'!$L$5*1000)/8.3144598)+'Thermal age Table'!$M$5))/(EXP((1/(283.15))*((-'Thermal age Table'!$L$5*1000)/8.3144598)+'Thermal age Table'!$M$5))))+N9 -> 282 | N10: =(($A10-$A9)*((EXP((1/(($B10*('Thermal age Table'!$F$5*1.2))+('Thermal age Table'!$E$5+1)+273.15))*((-'Thermal age Table'!$L$5*1000)/8.3144598)+'Thermal age Table'!$M$5))/(EXP((1/(283.15))*((-'Thermal age Table'!$L$5*1000)/8.3144598)+'Thermal age Table'!$M$5))))+N9 -> 305 | O10: =('Thermal age Table'!$E$7)+($B10*O$4) -> 10 | P10: =(($A10-$A9)*((EXP((1/(($B10*'Thermal age Table'!$F$7)+'Thermal age Table'!$E$7+273.15))*((-'Thermal age Table'!$L$7*1000)/8.3144598)+'Thermal age Table'!$M$7))/(EXP((1/(283.15))*((-'Thermal age Table'!$L$7*1000)/8.3144598)+'Thermal age Table'!$M$7))))+P9 -> 3,468 | Q10: =(($A10-$A9)*((EXP((1/(($B10*('Thermal age Table'!$F$7*0.8))+('Thermal age Table'!$E$7-1)+273.15))*((-'Thermal age Table'!$L$7*1000)/8.3144598)+'Thermal age Table'!$M$7))/(EXP((1/(283.15))*((-'Thermal age Table'!$L$7*1000)/8.3144598)+'Thermal age Table'!$M$7))))+Q9 -> 2,620 | R10: =(($A10-$A9)*((EXP((1/(($B10*('Thermal age Table'!$F$7*1.2))+('Thermal age Table'!$E$7+1)+273.15))*((-'Thermal age Table'!$L$7*1000)/8.3144598)+'Thermal age Table'!$M$7))/(EXP((1/(283.15))*((-'Thermal age Table'!$L$7*1000)/8.3144598)+'Thermal age Table'!$M$7))))+R9 -> 4,581 | S10: =('Thermal age Table'!$E$8)+($B10*S$4) -> 10 | T10: =(($A10-$A9)*((EXP((1/(($B10*'Thermal age Table'!$F$8)+'Thermal age Table'!$E$8+273.15))*((-'Thermal age Table'!$L$8*1000)/8.3144598)+'Thermal age Table'!$M$8))/(EXP((1/(283.15))*((-'Thermal age Table'!$L$8*1000)/8.3144598)+'Thermal age Table'!$M$8))))+T9 -> 3,757 | U10: =(($A10-$A9)*((EXP((1/(($B10*('Thermal age Table'!$F$8*0.8))+('Thermal age Table'!$E$8-1)+273.15))*((-'Thermal age Table'!$L$8*1000)/8.3144598)+'Thermal age Table'!$M$8))/(EXP((1/(283.15))*((-'Thermal age Table'!$L$8*1000)/8.3144598)+'Thermal age Table'!$M$8))))+U9 -> 3,081 | V10: =(($A10-$A9)*((EXP((1/(($B10*('Thermal age Table'!$F$8*1.2))+('Thermal age Table'!$E$8+1)+273.15))*((-'Thermal age Table'!$L$8*1000)/8.3144598)+'Thermal age Table'!$M$8))/(EXP((1/(283.15))*((-'Thermal age Table'!$L$8*1000)/8.3144598)+'Thermal age Table'!$M$8))))+V9 -> 4,575 | W10: =('Thermal age Table'!$E$9+($B10*W$4)) -> 16 | X10: =(($A10-$A9)*((EXP((1/(($B10*'Thermal age Table'!$F$9)+'Thermal age Table'!$E$9+273.15))*((-'Thermal age Table'!$L$9*1000)/8.3144598)+'Thermal age Table'!$M$9))/(EXP((1/(283.15))*((-'Thermal age Table'!$L$9*1000)/8.3144598)+'Thermal age Table'!$M$9))))+X9 -> 11,074 | Y10: =(($A10-$A9)*((EXP((1/(($B10*('Thermal age Table'!$F$9*0.8))+('Thermal age Table'!$E$9-1)+273.15))*((-'Thermal age Table'!$L$9*1000)/8.3144598)+'Thermal age Table'!$M$9))/(EXP((1/(283.15))*((-'Thermal age Table'!$L$9*1000)/8.3144598)+'Thermal age Table'!$M$9))))+Y9 -> 9,283 | Z10: =(($A10-$A9)*((EXP((1/(($B10*('Thermal age Table'!$F$9*1.2))+('Thermal age Table'!$E$9+1)+273.15))*((-'Thermal age Table'!$L$9*1000)/8.3144598)+'Thermal age Table'!$M$9))/(EXP((1/(283.15))*((-'Thermal age Table'!$L$9*1000)/8.3144598)+'Thermal age Table'!$M$9))))+Z9 -> 13,194 | AA10: =('Thermal age Table'!$E$10+($B10*AA$4)) -> 18 | AB10: =(($A10-$A9)*((EXP((1/(($B10*'Thermal age Table'!$F$10)+'Thermal age Table'!$E$10+273.15))*((-'Thermal age Table'!$L$10*1000)/8.3144598)+'Thermal age Table'!$M$10))/(EXP((1/(283.15))*((-'Thermal age Table'!$L$10*1000)/8.3144598)+'Thermal age Table'!$M$10))))+AB9 -> 16,318 | AC10: =(($A10-$A9)*((EXP((1/(($B10*('Thermal age Table'!$F$10*0.8))+('Thermal age Table'!$E$10-1)+273.15))*((-'Thermal age Table'!$L$10*1000)/8.3144598)+'Thermal age Table'!$M$10))/(EXP((1/(283.15))*((-'Thermal age Table'!$L$9*1000)/8.3144598)+'Thermal age Table'!$M$10))))+AC9 -> 13,717 | AD10: =(($A10-$A9)*((EXP((1/(($B10*('Thermal age Table'!$F$10*1.2))+('Thermal age Table'!$E$10+1)+273.15))*((-'Thermal age Table'!$L$10*1000)/8.3144598)+'Thermal age Table'!$M$10))/(EXP((1/(283.15))*((-'Thermal age Table'!$L$10*1000)/8.3144598)+'Thermal age Table'!$M$10))))+AD9 -> 19,388 | AE10: =('Thermal age Table'!$E$11+($B10*AE$4)) -> 19 | AF10: =(($A10-$A9)*((EXP((1/(($B10*'Thermal age Table'!$F$11)+'Thermal age Table'!$E$11+273.15))*((-'Thermal age Table'!$L$11*1000)/8.3144598)+'Thermal age Table'!$M$11))/(EXP((1/(283.15))*((-'Thermal age Table'!$L$11*1000)/8.3144598)+'Thermal age Table'!$M$11))))+AF9 -> 17,830 | AG10: =(($A10-$A9)*((EXP((1/(($B10*('Thermal age Table'!$F$11*0.8))+('Thermal age Table'!$E$11-1)+273.15))*((-'Thermal age Table'!$L$11*1000)/8.3144598)+'Thermal age Table'!$M$11))/(EXP((1/(283.15))*((-'Thermal age Table'!$L$11*1000)/8.3144598)+'Thermal age Table'!$M$11))))+AG9 -> 15,033 | AH10: =(($A10-$A9)*((EXP((1/(($B10*('Thermal age Table'!$F$11*1.2))+('Thermal age Table'!$E$11+1)+273.15))*((-'Thermal age Table'!$L$11*1000)/8.3144598)+'Thermal age Table'!$M$11))/(EXP((1/(283.15))*((-'Thermal age Table'!$L$11*1000)/8.3144598)+'Thermal age Table'!$M$11))))+AH9 -> 21,122 | AI10: =('Thermal age Table'!$E$12+($B10*AI$4)) -> 19 | AJ10: =(($A10-$A9)*((EXP((1/(($B10*'Thermal age Table'!$F$12)+'Thermal age Table'!$E$12+273.15))*((-'Thermal age Table'!$L$12*1000)/8.3144598)+'Thermal age Table'!$M$12))/(EXP((1/(283.15))*((-'Thermal age Table'!$L$12*1000)/8.3144598)+'Thermal age Table'!$M$12))))+AJ9 -> 18,129 | AK10: =(($A10-$A9)*((EXP((1/(($B10*('Thermal age Table'!$F$12*0.8))+('Thermal age Table'!$E$12-1)+273.15))*((-'Thermal age Table'!$L$12*1000)/8.3144598)+'Thermal age Table'!$M$12))/(EXP((1/(283.15))*((-'Thermal age Table'!$L$12*1000)/8.3144598)+'Thermal age Table'!$M$12))))+AK9 -> 15,287 | AL10: =(($A10-$A9)*((EXP((1/(($B10*('Thermal age Table'!$F$12*1.2))+('Thermal age Table'!$E$12+1)+273.15))*((-'Thermal age Table'!$L$12*1000)/8.3144598)+'Thermal age Table'!$M$12))/(EXP((1/(283.15))*((-'Thermal age Table'!$L$12*1000)/8.3144598)+'Thermal age Table'!$M$12))))+AL9 -> 21,475 | AM10: =('Thermal age Table'!$E$13+($B10*AM$4)) -> 11 | AN10: =(($A10-$A9)*((EXP((1/(($B10*'Thermal age Table'!$F$13)+'Thermal age Table'!$E$13+273.15))*((-'Thermal age Table'!$L$13*1000)/8.3144598)+'Thermal age Table'!$M$13))/(EXP((1/(283.15))*((-'Thermal age Table'!$L$13*1000)/8.3144598)+'Thermal age Table'!$M$13))))+AN9 -> 4,942 | AO10: =(($A10-$A9)*((EXP((1/(($B10*('Thermal age Table'!$F$13*0.8))+('Thermal age Table'!$E$13-1)+273.15))*((-'Thermal age Table'!$L$13*1000)/8.3144598)+'Thermal age Table'!$M$13))/(EXP((1/(283.15))*((-'Thermal age Table'!$L$13*1000)/8.3144598)+'Thermal age Table'!$M$13))))+AO9 -> 4,144 | AP10: =(($A10-$A9)*((EXP((1/(($B10*('Thermal age Table'!$F$13*1.2))+('Thermal age Table'!$E$13+1)+273.15))*((-'Thermal age Table'!$L$13*1000)/8.3144598)+'Thermal age Table'!$M$13))/(EXP((1/(283.15))*((-'Thermal age Table'!$L$13*1000)/8.3144598)+'Thermal age Table'!$M$13))))+AP9 -> 5,887 | AQ10: =('Thermal age Table'!$E$14+($B10*AQ$4)) -> 26 | AR10: =(($A10-$A9)*((EXP((1/(($B10*'Thermal age Table'!$F$14)+'Thermal age Table'!$E$14+273.15))*((-'Thermal age Table'!$L$14*1000)/8.3144598)+'Thermal age Table'!$M$14))/(EXP((1/(283.15))*((-'Thermal age Table'!$L$14*1000)/8.3144598)+'Thermal age Table'!$M$14))))+AR9 -> 59,344 | AS10: =(($A10-$A9)*((EXP((1/(($B10*('Thermal age Table'!$F$14*0.8))+('Thermal age Table'!$E$14-1)+273.15))*((-'Thermal age Table'!$L$14*1000)/8.3144598)+'Thermal age Table'!$M$14))/(EXP((1/(283.15))*((-'Thermal age Table'!$L$14*1000)/8.3144598)+'Thermal age Table'!$M$14))))+AS9 -> 50,453 | AT10: =(($A10-$A9)*((EXP((1/(($B10*('Thermal age Table'!$F$14*1.2))+('Thermal age Table'!$E$14+1)+273.15))*((-'Thermal age Table'!$L$14*1000)/8.3144598)+'Thermal age Table'!$M$14))/(EXP((1/(283.15))*((-'Thermal age Table'!$L$14*1000)/8.3144598)+'Thermal age Table'!$M$14))))+AT9 -> 69,724 | AU10: =('Thermal age Table'!$E$15+($B10*AU$4)) -> 22 | AV10: =(($A10-$A9)*((EXP((1/(($B10*'Thermal age Table'!$F$15)+'Thermal age Table'!$E$15+273.15))*((-'Thermal age Table'!$L$15*1000)/8.3144598)+'Thermal age Table'!$M$15))/(EXP((1/(283.15))*((-'Thermal age Table'!$L$15*1000)/8.3144598)+'Thermal age Table'!$M$15))))+AV9 -> 30,795 | AW10: =(($A10-$A9)*((EXP((1/(($B10*('Thermal age Table'!$F$15*0.8))+('Thermal age Table'!$E$15-1)+273.15))*((-'Thermal age Table'!$L$15*1000)/8.3144598)+'Thermal age Table'!$M$15))/(EXP((1/(283.15))*((-'Thermal age Table'!$L$15*1000)/8.3144598)+'Thermal age Table'!$M$15))))+AW9 -> 26,049 | AX10: =(($A10-$A9)*((EXP((1/(($B10*('Thermal age Table'!$F$15*1.2))+('Thermal age Table'!$E$15+1)+273.15))*((-'Thermal age Table'!$L$15*1000)/8.3144598)+'Thermal age Table'!$M$15))/(EXP((1/(283.15))*((-'Thermal age Table'!$L$15*1000)/8.3144598)+'Thermal age Table'!$M$15))))+AX9 -> 36,365
A11: 4,800 | B11: 0.37 | C11: =('Thermal age Table'!$E$2)+($B11*C$4) -> -18 | D11: =(($A11-$A10)*((EXP((1/(($B11*'Thermal age Table'!$F$2)+'Thermal age Table'!$E$2+273.15))*((-'Thermal age Table'!$L$2*1000)/8.3144598)+'Thermal age Table'!$M$2))/(EXP((1/(283.15))*((-'Thermal age Table'!$L$2*1000)/8.3144598)+'Thermal age Table'!$M$2))))+D10 -> 1 | E11: =(($A11-$A10)*((EXP((1/(($B11*('Thermal age Table'!$F$2*0.8))+('Thermal age Table'!$E$2-1)+273.15))*((-'Thermal age Table'!$L$2*1000)/8.3144598)+'Thermal age Table'!$M$2))/(EXP((1/(283.15))*((-'Thermal age Table'!$L$2*1000)/8.3144598)+'Thermal age Table'!$M$2))))+E10 -> 1 | F11: =(($A11-$A10)*((EXP((1/(($B11*('Thermal age Table'!$F$2*1.2))+('Thermal age Table'!$E$2+1)+273.15))*((-'Thermal age Table'!$L$2*1000)/8.3144598)+'Thermal age Table'!$M$2))/(EXP((1/(283.15))*((-'Thermal age Table'!$L$2*1000)/8.3144598)+'Thermal age Table'!$M$2))))+F10 -> 2 | G11: =('Thermal age Table'!$E$4+($B11*G$4)) -> -5 | H11: =(($A11-$A10)*((EXP((1/(($B11*'Thermal age Table'!$F$4)+'Thermal age Table'!$E$4+273.15))*((-'Thermal age Table'!$L$4*1000)/8.3144598)+'Thermal age Table'!$M$4))/(EXP((1/(283.15))*((-'Thermal age Table'!$L$4*1000)/8.3144598)+'Thermal age Table'!$M$4))))+H10 -> 213 | I11: =(($A11-$A10)*((EXP((1/(($B11*('Thermal age Table'!$F$4*0.8))+('Thermal age Table'!$E$4-1)+273.15))*((-'Thermal age Table'!$L$4*1000)/8.3144598)+'Thermal age Table'!$M$4))/(EXP((1/(283.15))*((-'Thermal age Table'!$L$4*1000)/8.3144598)+'Thermal age Table'!$M$4))))+I10 -> 166 | J11: =(($A11-$A10)*((EXP((1/(($B11*('Thermal age Table'!$F$4*1.2))+('Thermal age Table'!$E$4+1)+273.15))*((-'Thermal age Table'!$L$4*1000)/8.3144598)+'Thermal age Table'!$M$4))/(EXP((1/(283.15))*((-'Thermal age Table'!$L$4*1000)/8.3144598)+'Thermal age Table'!$M$4))))+J10 -> 274 | K11: =('Thermal age Table'!$E$5+($B11*K$4)) -> -4 | L11: =(($A11-$A10)*((EXP((1/(($B11*'Thermal age Table'!$F$5)+'Thermal age Table'!$E$5+273.15))*((-'Thermal age Table'!$L$5*1000)/8.3144598)+'Thermal age Table'!$M$5))/(EXP((1/(283.15))*((-'Thermal age Table'!$L$5*1000)/8.3144598)+'Thermal age Table'!$M$5))))+L10 -> 297 | M11: =(($A11-$A10)*((EXP((1/(($B11*('Thermal age Table'!$F$5*0.8))+('Thermal age Table'!$E$5-1)+273.15))*((-'Thermal age Table'!$L$5*1000)/8.3144598)+'Thermal age Table'!$M$5))/(EXP((1/(283.15))*((-'Thermal age Table'!$L$5*1000)/8.3144598)+'Thermal age Table'!$M$5))))+N10 -> 346 | N11: =(($A11-$A10)*((EXP((1/(($B11*('Thermal age Table'!$F$5*1.2))+('Thermal age Table'!$E$5+1)+273.15))*((-'Thermal age Table'!$L$5*1000)/8.3144598)+'Thermal age Table'!$M$5))/(EXP((1/(283.15))*((-'Thermal age Table'!$L$5*1000)/8.3144598)+'Thermal age Table'!$M$5))))+N10 -> 369 | O11: =('Thermal age Table'!$E$7)+($B11*O$4) -> 10 | P11: =(($A11-$A10)*((EXP((1/(($B11*'Thermal age Table'!$F$7)+'Thermal age Table'!$E$7+273.15))*((-'Thermal age Table'!$L$7*1000)/8.3144598)+'Thermal age Table'!$M$7))/(EXP((1/(283.15))*((-'Thermal age Table'!$L$7*1000)/8.3144598)+'Thermal age Table'!$M$7))))+P10 -> 4,235 | Q11: =(($A11-$A10)*((EXP((1/(($B11*('Thermal age Table'!$F$7*0.8))+('Thermal age Table'!$E$7-1)+273.15))*((-'Thermal age Table'!$L$7*1000)/8.3144598)+'Thermal age Table'!$M$7))/(EXP((1/(283.15))*((-'Thermal age Table'!$L$7*1000)/8.3144598)+'Thermal age Table'!$M$7))))+Q10 -> 3,189 | R11: =(($A11-$A10)*((EXP((1/(($B11*('Thermal age Table'!$F$7*1.2))+('Thermal age Table'!$E$7+1)+273.15))*((-'Thermal age Table'!$L$7*1000)/8.3144598)+'Thermal age Table'!$M$7))/(EXP((1/(283.15))*((-'Thermal age Table'!$L$7*1000)/8.3144598)+'Thermal age Table'!$M$7))))+R10 -> 5,614 | S11: =('Thermal age Table'!$E$8)+($B11*S$4) -> 10 | T11: =(($A11-$A10)*((EXP((1/(($B11*'Thermal age Table'!$F$8)+'Thermal age Table'!$E$8+273.15))*((-'Thermal age Table'!$L$8*1000)/8.3144598)+'Thermal age Table'!$M$8))/(EXP((1/(283.15))*((-'Thermal age Table'!$L$8*1000)/8.3144598)+'Thermal age Table'!$M$8))))+T10 -> 4,538 | U11: =(($A11-$A10)*((EXP((1/(($B11*('Thermal age Table'!$F$8*0.8))+('Thermal age Table'!$E$8-1)+273.15))*((-'Thermal age Table'!$L$8*1000)/8.3144598)+'Thermal age Table'!$M$8))/(EXP((1/(283.15))*((-'Thermal age Table'!$L$8*1000)/8.3144598)+'Thermal age Table'!$M$8))))+U10 -> 3,717 | V11: =(($A11-$A10)*((EXP((1/(($B11*('Thermal age Table'!$F$8*1.2))+('Thermal age Table'!$E$8+1)+273.15))*((-'Thermal age Table'!$L$8*1000)/8.3144598)+'Thermal age Table'!$M$8))/(EXP((1/(283.15))*((-'Thermal age Table'!$L$8*1000)/8.3144598)+'Thermal age Table'!$M$8))))+V10 -> 5,532 | W11: =('Thermal age Table'!$E$9+($B11*W$4)) -> 16 | X11: =(($A11-$A10)*((EXP((1/(($B11*'Thermal age Table'!$F$9)+'Thermal age Table'!$E$9+273.15))*((-'Thermal age Table'!$L$9*1000)/8.3144598)+'Thermal age Table'!$M$9))/(EXP((1/(283.15))*((-'Thermal age Table'!$L$9*1000)/8.3144598)+'Thermal age Table'!$M$9))))+X10 -> 13,364 | Y11: =(($A11-$A10)*((EXP((1/(($B11*('Thermal age Table'!$F$9*0.8))+('Thermal age Table'!$E$9-1)+273.15))*((-'Thermal age Table'!$L$9*1000)/8.3144598)+'Thermal age Table'!$M$9))/(EXP((1/(283.15))*((-'Thermal age Table'!$L$9*1000)/8.3144598)+'Thermal age Table'!$M$9))))+Y10 -> 11,191 | Z11: =(($A11-$A10)*((EXP((1/(($B11*('Thermal age Table'!$F$9*1.2))+('Thermal age Table'!$E$9+1)+273.15))*((-'Thermal age Table'!$L$9*1000)/8.3144598)+'Thermal age Table'!$M$9))/(EXP((1/(283.15))*((-'Thermal age Table'!$L$9*1000)/8.3144598)+'Thermal age Table'!$M$9))))+Z10 -> 15,940 | AA11: =('Thermal age Table'!$E$10+($B11*AA$4)) -> 18 | AB11: =(($A11-$A10)*((EXP((1/(($B11*'Thermal age Table'!$F$10)+'Thermal age Table'!$E$10+273.15))*((-'Thermal age Table'!$L$10*1000)/8.3144598)+'Thermal age Table'!$M$10))/(EXP((1/(283.15))*((-'Thermal age Table'!$L$10*1000)/8.3144598)+'Thermal age Table'!$M$10))))+AB10 -> 19,691 | AC11: =(($A11-$A10)*((EXP((1/(($B11*('Thermal age Table'!$F$10*0.8))+('Thermal age Table'!$E$10-1)+273.15))*((-'Thermal age Table'!$L$10*1000)/8.3144598)+'Thermal age Table'!$M$10))/(EXP((1/(283.15))*((-'Thermal age Table'!$L$9*1000)/8.3144598)+'Thermal age Table'!$M$10))))+AC10 -> 16,535 | AD11: =(($A11-$A10)*((EXP((1/(($B11*('Thermal age Table'!$F$10*1.2))+('Thermal age Table'!$E$10+1)+273.15))*((-'Thermal age Table'!$L$10*1000)/8.3144598)+'Thermal age Table'!$M$10))/(EXP((1/(283.15))*((-'Thermal age Table'!$L$10*1000)/8.3144598)+'Thermal age Table'!$M$10))))+AD10 -> 23,422 | AE11: =('Thermal age Table'!$E$11+($B11*AE$4)) -> 19 | AF11: =(($A11-$A10)*((EXP((1/(($B11*'Thermal age Table'!$F$11)+'Thermal age Table'!$E$11+273.15))*((-'Thermal age Table'!$L$11*1000)/8.3144598)+'Thermal age Table'!$M$11))/(EXP((1/(283.15))*((-'Thermal age Table'!$L$11*1000)/8.3144598)+'Thermal age Table'!$M$11))))+AF10 -> 21,467 | AG11: =(($A11-$A10)*((EXP((1/(($B11*('Thermal age Table'!$F$11*0.8))+('Thermal age Table'!$E$11-1)+273.15))*((-'Thermal age Table'!$L$11*1000)/8.3144598)+'Thermal age Table'!$M$11))/(EXP((1/(283.15))*((-'Thermal age Table'!$L$11*1000)/8.3144598)+'Thermal age Table'!$M$11))))+AG10 -> 18,088 | AH11: =(($A11-$A10)*((EXP((1/(($B11*('Thermal age Table'!$F$11*1.2))+('Thermal age Table'!$E$11+1)+273.15))*((-'Thermal age Table'!$L$11*1000)/8.3144598)+'Thermal age Table'!$M$11))/(EXP((1/(283.15))*((-'Thermal age Table'!$L$11*1000)/8.3144598)+'Thermal age Table'!$M$11))))+AH10 -> 25,448 | AI11: =('Thermal age Table'!$E$12+($B11*AI$4)) -> 19 | AJ11: =(($A11-$A10)*((EXP((1/(($B11*'Thermal age Table'!$F$12)+'Thermal age Table'!$E$12+273.15))*((-'Thermal age Table'!$L$12*1000)/8.3144598)+'Thermal age Table'!$M$12))/(EXP((1/(283.15))*((-'Thermal age Table'!$L$12*1000)/8.3144598)+'Thermal age Table'!$M$12))))+AJ10 -> 21,828 | AK11: =(($A11-$A10)*((EXP((1/(($B11*('Thermal age Table'!$F$12*0.8))+('Thermal age Table'!$E$12-1)+273.15))*((-'Thermal age Table'!$L$12*1000)/8.3144598)+'Thermal age Table'!$M$12))/(EXP((1/(283.15))*((-'Thermal age Table'!$L$12*1000)/8.3144598)+'Thermal age Table'!$M$12))))+AK10 -> 18,394 | AL11: =(($A11-$A10)*((EXP((1/(($B11*('Thermal age Table'!$F$12*1.2))+('Thermal age Table'!$E$12+1)+273.15))*((-'Thermal age Table'!$L$12*1000)/8.3144598)+'Thermal age Table'!$M$12))/(EXP((1/(283.15))*((-'Thermal age Table'!$L$12*1000)/8.3144598)+'Thermal age Table'!$M$12))))+AL10 -> 25,872 | AM11: =('Thermal age Table'!$E$13+($B11*AM$4)) -> 11 | AN11: =(($A11-$A10)*((EXP((1/(($B11*'Thermal age Table'!$F$13)+'Thermal age Table'!$E$13+273.15))*((-'Thermal age Table'!$L$13*1000)/8.3144598)+'Thermal age Table'!$M$13))/(EXP((1/(283.15))*((-'Thermal age Table'!$L$13*1000)/8.3144598)+'Thermal age Table'!$M$13))))+AN10 -> 5,931 | AO11: =(($A11-$A10)*((EXP((1/(($B11*('Thermal age Table'!$F$13*0.8))+('Thermal age Table'!$E$13-1)+273.15))*((-'Thermal age Table'!$L$13*1000)/8.3144598)+'Thermal age Table'!$M$13))/(EXP((1/(283.15))*((-'Thermal age Table'!$L$13*1000)/8.3144598)+'Thermal age Table'!$M$13))))+AO10 -> 4,973 | AP11: =(($A11-$A10)*((EXP((1/(($B11*('Thermal age Table'!$F$13*1.2))+('Thermal age Table'!$E$13+1)+273.15))*((-'Thermal age Table'!$L$13*1000)/8.3144598)+'Thermal age Table'!$M$13))/(EXP((1/(283.15))*((-'Thermal age Table'!$L$13*1000)/8.3144598)+'Thermal age Table'!$M$13))))+AP10 -> 7,064 | AQ11: =('Thermal age Table'!$E$14+($B11*AQ$4)) -> 26 | AR11: =(($A11-$A10)*((EXP((1/(($B11*'Thermal age Table'!$F$14)+'Thermal age Table'!$E$14+273.15))*((-'Thermal age Table'!$L$14*1000)/8.3144598)+'Thermal age Table'!$M$14))/(EXP((1/(283.15))*((-'Thermal age Table'!$L$14*1000)/8.3144598)+'Thermal age Table'!$M$14))))+AR10 -> 71,439 | AS11: =(($A11-$A10)*((EXP((1/(($B11*('Thermal age Table'!$F$14*0.8))+('Thermal age Table'!$E$14-1)+273.15))*((-'Thermal age Table'!$L$14*1000)/8.3144598)+'Thermal age Table'!$M$14))/(EXP((1/(283.15))*((-'Thermal age Table'!$L$14*1000)/8.3144598)+'Thermal age Table'!$M$14))))+AS10 -> 60,699 | AT11: =(($A11-$A10)*((EXP((1/(($B11*('Thermal age Table'!$F$14*1.2))+('Thermal age Table'!$E$14+1)+273.15))*((-'Thermal age Table'!$L$14*1000)/8.3144598)+'Thermal age Table'!$M$14))/(EXP((1/(283.15))*((-'Thermal age Table'!$L$14*1000)/8.3144598)+'Thermal age Table'!$M$14))))+AT10 -> 83,987 | AU11: =('Thermal age Table'!$E$15+($B11*AU$4)) -> 22 | AV11: =(($A11-$A10)*((EXP((1/(($B11*'Thermal age Table'!$F$15)+'Thermal age Table'!$E$15+273.15))*((-'Thermal age Table'!$L$15*1000)/8.3144598)+'Thermal age Table'!$M$15))/(EXP((1/(283.15))*((-'Thermal age Table'!$L$15*1000)/8.3144598)+'Thermal age Table'!$M$15))))+AV10 -> 37,096 | AW11: =(($A11-$A10)*((EXP((1/(($B11*('Thermal age Table'!$F$15*0.8))+('Thermal age Table'!$E$15-1)+273.15))*((-'Thermal age Table'!$L$15*1000)/8.3144598)+'Thermal age Table'!$M$15))/(EXP((1/(283.15))*((-'Thermal age Table'!$L$15*1000)/8.3144598)+'Thermal age Table'!$M$15))))+AW10 -> 31,354 | AX11: =(($A11-$A10)*((EXP((1/(($B11*('Thermal age Table'!$F$15*1.2))+('Thermal age Table'!$E$15+1)+273.15))*((-'Thermal age Table'!$L$15*1000)/8.3144598)+'Thermal age Table'!$M$15))/(EXP((1/(283.15))*((-'Thermal age Table'!$L$15*1000)/8.3144598)+'Thermal age Table'!$M$15))))+AX10 -> 43,837
A12: 5,400 | B12: 0.02 | C12: =('Thermal age Table'!$E$2)+($B12*C$4) -> -20 | D12: =(($A12-$A11)*((EXP((1/(($B12*'Thermal age Table'!$F$2)+'Thermal age Table'!$E$2+273.15))*((-'Thermal age Table'!$L$2*1000)/8.3144598)+'Thermal age Table'!$M$2))/(EXP((1/(283.15))*((-'Thermal age Table'!$L$2*1000)/8.3144598)+'Thermal age Table'!$M$2))))+D11 -> 1 | E12: =(($A12-$A11)*((EXP((1/(($B12*('Thermal age Table'!$F$2*0.8))+('Thermal age Table'!$E$2-1)+273.15))*((-'Thermal age Table'!$L$2*1000)/8.3144598)+'Thermal age Table'!$M$2))/(EXP((1/(283.15))*((-'Thermal age Table'!$L$2*1000)/8.3144598)+'Thermal age Table'!$M$2))))+E11 -> 1 | F12: =(($A12-$A11)*((EXP((1/(($B12*('Thermal age Table'!$F$2*1.2))+('Thermal age Table'!$E$2+1)+273.15))*((-'Thermal age Table'!$L$2*1000)/8.3144598)+'Thermal age Table'!$M$2))/(EXP((1/(283.15))*((-'Thermal age Table'!$L$2*1000)/8.3144598)+'Thermal age Table'!$M$2))))+F11 -> 2 | G12: =('Thermal age Table'!$E$4+($B12*G$4)) -> -6 | H12: =(($A12-$A11)*((EXP((1/(($B12*'Thermal age Table'!$F$4)+'Thermal age Table'!$E$4+273.15))*((-'Thermal age Table'!$L$4*1000)/8.3144598)+'Thermal age Table'!$M$4))/(EXP((1/(283.15))*((-'Thermal age Table'!$L$4*1000)/8.3144598)+'Thermal age Table'!$M$4))))+H11 -> 236 | I12: =(($A12-$A11)*((EXP((1/(($B12*('Thermal age Table'!$F$4*0.8))+('Thermal age Table'!$E$4-1)+273.15))*((-'Thermal age Table'!$L$4*1000)/8.3144598)+'Thermal age Table'!$M$4))/(EXP((1/(283.15))*((-'Thermal age Table'!$L$4*1000)/8.3144598)+'Thermal age Table'!$M$4))))+I11 -> 184 | J12: =(($A12-$A11)*((EXP((1/(($B12*('Thermal age Table'!$F$4*1.2))+('Thermal age Table'!$E$4+1)+273.15))*((-'Thermal age Table'!$L$4*1000)/8.3144598)+'Thermal age Table'!$M$4))/(EXP((1/(283.15))*((-'Thermal age Table'!$L$4*1000)/8.3144598)+'Thermal age Table'!$M$4))))+J11 -> 302 | K12: =('Thermal age Table'!$E$5+($B12*K$4)) -> -4 | L12: =(($A12-$A11)*((EXP((1/(($B12*'Thermal age Table'!$F$5)+'Thermal age Table'!$E$5+273.15))*((-'Thermal age Table'!$L$5*1000)/8.3144598)+'Thermal age Table'!$M$5))/(EXP((1/(283.15))*((-'Thermal age Table'!$L$5*1000)/8.3144598)+'Thermal age Table'!$M$5))))+L11 -> 332 | M12: =(($A12-$A11)*((EXP((1/(($B12*('Thermal age Table'!$F$5*0.8))+('Thermal age Table'!$E$5-1)+273.15))*((-'Thermal age Table'!$L$5*1000)/8.3144598)+'Thermal age Table'!$M$5))/(EXP((1/(283.15))*((-'Thermal age Table'!$L$5*1000)/8.3144598)+'Thermal age Table'!$M$5))))+N11 -> 398 | N12: =(($A12-$A11)*((EXP((1/(($B12*('Thermal age Table'!$F$5*1.2))+('Thermal age Table'!$E$5+1)+273.15))*((-'Thermal age Table'!$L$5*1000)/8.3144598)+'Thermal age Table'!$M$5))/(EXP((1/(283.15))*((-'Thermal age Table'!$L$5*1000)/8.3144598)+'Thermal age Table'!$M$5))))+N11 -> 413 | O12: =('Thermal age Table'!$E$7)+($B12*O$4) -> 9 | P12: =(($A12-$A11)*((EXP((1/(($B12*'Thermal age Table'!$F$7)+'Thermal age Table'!$E$7+273.15))*((-'Thermal age Table'!$L$7*1000)/8.3144598)+'Thermal age Table'!$M$7))/(EXP((1/(283.15))*((-'Thermal age Table'!$L$7*1000)/8.3144598)+'Thermal age Table'!$M$7))))+P11 -> 4,715 | Q12: =(($A12-$A11)*((EXP((1/(($B12*('Thermal age Table'!$F$7*0.8))+('Thermal age Table'!$E$7-1)+273.15))*((-'Thermal age Table'!$L$7*1000)/8.3144598)+'Thermal age Table'!$M$7))/(EXP((1/(283.15))*((-'Thermal age Table'!$L$7*1000)/8.3144598)+'Thermal age Table'!$M$7))))+Q11 -> 3,557 | R12: =(($A12-$A11)*((EXP((1/(($B12*('Thermal age Table'!$F$7*1.2))+('Thermal age Table'!$E$7+1)+273.15))*((-'Thermal age Table'!$L$7*1000)/8.3144598)+'Thermal age Table'!$M$7))/(EXP((1/(283.15))*((-'Thermal age Table'!$L$7*1000)/8.3144598)+'Thermal age Table'!$M$7))))+R11 -> 6,237 | S12: =('Thermal age Table'!$E$8)+($B12*S$4) -> 10 | T12: =(($A12-$A11)*((EXP((1/(($B12*'Thermal age Table'!$F$8)+'Thermal age Table'!$E$8+273.15))*((-'Thermal age Table'!$L$8*1000)/8.3144598)+'Thermal age Table'!$M$8))/(EXP((1/(283.15))*((-'Thermal age Table'!$L$8*1000)/8.3144598)+'Thermal age Table'!$M$8))))+T11 -> 5,085 | U12: =(($A12-$A11)*((EXP((1/(($B12*('Thermal age Table'!$F$8*0.8))+('Thermal age Table'!$E$8-1)+273.15))*((-'Thermal age Table'!$L$8*1000)/8.3144598)+'Thermal age Table'!$M$8))/(EXP((1/(283.15))*((-'Thermal age Table'!$L$8*1000)/8.3144598)+'Thermal age Table'!$M$8))))+U11 -> 4,168 | V12: =(($A12-$A11)*((EXP((1/(($B12*('Thermal age Table'!$F$8*1.2))+('Thermal age Table'!$E$8+1)+273.15))*((-'Thermal age Table'!$L$8*1000)/8.3144598)+'Thermal age Table'!$M$8))/(EXP((1/(283.15))*((-'Thermal age Table'!$L$8*1000)/8.3144598)+'Thermal age Table'!$M$8))))+V11 -> 6,195 | W12: =('Thermal age Table'!$E$9+($B12*W$4)) -> 16 | X12: =(($A12-$A11)*((EXP((1/(($B12*'Thermal age Table'!$F$9)+'Thermal age Table'!$E$9+273.15))*((-'Thermal age Table'!$L$9*1000)/8.3144598)+'Thermal age Table'!$M$9))/(EXP((1/(283.15))*((-'Thermal age Table'!$L$9*1000)/8.3144598)+'Thermal age Table'!$M$9))))+X11 -> 14,983 | Y12: =(($A12-$A11)*((EXP((1/(($B12*('Thermal age Table'!$F$9*0.8))+('Thermal age Table'!$E$9-1)+273.15))*((-'Thermal age Table'!$L$9*1000)/8.3144598)+'Thermal age Table'!$M$9))/(EXP((1/(283.15))*((-'Thermal age Table'!$L$9*1000)/8.3144598)+'Thermal age Table'!$M$9))))+Y11 -> 12,554 | Z12: =(($A12-$A11)*((EXP((1/(($B12*('Thermal age Table'!$F$9*1.2))+('Thermal age Table'!$E$9+1)+273.15))*((-'Thermal age Table'!$L$9*1000)/8.3144598)+'Thermal age Table'!$M$9))/(EXP((1/(283.15))*((-'Thermal age Table'!$L$9*1000)/8.3144598)+'Thermal age Table'!$M$9))))+Z11 -> 17,859 | AA12: =('Thermal age Table'!$E$10+($B12*AA$4)) -> 18 | AB12: =(($A12-$A11)*((EXP((1/(($B12*'Thermal age Table'!$F$10)+'Thermal age Table'!$E$10+273.15))*((-'Thermal age Table'!$L$10*1000)/8.3144598)+'Thermal age Table'!$M$10))/(EXP((1/(283.15))*((-'Thermal age Table'!$L$10*1000)/8.3144598)+'Thermal age Table'!$M$10))))+AB11 -> 22,078 | AC12: =(($A12-$A11)*((EXP((1/(($B12*('Thermal age Table'!$F$10*0.8))+('Thermal age Table'!$E$10-1)+273.15))*((-'Thermal age Table'!$L$10*1000)/8.3144598)+'Thermal age Table'!$M$10))/(EXP((1/(283.15))*((-'Thermal age Table'!$L$9*1000)/8.3144598)+'Thermal age Table'!$M$10))))+AC11 -> 18,550 | AD12: =(($A12-$A11)*((EXP((1/(($B12*('Thermal age Table'!$F$10*1.2))+('Thermal age Table'!$E$10+1)+273.15))*((-'Thermal age Table'!$L$10*1000)/8.3144598)+'Thermal age Table'!$M$10))/(EXP((1/(283.15))*((-'Thermal age Table'!$L$10*1000)/8.3144598)+'Thermal age Table'!$M$10))))+AD11 -> 26,243 | AE12: =('Thermal age Table'!$E$11+($B12*AE$4)) -> 19 | AF12: =(($A12-$A11)*((EXP((1/(($B12*'Thermal age Table'!$F$11)+'Thermal age Table'!$E$11+273.15))*((-'Thermal age Table'!$L$11*1000)/8.3144598)+'Thermal age Table'!$M$11))/(EXP((1/(283.15))*((-'Thermal age Table'!$L$11*1000)/8.3144598)+'Thermal age Table'!$M$11))))+AF11 -> 24,102 | AG12: =(($A12-$A11)*((EXP((1/(($B12*('Thermal age Table'!$F$11*0.8))+('Thermal age Table'!$E$11-1)+273.15))*((-'Thermal age Table'!$L$11*1000)/8.3144598)+'Thermal age Table'!$M$11))/(EXP((1/(283.15))*((-'Thermal age Table'!$L$11*1000)/8.3144598)+'Thermal age Table'!$M$11))))+AG11 -> 20,315 | AH12: =(($A12-$A11)*((EXP((1/(($B12*('Thermal age Table'!$F$11*1.2))+('Thermal age Table'!$E$11+1)+273.15))*((-'Thermal age Table'!$L$11*1000)/8.3144598)+'Thermal age Table'!$M$11))/(EXP((1/(283.15))*((-'Thermal age Table'!$L$11*1000)/8.3144598)+'Thermal age Table'!$M$11))))+AH11 -> 28,560 | AI12: =('Thermal age Table'!$E$12+($B12*AI$4)) -> 19 | AJ12: =(($A12-$A11)*((EXP((1/(($B12*'Thermal age Table'!$F$12)+'Thermal age Table'!$E$12+273.15))*((-'Thermal age Table'!$L$12*1000)/8.3144598)+'Thermal age Table'!$M$12))/(EXP((1/(283.15))*((-'Thermal age Table'!$L$12*1000)/8.3144598)+'Thermal age Table'!$M$12))))+AJ11 -> 24,506 | AK12: =(($A12-$A11)*((EXP((1/(($B12*('Thermal age Table'!$F$12*0.8))+('Thermal age Table'!$E$12-1)+273.15))*((-'Thermal age Table'!$L$12*1000)/8.3144598)+'Thermal age Table'!$M$12))/(EXP((1/(283.15))*((-'Thermal age Table'!$L$12*1000)/8.3144598)+'Thermal age Table'!$M$12))))+AK11 -> 20,659 | AL12: =(($A12-$A11)*((EXP((1/(($B12*('Thermal age Table'!$F$12*1.2))+('Thermal age Table'!$E$12+1)+273.15))*((-'Thermal age Table'!$L$12*1000)/8.3144598)+'Thermal age Table'!$M$12))/(EXP((1/(283.15))*((-'Thermal age Table'!$L$12*1000)/8.3144598)+'Thermal age Table'!$M$12))))+AL11 -> 29,036 | AM12: =('Thermal age Table'!$E$13+($B12*AM$4)) -> 11 | AN12: =(($A12-$A11)*((EXP((1/(($B12*'Thermal age Table'!$F$13)+'Thermal age Table'!$E$13+273.15))*((-'Thermal age Table'!$L$13*1000)/8.3144598)+'Thermal age Table'!$M$13))/(EXP((1/(283.15))*((-'Thermal age Table'!$L$13*1000)/8.3144598)+'Thermal age Table'!$M$13))))+AN11 -> 6,672 | AO12: =(($A12-$A11)*((EXP((1/(($B12*('Thermal age Table'!$F$13*0.8))+('Thermal age Table'!$E$13-1)+273.15))*((-'Thermal age Table'!$L$13*1000)/8.3144598)+'Thermal age Table'!$M$13))/(EXP((1/(283.15))*((-'Thermal age Table'!$L$13*1000)/8.3144598)+'Thermal age Table'!$M$13))))+AO11 -> 5,594 | AP12: =(($A12-$A11)*((EXP((1/(($B12*('Thermal age Table'!$F$13*1.2))+('Thermal age Table'!$E$13+1)+273.15))*((-'Thermal age Table'!$L$13*1000)/8.3144598)+'Thermal age Table'!$M$13))/(EXP((1/(283.15))*((-'Thermal age Table'!$L$13*1000)/8.3144598)+'Thermal age Table'!$M$13))))+AP11 -> 7,947 | AQ12: =('Thermal age Table'!$E$14+($B12*AQ$4)) -> 26 | AR12: =(($A12-$A11)*((EXP((1/(($B12*'Thermal age Table'!$F$14)+'Thermal age Table'!$E$14+273.15))*((-'Thermal age Table'!$L$14*1000)/8.3144598)+'Thermal age Table'!$M$14))/(EXP((1/(283.15))*((-'Thermal age Table'!$L$14*1000)/8.3144598)+'Thermal age Table'!$M$14))))+AR11 -> 80,214 | AS12: =(($A12-$A11)*((EXP((1/(($B12*('Thermal age Table'!$F$14*0.8))+('Thermal age Table'!$E$14-1)+273.15))*((-'Thermal age Table'!$L$14*1000)/8.3144598)+'Thermal age Table'!$M$14))/(EXP((1/(283.15))*((-'Thermal age Table'!$L$14*1000)/8.3144598)+'Thermal age Table'!$M$14))))+AS11 -> 68,180 | AT12: =(($A12-$A11)*((EXP((1/(($B12*('Thermal age Table'!$F$14*1.2))+('Thermal age Table'!$E$14+1)+273.15))*((-'Thermal age Table'!$L$14*1000)/8.3144598)+'Thermal age Table'!$M$14))/(EXP((1/(283.15))*((-'Thermal age Table'!$L$14*1000)/8.3144598)+'Thermal age Table'!$M$14))))+AT11 -> 94,268 | AU12: =('Thermal age Table'!$E$15+($B12*AU$4)) -> 22 | AV12: =(($A12-$A11)*((EXP((1/(($B12*'Thermal age Table'!$F$15)+'Thermal age Table'!$E$15+273.15))*((-'Thermal age Table'!$L$15*1000)/8.3144598)+'Thermal age Table'!$M$15))/(EXP((1/(283.15))*((-'Thermal age Table'!$L$15*1000)/8.3144598)+'Thermal age Table'!$M$15))))+AV11 -> 41,636 | AW12: =(($A12-$A11)*((EXP((1/(($B12*('Thermal age Table'!$F$15*0.8))+('Thermal age Table'!$E$15-1)+273.15))*((-'Thermal age Table'!$L$15*1000)/8.3144598)+'Thermal age Table'!$M$15))/(EXP((1/(283.15))*((-'Thermal age Table'!$L$15*1000)/8.3144598)+'Thermal age Table'!$M$15))))+AW11 -> 35,208 | AX12: =(($A12-$A11)*((EXP((1/(($B12*('Thermal age Table'!$F$15*1.2))+('Thermal age Table'!$E$15+1)+273.15))*((-'Thermal age Table'!$L$15*1000)/8.3144598)+'Thermal age Table'!$M$15))/(EXP((1/(283.15))*((-'Thermal age Table'!$L$15*1000)/8.3144598)+'Thermal age Table'!$M$15))))+AX11 -> 49,181
A13: 6,200 | B13: -0.17 | C13: =('Thermal age Table'!$E$2)+($B13*C$4) -> -21 | D13: =(($A13-$A12)*((EXP((1/(($B13*'Thermal age Table'!$F$2)+'Thermal age Table'!$E$2+273.15))*((-'Thermal age Table'!$L$2*1000)/8.3144598)+'Thermal age Table'!$M$2))/(EXP((1/(283.15))*((-'Thermal age Table'!$L$2*1000)/8.3144598)+'Thermal age Table'!$M$2))))+D12 -> 1 | E13: =(($A13-$A12)*((EXP((1/(($B13*('Thermal age Table'!$F$2*0.8))+('Thermal age Table'!$E$2-1)+273.15))*((-'Thermal age Table'!$L$2*1000)/8.3144598)+'Thermal age Table'!$M$2))/(EXP((1/(283.15))*((-'Thermal age Table'!$L$2*1000)/8.3144598)+'Thermal age Table'!$M$2))))+E12 -> 1 | F13: =(($A13-$A12)*((EXP((1/(($B13*('Thermal age Table'!$F$2*1.2))+('Thermal age Table'!$E$2+1)+273.15))*((-'Thermal age Table'!$L$2*1000)/8.3144598)+'Thermal age Table'!$M$2))/(EXP((1/(283.15))*((-'Thermal age Table'!$L$2*1000)/8.3144598)+'Thermal age Table'!$M$2))))+F12 -> 2 | G13: =('Thermal age Table'!$E$4+($B13*G$4)) -> -7 | H13: =(($A13-$A12)*((EXP((1/(($B13*'Thermal age Table'!$F$4)+'Thermal age Table'!$E$4+273.15))*((-'Thermal age Table'!$L$4*1000)/8.3144598)+'Thermal age Table'!$M$4))/(EXP((1/(283.15))*((-'Thermal age Table'!$L$4*1000)/8.3144598)+'Thermal age Table'!$M$4))))+H12 -> 262 | I13: =(($A13-$A12)*((EXP((1/(($B13*('Thermal age Table'!$F$4*0.8))+('Thermal age Table'!$E$4-1)+273.15))*((-'Thermal age Table'!$L$4*1000)/8.3144598)+'Thermal age Table'!$M$4))/(EXP((1/(283.15))*((-'Thermal age Table'!$L$4*1000)/8.3144598)+'Thermal age Table'!$M$4))))+I12 -> 205 | J13: =(($A13-$A12)*((EXP((1/(($B13*('Thermal age Table'!$F$4*1.2))+('Thermal age Table'!$E$4+1)+273.15))*((-'Thermal age Table'!$L$4*1000)/8.3144598)+'Thermal age Table'!$M$4))/(EXP((1/(283.15))*((-'Thermal age Table'!$L$4*1000)/8.3144598)+'Thermal age Table'!$M$4))))+J12 -> 333 | K13: =('Thermal age Table'!$E$5+($B13*K$4)) -> -4 | L13: =(($A13-$A12)*((EXP((1/(($B13*'Thermal age Table'!$F$5)+'Thermal age Table'!$E$5+273.15))*((-'Thermal age Table'!$L$5*1000)/8.3144598)+'Thermal age Table'!$M$5))/(EXP((1/(283.15))*((-'Thermal age Table'!$L$5*1000)/8.3144598)+'Thermal age Table'!$M$5))))+L12 -> 378 | M13: =(($A13-$A12)*((EXP((1/(($B13*('Thermal age Table'!$F$5*0.8))+('Thermal age Table'!$E$5-1)+273.15))*((-'Thermal age Table'!$L$5*1000)/8.3144598)+'Thermal age Table'!$M$5))/(EXP((1/(283.15))*((-'Thermal age Table'!$L$5*1000)/8.3144598)+'Thermal age Table'!$M$5))))+N12 -> 450 | N13: =(($A13-$A12)*((EXP((1/(($B13*('Thermal age Table'!$F$5*1.2))+('Thermal age Table'!$E$5+1)+273.15))*((-'Thermal age Table'!$L$5*1000)/8.3144598)+'Thermal age Table'!$M$5))/(EXP((1/(283.15))*((-'Thermal age Table'!$L$5*1000)/8.3144598)+'Thermal age Table'!$M$5))))+N12 -> 469 | O13: =('Thermal age Table'!$E$7)+($B13*O$4) -> 9 | P13: =(($A13-$A12)*((EXP((1/(($B13*'Thermal age Table'!$F$7)+'Thermal age Table'!$E$7+273.15))*((-'Thermal age Table'!$L$7*1000)/8.3144598)+'Thermal age Table'!$M$7))/(EXP((1/(283.15))*((-'Thermal age Table'!$L$7*1000)/8.3144598)+'Thermal age Table'!$M$7))))+P12 -> 5,294 | Q13: =(($A13-$A12)*((EXP((1/(($B13*('Thermal age Table'!$F$7*0.8))+('Thermal age Table'!$E$7-1)+273.15))*((-'Thermal age Table'!$L$7*1000)/8.3144598)+'Thermal age Table'!$M$7))/(EXP((1/(283.15))*((-'Thermal age Table'!$L$7*1000)/8.3144598)+'Thermal age Table'!$M$7))))+Q12 -> 4,010 | R13: =(($A13-$A12)*((EXP((1/(($B13*('Thermal age Table'!$F$7*1.2))+('Thermal age Table'!$E$7+1)+273.15))*((-'Thermal age Table'!$L$7*1000)/8.3144598)+'Thermal age Table'!$M$7))/(EXP((1/(283.15))*((-'Thermal age Table'!$L$7*1000)/8.3144598)+'Thermal age Table'!$M$7))))+R12 -> 6,976 | S13: =('Thermal age Table'!$E$8)+($B13*S$4) -> 9 | T13: =(($A13-$A12)*((EXP((1/(($B13*'Thermal age Table'!$F$8)+'Thermal age Table'!$E$8+273.15))*((-'Thermal age Table'!$L$8*1000)/8.3144598)+'Thermal age Table'!$M$8))/(EXP((1/(283.15))*((-'Thermal age Table'!$L$8*1000)/8.3144598)+'Thermal age Table'!$M$8))))+T12 -> 5,789 | U13: =(($A13-$A12)*((EXP((1/(($B13*('Thermal age Table'!$F$8*0.8))+('Thermal age Table'!$E$8-1)+273.15))*((-'Thermal age Table'!$L$8*1000)/8.3144598)+'Thermal age Table'!$M$8))/(EXP((1/(283.15))*((-'Thermal age Table'!$L$8*1000)/8.3144598)+'Thermal age Table'!$M$8))))+U12 -> 4,753 | V13: =(($A13-$A12)*((EXP((1/(($B13*('Thermal age Table'!$F$8*1.2))+('Thermal age Table'!$E$8+1)+273.15))*((-'Thermal age Table'!$L$8*1000)/8.3144598)+'Thermal age Table'!$M$8))/(EXP((1/(283.15))*((-'Thermal age Table'!$L$8*1000)/8.3144598)+'Thermal age Table'!$M$8))))+V12 -> 7,041 | W13: =('Thermal age Table'!$E$9+($B13*W$4)) -> 16 | X13: =(($A13-$A12)*((EXP((1/(($B13*'Thermal age Table'!$F$9)+'Thermal age Table'!$E$9+273.15))*((-'Thermal age Table'!$L$9*1000)/8.3144598)+'Thermal age Table'!$M$9))/(EXP((1/(283.15))*((-'Thermal age Table'!$L$9*1000)/8.3144598)+'Thermal age Table'!$M$9))))+X12 -> 17,073 | Y13: =(($A13-$A12)*((EXP((1/(($B13*('Thermal age Table'!$F$9*0.8))+('Thermal age Table'!$E$9-1)+273.15))*((-'Thermal age Table'!$L$9*1000)/8.3144598)+'Thermal age Table'!$M$9))/(EXP((1/(283.15))*((-'Thermal age Table'!$L$9*1000)/8.3144598)+'Thermal age Table'!$M$9))))+Y12 -> 14,326 | Z13: =(($A13-$A12)*((EXP((1/(($B13*('Thermal age Table'!$F$9*1.2))+('Thermal age Table'!$E$9+1)+273.15))*((-'Thermal age Table'!$L$9*1000)/8.3144598)+'Thermal age Table'!$M$9))/(EXP((1/(283.15))*((-'Thermal age Table'!$L$9*1000)/8.3144598)+'Thermal age Table'!$M$9))))+Z12 -> 20,321 | AA13: =('Thermal age Table'!$E$10+($B13*AA$4)) -> 18 | AB13: =(($A13-$A12)*((EXP((1/(($B13*'Thermal age Table'!$F$10)+'Thermal age Table'!$E$10+273.15))*((-'Thermal age Table'!$L$10*1000)/8.3144598)+'Thermal age Table'!$M$10))/(EXP((1/(283.15))*((-'Thermal age Table'!$L$10*1000)/8.3144598)+'Thermal age Table'!$M$10))))+AB12 -> 25,160 | AC13: =(($A13-$A12)*((EXP((1/(($B13*('Thermal age Table'!$F$10*0.8))+('Thermal age Table'!$E$10-1)+273.15))*((-'Thermal age Table'!$L$10*1000)/8.3144598)+'Thermal age Table'!$M$10))/(EXP((1/(283.15))*((-'Thermal age Table'!$L$9*1000)/8.3144598)+'Thermal age Table'!$M$10))))+AC12 -> 21,170 | AD13: =(($A13-$A12)*((EXP((1/(($B13*('Thermal age Table'!$F$10*1.2))+('Thermal age Table'!$E$10+1)+273.15))*((-'Thermal age Table'!$L$10*1000)/8.3144598)+'Thermal age Table'!$M$10))/(EXP((1/(283.15))*((-'Thermal age Table'!$L$10*1000)/8.3144598)+'Thermal age Table'!$M$10))))+AD12 -> 29,865 | AE13: =('Thermal age Table'!$E$11+($B13*AE$4)) -> 18 | AF13: =(($A13-$A12)*((EXP((1/(($B13*'Thermal age Table'!$F$11)+'Thermal age Table'!$E$11+273.15))*((-'Thermal age Table'!$L$11*1000)/8.3144598)+'Thermal age Table'!$M$11))/(EXP((1/(283.15))*((-'Thermal age Table'!$L$11*1000)/8.3144598)+'Thermal age Table'!$M$11))))+AF12 -> 27,548 | AG13: =(($A13-$A12)*((EXP((1/(($B13*('Thermal age Table'!$F$11*0.8))+('Thermal age Table'!$E$11-1)+273.15))*((-'Thermal age Table'!$L$11*1000)/8.3144598)+'Thermal age Table'!$M$11))/(EXP((1/(283.15))*((-'Thermal age Table'!$L$11*1000)/8.3144598)+'Thermal age Table'!$M$11))))+AG12 -> 23,240 | AH13: =(($A13-$A12)*((EXP((1/(($B13*('Thermal age Table'!$F$11*1.2))+('Thermal age Table'!$E$11+1)+273.15))*((-'Thermal age Table'!$L$11*1000)/8.3144598)+'Thermal age Table'!$M$11))/(EXP((1/(283.15))*((-'Thermal age Table'!$L$11*1000)/8.3144598)+'Thermal age Table'!$M$11))))+AH12 -> 32,616 | AI13: =('Thermal age Table'!$E$12+($B13*AI$4)) -> 19 | AJ13: =(($A13-$A12)*((EXP((1/(($B13*'Thermal age Table'!$F$12)+'Thermal age Table'!$E$12+273.15))*((-'Thermal age Table'!$L$12*1000)/8.3144598)+'Thermal age Table'!$M$12))/(EXP((1/(283.15))*((-'Thermal age Table'!$L$12*1000)/8.3144598)+'Thermal age Table'!$M$12))))+AJ12 -> 28,011 | AK13: =(($A13-$A12)*((EXP((1/(($B13*('Thermal age Table'!$F$12*0.8))+('Thermal age Table'!$E$12-1)+273.15))*((-'Thermal age Table'!$L$12*1000)/8.3144598)+'Thermal age Table'!$M$12))/(EXP((1/(283.15))*((-'Thermal age Table'!$L$12*1000)/8.3144598)+'Thermal age Table'!$M$12))))+AK12 -> 23,634 | AL13: =(($A13-$A12)*((EXP((1/(($B13*('Thermal age Table'!$F$12*1.2))+('Thermal age Table'!$E$12+1)+273.15))*((-'Thermal age Table'!$L$12*1000)/8.3144598)+'Thermal age Table'!$M$12))/(EXP((1/(283.15))*((-'Thermal age Table'!$L$12*1000)/8.3144598)+'Thermal age Table'!$M$12))))+AL12 -> 33,160 | AM13: =('Thermal age Table'!$E$13+($B13*AM$4)) -> 11 | AN13: =(($A13-$A12)*((EXP((1/(($B13*'Thermal age Table'!$F$13)+'Thermal age Table'!$E$13+273.15))*((-'Thermal age Table'!$L$13*1000)/8.3144598)+'Thermal age Table'!$M$13))/(EXP((1/(283.15))*((-'Thermal age Table'!$L$13*1000)/8.3144598)+'Thermal age Table'!$M$13))))+AN12 -> 7,660 | AO13: =(($A13-$A12)*((EXP((1/(($B13*('Thermal age Table'!$F$13*0.8))+('Thermal age Table'!$E$13-1)+273.15))*((-'Thermal age Table'!$L$13*1000)/8.3144598)+'Thermal age Table'!$M$13))/(EXP((1/(283.15))*((-'Thermal age Table'!$L$13*1000)/8.3144598)+'Thermal age Table'!$M$13))))+AO12 -> 6,423 | AP13: =(($A13-$A12)*((EXP((1/(($B13*('Thermal age Table'!$F$13*1.2))+('Thermal age Table'!$E$13+1)+273.15))*((-'Thermal age Table'!$L$13*1000)/8.3144598)+'Thermal age Table'!$M$13))/(EXP((1/(283.15))*((-'Thermal age Table'!$L$13*1000)/8.3144598)+'Thermal age Table'!$M$13))))+AP12 -> 9,125 | AQ13: =('Thermal age Table'!$E$14+($B13*AQ$4)) -> 26 | AR13: =(($A13-$A12)*((EXP((1/(($B13*'Thermal age Table'!$F$14)+'Thermal age Table'!$E$14+273.15))*((-'Thermal age Table'!$L$14*1000)/8.3144598)+'Thermal age Table'!$M$14))/(EXP((1/(283.15))*((-'Thermal age Table'!$L$14*1000)/8.3144598)+'Thermal age Table'!$M$14))))+AR12 -> 91,704 | AS13: =(($A13-$A12)*((EXP((1/(($B13*('Thermal age Table'!$F$14*0.8))+('Thermal age Table'!$E$14-1)+273.15))*((-'Thermal age Table'!$L$14*1000)/8.3144598)+'Thermal age Table'!$M$14))/(EXP((1/(283.15))*((-'Thermal age Table'!$L$14*1000)/8.3144598)+'Thermal age Table'!$M$14))))+AS12 -> 78,011 | AT13: =(($A13-$A12)*((EXP((1/(($B13*('Thermal age Table'!$F$14*1.2))+('Thermal age Table'!$E$14+1)+273.15))*((-'Thermal age Table'!$L$14*1000)/8.3144598)+'Thermal age Table'!$M$14))/(EXP((1/(283.15))*((-'Thermal age Table'!$L$14*1000)/8.3144598)+'Thermal age Table'!$M$14))))+AT12 -> 107,683 | AU13: =('Thermal age Table'!$E$15+($B13*AU$4)) -> 22 | AV13: =(($A13-$A12)*((EXP((1/(($B13*'Thermal age Table'!$F$15)+'Thermal age Table'!$E$15+273.15))*((-'Thermal age Table'!$L$15*1000)/8.3144598)+'Thermal age Table'!$M$15))/(EXP((1/(283.15))*((-'Thermal age Table'!$L$15*1000)/8.3144598)+'Thermal age Table'!$M$15))))+AV12 -> 47,560 | AW13: =(($A13-$A12)*((EXP((1/(($B13*('Thermal age Table'!$F$15*0.8))+('Thermal age Table'!$E$15-1)+273.15))*((-'Thermal age Table'!$L$15*1000)/8.3144598)+'Thermal age Table'!$M$15))/(EXP((1/(283.15))*((-'Thermal age Table'!$L$15*1000)/8.3144598)+'Thermal age Table'!$M$15))))+AW12 -> 40,257 | AX13: =(($A13-$A12)*((EXP((1/(($B13*('Thermal age Table'!$F$15*1.2))+('Thermal age Table'!$E$15+1)+273.15))*((-'Thermal age Table'!$L$15*1000)/8.3144598)+'Thermal age Table'!$M$15))/(EXP((1/(283.15))*((-'Thermal age Table'!$L$15*1000)/8.3144598)+'Thermal age Table'!$M$15))))+AX12 -> 56,124
A14: 7,000 | B14: 0.04 | C14: =('Thermal age Table'!$E$2)+($B14*C$4) -> -20 | D14: =(($A14-$A13)*((EXP((1/(($B14*'Thermal age Table'!$F$2)+'Thermal age Table'!$E$2+273.15))*((-'Thermal age Table'!$L$2*1000)/8.3144598)+'Thermal age Table'!$M$2))/(EXP((1/(283.15))*((-'Thermal age Table'!$L$2*1000)/8.3144598)+'Thermal age Table'!$M$2))))+D13 -> 2 | E14: =(($A14-$A13)*((EXP((1/(($B14*('Thermal age Table'!$F$2*0.8))+('Thermal age Table'!$E$2-1)+273.15))*((-'Thermal age Table'!$L$2*1000)/8.3144598)+'Thermal age Table'!$M$2))/(EXP((1/(283.15))*((-'Thermal age Table'!$L$2*1000)/8.3144598)+'Thermal age Table'!$M$2))))+E13 -> 1 | F14: =(($A14-$A13)*((EXP((1/(($B14*('Thermal age Table'!$F$2*1.2))+('Thermal age Table'!$E$2+1)+273.15))*((-'Thermal age Table'!$L$2*1000)/8.3144598)+'Thermal age Table'!$M$2))/(EXP((1/(283.15))*((-'Thermal age Table'!$L$2*1000)/8.3144598)+'Thermal age Table'!$M$2))))+F13 -> 2 | G14: =('Thermal age Table'!$E$4+($B14*G$4)) -> -6 | H14: =(($A14-$A13)*((EXP((1/(($B14*'Thermal age Table'!$F$4)+'Thermal age Table'!$E$4+273.15))*((-'Thermal age Table'!$L$4*1000)/8.3144598)+'Thermal age Table'!$M$4))/(EXP((1/(283.15))*((-'Thermal age Table'!$L$4*1000)/8.3144598)+'Thermal age Table'!$M$4))))+H13 -> 292 | I14: =(($A14-$A13)*((EXP((1/(($B14*('Thermal age Table'!$F$4*0.8))+('Thermal age Table'!$E$4-1)+273.15))*((-'Thermal age Table'!$L$4*1000)/8.3144598)+'Thermal age Table'!$M$4))/(EXP((1/(283.15))*((-'Thermal age Table'!$L$4*1000)/8.3144598)+'Thermal age Table'!$M$4))))+I13 -> 230 | J14: =(($A14-$A13)*((EXP((1/(($B14*('Thermal age Table'!$F$4*1.2))+('Thermal age Table'!$E$4+1)+273.15))*((-'Thermal age Table'!$L$4*1000)/8.3144598)+'Thermal age Table'!$M$4))/(EXP((1/(283.15))*((-'Thermal age Table'!$L$4*1000)/8.3144598)+'Thermal age Table'!$M$4))))+J13 -> 371 | K14: =('Thermal age Table'!$E$5+($B14*K$4)) -> -4 | L14: =(($A14-$A13)*((EXP((1/(($B14*'Thermal age Table'!$F$5)+'Thermal age Table'!$E$5+273.15))*((-'Thermal age Table'!$L$5*1000)/8.3144598)+'Thermal age Table'!$M$5))/(EXP((1/(283.15))*((-'Thermal age Table'!$L$5*1000)/8.3144598)+'Thermal age Table'!$M$5))))+L13 -> 426 | M14: =(($A14-$A13)*((EXP((1/(($B14*('Thermal age Table'!$F$5*0.8))+('Thermal age Table'!$E$5-1)+273.15))*((-'Thermal age Table'!$L$5*1000)/8.3144598)+'Thermal age Table'!$M$5))/(EXP((1/(283.15))*((-'Thermal age Table'!$L$5*1000)/8.3144598)+'Thermal age Table'!$M$5))))+N13 -> 508 | N14: =(($A14-$A13)*((EXP((1/(($B14*('Thermal age Table'!$F$5*1.2))+('Thermal age Table'!$E$5+1)+273.15))*((-'Thermal age Table'!$L$5*1000)/8.3144598)+'Thermal age Table'!$M$5))/(EXP((1/(283.15))*((-'Thermal age Table'!$L$5*1000)/8.3144598)+'Thermal age Table'!$M$5))))+N13 -> 528 | O14: =('Thermal age Table'!$E$7)+($B14*O$4) -> 9 | P14: =(($A14-$A13)*((EXP((1/(($B14*'Thermal age Table'!$F$7)+'Thermal age Table'!$E$7+273.15))*((-'Thermal age Table'!$L$7*1000)/8.3144598)+'Thermal age Table'!$M$7))/(EXP((1/(283.15))*((-'Thermal age Table'!$L$7*1000)/8.3144598)+'Thermal age Table'!$M$7))))+P13 -> 5,940 | Q14: =(($A14-$A13)*((EXP((1/(($B14*('Thermal age Table'!$F$7*0.8))+('Thermal age Table'!$E$7-1)+273.15))*((-'Thermal age Table'!$L$7*1000)/8.3144598)+'Thermal age Table'!$M$7))/(EXP((1/(283.15))*((-'Thermal age Table'!$L$7*1000)/8.3144598)+'Thermal age Table'!$M$7))))+Q13 -> 4,506 | R14: =(($A14-$A13)*((EXP((1/(($B14*('Thermal age Table'!$F$7*1.2))+('Thermal age Table'!$E$7+1)+273.15))*((-'Thermal age Table'!$L$7*1000)/8.3144598)+'Thermal age Table'!$M$7))/(EXP((1/(283.15))*((-'Thermal age Table'!$L$7*1000)/8.3144598)+'Thermal age Table'!$M$7))))+R13 -> 7,818 | S14: =('Thermal age Table'!$E$8)+($B14*S$4) -> 10 | T14: =(($A14-$A13)*((EXP((1/(($B14*'Thermal age Table'!$F$8)+'Thermal age Table'!$E$8+273.15))*((-'Thermal age Table'!$L$8*1000)/8.3144598)+'Thermal age Table'!$M$8))/(EXP((1/(283.15))*((-'Thermal age Table'!$L$8*1000)/8.3144598)+'Thermal age Table'!$M$8))))+T13 -> 6,522 | U14: =(($A14-$A13)*((EXP((1/(($B14*('Thermal age Table'!$F$8*0.8))+('Thermal age Table'!$E$8-1)+273.15))*((-'Thermal age Table'!$L$8*1000)/8.3144598)+'Thermal age Table'!$M$8))/(EXP((1/(283.15))*((-'Thermal age Table'!$L$8*1000)/8.3144598)+'Thermal age Table'!$M$8))))+U13 -> 5,357 | V14: =(($A14-$A13)*((EXP((1/(($B14*('Thermal age Table'!$F$8*1.2))+('Thermal age Table'!$E$8+1)+273.15))*((-'Thermal age Table'!$L$8*1000)/8.3144598)+'Thermal age Table'!$M$8))/(EXP((1/(283.15))*((-'Thermal age Table'!$L$8*1000)/8.3144598)+'Thermal age Table'!$M$8))))+V13 -> 7,929 | W14: =('Thermal age Table'!$E$9+($B14*W$4)) -> 16 | X14: =(($A14-$A13)*((EXP((1/(($B14*'Thermal age Table'!$F$9)+'Thermal age Table'!$E$9+273.15))*((-'Thermal age Table'!$L$9*1000)/8.3144598)+'Thermal age Table'!$M$9))/(EXP((1/(283.15))*((-'Thermal age Table'!$L$9*1000)/8.3144598)+'Thermal age Table'!$M$9))))+X13 -> 19,238 | Y14: =(($A14-$A13)*((EXP((1/(($B14*('Thermal age Table'!$F$9*0.8))+('Thermal age Table'!$E$9-1)+273.15))*((-'Thermal age Table'!$L$9*1000)/8.3144598)+'Thermal age Table'!$M$9))/(EXP((1/(283.15))*((-'Thermal age Table'!$L$9*1000)/8.3144598)+'Thermal age Table'!$M$9))))+Y13 -> 16,150 | Z14: =(($A14-$A13)*((EXP((1/(($B14*('Thermal age Table'!$F$9*1.2))+('Thermal age Table'!$E$9+1)+273.15))*((-'Thermal age Table'!$L$9*1000)/8.3144598)+'Thermal age Table'!$M$9))/(EXP((1/(283.15))*((-'Thermal age Table'!$L$9*1000)/8.3144598)+'Thermal age Table'!$M$9))))+Z13 -> 22,891 | AA14: =('Thermal age Table'!$E$10+($B14*AA$4)) -> 18 | AB14: =(($A14-$A13)*((EXP((1/(($B14*'Thermal age Table'!$F$10)+'Thermal age Table'!$E$10+273.15))*((-'Thermal age Table'!$L$10*1000)/8.3144598)+'Thermal age Table'!$M$10))/(EXP((1/(283.15))*((-'Thermal age Table'!$L$10*1000)/8.3144598)+'Thermal age Table'!$M$10))))+AB13 -> 28,352 | AC14: =(($A14-$A13)*((EXP((1/(($B14*('Thermal age Table'!$F$10*0.8))+('Thermal age Table'!$E$10-1)+273.15))*((-'Thermal age Table'!$L$10*1000)/8.3144598)+'Thermal age Table'!$M$10))/(EXP((1/(283.15))*((-'Thermal age Table'!$L$9*1000)/8.3144598)+'Thermal age Table'!$M$10))))+AC13 -> 23,866 | AD14: =(($A14-$A13)*((EXP((1/(($B14*('Thermal age Table'!$F$10*1.2))+('Thermal age Table'!$E$10+1)+273.15))*((-'Thermal age Table'!$L$10*1000)/8.3144598)+'Thermal age Table'!$M$10))/(EXP((1/(283.15))*((-'Thermal age Table'!$L$10*1000)/8.3144598)+'Thermal age Table'!$M$10))))+AD13 -> 33,642 | AE14: =('Thermal age Table'!$E$11+($B14*AE$4)) -> 19 | AF14: =(($A14-$A13)*((EXP((1/(($B14*'Thermal age Table'!$F$11)+'Thermal age Table'!$E$11+273.15))*((-'Thermal age Table'!$L$11*1000)/8.3144598)+'Thermal age Table'!$M$11))/(EXP((1/(283.15))*((-'Thermal age Table'!$L$11*1000)/8.3144598)+'Thermal age Table'!$M$11))))+AF13 -> 31,068 | AG14: =(($A14-$A13)*((EXP((1/(($B14*('Thermal age Table'!$F$11*0.8))+('Thermal age Table'!$E$11-1)+273.15))*((-'Thermal age Table'!$L$11*1000)/8.3144598)+'Thermal age Table'!$M$11))/(EXP((1/(283.15))*((-'Thermal age Table'!$L$11*1000)/8.3144598)+'Thermal age Table'!$M$11))))+AG13 -> 26,215 | AH14: =(($A14-$A13)*((EXP((1/(($B14*('Thermal age Table'!$F$11*1.2))+('Thermal age Table'!$E$11+1)+273.15))*((-'Thermal age Table'!$L$11*1000)/8.3144598)+'Thermal age Table'!$M$11))/(EXP((1/(283.15))*((-'Thermal age Table'!$L$11*1000)/8.3144598)+'Thermal age Table'!$M$11))))+AH13 -> 36,775 | AI14: =('Thermal age Table'!$E$12+($B14*AI$4)) -> 19 | AJ14: =(($A14-$A13)*((EXP((1/(($B14*'Thermal age Table'!$F$12)+'Thermal age Table'!$E$12+273.15))*((-'Thermal age Table'!$L$12*1000)/8.3144598)+'Thermal age Table'!$M$12))/(EXP((1/(283.15))*((-'Thermal age Table'!$L$12*1000)/8.3144598)+'Thermal age Table'!$M$12))))+AJ13 -> 31,589 | AK14: =(($A14-$A13)*((EXP((1/(($B14*('Thermal age Table'!$F$12*0.8))+('Thermal age Table'!$E$12-1)+273.15))*((-'Thermal age Table'!$L$12*1000)/8.3144598)+'Thermal age Table'!$M$12))/(EXP((1/(283.15))*((-'Thermal age Table'!$L$12*1000)/8.3144598)+'Thermal age Table'!$M$12))))+AK13 -> 26,659 | AL14: =(($A14-$A13)*((EXP((1/(($B14*('Thermal age Table'!$F$12*1.2))+('Thermal age Table'!$E$12+1)+273.15))*((-'Thermal age Table'!$L$12*1000)/8.3144598)+'Thermal age Table'!$M$12))/(EXP((1/(283.15))*((-'Thermal age Table'!$L$12*1000)/8.3144598)+'Thermal age Table'!$M$12))))+AL13 -> 37,388 | AM14: =('Thermal age Table'!$E$13+($B14*AM$4)) -> 11 | AN14: =(($A14-$A13)*((EXP((1/(($B14*'Thermal age Table'!$F$13)+'Thermal age Table'!$E$13+273.15))*((-'Thermal age Table'!$L$13*1000)/8.3144598)+'Thermal age Table'!$M$13))/(EXP((1/(283.15))*((-'Thermal age Table'!$L$13*1000)/8.3144598)+'Thermal age Table'!$M$13))))+AN13 -> 8,649 | AO14: =(($A14-$A13)*((EXP((1/(($B14*('Thermal age Table'!$F$13*0.8))+('Thermal age Table'!$E$13-1)+273.15))*((-'Thermal age Table'!$L$13*1000)/8.3144598)+'Thermal age Table'!$M$13))/(EXP((1/(283.15))*((-'Thermal age Table'!$L$13*1000)/8.3144598)+'Thermal age Table'!$M$13))))+AO13 -> 7,252 | AP14: =(($A14-$A13)*((EXP((1/(($B14*('Thermal age Table'!$F$13*1.2))+('Thermal age Table'!$E$13+1)+273.15))*((-'Thermal age Table'!$L$13*1000)/8.3144598)+'Thermal age Table'!$M$13))/(EXP((1/(283.15))*((-'Thermal age Table'!$L$13*1000)/8.3144598)+'Thermal age Table'!$M$13))))+AP13 -> 10,302 | AQ14: =('Thermal age Table'!$E$14+($B14*AQ$4)) -> 26 | AR14: =(($A14-$A13)*((EXP((1/(($B14*'Thermal age Table'!$F$14)+'Thermal age Table'!$E$14+273.15))*((-'Thermal age Table'!$L$14*1000)/8.3144598)+'Thermal age Table'!$M$14))/(EXP((1/(283.15))*((-'Thermal age Table'!$L$14*1000)/8.3144598)+'Thermal age Table'!$M$14))))+AR13 -> 103,425 | AS14: =(($A14-$A13)*((EXP((1/(($B14*('Thermal age Table'!$F$14*0.8))+('Thermal age Table'!$E$14-1)+273.15))*((-'Thermal age Table'!$L$14*1000)/8.3144598)+'Thermal age Table'!$M$14))/(EXP((1/(283.15))*((-'Thermal age Table'!$L$14*1000)/8.3144598)+'Thermal age Table'!$M$14))))+AS13 -> 88,001 | AT14: =(($A14-$A13)*((EXP((1/(($B14*('Thermal age Table'!$F$14*1.2))+('Thermal age Table'!$E$14+1)+273.15))*((-'Thermal age Table'!$L$14*1000)/8.3144598)+'Thermal age Table'!$M$14))/(EXP((1/(283.15))*((-'Thermal age Table'!$L$14*1000)/8.3144598)+'Thermal age Table'!$M$14))))+AT13 -> 121,422 | AU14: =('Thermal age Table'!$E$15+($B14*AU$4)) -> 22 | AV14: =(($A14-$A13)*((EXP((1/(($B14*'Thermal age Table'!$F$15)+'Thermal age Table'!$E$15+273.15))*((-'Thermal age Table'!$L$15*1000)/8.3144598)+'Thermal age Table'!$M$15))/(EXP((1/(283.15))*((-'Thermal age Table'!$L$15*1000)/8.3144598)+'Thermal age Table'!$M$15))))+AV13 -> 53,627 | AW14: =(($A14-$A13)*((EXP((1/(($B14*('Thermal age Table'!$F$15*0.8))+('Thermal age Table'!$E$15-1)+273.15))*((-'Thermal age Table'!$L$15*1000)/8.3144598)+'Thermal age Table'!$M$15))/(EXP((1/(283.15))*((-'Thermal age Table'!$L$15*1000)/8.3144598)+'Thermal age Table'!$M$15))))+AW13 -> 45,404 | AX14: =(($A14-$A13)*((EXP((1/(($B14*('Thermal age Table'!$F$15*1.2))+('Thermal age Table'!$E$15+1)+273.15))*((-'Thermal age Table'!$L$15*1000)/8.3144598)+'Thermal age Table'!$M$15))/(EXP((1/(283.15))*((-'Thermal age Table'!$L$15*1000)/8.3144598)+'Thermal age Table'!$M$15))))+AX13 -> 63,268
A15: 7,800 | B15: 0 | C15: =('Thermal age Table'!$E$2)+($B15*C$4) -> -20 | D15: =(($A15-$A14)*((EXP((1/(($B15*'Thermal age Table'!$F$2)+'Thermal age Table'!$E$2+273.15))*((-'Thermal age Table'!$L$2*1000)/8.3144598)+'Thermal age Table'!$M$2))/(EXP((1/(283.15))*((-'Thermal age Table'!$L$2*1000)/8.3144598)+'Thermal age Table'!$M$2))))+D14 -> 2 | E15: =(($A15-$A14)*((EXP((1/(($B15*('Thermal age Table'!$F$2*0.8))+('Thermal age Table'!$E$2-1)+273.15))*((-'Thermal age Table'!$L$2*1000)/8.3144598)+'Thermal age Table'!$M$2))/(EXP((1/(283.15))*((-'Thermal age Table'!$L$2*1000)/8.3144598)+'Thermal age Table'!$M$2))))+E14 -> 1 | F15: =(($A15-$A14)*((EXP((1/(($B15*('Thermal age Table'!$F$2*1.2))+('Thermal age Table'!$E$2+1)+273.15))*((-'Thermal age Table'!$L$2*1000)/8.3144598)+'Thermal age Table'!$M$2))/(EXP((1/(283.15))*((-'Thermal age Table'!$L$2*1000)/8.3144598)+'Thermal age Table'!$M$2))))+F14 -> 3 | G15: =('Thermal age Table'!$E$4+($B15*G$4)) -> -6 | H15: =(($A15-$A14)*((EXP((1/(($B15*'Thermal age Table'!$F$4)+'Thermal age Table'!$E$4+273.15))*((-'Thermal age Table'!$L$4*1000)/8.3144598)+'Thermal age Table'!$M$4))/(EXP((1/(283.15))*((-'Thermal age Table'!$L$4*1000)/8.3144598)+'Thermal age Table'!$M$4))))+H14 -> 322 | I15: =(($A15-$A14)*((EXP((1/(($B15*('Thermal age Table'!$F$4*0.8))+('Thermal age Table'!$E$4-1)+273.15))*((-'Thermal age Table'!$L$4*1000)/8.3144598)+'Thermal age Table'!$M$4))/(EXP((1/(283.15))*((-'Thermal age Table'!$L$4*1000)/8.3144598)+'Thermal age Table'!$M$4))))+I14 -> 254 | J15: =(($A15-$A14)*((EXP((1/(($B15*('Thermal age Table'!$F$4*1.2))+('Thermal age Table'!$E$4+1)+273.15))*((-'Thermal age Table'!$L$4*1000)/8.3144598)+'Thermal age Table'!$M$4))/(EXP((1/(283.15))*((-'Thermal age Table'!$L$4*1000)/8.3144598)+'Thermal age Table'!$M$4))))+J14 -> 408 | K15: =('Thermal age Table'!$E$5+($B15*K$4)) -> -4 | L15: =(($A15-$A14)*((EXP((1/(($B15*'Thermal age Table'!$F$5)+'Thermal age Table'!$E$5+273.15))*((-'Thermal age Table'!$L$5*1000)/8.3144598)+'Thermal age Table'!$M$5))/(EXP((1/(283.15))*((-'Thermal age Table'!$L$5*1000)/8.3144598)+'Thermal age Table'!$M$5))))+L14 -> 473 | M15: =(($A15-$A14)*((EXP((1/(($B15*('Thermal age Table'!$F$5*0.8))+('Thermal age Table'!$E$5-1)+273.15))*((-'Thermal age Table'!$L$5*1000)/8.3144598)+'Thermal age Table'!$M$5))/(EXP((1/(283.15))*((-'Thermal age Table'!$L$5*1000)/8.3144598)+'Thermal age Table'!$M$5))))+N14 -> 567 | N15: =(($A15-$A14)*((EXP((1/(($B15*('Thermal age Table'!$F$5*1.2))+('Thermal age Table'!$E$5+1)+273.15))*((-'Thermal age Table'!$L$5*1000)/8.3144598)+'Thermal age Table'!$M$5))/(EXP((1/(283.15))*((-'Thermal age Table'!$L$5*1000)/8.3144598)+'Thermal age Table'!$M$5))))+N14 -> 587 | O15: =('Thermal age Table'!$E$7)+($B15*O$4) -> 9 | P15: =(($A15-$A14)*((EXP((1/(($B15*'Thermal age Table'!$F$7)+'Thermal age Table'!$E$7+273.15))*((-'Thermal age Table'!$L$7*1000)/8.3144598)+'Thermal age Table'!$M$7))/(EXP((1/(283.15))*((-'Thermal age Table'!$L$7*1000)/8.3144598)+'Thermal age Table'!$M$7))))+P14 -> 6,573 | Q15: =(($A15-$A14)*((EXP((1/(($B15*('Thermal age Table'!$F$7*0.8))+('Thermal age Table'!$E$7-1)+273.15))*((-'Thermal age Table'!$L$7*1000)/8.3144598)+'Thermal age Table'!$M$7))/(EXP((1/(283.15))*((-'Thermal age Table'!$L$7*1000)/8.3144598)+'Thermal age Table'!$M$7))))+Q14 -> 4,993 | R15: =(($A15-$A14)*((EXP((1/(($B15*('Thermal age Table'!$F$7*1.2))+('Thermal age Table'!$E$7+1)+273.15))*((-'Thermal age Table'!$L$7*1000)/8.3144598)+'Thermal age Table'!$M$7))/(EXP((1/(283.15))*((-'Thermal age Table'!$L$7*1000)/8.3144598)+'Thermal age Table'!$M$7))))+R14 -> 8,639 | S15: =('Thermal age Table'!$E$8)+($B15*S$4) -> 10 | T15: =(($A15-$A14)*((EXP((1/(($B15*'Thermal age Table'!$F$8)+'Thermal age Table'!$E$8+273.15))*((-'Thermal age Table'!$L$8*1000)/8.3144598)+'Thermal age Table'!$M$8))/(EXP((1/(283.15))*((-'Thermal age Table'!$L$8*1000)/8.3144598)+'Thermal age Table'!$M$8))))+T14 -> 7,249 | U15: =(($A15-$A14)*((EXP((1/(($B15*('Thermal age Table'!$F$8*0.8))+('Thermal age Table'!$E$8-1)+273.15))*((-'Thermal age Table'!$L$8*1000)/8.3144598)+'Thermal age Table'!$M$8))/(EXP((1/(283.15))*((-'Thermal age Table'!$L$8*1000)/8.3144598)+'Thermal age Table'!$M$8))))+U14 -> 5,957 | V15: =(($A15-$A14)*((EXP((1/(($B15*('Thermal age Table'!$F$8*1.2))+('Thermal age Table'!$E$8+1)+273.15))*((-'Thermal age Table'!$L$8*1000)/8.3144598)+'Thermal age Table'!$M$8))/(EXP((1/(283.15))*((-'Thermal age Table'!$L$8*1000)/8.3144598)+'Thermal age Table'!$M$8))))+V14 -> 8,809 | W15: =('Thermal age Table'!$E$9+($B15*W$4)) -> 16 | X15: =(($A15-$A14)*((EXP((1/(($B15*'Thermal age Table'!$F$9)+'Thermal age Table'!$E$9+273.15))*((-'Thermal age Table'!$L$9*1000)/8.3144598)+'Thermal age Table'!$M$9))/(EXP((1/(283.15))*((-'Thermal age Table'!$L$9*1000)/8.3144598)+'Thermal age Table'!$M$9))))+X14 -> 21,389 | Y15: =(($A15-$A14)*((EXP((1/(($B15*('Thermal age Table'!$F$9*0.8))+('Thermal age Table'!$E$9-1)+273.15))*((-'Thermal age Table'!$L$9*1000)/8.3144598)+'Thermal age Table'!$M$9))/(EXP((1/(283.15))*((-'Thermal age Table'!$L$9*1000)/8.3144598)+'Thermal age Table'!$M$9))))+Y14 -> 17,963 | Z15: =(($A15-$A14)*((EXP((1/(($B15*('Thermal age Table'!$F$9*1.2))+('Thermal age Table'!$E$9+1)+273.15))*((-'Thermal age Table'!$L$9*1000)/8.3144598)+'Thermal age Table'!$M$9))/(EXP((1/(283.15))*((-'Thermal age Table'!$L$9*1000)/8.3144598)+'Thermal age Table'!$M$9))))+Z14 -> 25,439 | AA15: =('Thermal age Table'!$E$10+($B15*AA$4)) -> 18 | AB15: =(($A15-$A14)*((EXP((1/(($B15*'Thermal age Table'!$F$10)+'Thermal age Table'!$E$10+273.15))*((-'Thermal age Table'!$L$10*1000)/8.3144598)+'Thermal age Table'!$M$10))/(EXP((1/(283.15))*((-'Thermal age Table'!$L$10*1000)/8.3144598)+'Thermal age Table'!$M$10))))+AB14 -> 31,523 | AC15: =(($A15-$A14)*((EXP((1/(($B15*('Thermal age Table'!$F$10*0.8))+('Thermal age Table'!$E$10-1)+273.15))*((-'Thermal age Table'!$L$10*1000)/8.3144598)+'Thermal age Table'!$M$10))/(EXP((1/(283.15))*((-'Thermal age Table'!$L$9*1000)/8.3144598)+'Thermal age Table'!$M$10))))+AC14 -> 26,546 | AD15: =(($A15-$A14)*((EXP((1/(($B15*('Thermal age Table'!$F$10*1.2))+('Thermal age Table'!$E$10+1)+273.15))*((-'Thermal age Table'!$L$10*1000)/8.3144598)+'Thermal age Table'!$M$10))/(EXP((1/(283.15))*((-'Thermal age Table'!$L$10*1000)/8.3144598)+'Thermal age Table'!$M$10))))+AD14 -> 37,389 | AE15: =('Thermal age Table'!$E$11+($B15*AE$4)) -> 19 | AF15: =(($A15-$A14)*((EXP((1/(($B15*'Thermal age Table'!$F$11)+'Thermal age Table'!$E$11+273.15))*((-'Thermal age Table'!$L$11*1000)/8.3144598)+'Thermal age Table'!$M$11))/(EXP((1/(283.15))*((-'Thermal age Table'!$L$11*1000)/8.3144598)+'Thermal age Table'!$M$11))))+AF14 -> 34,573 | AG15: =(($A15-$A14)*((EXP((1/(($B15*('Thermal age Table'!$F$11*0.8))+('Thermal age Table'!$E$11-1)+273.15))*((-'Thermal age Table'!$L$11*1000)/8.3144598)+'Thermal age Table'!$M$11))/(EXP((1/(283.15))*((-'Thermal age Table'!$L$11*1000)/8.3144598)+'Thermal age Table'!$M$11))))+AG14 -> 29,181 | AH15: =(($A15-$A14)*((EXP((1/(($B15*('Thermal age Table'!$F$11*1.2))+('Thermal age Table'!$E$11+1)+273.15))*((-'Thermal age Table'!$L$11*1000)/8.3144598)+'Thermal age Table'!$M$11))/(EXP((1/(283.15))*((-'Thermal age Table'!$L$11*1000)/8.3144598)+'Thermal age Table'!$M$11))))+AH14 -> 40,914 | AI15: =('Thermal age Table'!$E$12+($B15*AI$4)) -> 19 | AJ15: =(($A15-$A14)*((EXP((1/(($B15*'Thermal age Table'!$F$12)+'Thermal age Table'!$E$12+273.15))*((-'Thermal age Table'!$L$12*1000)/8.3144598)+'Thermal age Table'!$M$12))/(EXP((1/(283.15))*((-'Thermal age Table'!$L$12*1000)/8.3144598)+'Thermal age Table'!$M$12))))+AJ14 -> 35,154 | AK15: =(($A15-$A14)*((EXP((1/(($B15*('Thermal age Table'!$F$12*0.8))+('Thermal age Table'!$E$12-1)+273.15))*((-'Thermal age Table'!$L$12*1000)/8.3144598)+'Thermal age Table'!$M$12))/(EXP((1/(283.15))*((-'Thermal age Table'!$L$12*1000)/8.3144598)+'Thermal age Table'!$M$12))))+AK14 -> 29,674 | AL15: =(($A15-$A14)*((EXP((1/(($B15*('Thermal age Table'!$F$12*1.2))+('Thermal age Table'!$E$12+1)+273.15))*((-'Thermal age Table'!$L$12*1000)/8.3144598)+'Thermal age Table'!$M$12))/(EXP((1/(283.15))*((-'Thermal age Table'!$L$12*1000)/8.3144598)+'Thermal age Table'!$M$12))))+AL14 -> 41,597 | AM15: =('Thermal age Table'!$E$13+($B15*AM$4)) -> 11 | AN15: =(($A15-$A14)*((EXP((1/(($B15*'Thermal age Table'!$F$13)+'Thermal age Table'!$E$13+273.15))*((-'Thermal age Table'!$L$13*1000)/8.3144598)+'Thermal age Table'!$M$13))/(EXP((1/(283.15))*((-'Thermal age Table'!$L$13*1000)/8.3144598)+'Thermal age Table'!$M$13))))+AN14 -> 9,637 | AO15: =(($A15-$A14)*((EXP((1/(($B15*('Thermal age Table'!$F$13*0.8))+('Thermal age Table'!$E$13-1)+273.15))*((-'Thermal age Table'!$L$13*1000)/8.3144598)+'Thermal age Table'!$M$13))/(EXP((1/(283.15))*((-'Thermal age Table'!$L$13*1000)/8.3144598)+'Thermal age Table'!$M$13))))+AO14 -> 8,081 | AP15: =(($A15-$A14)*((EXP((1/(($B15*('Thermal age Table'!$F$13*1.2))+('Thermal age Table'!$E$13+1)+273.15))*((-'Thermal age Table'!$L$13*1000)/8.3144598)+'Thermal age Table'!$M$13))/(EXP((1/(283.15))*((-'Thermal age Table'!$L$13*1000)/8.3144598)+'Thermal age Table'!$M$13))))+AP14 -> 11,479 | AQ15: =('Thermal age Table'!$E$14+($B15*AQ$4)) -> 26 | AR15: =(($A15-$A14)*((EXP((1/(($B15*'Thermal age Table'!$F$14)+'Thermal age Table'!$E$14+273.15))*((-'Thermal age Table'!$L$14*1000)/8.3144598)+'Thermal age Table'!$M$14))/(EXP((1/(283.15))*((-'Thermal age Table'!$L$14*1000)/8.3144598)+'Thermal age Table'!$M$14))))+AR14 -> 115,103 | AS15: =(($A15-$A14)*((EXP((1/(($B15*('Thermal age Table'!$F$14*0.8))+('Thermal age Table'!$E$14-1)+273.15))*((-'Thermal age Table'!$L$14*1000)/8.3144598)+'Thermal age Table'!$M$14))/(EXP((1/(283.15))*((-'Thermal age Table'!$L$14*1000)/8.3144598)+'Thermal age Table'!$M$14))))+AS14 -> 97,960 | AT15: =(($A15-$A14)*((EXP((1/(($B15*('Thermal age Table'!$F$14*1.2))+('Thermal age Table'!$E$14+1)+273.15))*((-'Thermal age Table'!$L$14*1000)/8.3144598)+'Thermal age Table'!$M$14))/(EXP((1/(283.15))*((-'Thermal age Table'!$L$14*1000)/8.3144598)+'Thermal age Table'!$M$14))))+AT14 -> 135,099 | AU15: =('Thermal age Table'!$E$15+($B15*AU$4)) -> 22 | AV15: =(($A15-$A14)*((EXP((1/(($B15*'Thermal age Table'!$F$15)+'Thermal age Table'!$E$15+273.15))*((-'Thermal age Table'!$L$15*1000)/8.3144598)+'Thermal age Table'!$M$15))/(EXP((1/(283.15))*((-'Thermal age Table'!$L$15*1000)/8.3144598)+'Thermal age Table'!$M$15))))+AV14 -> 59,667 | AW15: =(($A15-$A14)*((EXP((1/(($B15*('Thermal age Table'!$F$15*0.8))+('Thermal age Table'!$E$15-1)+273.15))*((-'Thermal age Table'!$L$15*1000)/8.3144598)+'Thermal age Table'!$M$15))/(EXP((1/(283.15))*((-'Thermal age Table'!$L$15*1000)/8.3144598)+'Thermal age Table'!$M$15))))+AW14 -> 50,533 | AX15: =(($A15-$A14)*((EXP((1/(($B15*('Thermal age Table'!$F$15*1.2))+('Thermal age Table'!$E$15+1)+273.15))*((-'Thermal age Table'!$L$15*1000)/8.3144598)+'Thermal age Table'!$M$15))/(EXP((1/(283.15))*((-'Thermal age Table'!$L$15*1000)/8.3144598)+'Thermal age Table'!$M$15))))+AX14 -> 70,374
A16: 8,600 | B16: -0.07 | C16: =('Thermal age Table'!$E$2)+($B16*C$4) -> -20 | D16: =(($A16-$A15)*((EXP((1/(($B16*'Thermal age Table'!$F$2)+'Thermal age Table'!$E$2+273.15))*((-'Thermal age Table'!$L$2*1000)/8.3144598)+'Thermal age Table'!$M$2))/(EXP((1/(283.15))*((-'Thermal age Table'!$L$2*1000)/8.3144598)+'Thermal age Table'!$M$2))))+D15 -> 2 | E16: =(($A16-$A15)*((EXP((1/(($B16*('Thermal age Table'!$F$2*0.8))+('Thermal age Table'!$E$2-1)+273.15))*((-'Thermal age Table'!$L$2*1000)/8.3144598)+'Thermal age Table'!$M$2))/(EXP((1/(283.15))*((-'Thermal age Table'!$L$2*1000)/8.3144598)+'Thermal age Table'!$M$2))))+E15 -> 1 | F16: =(($A16-$A15)*((EXP((1/(($B16*('Thermal age Table'!$F$2*1.2))+('Thermal age Table'!$E$2+1)+273.15))*((-'Thermal age Table'!$L$2*1000)/8.3144598)+'Thermal age Table'!$M$2))/(EXP((1/(283.15))*((-'Thermal age Table'!$L$2*1000)/8.3144598)+'Thermal age Table'!$M$2))))+F15 -> 3 | G16: =('Thermal age Table'!$E$4+($B16*G$4)) -> -7 | H16: =(($A16-$A15)*((EXP((1/(($B16*'Thermal age Table'!$F$4)+'Thermal age Table'!$E$4+273.15))*((-'Thermal age Table'!$L$4*1000)/8.3144598)+'Thermal age Table'!$M$4))/(EXP((1/(283.15))*((-'Thermal age Table'!$L$4*1000)/8.3144598)+'Thermal age Table'!$M$4))))+H15 -> 350 | I16: =(($A16-$A15)*((EXP((1/(($B16*('Thermal age Table'!$F$4*0.8))+('Thermal age Table'!$E$4-1)+273.15))*((-'Thermal age Table'!$L$4*1000)/8.3144598)+'Thermal age Table'!$M$4))/(EXP((1/(283.15))*((-'Thermal age Table'!$L$4*1000)/8.3144598)+'Thermal age Table'!$M$4))))+I15 -> 277 | J16: =(($A16-$A15)*((EXP((1/(($B16*('Thermal age Table'!$F$4*1.2))+('Thermal age Table'!$E$4+1)+273.15))*((-'Thermal age Table'!$L$4*1000)/8.3144598)+'Thermal age Table'!$M$4))/(EXP((1/(283.15))*((-'Thermal age Table'!$L$4*1000)/8.3144598)+'Thermal age Table'!$M$4))))+J15 -> 442 | K16: =('Thermal age Table'!$E$5+($B16*K$4)) -> -4 | L16: =(($A16-$A15)*((EXP((1/(($B16*'Thermal age Table'!$F$5)+'Thermal age Table'!$E$5+273.15))*((-'Thermal age Table'!$L$5*1000)/8.3144598)+'Thermal age Table'!$M$5))/(EXP((1/(283.15))*((-'Thermal age Table'!$L$5*1000)/8.3144598)+'Thermal age Table'!$M$5))))+L15 -> 520 | M16: =(($A16-$A15)*((EXP((1/(($B16*('Thermal age Table'!$F$5*0.8))+('Thermal age Table'!$E$5-1)+273.15))*((-'Thermal age Table'!$L$5*1000)/8.3144598)+'Thermal age Table'!$M$5))/(EXP((1/(283.15))*((-'Thermal age Table'!$L$5*1000)/8.3144598)+'Thermal age Table'!$M$5))))+N15 -> 624 | N16: =(($A16-$A15)*((EXP((1/(($B16*('Thermal age Table'!$F$5*1.2))+('Thermal age Table'!$E$5+1)+273.15))*((-'Thermal age Table'!$L$5*1000)/8.3144598)+'Thermal age Table'!$M$5))/(EXP((1/(283.15))*((-'Thermal age Table'!$L$5*1000)/8.3144598)+'Thermal age Table'!$M$5))))+N15 -> 644 | O16: =('Thermal age Table'!$E$7)+($B16*O$4) -> 9 | P16: =(($A16-$A15)*((EXP((1/(($B16*'Thermal age Table'!$F$7)+'Thermal age Table'!$E$7+273.15))*((-'Thermal age Table'!$L$7*1000)/8.3144598)+'Thermal age Table'!$M$7))/(EXP((1/(283.15))*((-'Thermal age Table'!$L$7*1000)/8.3144598)+'Thermal age Table'!$M$7))))+P15 -> 7,183 | Q16: =(($A16-$A15)*((EXP((1/(($B16*('Thermal age Table'!$F$7*0.8))+('Thermal age Table'!$E$7-1)+273.15))*((-'Thermal age Table'!$L$7*1000)/8.3144598)+'Thermal age Table'!$M$7))/(EXP((1/(283.15))*((-'Thermal age Table'!$L$7*1000)/8.3144598)+'Thermal age Table'!$M$7))))+Q15 -> 5,465 | R16: =(($A16-$A15)*((EXP((1/(($B16*('Thermal age Table'!$F$7*1.2))+('Thermal age Table'!$E$7+1)+273.15))*((-'Thermal age Table'!$L$7*1000)/8.3144598)+'Thermal age Table'!$M$7))/(EXP((1/(283.15))*((-'Thermal age Table'!$L$7*1000)/8.3144598)+'Thermal age Table'!$M$7))))+R15 -> 9,425 | S16: =('Thermal age Table'!$E$8)+($B16*S$4) -> 9 | T16: =(($A16-$A15)*((EXP((1/(($B16*'Thermal age Table'!$F$8)+'Thermal age Table'!$E$8+273.15))*((-'Thermal age Table'!$L$8*1000)/8.3144598)+'Thermal age Table'!$M$8))/(EXP((1/(283.15))*((-'Thermal age Table'!$L$8*1000)/8.3144598)+'Thermal age Table'!$M$8))))+T15 -> 7,967 | U16: =(($A16-$A15)*((EXP((1/(($B16*('Thermal age Table'!$F$8*0.8))+('Thermal age Table'!$E$8-1)+273.15))*((-'Thermal age Table'!$L$8*1000)/8.3144598)+'Thermal age Table'!$M$8))/(EXP((1/(283.15))*((-'Thermal age Table'!$L$8*1000)/8.3144598)+'Thermal age Table'!$M$8))))+U15 -> 6,551 | V16: =(($A16-$A15)*((EXP((1/(($B16*('Thermal age Table'!$F$8*1.2))+('Thermal age Table'!$E$8+1)+273.15))*((-'Thermal age Table'!$L$8*1000)/8.3144598)+'Thermal age Table'!$M$8))/(EXP((1/(283.15))*((-'Thermal age Table'!$L$8*1000)/8.3144598)+'Thermal age Table'!$M$8))))+V15 -> 9,675 | W16: =('Thermal age Table'!$E$9+($B16*W$4)) -> 16 | X16: =(($A16-$A15)*((EXP((1/(($B16*'Thermal age Table'!$F$9)+'Thermal age Table'!$E$9+273.15))*((-'Thermal age Table'!$L$9*1000)/8.3144598)+'Thermal age Table'!$M$9))/(EXP((1/(283.15))*((-'Thermal age Table'!$L$9*1000)/8.3144598)+'Thermal age Table'!$M$9))))+X15 -> 23,515 | Y16: =(($A16-$A15)*((EXP((1/(($B16*('Thermal age Table'!$F$9*0.8))+('Thermal age Table'!$E$9-1)+273.15))*((-'Thermal age Table'!$L$9*1000)/8.3144598)+'Thermal age Table'!$M$9))/(EXP((1/(283.15))*((-'Thermal age Table'!$L$9*1000)/8.3144598)+'Thermal age Table'!$M$9))))+Y15 -> 19,759 | Z16: =(($A16-$A15)*((EXP((1/(($B16*('Thermal age Table'!$F$9*1.2))+('Thermal age Table'!$E$9+1)+273.15))*((-'Thermal age Table'!$L$9*1000)/8.3144598)+'Thermal age Table'!$M$9))/(EXP((1/(283.15))*((-'Thermal age Table'!$L$9*1000)/8.3144598)+'Thermal age Table'!$M$9))))+Z15 -> 27,951 | AA16: =('Thermal age Table'!$E$10+($B16*AA$4)) -> 18 | AB16: =(($A16-$A15)*((EXP((1/(($B16*'Thermal age Table'!$F$10)+'Thermal age Table'!$E$10+273.15))*((-'Thermal age Table'!$L$10*1000)/8.3144598)+'Thermal age Table'!$M$10))/(EXP((1/(283.15))*((-'Thermal age Table'!$L$10*1000)/8.3144598)+'Thermal age Table'!$M$10))))+AB15 -> 34,657 | AC16: =(($A16-$A15)*((EXP((1/(($B16*('Thermal age Table'!$F$10*0.8))+('Thermal age Table'!$E$10-1)+273.15))*((-'Thermal age Table'!$L$10*1000)/8.3144598)+'Thermal age Table'!$M$10))/(EXP((1/(283.15))*((-'Thermal age Table'!$L$9*1000)/8.3144598)+'Thermal age Table'!$M$10))))+AC15 -> 29,202 | AD16: =(($A16-$A15)*((EXP((1/(($B16*('Thermal age Table'!$F$10*1.2))+('Thermal age Table'!$E$10+1)+273.15))*((-'Thermal age Table'!$L$10*1000)/8.3144598)+'Thermal age Table'!$M$10))/(EXP((1/(283.15))*((-'Thermal age Table'!$L$10*1000)/8.3144598)+'Thermal age Table'!$M$10))))+AD15 -> 41,084 | AE16: =('Thermal age Table'!$E$11+($B16*AE$4)) -> 19 | AF16: =(($A16-$A15)*((EXP((1/(($B16*'Thermal age Table'!$F$11)+'Thermal age Table'!$E$11+273.15))*((-'Thermal age Table'!$L$11*1000)/8.3144598)+'Thermal age Table'!$M$11))/(EXP((1/(283.15))*((-'Thermal age Table'!$L$11*1000)/8.3144598)+'Thermal age Table'!$M$11))))+AF15 -> 38,054 | AG16: =(($A16-$A15)*((EXP((1/(($B16*('Thermal age Table'!$F$11*0.8))+('Thermal age Table'!$E$11-1)+273.15))*((-'Thermal age Table'!$L$11*1000)/8.3144598)+'Thermal age Table'!$M$11))/(EXP((1/(283.15))*((-'Thermal age Table'!$L$11*1000)/8.3144598)+'Thermal age Table'!$M$11))))+AG15 -> 32,130 | AH16: =(($A16-$A15)*((EXP((1/(($B16*('Thermal age Table'!$F$11*1.2))+('Thermal age Table'!$E$11+1)+273.15))*((-'Thermal age Table'!$L$11*1000)/8.3144598)+'Thermal age Table'!$M$11))/(EXP((1/(283.15))*((-'Thermal age Table'!$L$11*1000)/8.3144598)+'Thermal age Table'!$M$11))))+AH15 -> 45,019 | AI16: =('Thermal age Table'!$E$12+($B16*AI$4)) -> 19 | AJ16: =(($A16-$A15)*((EXP((1/(($B16*'Thermal age Table'!$F$12)+'Thermal age Table'!$E$12+273.15))*((-'Thermal age Table'!$L$12*1000)/8.3144598)+'Thermal age Table'!$M$12))/(EXP((1/(283.15))*((-'Thermal age Table'!$L$12*1000)/8.3144598)+'Thermal age Table'!$M$12))))+AJ15 -> 38,693 | AK16: =(($A16-$A15)*((EXP((1/(($B16*('Thermal age Table'!$F$12*0.8))+('Thermal age Table'!$E$12-1)+273.15))*((-'Thermal age Table'!$L$12*1000)/8.3144598)+'Thermal age Table'!$M$12))/(EXP((1/(283.15))*((-'Thermal age Table'!$L$12*1000)/8.3144598)+'Thermal age Table'!$M$12))))+AK15 -> 32,673 | AL16: =(($A16-$A15)*((EXP((1/(($B16*('Thermal age Table'!$F$12*1.2))+('Thermal age Table'!$E$12+1)+273.15))*((-'Thermal age Table'!$L$12*1000)/8.3144598)+'Thermal age Table'!$M$12))/(EXP((1/(283.15))*((-'Thermal age Table'!$L$12*1000)/8.3144598)+'Thermal age Table'!$M$12))))+AL15 -> 45,770 | AM16: =('Thermal age Table'!$E$13+($B16*AM$4)) -> 11 | AN16: =(($A16-$A15)*((EXP((1/(($B16*'Thermal age Table'!$F$13)+'Thermal age Table'!$E$13+273.15))*((-'Thermal age Table'!$L$13*1000)/8.3144598)+'Thermal age Table'!$M$13))/(EXP((1/(283.15))*((-'Thermal age Table'!$L$13*1000)/8.3144598)+'Thermal age Table'!$M$13))))+AN15 -> 10,626 | AO16: =(($A16-$A15)*((EXP((1/(($B16*('Thermal age Table'!$F$13*0.8))+('Thermal age Table'!$E$13-1)+273.15))*((-'Thermal age Table'!$L$13*1000)/8.3144598)+'Thermal age Table'!$M$13))/(EXP((1/(283.15))*((-'Thermal age Table'!$L$13*1000)/8.3144598)+'Thermal age Table'!$M$13))))+AO15 -> 8,910 | AP16: =(($A16-$A15)*((EXP((1/(($B16*('Thermal age Table'!$F$13*1.2))+('Thermal age Table'!$E$13+1)+273.15))*((-'Thermal age Table'!$L$13*1000)/8.3144598)+'Thermal age Table'!$M$13))/(EXP((1/(283.15))*((-'Thermal age Table'!$L$13*1000)/8.3144598)+'Thermal age Table'!$M$13))))+AP15 -> 12,657 | AQ16: =('Thermal age Table'!$E$14+($B16*AQ$4)) -> 26 | AR16: =(($A16-$A15)*((EXP((1/(($B16*'Thermal age Table'!$F$14)+'Thermal age Table'!$E$14+273.15))*((-'Thermal age Table'!$L$14*1000)/8.3144598)+'Thermal age Table'!$M$14))/(EXP((1/(283.15))*((-'Thermal age Table'!$L$14*1000)/8.3144598)+'Thermal age Table'!$M$14))))+AR15 -> 126,702 | AS16: =(($A16-$A15)*((EXP((1/(($B16*('Thermal age Table'!$F$14*0.8))+('Thermal age Table'!$E$14-1)+273.15))*((-'Thermal age Table'!$L$14*1000)/8.3144598)+'Thermal age Table'!$M$14))/(EXP((1/(283.15))*((-'Thermal age Table'!$L$14*1000)/8.3144598)+'Thermal age Table'!$M$14))))+AS15 -> 107,866 | AT16: =(($A16-$A15)*((EXP((1/(($B16*('Thermal age Table'!$F$14*1.2))+('Thermal age Table'!$E$14+1)+273.15))*((-'Thermal age Table'!$L$14*1000)/8.3144598)+'Thermal age Table'!$M$14))/(EXP((1/(283.15))*((-'Thermal age Table'!$L$14*1000)/8.3144598)+'Thermal age Table'!$M$14))))+AT15 -> 148,668 | AU16: =('Thermal age Table'!$E$15+($B16*AU$4)) -> 22 | AV16: =(($A16-$A15)*((EXP((1/(($B16*'Thermal age Table'!$F$15)+'Thermal age Table'!$E$15+273.15))*((-'Thermal age Table'!$L$15*1000)/8.3144598)+'Thermal age Table'!$M$15))/(EXP((1/(283.15))*((-'Thermal age Table'!$L$15*1000)/8.3144598)+'Thermal age Table'!$M$15))))+AV15 -> 65,659 | AW16: =(($A16-$A15)*((EXP((1/(($B16*('Thermal age Table'!$F$15*0.8))+('Thermal age Table'!$E$15-1)+273.15))*((-'Thermal age Table'!$L$15*1000)/8.3144598)+'Thermal age Table'!$M$15))/(EXP((1/(283.15))*((-'Thermal age Table'!$L$15*1000)/8.3144598)+'Thermal age Table'!$M$15))))+AW15 -> 55,628 | AX16: =(($A16-$A15)*((EXP((1/(($B16*('Thermal age Table'!$F$15*1.2))+('Thermal age Table'!$E$15+1)+273.15))*((-'Thermal age Table'!$L$15*1000)/8.3144598)+'Thermal age Table'!$M$15))/(EXP((1/(283.15))*((-'Thermal age Table'!$L$15*1000)/8.3144598)+'Thermal age Table'!$M$15))))+AX15 -> 77,412
A17: 9,600 | B17: 0.2 | C17: =('Thermal age Table'!$E$2)+($B17*C$4) -> -19 | D17: =(($A17-$A16)*((EXP((1/(($B17*'Thermal age Table'!$F$2)+'Thermal age Table'!$E$2+273.15))*((-'Thermal age Table'!$L$2*1000)/8.3144598)+'Thermal age Table'!$M$2))/(EXP((1/(283.15))*((-'Thermal age Table'!$L$2*1000)/8.3144598)+'Thermal age Table'!$M$2))))+D16 -> 2 | E17: =(($A17-$A16)*((EXP((1/(($B17*('Thermal age Table'!$F$2*0.8))+('Thermal age Table'!$E$2-1)+273.15))*((-'Thermal age Table'!$L$2*1000)/8.3144598)+'Thermal age Table'!$M$2))/(EXP((1/(283.15))*((-'Thermal age Table'!$L$2*1000)/8.3144598)+'Thermal age Table'!$M$2))))+E16 -> 1 | F17: =(($A17-$A16)*((EXP((1/(($B17*('Thermal age Table'!$F$2*1.2))+('Thermal age Table'!$E$2+1)+273.15))*((-'Thermal age Table'!$L$2*1000)/8.3144598)+'Thermal age Table'!$M$2))/(EXP((1/(283.15))*((-'Thermal age Table'!$L$2*1000)/8.3144598)+'Thermal age Table'!$M$2))))+F16 -> 3 | G17: =('Thermal age Table'!$E$4+($B17*G$4)) -> -6 | H17: =(($A17-$A16)*((EXP((1/(($B17*'Thermal age Table'!$F$4)+'Thermal age Table'!$E$4+273.15))*((-'Thermal age Table'!$L$4*1000)/8.3144598)+'Thermal age Table'!$M$4))/(EXP((1/(283.15))*((-'Thermal age Table'!$L$4*1000)/8.3144598)+'Thermal age Table'!$M$4))))+H16 -> 394 | I17: =(($A17-$A16)*((EXP((1/(($B17*('Thermal age Table'!$F$4*0.8))+('Thermal age Table'!$E$4-1)+273.15))*((-'Thermal age Table'!$L$4*1000)/8.3144598)+'Thermal age Table'!$M$4))/(EXP((1/(283.15))*((-'Thermal age Table'!$L$4*1000)/8.3144598)+'Thermal age Table'!$M$4))))+I16 -> 311 | J17: =(($A17-$A16)*((EXP((1/(($B17*('Thermal age Table'!$F$4*1.2))+('Thermal age Table'!$E$4+1)+273.15))*((-'Thermal age Table'!$L$4*1000)/8.3144598)+'Thermal age Table'!$M$4))/(EXP((1/(283.15))*((-'Thermal age Table'!$L$4*1000)/8.3144598)+'Thermal age Table'!$M$4))))+J16 -> 498 | K17: =('Thermal age Table'!$E$5+($B17*K$4)) -> -4 | L17: =(($A17-$A16)*((EXP((1/(($B17*'Thermal age Table'!$F$5)+'Thermal age Table'!$E$5+273.15))*((-'Thermal age Table'!$L$5*1000)/8.3144598)+'Thermal age Table'!$M$5))/(EXP((1/(283.15))*((-'Thermal age Table'!$L$5*1000)/8.3144598)+'Thermal age Table'!$M$5))))+L16 -> 582 | M17: =(($A17-$A16)*((EXP((1/(($B17*('Thermal age Table'!$F$5*0.8))+('Thermal age Table'!$E$5-1)+273.15))*((-'Thermal age Table'!$L$5*1000)/8.3144598)+'Thermal age Table'!$M$5))/(EXP((1/(283.15))*((-'Thermal age Table'!$L$5*1000)/8.3144598)+'Thermal age Table'!$M$5))))+N16 -> 694 | N17: =(($A17-$A16)*((EXP((1/(($B17*('Thermal age Table'!$F$5*1.2))+('Thermal age Table'!$E$5+1)+273.15))*((-'Thermal age Table'!$L$5*1000)/8.3144598)+'Thermal age Table'!$M$5))/(EXP((1/(283.15))*((-'Thermal age Table'!$L$5*1000)/8.3144598)+'Thermal age Table'!$M$5))))+N16 -> 721 | O17: =('Thermal age Table'!$E$7)+($B17*O$4) -> 10 | P17: =(($A17-$A16)*((EXP((1/(($B17*'Thermal age Table'!$F$7)+'Thermal age Table'!$E$7+273.15))*((-'Thermal age Table'!$L$7*1000)/8.3144598)+'Thermal age Table'!$M$7))/(EXP((1/(283.15))*((-'Thermal age Table'!$L$7*1000)/8.3144598)+'Thermal age Table'!$M$7))))+P16 -> 8,061 | Q17: =(($A17-$A16)*((EXP((1/(($B17*('Thermal age Table'!$F$7*0.8))+('Thermal age Table'!$E$7-1)+273.15))*((-'Thermal age Table'!$L$7*1000)/8.3144598)+'Thermal age Table'!$M$7))/(EXP((1/(283.15))*((-'Thermal age Table'!$L$7*1000)/8.3144598)+'Thermal age Table'!$M$7))))+Q16 -> 6,128 | R17: =(($A17-$A16)*((EXP((1/(($B17*('Thermal age Table'!$F$7*1.2))+('Thermal age Table'!$E$7+1)+273.15))*((-'Thermal age Table'!$L$7*1000)/8.3144598)+'Thermal age Table'!$M$7))/(EXP((1/(283.15))*((-'Thermal age Table'!$L$7*1000)/8.3144598)+'Thermal age Table'!$M$7))))+R16 -> 10,587 | S17: =('Thermal age Table'!$E$8)+($B17*S$4) -> 10 | T17: =(($A17-$A16)*((EXP((1/(($B17*'Thermal age Table'!$F$8)+'Thermal age Table'!$E$8+273.15))*((-'Thermal age Table'!$L$8*1000)/8.3144598)+'Thermal age Table'!$M$8))/(EXP((1/(283.15))*((-'Thermal age Table'!$L$8*1000)/8.3144598)+'Thermal age Table'!$M$8))))+T16 -> 8,911 | U17: =(($A17-$A16)*((EXP((1/(($B17*('Thermal age Table'!$F$8*0.8))+('Thermal age Table'!$E$8-1)+273.15))*((-'Thermal age Table'!$L$8*1000)/8.3144598)+'Thermal age Table'!$M$8))/(EXP((1/(283.15))*((-'Thermal age Table'!$L$8*1000)/8.3144598)+'Thermal age Table'!$M$8))))+U16 -> 7,325 | V17: =(($A17-$A16)*((EXP((1/(($B17*('Thermal age Table'!$F$8*1.2))+('Thermal age Table'!$E$8+1)+273.15))*((-'Thermal age Table'!$L$8*1000)/8.3144598)+'Thermal age Table'!$M$8))/(EXP((1/(283.15))*((-'Thermal age Table'!$L$8*1000)/8.3144598)+'Thermal age Table'!$M$8))))+V16 -> 10,826 | W17: =('Thermal age Table'!$E$9+($B17*W$4)) -> 16 | X17: =(($A17-$A16)*((EXP((1/(($B17*'Thermal age Table'!$F$9)+'Thermal age Table'!$E$9+273.15))*((-'Thermal age Table'!$L$9*1000)/8.3144598)+'Thermal age Table'!$M$9))/(EXP((1/(283.15))*((-'Thermal age Table'!$L$9*1000)/8.3144598)+'Thermal age Table'!$M$9))))+X16 -> 26,297 | Y17: =(($A17-$A16)*((EXP((1/(($B17*('Thermal age Table'!$F$9*0.8))+('Thermal age Table'!$E$9-1)+273.15))*((-'Thermal age Table'!$L$9*1000)/8.3144598)+'Thermal age Table'!$M$9))/(EXP((1/(283.15))*((-'Thermal age Table'!$L$9*1000)/8.3144598)+'Thermal age Table'!$M$9))))+Y16 -> 22,089 | Z17: =(($A17-$A16)*((EXP((1/(($B17*('Thermal age Table'!$F$9*1.2))+('Thermal age Table'!$E$9+1)+273.15))*((-'Thermal age Table'!$L$9*1000)/8.3144598)+'Thermal age Table'!$M$9))/(EXP((1/(283.15))*((-'Thermal age Table'!$L$9*1000)/8.3144598)+'Thermal age Table'!$M$9))))+Z16 -> 31,269 | AA17: =('Thermal age Table'!$E$10+($B17*AA$4)) -> 18 | AB17: =(($A17-$A16)*((EXP((1/(($B17*'Thermal age Table'!$F$10)+'Thermal age Table'!$E$10+273.15))*((-'Thermal age Table'!$L$10*1000)/8.3144598)+'Thermal age Table'!$M$10))/(EXP((1/(283.15))*((-'Thermal age Table'!$L$10*1000)/8.3144598)+'Thermal age Table'!$M$10))))+AB16 -> 38,756 | AC17: =(($A17-$A16)*((EXP((1/(($B17*('Thermal age Table'!$F$10*0.8))+('Thermal age Table'!$E$10-1)+273.15))*((-'Thermal age Table'!$L$10*1000)/8.3144598)+'Thermal age Table'!$M$10))/(EXP((1/(283.15))*((-'Thermal age Table'!$L$9*1000)/8.3144598)+'Thermal age Table'!$M$10))))+AC16 -> 32,644 | AD17: =(($A17-$A16)*((EXP((1/(($B17*('Thermal age Table'!$F$10*1.2))+('Thermal age Table'!$E$10+1)+273.15))*((-'Thermal age Table'!$L$10*1000)/8.3144598)+'Thermal age Table'!$M$10))/(EXP((1/(283.15))*((-'Thermal age Table'!$L$10*1000)/8.3144598)+'Thermal age Table'!$M$10))))+AD16 -> 45,958 | AE17: =('Thermal age Table'!$E$11+($B17*AE$4)) -> 19 | AF17: =(($A17-$A16)*((EXP((1/(($B17*'Thermal age Table'!$F$11)+'Thermal age Table'!$E$11+273.15))*((-'Thermal age Table'!$L$11*1000)/8.3144598)+'Thermal age Table'!$M$11))/(EXP((1/(283.15))*((-'Thermal age Table'!$L$11*1000)/8.3144598)+'Thermal age Table'!$M$11))))+AF16 -> 42,524 | AG17: =(($A17-$A16)*((EXP((1/(($B17*('Thermal age Table'!$F$11*0.8))+('Thermal age Table'!$E$11-1)+273.15))*((-'Thermal age Table'!$L$11*1000)/8.3144598)+'Thermal age Table'!$M$11))/(EXP((1/(283.15))*((-'Thermal age Table'!$L$11*1000)/8.3144598)+'Thermal age Table'!$M$11))))+AG16 -> 35,897 | AH17: =(($A17-$A16)*((EXP((1/(($B17*('Thermal age Table'!$F$11*1.2))+('Thermal age Table'!$E$11+1)+273.15))*((-'Thermal age Table'!$L$11*1000)/8.3144598)+'Thermal age Table'!$M$11))/(EXP((1/(283.15))*((-'Thermal age Table'!$L$11*1000)/8.3144598)+'Thermal age Table'!$M$11))))+AH16 -> 50,318 | AI17: =('Thermal age Table'!$E$12+($B17*AI$4)) -> 19 | AJ17: =(($A17-$A16)*((EXP((1/(($B17*'Thermal age Table'!$F$12)+'Thermal age Table'!$E$12+273.15))*((-'Thermal age Table'!$L$12*1000)/8.3144598)+'Thermal age Table'!$M$12))/(EXP((1/(283.15))*((-'Thermal age Table'!$L$12*1000)/8.3144598)+'Thermal age Table'!$M$12))))+AJ16 -> 43,239 | AK17: =(($A17-$A16)*((EXP((1/(($B17*('Thermal age Table'!$F$12*0.8))+('Thermal age Table'!$E$12-1)+273.15))*((-'Thermal age Table'!$L$12*1000)/8.3144598)+'Thermal age Table'!$M$12))/(EXP((1/(283.15))*((-'Thermal age Table'!$L$12*1000)/8.3144598)+'Thermal age Table'!$M$12))))+AK16 -> 36,504 | AL17: =(($A17-$A16)*((EXP((1/(($B17*('Thermal age Table'!$F$12*1.2))+('Thermal age Table'!$E$12+1)+273.15))*((-'Thermal age Table'!$L$12*1000)/8.3144598)+'Thermal age Table'!$M$12))/(EXP((1/(283.15))*((-'Thermal age Table'!$L$12*1000)/8.3144598)+'Thermal age Table'!$M$12))))+AL16 -> 51,157 | AM17: =('Thermal age Table'!$E$13+($B17*AM$4)) -> 11 | AN17: =(($A17-$A16)*((EXP((1/(($B17*'Thermal age Table'!$F$13)+'Thermal age Table'!$E$13+273.15))*((-'Thermal age Table'!$L$13*1000)/8.3144598)+'Thermal age Table'!$M$13))/(EXP((1/(283.15))*((-'Thermal age Table'!$L$13*1000)/8.3144598)+'Thermal age Table'!$M$13))))+AN16 -> 11,861 | AO17: =(($A17-$A16)*((EXP((1/(($B17*('Thermal age Table'!$F$13*0.8))+('Thermal age Table'!$E$13-1)+273.15))*((-'Thermal age Table'!$L$13*1000)/8.3144598)+'Thermal age Table'!$M$13))/(EXP((1/(283.15))*((-'Thermal age Table'!$L$13*1000)/8.3144598)+'Thermal age Table'!$M$13))))+AO16 -> 9,946 | AP17: =(($A17-$A16)*((EXP((1/(($B17*('Thermal age Table'!$F$13*1.2))+('Thermal age Table'!$E$13+1)+273.15))*((-'Thermal age Table'!$L$13*1000)/8.3144598)+'Thermal age Table'!$M$13))/(EXP((1/(283.15))*((-'Thermal age Table'!$L$13*1000)/8.3144598)+'Thermal age Table'!$M$13))))+AP16 -> 14,129 | AQ17: =('Thermal age Table'!$E$14+($B17*AQ$4)) -> 26 | AR17: =(($A17-$A16)*((EXP((1/(($B17*'Thermal age Table'!$F$14)+'Thermal age Table'!$E$14+273.15))*((-'Thermal age Table'!$L$14*1000)/8.3144598)+'Thermal age Table'!$M$14))/(EXP((1/(283.15))*((-'Thermal age Table'!$L$14*1000)/8.3144598)+'Thermal age Table'!$M$14))))+AR16 -> 141,579 | AS17: =(($A17-$A16)*((EXP((1/(($B17*('Thermal age Table'!$F$14*0.8))+('Thermal age Table'!$E$14-1)+273.15))*((-'Thermal age Table'!$L$14*1000)/8.3144598)+'Thermal age Table'!$M$14))/(EXP((1/(283.15))*((-'Thermal age Table'!$L$14*1000)/8.3144598)+'Thermal age Table'!$M$14))))+AS16 -> 120,508 | AT17: =(($A17-$A16)*((EXP((1/(($B17*('Thermal age Table'!$F$14*1.2))+('Thermal age Table'!$E$14+1)+273.15))*((-'Thermal age Table'!$L$14*1000)/8.3144598)+'Thermal age Table'!$M$14))/(EXP((1/(283.15))*((-'Thermal age Table'!$L$14*1000)/8.3144598)+'Thermal age Table'!$M$14))))+AT16 -> 166,156 | AU17: =('Thermal age Table'!$E$15+($B17*AU$4)) -> 22 | AV17: =(($A17-$A16)*((EXP((1/(($B17*'Thermal age Table'!$F$15)+'Thermal age Table'!$E$15+273.15))*((-'Thermal age Table'!$L$15*1000)/8.3144598)+'Thermal age Table'!$M$15))/(EXP((1/(283.15))*((-'Thermal age Table'!$L$15*1000)/8.3144598)+'Thermal age Table'!$M$15))))+AV16 -> 73,383 | AW17: =(($A17-$A16)*((EXP((1/(($B17*('Thermal age Table'!$F$15*0.8))+('Thermal age Table'!$E$15-1)+273.15))*((-'Thermal age Table'!$L$15*1000)/8.3144598)+'Thermal age Table'!$M$15))/(EXP((1/(283.15))*((-'Thermal age Table'!$L$15*1000)/8.3144598)+'Thermal age Table'!$M$15))))+AW16 -> 62,158 | AX17: =(($A17-$A16)*((EXP((1/(($B17*('Thermal age Table'!$F$15*1.2))+('Thermal age Table'!$E$15+1)+273.15))*((-'Thermal age Table'!$L$15*1000)/8.3144598)+'Thermal age Table'!$M$15))/(EXP((1/(283.15))*((-'Thermal age Table'!$L$15*1000)/8.3144598)+'Thermal age Table'!$M$15))))+AX16 -> 86,539
A18: 10,400 | B18: 0.28 | C18: =('Thermal age Table'!$E$2)+($B18*C$4) -> -18 | D18: =(($A18-$A17)*((EXP((1/(($B18*'Thermal age Table'!$F$2)+'Thermal age Table'!$E$2+273.15))*((-'Thermal age Table'!$L$2*1000)/8.3144598)+'Thermal age Table'!$M$2))/(EXP((1/(283.15))*((-'Thermal age Table'!$L$2*1000)/8.3144598)+'Thermal age Table'!$M$2))))+D17 -> 2 | E18: =(($A18-$A17)*((EXP((1/(($B18*('Thermal age Table'!$F$2*0.8))+('Thermal age Table'!$E$2-1)+273.15))*((-'Thermal age Table'!$L$2*1000)/8.3144598)+'Thermal age Table'!$M$2))/(EXP((1/(283.15))*((-'Thermal age Table'!$L$2*1000)/8.3144598)+'Thermal age Table'!$M$2))))+E17 -> 2 | F18: =(($A18-$A17)*((EXP((1/(($B18*('Thermal age Table'!$F$2*1.2))+('Thermal age Table'!$E$2+1)+273.15))*((-'Thermal age Table'!$L$2*1000)/8.3144598)+'Thermal age Table'!$M$2))/(EXP((1/(283.15))*((-'Thermal age Table'!$L$2*1000)/8.3144598)+'Thermal age Table'!$M$2))))+F17 -> 3 | G18: =('Thermal age Table'!$E$4+($B18*G$4)) -> -5 | H18: =(($A18-$A17)*((EXP((1/(($B18*'Thermal age Table'!$F$4)+'Thermal age Table'!$E$4+273.15))*((-'Thermal age Table'!$L$4*1000)/8.3144598)+'Thermal age Table'!$M$4))/(EXP((1/(283.15))*((-'Thermal age Table'!$L$4*1000)/8.3144598)+'Thermal age Table'!$M$4))))+H17 -> 432 | I18: =(($A18-$A17)*((EXP((1/(($B18*('Thermal age Table'!$F$4*0.8))+('Thermal age Table'!$E$4-1)+273.15))*((-'Thermal age Table'!$L$4*1000)/8.3144598)+'Thermal age Table'!$M$4))/(EXP((1/(283.15))*((-'Thermal age Table'!$L$4*1000)/8.3144598)+'Thermal age Table'!$M$4))))+I17 -> 340 | J18: =(($A18-$A17)*((EXP((1/(($B18*('Thermal age Table'!$F$4*1.2))+('Thermal age Table'!$E$4+1)+273.15))*((-'Thermal age Table'!$L$4*1000)/8.3144598)+'Thermal age Table'!$M$4))/(EXP((1/(283.15))*((-'Thermal age Table'!$L$4*1000)/8.3144598)+'Thermal age Table'!$M$4))))+J17 -> 547 | K18: =('Thermal age Table'!$E$5+($B18*K$4)) -> -4 | L18: =(($A18-$A17)*((EXP((1/(($B18*'Thermal age Table'!$F$5)+'Thermal age Table'!$E$5+273.15))*((-'Thermal age Table'!$L$5*1000)/8.3144598)+'Thermal age Table'!$M$5))/(EXP((1/(283.15))*((-'Thermal age Table'!$L$5*1000)/8.3144598)+'Thermal age Table'!$M$5))))+L17 -> 632 | M18: =(($A18-$A17)*((EXP((1/(($B18*('Thermal age Table'!$F$5*0.8))+('Thermal age Table'!$E$5-1)+273.15))*((-'Thermal age Table'!$L$5*1000)/8.3144598)+'Thermal age Table'!$M$5))/(EXP((1/(283.15))*((-'Thermal age Table'!$L$5*1000)/8.3144598)+'Thermal age Table'!$M$5))))+N17 -> 761 | N18: =(($A18-$A17)*((EXP((1/(($B18*('Thermal age Table'!$F$5*1.2))+('Thermal age Table'!$E$5+1)+273.15))*((-'Thermal age Table'!$L$5*1000)/8.3144598)+'Thermal age Table'!$M$5))/(EXP((1/(283.15))*((-'Thermal age Table'!$L$5*1000)/8.3144598)+'Thermal age Table'!$M$5))))+N17 -> 784 | O18: =('Thermal age Table'!$E$7)+($B18*O$4) -> 10 | P18: =(($A18-$A17)*((EXP((1/(($B18*'Thermal age Table'!$F$7)+'Thermal age Table'!$E$7+273.15))*((-'Thermal age Table'!$L$7*1000)/8.3144598)+'Thermal age Table'!$M$7))/(EXP((1/(283.15))*((-'Thermal age Table'!$L$7*1000)/8.3144598)+'Thermal age Table'!$M$7))))+P17 -> 8,794 | Q18: =(($A18-$A17)*((EXP((1/(($B18*('Thermal age Table'!$F$7*0.8))+('Thermal age Table'!$E$7-1)+273.15))*((-'Thermal age Table'!$L$7*1000)/8.3144598)+'Thermal age Table'!$M$7))/(EXP((1/(283.15))*((-'Thermal age Table'!$L$7*1000)/8.3144598)+'Thermal age Table'!$M$7))))+Q17 -> 6,675 | R18: =(($A18-$A17)*((EXP((1/(($B18*('Thermal age Table'!$F$7*1.2))+('Thermal age Table'!$E$7+1)+273.15))*((-'Thermal age Table'!$L$7*1000)/8.3144598)+'Thermal age Table'!$M$7))/(EXP((1/(283.15))*((-'Thermal age Table'!$L$7*1000)/8.3144598)+'Thermal age Table'!$M$7))))+R17 -> 11,564 | S18: =('Thermal age Table'!$E$8)+($B18*S$4) -> 10 | T18: =(($A18-$A17)*((EXP((1/(($B18*'Thermal age Table'!$F$8)+'Thermal age Table'!$E$8+273.15))*((-'Thermal age Table'!$L$8*1000)/8.3144598)+'Thermal age Table'!$M$8))/(EXP((1/(283.15))*((-'Thermal age Table'!$L$8*1000)/8.3144598)+'Thermal age Table'!$M$8))))+T17 -> 9,678 | U18: =(($A18-$A17)*((EXP((1/(($B18*('Thermal age Table'!$F$8*0.8))+('Thermal age Table'!$E$8-1)+273.15))*((-'Thermal age Table'!$L$8*1000)/8.3144598)+'Thermal age Table'!$M$8))/(EXP((1/(283.15))*((-'Thermal age Table'!$L$8*1000)/8.3144598)+'Thermal age Table'!$M$8))))+U17 -> 7,952 | V18: =(($A18-$A17)*((EXP((1/(($B18*('Thermal age Table'!$F$8*1.2))+('Thermal age Table'!$E$8+1)+273.15))*((-'Thermal age Table'!$L$8*1000)/8.3144598)+'Thermal age Table'!$M$8))/(EXP((1/(283.15))*((-'Thermal age Table'!$L$8*1000)/8.3144598)+'Thermal age Table'!$M$8))))+V17 -> 11,764 | W18: =('Thermal age Table'!$E$9+($B18*W$4)) -> 16 | X18: =(($A18-$A17)*((EXP((1/(($B18*'Thermal age Table'!$F$9)+'Thermal age Table'!$E$9+273.15))*((-'Thermal age Table'!$L$9*1000)/8.3144598)+'Thermal age Table'!$M$9))/(EXP((1/(283.15))*((-'Thermal age Table'!$L$9*1000)/8.3144598)+'Thermal age Table'!$M$9))))+X17 -> 28,553 | Y18: =(($A18-$A17)*((EXP((1/(($B18*('Thermal age Table'!$F$9*0.8))+('Thermal age Table'!$E$9-1)+273.15))*((-'Thermal age Table'!$L$9*1000)/8.3144598)+'Thermal age Table'!$M$9))/(EXP((1/(283.15))*((-'Thermal age Table'!$L$9*1000)/8.3144598)+'Thermal age Table'!$M$9))))+Y17 -> 23,973 | Z18: =(($A18-$A17)*((EXP((1/(($B18*('Thermal age Table'!$F$9*1.2))+('Thermal age Table'!$E$9+1)+273.15))*((-'Thermal age Table'!$L$9*1000)/8.3144598)+'Thermal age Table'!$M$9))/(EXP((1/(283.15))*((-'Thermal age Table'!$L$9*1000)/8.3144598)+'Thermal age Table'!$M$9))))+Z17 -> 33,966 | AA18: =('Thermal age Table'!$E$10+($B18*AA$4)) -> 18 | AB18: =(($A18-$A17)*((EXP((1/(($B18*'Thermal age Table'!$F$10)+'Thermal age Table'!$E$10+273.15))*((-'Thermal age Table'!$L$10*1000)/8.3144598)+'Thermal age Table'!$M$10))/(EXP((1/(283.15))*((-'Thermal age Table'!$L$10*1000)/8.3144598)+'Thermal age Table'!$M$10))))+AB17 -> 42,079 | AC18: =(($A18-$A17)*((EXP((1/(($B18*('Thermal age Table'!$F$10*0.8))+('Thermal age Table'!$E$10-1)+273.15))*((-'Thermal age Table'!$L$10*1000)/8.3144598)+'Thermal age Table'!$M$10))/(EXP((1/(283.15))*((-'Thermal age Table'!$L$9*1000)/8.3144598)+'Thermal age Table'!$M$10))))+AC17 -> 35,428 | AD18: =(($A18-$A17)*((EXP((1/(($B18*('Thermal age Table'!$F$10*1.2))+('Thermal age Table'!$E$10+1)+273.15))*((-'Thermal age Table'!$L$10*1000)/8.3144598)+'Thermal age Table'!$M$10))/(EXP((1/(283.15))*((-'Thermal age Table'!$L$10*1000)/8.3144598)+'Thermal age Table'!$M$10))))+AD17 -> 49,920 | AE18: =('Thermal age Table'!$E$11+($B18*AE$4)) -> 19 | AF18: =(($A18-$A17)*((EXP((1/(($B18*'Thermal age Table'!$F$11)+'Thermal age Table'!$E$11+273.15))*((-'Thermal age Table'!$L$11*1000)/8.3144598)+'Thermal age Table'!$M$11))/(EXP((1/(283.15))*((-'Thermal age Table'!$L$11*1000)/8.3144598)+'Thermal age Table'!$M$11))))+AF17 -> 46,129 | AG18: =(($A18-$A17)*((EXP((1/(($B18*('Thermal age Table'!$F$11*0.8))+('Thermal age Table'!$E$11-1)+273.15))*((-'Thermal age Table'!$L$11*1000)/8.3144598)+'Thermal age Table'!$M$11))/(EXP((1/(283.15))*((-'Thermal age Table'!$L$11*1000)/8.3144598)+'Thermal age Table'!$M$11))))+AG17 -> 38,930 | AH18: =(($A18-$A17)*((EXP((1/(($B18*('Thermal age Table'!$F$11*1.2))+('Thermal age Table'!$E$11+1)+273.15))*((-'Thermal age Table'!$L$11*1000)/8.3144598)+'Thermal age Table'!$M$11))/(EXP((1/(283.15))*((-'Thermal age Table'!$L$11*1000)/8.3144598)+'Thermal age Table'!$M$11))))+AH17 -> 54,597 | AI18: =('Thermal age Table'!$E$12+($B18*AI$4)) -> 19 | AJ18: =(($A18-$A17)*((EXP((1/(($B18*'Thermal age Table'!$F$12)+'Thermal age Table'!$E$12+273.15))*((-'Thermal age Table'!$L$12*1000)/8.3144598)+'Thermal age Table'!$M$12))/(EXP((1/(283.15))*((-'Thermal age Table'!$L$12*1000)/8.3144598)+'Thermal age Table'!$M$12))))+AJ17 -> 46,904 | AK18: =(($A18-$A17)*((EXP((1/(($B18*('Thermal age Table'!$F$12*0.8))+('Thermal age Table'!$E$12-1)+273.15))*((-'Thermal age Table'!$L$12*1000)/8.3144598)+'Thermal age Table'!$M$12))/(EXP((1/(283.15))*((-'Thermal age Table'!$L$12*1000)/8.3144598)+'Thermal age Table'!$M$12))))+AK17 -> 39,588 | AL18: =(($A18-$A17)*((EXP((1/(($B18*('Thermal age Table'!$F$12*1.2))+('Thermal age Table'!$E$12+1)+273.15))*((-'Thermal age Table'!$L$12*1000)/8.3144598)+'Thermal age Table'!$M$12))/(EXP((1/(283.15))*((-'Thermal age Table'!$L$12*1000)/8.3144598)+'Thermal age Table'!$M$12))))+AL17 -> 55,508 | AM18: =('Thermal age Table'!$E$13+($B18*AM$4)) -> 11 | AN18: =(($A18-$A17)*((EXP((1/(($B18*'Thermal age Table'!$F$13)+'Thermal age Table'!$E$13+273.15))*((-'Thermal age Table'!$L$13*1000)/8.3144598)+'Thermal age Table'!$M$13))/(EXP((1/(283.15))*((-'Thermal age Table'!$L$13*1000)/8.3144598)+'Thermal age Table'!$M$13))))+AN17 -> 12,850 | AO18: =(($A18-$A17)*((EXP((1/(($B18*('Thermal age Table'!$F$13*0.8))+('Thermal age Table'!$E$13-1)+273.15))*((-'Thermal age Table'!$L$13*1000)/8.3144598)+'Thermal age Table'!$M$13))/(EXP((1/(283.15))*((-'Thermal age Table'!$L$13*1000)/8.3144598)+'Thermal age Table'!$M$13))))+AO17 -> 10,775 | AP18: =(($A18-$A17)*((EXP((1/(($B18*('Thermal age Table'!$F$13*1.2))+('Thermal age Table'!$E$13+1)+273.15))*((-'Thermal age Table'!$L$13*1000)/8.3144598)+'Thermal age Table'!$M$13))/(EXP((1/(283.15))*((-'Thermal age Table'!$L$13*1000)/8.3144598)+'Thermal age Table'!$M$13))))+AP17 -> 15,306 | AQ18: =('Thermal age Table'!$E$14+($B18*AQ$4)) -> 26 | AR18: =(($A18-$A17)*((EXP((1/(($B18*'Thermal age Table'!$F$14)+'Thermal age Table'!$E$14+273.15))*((-'Thermal age Table'!$L$14*1000)/8.3144598)+'Thermal age Table'!$M$14))/(EXP((1/(283.15))*((-'Thermal age Table'!$L$14*1000)/8.3144598)+'Thermal age Table'!$M$14))))+AR17 -> 153,572 | AS18: =(($A18-$A17)*((EXP((1/(($B18*('Thermal age Table'!$F$14*0.8))+('Thermal age Table'!$E$14-1)+273.15))*((-'Thermal age Table'!$L$14*1000)/8.3144598)+'Thermal age Table'!$M$14))/(EXP((1/(283.15))*((-'Thermal age Table'!$L$14*1000)/8.3144598)+'Thermal age Table'!$M$14))))+AS17 -> 130,683 | AT18: =(($A18-$A17)*((EXP((1/(($B18*('Thermal age Table'!$F$14*1.2))+('Thermal age Table'!$E$14+1)+273.15))*((-'Thermal age Table'!$L$14*1000)/8.3144598)+'Thermal age Table'!$M$14))/(EXP((1/(283.15))*((-'Thermal age Table'!$L$14*1000)/8.3144598)+'Thermal age Table'!$M$14))))+AT17 -> 180,274 | AU18: =('Thermal age Table'!$E$15+($B18*AU$4)) -> 22 | AV18: =(($A18-$A17)*((EXP((1/(($B18*'Thermal age Table'!$F$15)+'Thermal age Table'!$E$15+273.15))*((-'Thermal age Table'!$L$15*1000)/8.3144598)+'Thermal age Table'!$M$15))/(EXP((1/(283.15))*((-'Thermal age Table'!$L$15*1000)/8.3144598)+'Thermal age Table'!$M$15))))+AV17 -> 79,619 | AW18: =(($A18-$A17)*((EXP((1/(($B18*('Thermal age Table'!$F$15*0.8))+('Thermal age Table'!$E$15-1)+273.15))*((-'Thermal age Table'!$L$15*1000)/8.3144598)+'Thermal age Table'!$M$15))/(EXP((1/(283.15))*((-'Thermal age Table'!$L$15*1000)/8.3144598)+'Thermal age Table'!$M$15))))+AW17 -> 67,420 | AX18: =(($A18-$A17)*((EXP((1/(($B18*('Thermal age Table'!$F$15*1.2))+('Thermal age Table'!$E$15+1)+273.15))*((-'Thermal age Table'!$L$15*1000)/8.3144598)+'Thermal age Table'!$M$15))/(EXP((1/(283.15))*((-'Thermal age Table'!$L$15*1000)/8.3144598)+'Thermal age Table'!$M$15))))+AX17 -> 93,920
A19: 11,200 | B19: -0.54 | C19: =('Thermal age Table'!$E$2)+($B19*C$4) -> -22 | D19: =(($A19-$A18)*((EXP((1/(($B19*'Thermal age Table'!$F$2)+'Thermal age Table'!$E$2+273.15))*((-'Thermal age Table'!$L$2*1000)/8.3144598)+'Thermal age Table'!$M$2))/(EXP((1/(283.15))*((-'Thermal age Table'!$L$2*1000)/8.3144598)+'Thermal age Table'!$M$2))))+D18 -> 2 | E19: =(($A19-$A18)*((EXP((1/(($B19*('Thermal age Table'!$F$2*0.8))+('Thermal age Table'!$E$2-1)+273.15))*((-'Thermal age Table'!$L$2*1000)/8.3144598)+'Thermal age Table'!$M$2))/(EXP((1/(283.15))*((-'Thermal age Table'!$L$2*1000)/8.3144598)+'Thermal age Table'!$M$2))))+E18 -> 2 | F19: =(($A19-$A18)*((EXP((1/(($B19*('Thermal age Table'!$F$2*1.2))+('Thermal age Table'!$E$2+1)+273.15))*((-'Thermal age Table'!$L$2*1000)/8.3144598)+'Thermal age Table'!$M$2))/(EXP((1/(283.15))*((-'Thermal age Table'!$L$2*1000)/8.3144598)+'Thermal age Table'!$M$2))))+F18 -> 4 | G19: =('Thermal age Table'!$E$4+($B19*G$4)) -> -8 | H19: =(($A19-$A18)*((EXP((1/(($B19*'Thermal age Table'!$F$4)+'Thermal age Table'!$E$4+273.15))*((-'Thermal age Table'!$L$4*1000)/8.3144598)+'Thermal age Table'!$M$4))/(EXP((1/(283.15))*((-'Thermal age Table'!$L$4*1000)/8.3144598)+'Thermal age Table'!$M$4))))+H18 -> 450 | I19: =(($A19-$A18)*((EXP((1/(($B19*('Thermal age Table'!$F$4*0.8))+('Thermal age Table'!$E$4-1)+273.15))*((-'Thermal age Table'!$L$4*1000)/8.3144598)+'Thermal age Table'!$M$4))/(EXP((1/(283.15))*((-'Thermal age Table'!$L$4*1000)/8.3144598)+'Thermal age Table'!$M$4))))+I18 -> 356 | J19: =(($A19-$A18)*((EXP((1/(($B19*('Thermal age Table'!$F$4*1.2))+('Thermal age Table'!$E$4+1)+273.15))*((-'Thermal age Table'!$L$4*1000)/8.3144598)+'Thermal age Table'!$M$4))/(EXP((1/(283.15))*((-'Thermal age Table'!$L$4*1000)/8.3144598)+'Thermal age Table'!$M$4))))+J18 -> 568 | K19: =('Thermal age Table'!$E$5+($B19*K$4)) -> -5 | L19: =(($A19-$A18)*((EXP((1/(($B19*'Thermal age Table'!$F$5)+'Thermal age Table'!$E$5+273.15))*((-'Thermal age Table'!$L$5*1000)/8.3144598)+'Thermal age Table'!$M$5))/(EXP((1/(283.15))*((-'Thermal age Table'!$L$5*1000)/8.3144598)+'Thermal age Table'!$M$5))))+L18 -> 674 | M19: =(($A19-$A18)*((EXP((1/(($B19*('Thermal age Table'!$F$5*0.8))+('Thermal age Table'!$E$5-1)+273.15))*((-'Thermal age Table'!$L$5*1000)/8.3144598)+'Thermal age Table'!$M$5))/(EXP((1/(283.15))*((-'Thermal age Table'!$L$5*1000)/8.3144598)+'Thermal age Table'!$M$5))))+N18 -> 818 | N19: =(($A19-$A18)*((EXP((1/(($B19*('Thermal age Table'!$F$5*1.2))+('Thermal age Table'!$E$5+1)+273.15))*((-'Thermal age Table'!$L$5*1000)/8.3144598)+'Thermal age Table'!$M$5))/(EXP((1/(283.15))*((-'Thermal age Table'!$L$5*1000)/8.3144598)+'Thermal age Table'!$M$5))))+N18 -> 835 | O19: =('Thermal age Table'!$E$7)+($B19*O$4) -> 8 | P19: =(($A19-$A18)*((EXP((1/(($B19*'Thermal age Table'!$F$7)+'Thermal age Table'!$E$7+273.15))*((-'Thermal age Table'!$L$7*1000)/8.3144598)+'Thermal age Table'!$M$7))/(EXP((1/(283.15))*((-'Thermal age Table'!$L$7*1000)/8.3144598)+'Thermal age Table'!$M$7))))+P18 -> 9,270 | Q19: =(($A19-$A18)*((EXP((1/(($B19*('Thermal age Table'!$F$7*0.8))+('Thermal age Table'!$E$7-1)+273.15))*((-'Thermal age Table'!$L$7*1000)/8.3144598)+'Thermal age Table'!$M$7))/(EXP((1/(283.15))*((-'Thermal age Table'!$L$7*1000)/8.3144598)+'Thermal age Table'!$M$7))))+Q18 -> 7,063 | R19: =(($A19-$A18)*((EXP((1/(($B19*('Thermal age Table'!$F$7*1.2))+('Thermal age Table'!$E$7+1)+273.15))*((-'Thermal age Table'!$L$7*1000)/8.3144598)+'Thermal age Table'!$M$7))/(EXP((1/(283.15))*((-'Thermal age Table'!$L$7*1000)/8.3144598)+'Thermal age Table'!$M$7))))+R18 -> 12,149 | S19: =('Thermal age Table'!$E$8)+($B19*S$4) -> 9 | T19: =(($A19-$A18)*((EXP((1/(($B19*'Thermal age Table'!$F$8)+'Thermal age Table'!$E$8+273.15))*((-'Thermal age Table'!$L$8*1000)/8.3144598)+'Thermal age Table'!$M$8))/(EXP((1/(283.15))*((-'Thermal age Table'!$L$8*1000)/8.3144598)+'Thermal age Table'!$M$8))))+T18 -> 10,334 | U19: =(($A19-$A18)*((EXP((1/(($B19*('Thermal age Table'!$F$8*0.8))+('Thermal age Table'!$E$8-1)+273.15))*((-'Thermal age Table'!$L$8*1000)/8.3144598)+'Thermal age Table'!$M$8))/(EXP((1/(283.15))*((-'Thermal age Table'!$L$8*1000)/8.3144598)+'Thermal age Table'!$M$8))))+U18 -> 8,504 | V19: =(($A19-$A18)*((EXP((1/(($B19*('Thermal age Table'!$F$8*1.2))+('Thermal age Table'!$E$8+1)+273.15))*((-'Thermal age Table'!$L$8*1000)/8.3144598)+'Thermal age Table'!$M$8))/(EXP((1/(283.15))*((-'Thermal age Table'!$L$8*1000)/8.3144598)+'Thermal age Table'!$M$8))))+V18 -> 12,541 | W19: =('Thermal age Table'!$E$9+($B19*W$4)) -> 15 | X19: =(($A19-$A18)*((EXP((1/(($B19*'Thermal age Table'!$F$9)+'Thermal age Table'!$E$9+273.15))*((-'Thermal age Table'!$L$9*1000)/8.3144598)+'Thermal age Table'!$M$9))/(EXP((1/(283.15))*((-'Thermal age Table'!$L$9*1000)/8.3144598)+'Thermal age Table'!$M$9))))+X18 -> 30,515 | Y19: =(($A19-$A18)*((EXP((1/(($B19*('Thermal age Table'!$F$9*0.8))+('Thermal age Table'!$E$9-1)+273.15))*((-'Thermal age Table'!$L$9*1000)/8.3144598)+'Thermal age Table'!$M$9))/(EXP((1/(283.15))*((-'Thermal age Table'!$L$9*1000)/8.3144598)+'Thermal age Table'!$M$9))))+Y18 -> 25,657 | Z19: =(($A19-$A18)*((EXP((1/(($B19*('Thermal age Table'!$F$9*1.2))+('Thermal age Table'!$E$9+1)+273.15))*((-'Thermal age Table'!$L$9*1000)/8.3144598)+'Thermal age Table'!$M$9))/(EXP((1/(283.15))*((-'Thermal age Table'!$L$9*1000)/8.3144598)+'Thermal age Table'!$M$9))))+Z18 -> 36,249 | AA19: =('Thermal age Table'!$E$10+($B19*AA$4)) -> 17 | AB19: =(($A19-$A18)*((EXP((1/(($B19*'Thermal age Table'!$F$10)+'Thermal age Table'!$E$10+273.15))*((-'Thermal age Table'!$L$10*1000)/8.3144598)+'Thermal age Table'!$M$10))/(EXP((1/(283.15))*((-'Thermal age Table'!$L$10*1000)/8.3144598)+'Thermal age Table'!$M$10))))+AB18 -> 44,976 | AC19: =(($A19-$A18)*((EXP((1/(($B19*('Thermal age Table'!$F$10*0.8))+('Thermal age Table'!$E$10-1)+273.15))*((-'Thermal age Table'!$L$10*1000)/8.3144598)+'Thermal age Table'!$M$10))/(EXP((1/(283.15))*((-'Thermal age Table'!$L$9*1000)/8.3144598)+'Thermal age Table'!$M$10))))+AC18 -> 37,920 | AD19: =(($A19-$A18)*((EXP((1/(($B19*('Thermal age Table'!$F$10*1.2))+('Thermal age Table'!$E$10+1)+273.15))*((-'Thermal age Table'!$L$10*1000)/8.3144598)+'Thermal age Table'!$M$10))/(EXP((1/(283.15))*((-'Thermal age Table'!$L$10*1000)/8.3144598)+'Thermal age Table'!$M$10))))+AD18 -> 53,283 | AE19: =('Thermal age Table'!$E$11+($B19*AE$4)) -> 18 | AF19: =(($A19-$A18)*((EXP((1/(($B19*'Thermal age Table'!$F$11)+'Thermal age Table'!$E$11+273.15))*((-'Thermal age Table'!$L$11*1000)/8.3144598)+'Thermal age Table'!$M$11))/(EXP((1/(283.15))*((-'Thermal age Table'!$L$11*1000)/8.3144598)+'Thermal age Table'!$M$11))))+AF18 -> 49,450 | AG19: =(($A19-$A18)*((EXP((1/(($B19*('Thermal age Table'!$F$11*0.8))+('Thermal age Table'!$E$11-1)+273.15))*((-'Thermal age Table'!$L$11*1000)/8.3144598)+'Thermal age Table'!$M$11))/(EXP((1/(283.15))*((-'Thermal age Table'!$L$11*1000)/8.3144598)+'Thermal age Table'!$M$11))))+AG18 -> 41,769 | AH19: =(($A19-$A18)*((EXP((1/(($B19*('Thermal age Table'!$F$11*1.2))+('Thermal age Table'!$E$11+1)+273.15))*((-'Thermal age Table'!$L$11*1000)/8.3144598)+'Thermal age Table'!$M$11))/(EXP((1/(283.15))*((-'Thermal age Table'!$L$11*1000)/8.3144598)+'Thermal age Table'!$M$11))))+AH18 -> 58,478 | AI19: =('Thermal age Table'!$E$12+($B19*AI$4)) -> 18 | AJ19: =(($A19-$A18)*((EXP((1/(($B19*'Thermal age Table'!$F$12)+'Thermal age Table'!$E$12+273.15))*((-'Thermal age Table'!$L$12*1000)/8.3144598)+'Thermal age Table'!$M$12))/(EXP((1/(283.15))*((-'Thermal age Table'!$L$12*1000)/8.3144598)+'Thermal age Table'!$M$12))))+AJ18 -> 50,281 | AK19: =(($A19-$A18)*((EXP((1/(($B19*('Thermal age Table'!$F$12*0.8))+('Thermal age Table'!$E$12-1)+273.15))*((-'Thermal age Table'!$L$12*1000)/8.3144598)+'Thermal age Table'!$M$12))/(EXP((1/(283.15))*((-'Thermal age Table'!$L$12*1000)/8.3144598)+'Thermal age Table'!$M$12))))+AK18 -> 42,475 | AL19: =(($A19-$A18)*((EXP((1/(($B19*('Thermal age Table'!$F$12*1.2))+('Thermal age Table'!$E$12+1)+273.15))*((-'Thermal age Table'!$L$12*1000)/8.3144598)+'Thermal age Table'!$M$12))/(EXP((1/(283.15))*((-'Thermal age Table'!$L$12*1000)/8.3144598)+'Thermal age Table'!$M$12))))+AL18 -> 59,454 | AM19: =('Thermal age Table'!$E$13+($B19*AM$4)) -> 11 | AN19: =(($A19-$A18)*((EXP((1/(($B19*'Thermal age Table'!$F$13)+'Thermal age Table'!$E$13+273.15))*((-'Thermal age Table'!$L$13*1000)/8.3144598)+'Thermal age Table'!$M$13))/(EXP((1/(283.15))*((-'Thermal age Table'!$L$13*1000)/8.3144598)+'Thermal age Table'!$M$13))))+AN18 -> 13,838 | AO19: =(($A19-$A18)*((EXP((1/(($B19*('Thermal age Table'!$F$13*0.8))+('Thermal age Table'!$E$13-1)+273.15))*((-'Thermal age Table'!$L$13*1000)/8.3144598)+'Thermal age Table'!$M$13))/(EXP((1/(283.15))*((-'Thermal age Table'!$L$13*1000)/8.3144598)+'Thermal age Table'!$M$13))))+AO18 -> 11,603 | AP19: =(($A19-$A18)*((EXP((1/(($B19*('Thermal age Table'!$F$13*1.2))+('Thermal age Table'!$E$13+1)+273.15))*((-'Thermal age Table'!$L$13*1000)/8.3144598)+'Thermal age Table'!$M$13))/(EXP((1/(283.15))*((-'Thermal age Table'!$L$13*1000)/8.3144598)+'Thermal age Table'!$M$13))))+AP18 -> 16,483 | AQ19: =('Thermal age Table'!$E$14+($B19*AQ$4)) -> 26 | AR19: =(($A19-$A18)*((EXP((1/(($B19*'Thermal age Table'!$F$14)+'Thermal age Table'!$E$14+273.15))*((-'Thermal age Table'!$L$14*1000)/8.3144598)+'Thermal age Table'!$M$14))/(EXP((1/(283.15))*((-'Thermal age Table'!$L$14*1000)/8.3144598)+'Thermal age Table'!$M$14))))+AR18 -> 164,663 | AS19: =(($A19-$A18)*((EXP((1/(($B19*('Thermal age Table'!$F$14*0.8))+('Thermal age Table'!$E$14-1)+273.15))*((-'Thermal age Table'!$L$14*1000)/8.3144598)+'Thermal age Table'!$M$14))/(EXP((1/(283.15))*((-'Thermal age Table'!$L$14*1000)/8.3144598)+'Thermal age Table'!$M$14))))+AS18 -> 140,239 | AT19: =(($A19-$A18)*((EXP((1/(($B19*('Thermal age Table'!$F$14*1.2))+('Thermal age Table'!$E$14+1)+273.15))*((-'Thermal age Table'!$L$14*1000)/8.3144598)+'Thermal age Table'!$M$14))/(EXP((1/(283.15))*((-'Thermal age Table'!$L$14*1000)/8.3144598)+'Thermal age Table'!$M$14))))+AT18 -> 193,137 | AU19: =('Thermal age Table'!$E$15+($B19*AU$4)) -> 22 | AV19: =(($A19-$A18)*((EXP((1/(($B19*'Thermal age Table'!$F$15)+'Thermal age Table'!$E$15+273.15))*((-'Thermal age Table'!$L$15*1000)/8.3144598)+'Thermal age Table'!$M$15))/(EXP((1/(283.15))*((-'Thermal age Table'!$L$15*1000)/8.3144598)+'Thermal age Table'!$M$15))))+AV18 -> 85,298 | AW19: =(($A19-$A18)*((EXP((1/(($B19*('Thermal age Table'!$F$15*0.8))+('Thermal age Table'!$E$15-1)+273.15))*((-'Thermal age Table'!$L$15*1000)/8.3144598)+'Thermal age Table'!$M$15))/(EXP((1/(283.15))*((-'Thermal age Table'!$L$15*1000)/8.3144598)+'Thermal age Table'!$M$15))))+AW18 -> 72,300 | AX19: =(($A19-$A18)*((EXP((1/(($B19*('Thermal age Table'!$F$15*1.2))+('Thermal age Table'!$E$15+1)+273.15))*((-'Thermal age Table'!$L$15*1000)/8.3144598)+'Thermal age Table'!$M$15))/(EXP((1/(283.15))*((-'Thermal age Table'!$L$15*1000)/8.3144598)+'Thermal age Table'!$M$15))))+AX18 -> 100,521
A20: 11,800 | B20: -0.79 | C20: =('Thermal age Table'!$E$2)+($B20*C$4) -> -24 | D20: =(($A20-$A19)*((EXP((1/(($B20*'Thermal age Table'!$F$2)+'Thermal age Table'!$E$2+273.15))*((-'Thermal age Table'!$L$2*1000)/8.3144598)+'Thermal age Table'!$M$2))/(EXP((1/(283.15))*((-'Thermal age Table'!$L$2*1000)/8.3144598)+'Thermal age Table'!$M$2))))+D19 -> 2 | E20: =(($A20-$A19)*((EXP((1/(($B20*('Thermal age Table'!$F$2*0.8))+('Thermal age Table'!$E$2-1)+273.15))*((-'Thermal age Table'!$L$2*1000)/8.3144598)+'Thermal age Table'!$M$2))/(EXP((1/(283.15))*((-'Thermal age Table'!$L$2*1000)/8.3144598)+'Thermal age Table'!$M$2))))+E19 -> 2 | F20: =(($A20-$A19)*((EXP((1/(($B20*('Thermal age Table'!$F$2*1.2))+('Thermal age Table'!$E$2+1)+273.15))*((-'Thermal age Table'!$L$2*1000)/8.3144598)+'Thermal age Table'!$M$2))/(EXP((1/(283.15))*((-'Thermal age Table'!$L$2*1000)/8.3144598)+'Thermal age Table'!$M$2))))+F19 -> 4 | G20: =('Thermal age Table'!$E$4+($B20*G$4)) -> -9 | H20: =(($A20-$A19)*((EXP((1/(($B20*'Thermal age Table'!$F$4)+'Thermal age Table'!$E$4+273.15))*((-'Thermal age Table'!$L$4*1000)/8.3144598)+'Thermal age Table'!$M$4))/(EXP((1/(283.15))*((-'Thermal age Table'!$L$4*1000)/8.3144598)+'Thermal age Table'!$M$4))))+H19 -> 461 | I20: =(($A20-$A19)*((EXP((1/(($B20*('Thermal age Table'!$F$4*0.8))+('Thermal age Table'!$E$4-1)+273.15))*((-'Thermal age Table'!$L$4*1000)/8.3144598)+'Thermal age Table'!$M$4))/(EXP((1/(283.15))*((-'Thermal age Table'!$L$4*1000)/8.3144598)+'Thermal age Table'!$M$4))))+I19 -> 367 | J20: =(($A20-$A19)*((EXP((1/(($B20*('Thermal age Table'!$F$4*1.2))+('Thermal age Table'!$E$4+1)+273.15))*((-'Thermal age Table'!$L$4*1000)/8.3144598)+'Thermal age Table'!$M$4))/(EXP((1/(283.15))*((-'Thermal age Table'!$L$4*1000)/8.3144598)+'Thermal age Table'!$M$4))))+J19 -> 580 | K20: =('Thermal age Table'!$E$5+($B20*K$4)) -> -5 | L20: =(($A20-$A19)*((EXP((1/(($B20*'Thermal age Table'!$F$5)+'Thermal age Table'!$E$5+273.15))*((-'Thermal age Table'!$L$5*1000)/8.3144598)+'Thermal age Table'!$M$5))/(EXP((1/(283.15))*((-'Thermal age Table'!$L$5*1000)/8.3144598)+'Thermal age Table'!$M$5))))+L19 -> 704 | M20: =(($A20-$A19)*((EXP((1/(($B20*('Thermal age Table'!$F$5*0.8))+('Thermal age Table'!$E$5-1)+273.15))*((-'Thermal age Table'!$L$5*1000)/8.3144598)+'Thermal age Table'!$M$5))/(EXP((1/(283.15))*((-'Thermal age Table'!$L$5*1000)/8.3144598)+'Thermal age Table'!$M$5))))+N19 -> 860 | N20: =(($A20-$A19)*((EXP((1/(($B20*('Thermal age Table'!$F$5*1.2))+('Thermal age Table'!$E$5+1)+273.15))*((-'Thermal age Table'!$L$5*1000)/8.3144598)+'Thermal age Table'!$M$5))/(EXP((1/(283.15))*((-'Thermal age Table'!$L$5*1000)/8.3144598)+'Thermal age Table'!$M$5))))+N19 -> 870 | O20: =('Thermal age Table'!$E$7)+($B20*O$4) -> 8 | P20: =(($A20-$A19)*((EXP((1/(($B20*'Thermal age Table'!$F$7)+'Thermal age Table'!$E$7+273.15))*((-'Thermal age Table'!$L$7*1000)/8.3144598)+'Thermal age Table'!$M$7))/(EXP((1/(283.15))*((-'Thermal age Table'!$L$7*1000)/8.3144598)+'Thermal age Table'!$M$7))))+P19 -> 9,584 | Q20: =(($A20-$A19)*((EXP((1/(($B20*('Thermal age Table'!$F$7*0.8))+('Thermal age Table'!$E$7-1)+273.15))*((-'Thermal age Table'!$L$7*1000)/8.3144598)+'Thermal age Table'!$M$7))/(EXP((1/(283.15))*((-'Thermal age Table'!$L$7*1000)/8.3144598)+'Thermal age Table'!$M$7))))+Q19 -> 7,325 | R20: =(($A20-$A19)*((EXP((1/(($B20*('Thermal age Table'!$F$7*1.2))+('Thermal age Table'!$E$7+1)+273.15))*((-'Thermal age Table'!$L$7*1000)/8.3144598)+'Thermal age Table'!$M$7))/(EXP((1/(283.15))*((-'Thermal age Table'!$L$7*1000)/8.3144598)+'Thermal age Table'!$M$7))))+R19 -> 12,525 | S20: =('Thermal age Table'!$E$8)+($B20*S$4) -> 9 | T20: =(($A20-$A19)*((EXP((1/(($B20*'Thermal age Table'!$F$8)+'Thermal age Table'!$E$8+273.15))*((-'Thermal age Table'!$L$8*1000)/8.3144598)+'Thermal age Table'!$M$8))/(EXP((1/(283.15))*((-'Thermal age Table'!$L$8*1000)/8.3144598)+'Thermal age Table'!$M$8))))+T19 -> 10,803 | U20: =(($A20-$A19)*((EXP((1/(($B20*('Thermal age Table'!$F$8*0.8))+('Thermal age Table'!$E$8-1)+273.15))*((-'Thermal age Table'!$L$8*1000)/8.3144598)+'Thermal age Table'!$M$8))/(EXP((1/(283.15))*((-'Thermal age Table'!$L$8*1000)/8.3144598)+'Thermal age Table'!$M$8))))+U19 -> 8,902 | V20: =(($A20-$A19)*((EXP((1/(($B20*('Thermal age Table'!$F$8*1.2))+('Thermal age Table'!$E$8+1)+273.15))*((-'Thermal age Table'!$L$8*1000)/8.3144598)+'Thermal age Table'!$M$8))/(EXP((1/(283.15))*((-'Thermal age Table'!$L$8*1000)/8.3144598)+'Thermal age Table'!$M$8))))+V19 -> 13,092 | W20: =('Thermal age Table'!$E$9+($B20*W$4)) -> 15 | X20: =(($A20-$A19)*((EXP((1/(($B20*'Thermal age Table'!$F$9)+'Thermal age Table'!$E$9+273.15))*((-'Thermal age Table'!$L$9*1000)/8.3144598)+'Thermal age Table'!$M$9))/(EXP((1/(283.15))*((-'Thermal age Table'!$L$9*1000)/8.3144598)+'Thermal age Table'!$M$9))))+X19 -> 31,924 | Y20: =(($A20-$A19)*((EXP((1/(($B20*('Thermal age Table'!$F$9*0.8))+('Thermal age Table'!$E$9-1)+273.15))*((-'Thermal age Table'!$L$9*1000)/8.3144598)+'Thermal age Table'!$M$9))/(EXP((1/(283.15))*((-'Thermal age Table'!$L$9*1000)/8.3144598)+'Thermal age Table'!$M$9))))+Y19 -> 26,878 | Z20: =(($A20-$A19)*((EXP((1/(($B20*('Thermal age Table'!$F$9*1.2))+('Thermal age Table'!$E$9+1)+273.15))*((-'Thermal age Table'!$L$9*1000)/8.3144598)+'Thermal age Table'!$M$9))/(EXP((1/(283.15))*((-'Thermal age Table'!$L$9*1000)/8.3144598)+'Thermal age Table'!$M$9))))+Z19 -> 37,877 | AA20: =('Thermal age Table'!$E$10+($B20*AA$4)) -> 17 | AB20: =(($A20-$A19)*((EXP((1/(($B20*'Thermal age Table'!$F$10)+'Thermal age Table'!$E$10+273.15))*((-'Thermal age Table'!$L$10*1000)/8.3144598)+'Thermal age Table'!$M$10))/(EXP((1/(283.15))*((-'Thermal age Table'!$L$10*1000)/8.3144598)+'Thermal age Table'!$M$10))))+AB19 -> 47,059 | AC20: =(($A20-$A19)*((EXP((1/(($B20*('Thermal age Table'!$F$10*0.8))+('Thermal age Table'!$E$10-1)+273.15))*((-'Thermal age Table'!$L$10*1000)/8.3144598)+'Thermal age Table'!$M$10))/(EXP((1/(283.15))*((-'Thermal age Table'!$L$9*1000)/8.3144598)+'Thermal age Table'!$M$10))))+AC19 -> 39,727 | AD20: =(($A20-$A19)*((EXP((1/(($B20*('Thermal age Table'!$F$10*1.2))+('Thermal age Table'!$E$10+1)+273.15))*((-'Thermal age Table'!$L$10*1000)/8.3144598)+'Thermal age Table'!$M$10))/(EXP((1/(283.15))*((-'Thermal age Table'!$L$10*1000)/8.3144598)+'Thermal age Table'!$M$10))))+AD19 -> 55,683 | AE20: =('Thermal age Table'!$E$11+($B20*AE$4)) -> 18 | AF20: =(($A20-$A19)*((EXP((1/(($B20*'Thermal age Table'!$F$11)+'Thermal age Table'!$E$11+273.15))*((-'Thermal age Table'!$L$11*1000)/8.3144598)+'Thermal age Table'!$M$11))/(EXP((1/(283.15))*((-'Thermal age Table'!$L$11*1000)/8.3144598)+'Thermal age Table'!$M$11))))+AF19 -> 51,879 | AG20: =(($A20-$A19)*((EXP((1/(($B20*('Thermal age Table'!$F$11*0.8))+('Thermal age Table'!$E$11-1)+273.15))*((-'Thermal age Table'!$L$11*1000)/8.3144598)+'Thermal age Table'!$M$11))/(EXP((1/(283.15))*((-'Thermal age Table'!$L$11*1000)/8.3144598)+'Thermal age Table'!$M$11))))+AG19 -> 43,855 | AH20: =(($A20-$A19)*((EXP((1/(($B20*('Thermal age Table'!$F$11*1.2))+('Thermal age Table'!$E$11+1)+273.15))*((-'Thermal age Table'!$L$11*1000)/8.3144598)+'Thermal age Table'!$M$11))/(EXP((1/(283.15))*((-'Thermal age Table'!$L$11*1000)/8.3144598)+'Thermal age Table'!$M$11))))+AH19 -> 61,303 | AI20: =('Thermal age Table'!$E$12+($B20*AI$4)) -> 18 | AJ20: =(($A20-$A19)*((EXP((1/(($B20*'Thermal age Table'!$F$12)+'Thermal age Table'!$E$12+273.15))*((-'Thermal age Table'!$L$12*1000)/8.3144598)+'Thermal age Table'!$M$12))/(EXP((1/(283.15))*((-'Thermal age Table'!$L$12*1000)/8.3144598)+'Thermal age Table'!$M$12))))+AJ19 -> 52,751 | AK20: =(($A20-$A19)*((EXP((1/(($B20*('Thermal age Table'!$F$12*0.8))+('Thermal age Table'!$E$12-1)+273.15))*((-'Thermal age Table'!$L$12*1000)/8.3144598)+'Thermal age Table'!$M$12))/(EXP((1/(283.15))*((-'Thermal age Table'!$L$12*1000)/8.3144598)+'Thermal age Table'!$M$12))))+AK19 -> 44,597 | AL20: =(($A20-$A19)*((EXP((1/(($B20*('Thermal age Table'!$F$12*1.2))+('Thermal age Table'!$E$12+1)+273.15))*((-'Thermal age Table'!$L$12*1000)/8.3144598)+'Thermal age Table'!$M$12))/(EXP((1/(283.15))*((-'Thermal age Table'!$L$12*1000)/8.3144598)+'Thermal age Table'!$M$12))))+AL19 -> 62,326 | AM20: =('Thermal age Table'!$E$13+($B20*AM$4)) -> 11 | AN20: =(($A20-$A19)*((EXP((1/(($B20*'Thermal age Table'!$F$13)+'Thermal age Table'!$E$13+273.15))*((-'Thermal age Table'!$L$13*1000)/8.3144598)+'Thermal age Table'!$M$13))/(EXP((1/(283.15))*((-'Thermal age Table'!$L$13*1000)/8.3144598)+'Thermal age Table'!$M$13))))+AN19 -> 14,580 | AO20: =(($A20-$A19)*((EXP((1/(($B20*('Thermal age Table'!$F$13*0.8))+('Thermal age Table'!$E$13-1)+273.15))*((-'Thermal age Table'!$L$13*1000)/8.3144598)+'Thermal age Table'!$M$13))/(EXP((1/(283.15))*((-'Thermal age Table'!$L$13*1000)/8.3144598)+'Thermal age Table'!$M$13))))+AO19 -> 12,225 | AP20: =(($A20-$A19)*((EXP((1/(($B20*('Thermal age Table'!$F$13*1.2))+('Thermal age Table'!$E$13+1)+273.15))*((-'Thermal age Table'!$L$13*1000)/8.3144598)+'Thermal age Table'!$M$13))/(EXP((1/(283.15))*((-'Thermal age Table'!$L$13*1000)/8.3144598)+'Thermal age Table'!$M$13))))+AP19 -> 17,366 | AQ20: =('Thermal age Table'!$E$14+($B20*AQ$4)) -> 26 | AR20: =(($A20-$A19)*((EXP((1/(($B20*'Thermal age Table'!$F$14)+'Thermal age Table'!$E$14+273.15))*((-'Thermal age Table'!$L$14*1000)/8.3144598)+'Thermal age Table'!$M$14))/(EXP((1/(283.15))*((-'Thermal age Table'!$L$14*1000)/8.3144598)+'Thermal age Table'!$M$14))))+AR19 -> 172,786 | AS20: =(($A20-$A19)*((EXP((1/(($B20*('Thermal age Table'!$F$14*0.8))+('Thermal age Table'!$E$14-1)+273.15))*((-'Thermal age Table'!$L$14*1000)/8.3144598)+'Thermal age Table'!$M$14))/(EXP((1/(283.15))*((-'Thermal age Table'!$L$14*1000)/8.3144598)+'Thermal age Table'!$M$14))))+AS19 -> 147,269 | AT20: =(($A20-$A19)*((EXP((1/(($B20*('Thermal age Table'!$F$14*1.2))+('Thermal age Table'!$E$14+1)+273.15))*((-'Thermal age Table'!$L$14*1000)/8.3144598)+'Thermal age Table'!$M$14))/(EXP((1/(283.15))*((-'Thermal age Table'!$L$14*1000)/8.3144598)+'Thermal age Table'!$M$14))))+AT19 -> 202,514 | AU20: =('Thermal age Table'!$E$15+($B20*AU$4)) -> 21 | AV20: =(($A20-$A19)*((EXP((1/(($B20*'Thermal age Table'!$F$15)+'Thermal age Table'!$E$15+273.15))*((-'Thermal age Table'!$L$15*1000)/8.3144598)+'Thermal age Table'!$M$15))/(EXP((1/(283.15))*((-'Thermal age Table'!$L$15*1000)/8.3144598)+'Thermal age Table'!$M$15))))+AV19 -> 89,437 | AW20: =(($A20-$A19)*((EXP((1/(($B20*('Thermal age Table'!$F$15*0.8))+('Thermal age Table'!$E$15-1)+273.15))*((-'Thermal age Table'!$L$15*1000)/8.3144598)+'Thermal age Table'!$M$15))/(EXP((1/(283.15))*((-'Thermal age Table'!$L$15*1000)/8.3144598)+'Thermal age Table'!$M$15))))+AW19 -> 75,877 | AX20: =(($A20-$A19)*((EXP((1/(($B20*('Thermal age Table'!$F$15*1.2))+('Thermal age Table'!$E$15+1)+273.15))*((-'Thermal age Table'!$L$15*1000)/8.3144598)+'Thermal age Table'!$M$15))/(EXP((1/(283.15))*((-'Thermal age Table'!$L$15*1000)/8.3144598)+'Thermal age Table'!$M$15))))+AX19 -> 105,306
A21: 12,800 | B21: -1.16 | C21: =('Thermal age Table'!$E$2)+($B21*C$4) -> -26 | D21: =(($A21-$A20)*((EXP((1/(($B21*'Thermal age Table'!$F$2)+'Thermal age Table'!$E$2+273.15))*((-'Thermal age Table'!$L$2*1000)/8.3144598)+'Thermal age Table'!$M$2))/(EXP((1/(283.15))*((-'Thermal age Table'!$L$2*1000)/8.3144598)+'Thermal age Table'!$M$2))))+D20 -> 2 | E21: =(($A21-$A20)*((EXP((1/(($B21*('Thermal age Table'!$F$2*0.8))+('Thermal age Table'!$E$2-1)+273.15))*((-'Thermal age Table'!$L$2*1000)/8.3144598)+'Thermal age Table'!$M$2))/(EXP((1/(283.15))*((-'Thermal age Table'!$L$2*1000)/8.3144598)+'Thermal age Table'!$M$2))))+E20 -> 2 | F21: =(($A21-$A20)*((EXP((1/(($B21*('Thermal age Table'!$F$2*1.2))+('Thermal age Table'!$E$2+1)+273.15))*((-'Thermal age Table'!$L$2*1000)/8.3144598)+'Thermal age Table'!$M$2))/(EXP((1/(283.15))*((-'Thermal age Table'!$L$2*1000)/8.3144598)+'Thermal age Table'!$M$2))))+F20 -> 4 | G21: =('Thermal age Table'!$E$4+($B21*G$4)) -> -11 | H21: =(($A21-$A20)*((EXP((1/(($B21*'Thermal age Table'!$F$4)+'Thermal age Table'!$E$4+273.15))*((-'Thermal age Table'!$L$4*1000)/8.3144598)+'Thermal age Table'!$M$4))/(EXP((1/(283.15))*((-'Thermal age Table'!$L$4*1000)/8.3144598)+'Thermal age Table'!$M$4))))+H20 -> 475 | I21: =(($A21-$A20)*((EXP((1/(($B21*('Thermal age Table'!$F$4*0.8))+('Thermal age Table'!$E$4-1)+273.15))*((-'Thermal age Table'!$L$4*1000)/8.3144598)+'Thermal age Table'!$M$4))/(EXP((1/(283.15))*((-'Thermal age Table'!$L$4*1000)/8.3144598)+'Thermal age Table'!$M$4))))+I20 -> 380 | J21: =(($A21-$A20)*((EXP((1/(($B21*('Thermal age Table'!$F$4*1.2))+('Thermal age Table'!$E$4+1)+273.15))*((-'Thermal age Table'!$L$4*1000)/8.3144598)+'Thermal age Table'!$M$4))/(EXP((1/(283.15))*((-'Thermal age Table'!$L$4*1000)/8.3144598)+'Thermal age Table'!$M$4))))+J20 -> 594 | K21: =('Thermal age Table'!$E$5+($B21*K$4)) -> -5 | L21: =(($A21-$A20)*((EXP((1/(($B21*'Thermal age Table'!$F$5)+'Thermal age Table'!$E$5+273.15))*((-'Thermal age Table'!$L$5*1000)/8.3144598)+'Thermal age Table'!$M$5))/(EXP((1/(283.15))*((-'Thermal age Table'!$L$5*1000)/8.3144598)+'Thermal age Table'!$M$5))))+L20 -> 750 | M21: =(($A21-$A20)*((EXP((1/(($B21*('Thermal age Table'!$F$5*0.8))+('Thermal age Table'!$E$5-1)+273.15))*((-'Thermal age Table'!$L$5*1000)/8.3144598)+'Thermal age Table'!$M$5))/(EXP((1/(283.15))*((-'Thermal age Table'!$L$5*1000)/8.3144598)+'Thermal age Table'!$M$5))))+N20 -> 910 | N21: =(($A21-$A20)*((EXP((1/(($B21*('Thermal age Table'!$F$5*1.2))+('Thermal age Table'!$E$5+1)+273.15))*((-'Thermal age Table'!$L$5*1000)/8.3144598)+'Thermal age Table'!$M$5))/(EXP((1/(283.15))*((-'Thermal age Table'!$L$5*1000)/8.3144598)+'Thermal age Table'!$M$5))))+N20 -> 925 | O21: =('Thermal age Table'!$E$7)+($B21*O$4) -> 7 | P21: =(($A21-$A20)*((EXP((1/(($B21*'Thermal age Table'!$F$7)+'Thermal age Table'!$E$7+273.15))*((-'Thermal age Table'!$L$7*1000)/8.3144598)+'Thermal age Table'!$M$7))/(EXP((1/(283.15))*((-'Thermal age Table'!$L$7*1000)/8.3144598)+'Thermal age Table'!$M$7))))+P20 -> 10,013 | Q21: =(($A21-$A20)*((EXP((1/(($B21*('Thermal age Table'!$F$7*0.8))+('Thermal age Table'!$E$7-1)+273.15))*((-'Thermal age Table'!$L$7*1000)/8.3144598)+'Thermal age Table'!$M$7))/(EXP((1/(283.15))*((-'Thermal age Table'!$L$7*1000)/8.3144598)+'Thermal age Table'!$M$7))))+Q20 -> 7,697 | R21: =(($A21-$A20)*((EXP((1/(($B21*('Thermal age Table'!$F$7*1.2))+('Thermal age Table'!$E$7+1)+273.15))*((-'Thermal age Table'!$L$7*1000)/8.3144598)+'Thermal age Table'!$M$7))/(EXP((1/(283.15))*((-'Thermal age Table'!$L$7*1000)/8.3144598)+'Thermal age Table'!$M$7))))+R20 -> 13,020 | S21: =('Thermal age Table'!$E$8)+($B21*S$4) -> 8 | T21: =(($A21-$A20)*((EXP((1/(($B21*'Thermal age Table'!$F$8)+'Thermal age Table'!$E$8+273.15))*((-'Thermal age Table'!$L$8*1000)/8.3144598)+'Thermal age Table'!$M$8))/(EXP((1/(283.15))*((-'Thermal age Table'!$L$8*1000)/8.3144598)+'Thermal age Table'!$M$8))))+T20 -> 11,530 | U21: =(($A21-$A20)*((EXP((1/(($B21*('Thermal age Table'!$F$8*0.8))+('Thermal age Table'!$E$8-1)+273.15))*((-'Thermal age Table'!$L$8*1000)/8.3144598)+'Thermal age Table'!$M$8))/(EXP((1/(283.15))*((-'Thermal age Table'!$L$8*1000)/8.3144598)+'Thermal age Table'!$M$8))))+U20 -> 9,529 | V21: =(($A21-$A20)*((EXP((1/(($B21*('Thermal age Table'!$F$8*1.2))+('Thermal age Table'!$E$8+1)+273.15))*((-'Thermal age Table'!$L$8*1000)/8.3144598)+'Thermal age Table'!$M$8))/(EXP((1/(283.15))*((-'Thermal age Table'!$L$8*1000)/8.3144598)+'Thermal age Table'!$M$8))))+V20 -> 13,935 | W21: =('Thermal age Table'!$E$9+($B21*W$4)) -> 15 | X21: =(($A21-$A20)*((EXP((1/(($B21*'Thermal age Table'!$F$9)+'Thermal age Table'!$E$9+273.15))*((-'Thermal age Table'!$L$9*1000)/8.3144598)+'Thermal age Table'!$M$9))/(EXP((1/(283.15))*((-'Thermal age Table'!$L$9*1000)/8.3144598)+'Thermal age Table'!$M$9))))+X20 -> 34,130 | Y21: =(($A21-$A20)*((EXP((1/(($B21*('Thermal age Table'!$F$9*0.8))+('Thermal age Table'!$E$9-1)+273.15))*((-'Thermal age Table'!$L$9*1000)/8.3144598)+'Thermal age Table'!$M$9))/(EXP((1/(283.15))*((-'Thermal age Table'!$L$9*1000)/8.3144598)+'Thermal age Table'!$M$9))))+Y20 -> 28,810 | Z21: =(($A21-$A20)*((EXP((1/(($B21*('Thermal age Table'!$F$9*1.2))+('Thermal age Table'!$E$9+1)+273.15))*((-'Thermal age Table'!$L$9*1000)/8.3144598)+'Thermal age Table'!$M$9))/(EXP((1/(283.15))*((-'Thermal age Table'!$L$9*1000)/8.3144598)+'Thermal age Table'!$M$9))))+Z20 -> 40,392 | AA21: =('Thermal age Table'!$E$10+($B21*AA$4)) -> 17 | AB21: =(($A21-$A20)*((EXP((1/(($B21*'Thermal age Table'!$F$10)+'Thermal age Table'!$E$10+273.15))*((-'Thermal age Table'!$L$10*1000)/8.3144598)+'Thermal age Table'!$M$10))/(EXP((1/(283.15))*((-'Thermal age Table'!$L$10*1000)/8.3144598)+'Thermal age Table'!$M$10))))+AB20 -> 50,320 | AC21: =(($A21-$A20)*((EXP((1/(($B21*('Thermal age Table'!$F$10*0.8))+('Thermal age Table'!$E$10-1)+273.15))*((-'Thermal age Table'!$L$10*1000)/8.3144598)+'Thermal age Table'!$M$10))/(EXP((1/(283.15))*((-'Thermal age Table'!$L$9*1000)/8.3144598)+'Thermal age Table'!$M$10))))+AC20 -> 42,591 | AD21: =(($A21-$A20)*((EXP((1/(($B21*('Thermal age Table'!$F$10*1.2))+('Thermal age Table'!$E$10+1)+273.15))*((-'Thermal age Table'!$L$10*1000)/8.3144598)+'Thermal age Table'!$M$10))/(EXP((1/(283.15))*((-'Thermal age Table'!$L$10*1000)/8.3144598)+'Thermal age Table'!$M$10))))+AD20 -> 59,394 | AE21: =('Thermal age Table'!$E$11+($B21*AE$4)) -> 18 | AF21: =(($A21-$A20)*((EXP((1/(($B21*'Thermal age Table'!$F$11)+'Thermal age Table'!$E$11+273.15))*((-'Thermal age Table'!$L$11*1000)/8.3144598)+'Thermal age Table'!$M$11))/(EXP((1/(283.15))*((-'Thermal age Table'!$L$11*1000)/8.3144598)+'Thermal age Table'!$M$11))))+AF20 -> 55,780 | AG21: =(($A21-$A20)*((EXP((1/(($B21*('Thermal age Table'!$F$11*0.8))+('Thermal age Table'!$E$11-1)+273.15))*((-'Thermal age Table'!$L$11*1000)/8.3144598)+'Thermal age Table'!$M$11))/(EXP((1/(283.15))*((-'Thermal age Table'!$L$11*1000)/8.3144598)+'Thermal age Table'!$M$11))))+AG20 -> 47,231 | AH21: =(($A21-$A20)*((EXP((1/(($B21*('Thermal age Table'!$F$11*1.2))+('Thermal age Table'!$E$11+1)+273.15))*((-'Thermal age Table'!$L$11*1000)/8.3144598)+'Thermal age Table'!$M$11))/(EXP((1/(283.15))*((-'Thermal age Table'!$L$11*1000)/8.3144598)+'Thermal age Table'!$M$11))))+AH20 -> 65,807 | AI21: =('Thermal age Table'!$E$12+($B21*AI$4)) -> 18 | AJ21: =(($A21-$A20)*((EXP((1/(($B21*'Thermal age Table'!$F$12)+'Thermal age Table'!$E$12+273.15))*((-'Thermal age Table'!$L$12*1000)/8.3144598)+'Thermal age Table'!$M$12))/(EXP((1/(283.15))*((-'Thermal age Table'!$L$12*1000)/8.3144598)+'Thermal age Table'!$M$12))))+AJ20 -> 56,718 | AK21: =(($A21-$A20)*((EXP((1/(($B21*('Thermal age Table'!$F$12*0.8))+('Thermal age Table'!$E$12-1)+273.15))*((-'Thermal age Table'!$L$12*1000)/8.3144598)+'Thermal age Table'!$M$12))/(EXP((1/(283.15))*((-'Thermal age Table'!$L$12*1000)/8.3144598)+'Thermal age Table'!$M$12))))+AK20 -> 48,030 | AL21: =(($A21-$A20)*((EXP((1/(($B21*('Thermal age Table'!$F$12*1.2))+('Thermal age Table'!$E$12+1)+273.15))*((-'Thermal age Table'!$L$12*1000)/8.3144598)+'Thermal age Table'!$M$12))/(EXP((1/(283.15))*((-'Thermal age Table'!$L$12*1000)/8.3144598)+'Thermal age Table'!$M$12))))+AL20 -> 66,905 | AM21: =('Thermal age Table'!$E$13+($B21*AM$4)) -> 11 | AN21: =(($A21-$A20)*((EXP((1/(($B21*'Thermal age Table'!$F$13)+'Thermal age Table'!$E$13+273.15))*((-'Thermal age Table'!$L$13*1000)/8.3144598)+'Thermal age Table'!$M$13))/(EXP((1/(283.15))*((-'Thermal age Table'!$L$13*1000)/8.3144598)+'Thermal age Table'!$M$13))))+AN20 -> 15,815 | AO21: =(($A21-$A20)*((EXP((1/(($B21*('Thermal age Table'!$F$13*0.8))+('Thermal age Table'!$E$13-1)+273.15))*((-'Thermal age Table'!$L$13*1000)/8.3144598)+'Thermal age Table'!$M$13))/(EXP((1/(283.15))*((-'Thermal age Table'!$L$13*1000)/8.3144598)+'Thermal age Table'!$M$13))))+AO20 -> 13,261 | AP21: =(($A21-$A20)*((EXP((1/(($B21*('Thermal age Table'!$F$13*1.2))+('Thermal age Table'!$E$13+1)+273.15))*((-'Thermal age Table'!$L$13*1000)/8.3144598)+'Thermal age Table'!$M$13))/(EXP((1/(283.15))*((-'Thermal age Table'!$L$13*1000)/8.3144598)+'Thermal age Table'!$M$13))))+AP20 -> 18,838 | AQ21: =('Thermal age Table'!$E$14+($B21*AQ$4)) -> 25 | AR21: =(($A21-$A20)*((EXP((1/(($B21*'Thermal age Table'!$F$14)+'Thermal age Table'!$E$14+273.15))*((-'Thermal age Table'!$L$14*1000)/8.3144598)+'Thermal age Table'!$M$14))/(EXP((1/(283.15))*((-'Thermal age Table'!$L$14*1000)/8.3144598)+'Thermal age Table'!$M$14))))+AR20 -> 185,854 | AS21: =(($A21-$A20)*((EXP((1/(($B21*('Thermal age Table'!$F$14*0.8))+('Thermal age Table'!$E$14-1)+273.15))*((-'Thermal age Table'!$L$14*1000)/8.3144598)+'Thermal age Table'!$M$14))/(EXP((1/(283.15))*((-'Thermal age Table'!$L$14*1000)/8.3144598)+'Thermal age Table'!$M$14))))+AS20 -> 158,657 | AT21: =(($A21-$A20)*((EXP((1/(($B21*('Thermal age Table'!$F$14*1.2))+('Thermal age Table'!$E$14+1)+273.15))*((-'Thermal age Table'!$L$14*1000)/8.3144598)+'Thermal age Table'!$M$14))/(EXP((1/(283.15))*((-'Thermal age Table'!$L$14*1000)/8.3144598)+'Thermal age Table'!$M$14))))+AT20 -> 217,497 | AU21: =('Thermal age Table'!$E$15+($B21*AU$4)) -> 21 | AV21: =(($A21-$A20)*((EXP((1/(($B21*'Thermal age Table'!$F$15)+'Thermal age Table'!$E$15+273.15))*((-'Thermal age Table'!$L$15*1000)/8.3144598)+'Thermal age Table'!$M$15))/(EXP((1/(283.15))*((-'Thermal age Table'!$L$15*1000)/8.3144598)+'Thermal age Table'!$M$15))))+AV20 -> 96,048 | AW21: =(($A21-$A20)*((EXP((1/(($B21*('Thermal age Table'!$F$15*0.8))+('Thermal age Table'!$E$15-1)+273.15))*((-'Thermal age Table'!$L$15*1000)/8.3144598)+'Thermal age Table'!$M$15))/(EXP((1/(283.15))*((-'Thermal age Table'!$L$15*1000)/8.3144598)+'Thermal age Table'!$M$15))))+AW20 -> 81,638 | AX21: =(($A21-$A20)*((EXP((1/(($B21*('Thermal age Table'!$F$15*1.2))+('Thermal age Table'!$E$15+1)+273.15))*((-'Thermal age Table'!$L$15*1000)/8.3144598)+'Thermal age Table'!$M$15))/(EXP((1/(283.15))*((-'Thermal age Table'!$L$15*1000)/8.3144598)+'Thermal age Table'!$M$15))))+AX20 -> 112,888
A22: 13,600 | B22: -1.32 | C22: =('Thermal age Table'!$E$2)+($B22*C$4) -> -26 | D22: =(($A22-$A21)*((EXP((1/(($B22*'Thermal age Table'!$F$2)+'Thermal age Table'!$E$2+273.15))*((-'Thermal age Table'!$L$2*1000)/8.3144598)+'Thermal age Table'!$M$2))/(EXP((1/(283.15))*((-'Thermal age Table'!$L$2*1000)/8.3144598)+'Thermal age Table'!$M$2))))+D21 -> 3 | E22: =(($A22-$A21)*((EXP((1/(($B22*('Thermal age Table'!$F$2*0.8))+('Thermal age Table'!$E$2-1)+273.15))*((-'Thermal age Table'!$L$2*1000)/8.3144598)+'Thermal age Table'!$M$2))/(EXP((1/(283.15))*((-'Thermal age Table'!$L$2*1000)/8.3144598)+'Thermal age Table'!$M$2))))+E21 -> 2 | F22: =(($A22-$A21)*((EXP((1/(($B22*('Thermal age Table'!$F$2*1.2))+('Thermal age Table'!$E$2+1)+273.15))*((-'Thermal age Table'!$L$2*1000)/8.3144598)+'Thermal age Table'!$M$2))/(EXP((1/(283.15))*((-'Thermal age Table'!$L$2*1000)/8.3144598)+'Thermal age Table'!$M$2))))+F21 -> 4 | G22: =('Thermal age Table'!$E$4+($B22*G$4)) -> -12 | H22: =(($A22-$A21)*((EXP((1/(($B22*'Thermal age Table'!$F$4)+'Thermal age Table'!$E$4+273.15))*((-'Thermal age Table'!$L$4*1000)/8.3144598)+'Thermal age Table'!$M$4))/(EXP((1/(283.15))*((-'Thermal age Table'!$L$4*1000)/8.3144598)+'Thermal age Table'!$M$4))))+H21 -> 484 | I22: =(($A22-$A21)*((EXP((1/(($B22*('Thermal age Table'!$F$4*0.8))+('Thermal age Table'!$E$4-1)+273.15))*((-'Thermal age Table'!$L$4*1000)/8.3144598)+'Thermal age Table'!$M$4))/(EXP((1/(283.15))*((-'Thermal age Table'!$L$4*1000)/8.3144598)+'Thermal age Table'!$M$4))))+I21 -> 389 | J22: =(($A22-$A21)*((EXP((1/(($B22*('Thermal age Table'!$F$4*1.2))+('Thermal age Table'!$E$4+1)+273.15))*((-'Thermal age Table'!$L$4*1000)/8.3144598)+'Thermal age Table'!$M$4))/(EXP((1/(283.15))*((-'Thermal age Table'!$L$4*1000)/8.3144598)+'Thermal age Table'!$M$4))))+J21 -> 603 | K22: =('Thermal age Table'!$E$5+($B22*K$4)) -> -5 | L22: =(($A22-$A21)*((EXP((1/(($B22*'Thermal age Table'!$F$5)+'Thermal age Table'!$E$5+273.15))*((-'Thermal age Table'!$L$5*1000)/8.3144598)+'Thermal age Table'!$M$5))/(EXP((1/(283.15))*((-'Thermal age Table'!$L$5*1000)/8.3144598)+'Thermal age Table'!$M$5))))+L21 -> 786 | M22: =(($A22-$A21)*((EXP((1/(($B22*('Thermal age Table'!$F$5*0.8))+('Thermal age Table'!$E$5-1)+273.15))*((-'Thermal age Table'!$L$5*1000)/8.3144598)+'Thermal age Table'!$M$5))/(EXP((1/(283.15))*((-'Thermal age Table'!$L$5*1000)/8.3144598)+'Thermal age Table'!$M$5))))+N21 -> 955 | N22: =(($A22-$A21)*((EXP((1/(($B22*('Thermal age Table'!$F$5*1.2))+('Thermal age Table'!$E$5+1)+273.15))*((-'Thermal age Table'!$L$5*1000)/8.3144598)+'Thermal age Table'!$M$5))/(EXP((1/(283.15))*((-'Thermal age Table'!$L$5*1000)/8.3144598)+'Thermal age Table'!$M$5))))+N21 -> 967 | O22: =('Thermal age Table'!$E$7)+($B22*O$4) -> 6 | P22: =(($A22-$A21)*((EXP((1/(($B22*'Thermal age Table'!$F$7)+'Thermal age Table'!$E$7+273.15))*((-'Thermal age Table'!$L$7*1000)/8.3144598)+'Thermal age Table'!$M$7))/(EXP((1/(283.15))*((-'Thermal age Table'!$L$7*1000)/8.3144598)+'Thermal age Table'!$M$7))))+P21 -> 10,329 | Q22: =(($A22-$A21)*((EXP((1/(($B22*('Thermal age Table'!$F$7*0.8))+('Thermal age Table'!$E$7-1)+273.15))*((-'Thermal age Table'!$L$7*1000)/8.3144598)+'Thermal age Table'!$M$7))/(EXP((1/(283.15))*((-'Thermal age Table'!$L$7*1000)/8.3144598)+'Thermal age Table'!$M$7))))+Q21 -> 7,975 | R22: =(($A22-$A21)*((EXP((1/(($B22*('Thermal age Table'!$F$7*1.2))+('Thermal age Table'!$E$7+1)+273.15))*((-'Thermal age Table'!$L$7*1000)/8.3144598)+'Thermal age Table'!$M$7))/(EXP((1/(283.15))*((-'Thermal age Table'!$L$7*1000)/8.3144598)+'Thermal age Table'!$M$7))))+R21 -> 13,377 | S22: =('Thermal age Table'!$E$8)+($B22*S$4) -> 8 | T22: =(($A22-$A21)*((EXP((1/(($B22*'Thermal age Table'!$F$8)+'Thermal age Table'!$E$8+273.15))*((-'Thermal age Table'!$L$8*1000)/8.3144598)+'Thermal age Table'!$M$8))/(EXP((1/(283.15))*((-'Thermal age Table'!$L$8*1000)/8.3144598)+'Thermal age Table'!$M$8))))+T21 -> 12,095 | U22: =(($A22-$A21)*((EXP((1/(($B22*('Thermal age Table'!$F$8*0.8))+('Thermal age Table'!$E$8-1)+273.15))*((-'Thermal age Table'!$L$8*1000)/8.3144598)+'Thermal age Table'!$M$8))/(EXP((1/(283.15))*((-'Thermal age Table'!$L$8*1000)/8.3144598)+'Thermal age Table'!$M$8))))+U21 -> 10,019 | V22: =(($A22-$A21)*((EXP((1/(($B22*('Thermal age Table'!$F$8*1.2))+('Thermal age Table'!$E$8+1)+273.15))*((-'Thermal age Table'!$L$8*1000)/8.3144598)+'Thermal age Table'!$M$8))/(EXP((1/(283.15))*((-'Thermal age Table'!$L$8*1000)/8.3144598)+'Thermal age Table'!$M$8))))+V21 -> 14,586 | W22: =('Thermal age Table'!$E$9+($B22*W$4)) -> 14 | X22: =(($A22-$A21)*((EXP((1/(($B22*'Thermal age Table'!$F$9)+'Thermal age Table'!$E$9+273.15))*((-'Thermal age Table'!$L$9*1000)/8.3144598)+'Thermal age Table'!$M$9))/(EXP((1/(283.15))*((-'Thermal age Table'!$L$9*1000)/8.3144598)+'Thermal age Table'!$M$9))))+X21 -> 35,847 | Y22: =(($A22-$A21)*((EXP((1/(($B22*('Thermal age Table'!$F$9*0.8))+('Thermal age Table'!$E$9-1)+273.15))*((-'Thermal age Table'!$L$9*1000)/8.3144598)+'Thermal age Table'!$M$9))/(EXP((1/(283.15))*((-'Thermal age Table'!$L$9*1000)/8.3144598)+'Thermal age Table'!$M$9))))+Y21 -> 30,323 | Z22: =(($A22-$A21)*((EXP((1/(($B22*('Thermal age Table'!$F$9*1.2))+('Thermal age Table'!$E$9+1)+273.15))*((-'Thermal age Table'!$L$9*1000)/8.3144598)+'Thermal age Table'!$M$9))/(EXP((1/(283.15))*((-'Thermal age Table'!$L$9*1000)/8.3144598)+'Thermal age Table'!$M$9))))+Z21 -> 42,339 | AA22: =('Thermal age Table'!$E$10+($B22*AA$4)) -> 17 | AB22: =(($A22-$A21)*((EXP((1/(($B22*'Thermal age Table'!$F$10)+'Thermal age Table'!$E$10+273.15))*((-'Thermal age Table'!$L$10*1000)/8.3144598)+'Thermal age Table'!$M$10))/(EXP((1/(283.15))*((-'Thermal age Table'!$L$10*1000)/8.3144598)+'Thermal age Table'!$M$10))))+AB21 -> 52,860 | AC22: =(($A22-$A21)*((EXP((1/(($B22*('Thermal age Table'!$F$10*0.8))+('Thermal age Table'!$E$10-1)+273.15))*((-'Thermal age Table'!$L$10*1000)/8.3144598)+'Thermal age Table'!$M$10))/(EXP((1/(283.15))*((-'Thermal age Table'!$L$9*1000)/8.3144598)+'Thermal age Table'!$M$10))))+AC21 -> 44,833 | AD22: =(($A22-$A21)*((EXP((1/(($B22*('Thermal age Table'!$F$10*1.2))+('Thermal age Table'!$E$10+1)+273.15))*((-'Thermal age Table'!$L$10*1000)/8.3144598)+'Thermal age Table'!$M$10))/(EXP((1/(283.15))*((-'Thermal age Table'!$L$10*1000)/8.3144598)+'Thermal age Table'!$M$10))))+AD21 -> 62,269 | AE22: =('Thermal age Table'!$E$11+($B22*AE$4)) -> 18 | AF22: =(($A22-$A21)*((EXP((1/(($B22*'Thermal age Table'!$F$11)+'Thermal age Table'!$E$11+273.15))*((-'Thermal age Table'!$L$11*1000)/8.3144598)+'Thermal age Table'!$M$11))/(EXP((1/(283.15))*((-'Thermal age Table'!$L$11*1000)/8.3144598)+'Thermal age Table'!$M$11))))+AF21 -> 58,851 | AG22: =(($A22-$A21)*((EXP((1/(($B22*('Thermal age Table'!$F$11*0.8))+('Thermal age Table'!$E$11-1)+273.15))*((-'Thermal age Table'!$L$11*1000)/8.3144598)+'Thermal age Table'!$M$11))/(EXP((1/(283.15))*((-'Thermal age Table'!$L$11*1000)/8.3144598)+'Thermal age Table'!$M$11))))+AG21 -> 49,896 | AH22: =(($A22-$A21)*((EXP((1/(($B22*('Thermal age Table'!$F$11*1.2))+('Thermal age Table'!$E$11+1)+273.15))*((-'Thermal age Table'!$L$11*1000)/8.3144598)+'Thermal age Table'!$M$11))/(EXP((1/(283.15))*((-'Thermal age Table'!$L$11*1000)/8.3144598)+'Thermal age Table'!$M$11))))+AH21 -> 69,341 | AI22: =('Thermal age Table'!$E$12+($B22*AI$4)) -> 18 | AJ22: =(($A22-$A21)*((EXP((1/(($B22*'Thermal age Table'!$F$12)+'Thermal age Table'!$E$12+273.15))*((-'Thermal age Table'!$L$12*1000)/8.3144598)+'Thermal age Table'!$M$12))/(EXP((1/(283.15))*((-'Thermal age Table'!$L$12*1000)/8.3144598)+'Thermal age Table'!$M$12))))+AJ21 -> 59,840 | AK22: =(($A22-$A21)*((EXP((1/(($B22*('Thermal age Table'!$F$12*0.8))+('Thermal age Table'!$E$12-1)+273.15))*((-'Thermal age Table'!$L$12*1000)/8.3144598)+'Thermal age Table'!$M$12))/(EXP((1/(283.15))*((-'Thermal age Table'!$L$12*1000)/8.3144598)+'Thermal age Table'!$M$12))))+AK21 -> 50,741 | AL22: =(($A22-$A21)*((EXP((1/(($B22*('Thermal age Table'!$F$12*1.2))+('Thermal age Table'!$E$12+1)+273.15))*((-'Thermal age Table'!$L$12*1000)/8.3144598)+'Thermal age Table'!$M$12))/(EXP((1/(283.15))*((-'Thermal age Table'!$L$12*1000)/8.3144598)+'Thermal age Table'!$M$12))))+AL21 -> 70,499 | AM22: =('Thermal age Table'!$E$13+($B22*AM$4)) -> 11 | AN22: =(($A22-$A21)*((EXP((1/(($B22*'Thermal age Table'!$F$13)+'Thermal age Table'!$E$13+273.15))*((-'Thermal age Table'!$L$13*1000)/8.3144598)+'Thermal age Table'!$M$13))/(EXP((1/(283.15))*((-'Thermal age Table'!$L$13*1000)/8.3144598)+'Thermal age Table'!$M$13))))+AN21 -> 16,804 | AO22: =(($A22-$A21)*((EXP((1/(($B22*('Thermal age Table'!$F$13*0.8))+('Thermal age Table'!$E$13-1)+273.15))*((-'Thermal age Table'!$L$13*1000)/8.3144598)+'Thermal age Table'!$M$13))/(EXP((1/(283.15))*((-'Thermal age Table'!$L$13*1000)/8.3144598)+'Thermal age Table'!$M$13))))+AO21 -> 14,090 | AP22: =(($A22-$A21)*((EXP((1/(($B22*('Thermal age Table'!$F$13*1.2))+('Thermal age Table'!$E$13+1)+273.15))*((-'Thermal age Table'!$L$13*1000)/8.3144598)+'Thermal age Table'!$M$13))/(EXP((1/(283.15))*((-'Thermal age Table'!$L$13*1000)/8.3144598)+'Thermal age Table'!$M$13))))+AP21 -> 20,015 | AQ22: =('Thermal age Table'!$E$14+($B22*AQ$4)) -> 25 | AR22: =(($A22-$A21)*((EXP((1/(($B22*'Thermal age Table'!$F$14)+'Thermal age Table'!$E$14+273.15))*((-'Thermal age Table'!$L$14*1000)/8.3144598)+'Thermal age Table'!$M$14))/(EXP((1/(283.15))*((-'Thermal age Table'!$L$14*1000)/8.3144598)+'Thermal age Table'!$M$14))))+AR21 -> 196,150 | AS22: =(($A22-$A21)*((EXP((1/(($B22*('Thermal age Table'!$F$14*0.8))+('Thermal age Table'!$E$14-1)+273.15))*((-'Thermal age Table'!$L$14*1000)/8.3144598)+'Thermal age Table'!$M$14))/(EXP((1/(283.15))*((-'Thermal age Table'!$L$14*1000)/8.3144598)+'Thermal age Table'!$M$14))))+AS21 -> 167,657 | AT22: =(($A22-$A21)*((EXP((1/(($B22*('Thermal age Table'!$F$14*1.2))+('Thermal age Table'!$E$14+1)+273.15))*((-'Thermal age Table'!$L$14*1000)/8.3144598)+'Thermal age Table'!$M$14))/(EXP((1/(283.15))*((-'Thermal age Table'!$L$14*1000)/8.3144598)+'Thermal age Table'!$M$14))))+AT21 -> 229,266 | AU22: =('Thermal age Table'!$E$15+($B22*AU$4)) -> 21 | AV22: =(($A22-$A21)*((EXP((1/(($B22*'Thermal age Table'!$F$15)+'Thermal age Table'!$E$15+273.15))*((-'Thermal age Table'!$L$15*1000)/8.3144598)+'Thermal age Table'!$M$15))/(EXP((1/(283.15))*((-'Thermal age Table'!$L$15*1000)/8.3144598)+'Thermal age Table'!$M$15))))+AV21 -> 101,241 | AW22: =(($A22-$A21)*((EXP((1/(($B22*('Thermal age Table'!$F$15*0.8))+('Thermal age Table'!$E$15-1)+273.15))*((-'Thermal age Table'!$L$15*1000)/8.3144598)+'Thermal age Table'!$M$15))/(EXP((1/(283.15))*((-'Thermal age Table'!$L$15*1000)/8.3144598)+'Thermal age Table'!$M$15))))+AW21 -> 86,179 | AX22: =(($A22-$A21)*((EXP((1/(($B22*('Thermal age Table'!$F$15*1.2))+('Thermal age Table'!$E$15+1)+273.15))*((-'Thermal age Table'!$L$15*1000)/8.3144598)+'Thermal age Table'!$M$15))/(EXP((1/(283.15))*((-'Thermal age Table'!$L$15*1000)/8.3144598)+'Thermal age Table'!$M$15))))+AX21 -> 118,822
A23: 14,800 | B23: -2.03 | C23: =('Thermal age Table'!$E$2)+($B23*C$4) -> -30 | D23: =(($A23-$A22)*((EXP((1/(($B23*'Thermal age Table'!$F$2)+'Thermal age Table'!$E$2+273.15))*((-'Thermal age Table'!$L$2*1000)/8.3144598)+'Thermal age Table'!$M$2))/(EXP((1/(283.15))*((-'Thermal age Table'!$L$2*1000)/8.3144598)+'Thermal age Table'!$M$2))))+D22 -> 3 | E23: =(($A23-$A22)*((EXP((1/(($B23*('Thermal age Table'!$F$2*0.8))+('Thermal age Table'!$E$2-1)+273.15))*((-'Thermal age Table'!$L$2*1000)/8.3144598)+'Thermal age Table'!$M$2))/(EXP((1/(283.15))*((-'Thermal age Table'!$L$2*1000)/8.3144598)+'Thermal age Table'!$M$2))))+E22 -> 2 | F23: =(($A23-$A22)*((EXP((1/(($B23*('Thermal age Table'!$F$2*1.2))+('Thermal age Table'!$E$2+1)+273.15))*((-'Thermal age Table'!$L$2*1000)/8.3144598)+'Thermal age Table'!$M$2))/(EXP((1/(283.15))*((-'Thermal age Table'!$L$2*1000)/8.3144598)+'Thermal age Table'!$M$2))))+F22 -> 4 | G23: =('Thermal age Table'!$E$4+($B23*G$4)) -> -14 | H23: =(($A23-$A22)*((EXP((1/(($B23*'Thermal age Table'!$F$4)+'Thermal age Table'!$E$4+273.15))*((-'Thermal age Table'!$L$4*1000)/8.3144598)+'Thermal age Table'!$M$4))/(EXP((1/(283.15))*((-'Thermal age Table'!$L$4*1000)/8.3144598)+'Thermal age Table'!$M$4))))+H22 -> 492 | I23: =(($A23-$A22)*((EXP((1/(($B23*('Thermal age Table'!$F$4*0.8))+('Thermal age Table'!$E$4-1)+273.15))*((-'Thermal age Table'!$L$4*1000)/8.3144598)+'Thermal age Table'!$M$4))/(EXP((1/(283.15))*((-'Thermal age Table'!$L$4*1000)/8.3144598)+'Thermal age Table'!$M$4))))+I22 -> 398 | J23: =(($A23-$A22)*((EXP((1/(($B23*('Thermal age Table'!$F$4*1.2))+('Thermal age Table'!$E$4+1)+273.15))*((-'Thermal age Table'!$L$4*1000)/8.3144598)+'Thermal age Table'!$M$4))/(EXP((1/(283.15))*((-'Thermal age Table'!$L$4*1000)/8.3144598)+'Thermal age Table'!$M$4))))+J22 -> 610 | K23: =('Thermal age Table'!$E$5+($B23*K$4)) -> -6 | L23: =(($A23-$A22)*((EXP((1/(($B23*'Thermal age Table'!$F$5)+'Thermal age Table'!$E$5+273.15))*((-'Thermal age Table'!$L$5*1000)/8.3144598)+'Thermal age Table'!$M$5))/(EXP((1/(283.15))*((-'Thermal age Table'!$L$5*1000)/8.3144598)+'Thermal age Table'!$M$5))))+L22 -> 832 | M23: =(($A23-$A22)*((EXP((1/(($B23*('Thermal age Table'!$F$5*0.8))+('Thermal age Table'!$E$5-1)+273.15))*((-'Thermal age Table'!$L$5*1000)/8.3144598)+'Thermal age Table'!$M$5))/(EXP((1/(283.15))*((-'Thermal age Table'!$L$5*1000)/8.3144598)+'Thermal age Table'!$M$5))))+N22 -> 1,007 | N23: =(($A23-$A22)*((EXP((1/(($B23*('Thermal age Table'!$F$5*1.2))+('Thermal age Table'!$E$5+1)+273.15))*((-'Thermal age Table'!$L$5*1000)/8.3144598)+'Thermal age Table'!$M$5))/(EXP((1/(283.15))*((-'Thermal age Table'!$L$5*1000)/8.3144598)+'Thermal age Table'!$M$5))))+N22 -> 1,019 | O23: =('Thermal age Table'!$E$7)+($B23*O$4) -> 5 | P23: =(($A23-$A22)*((EXP((1/(($B23*'Thermal age Table'!$F$7)+'Thermal age Table'!$E$7+273.15))*((-'Thermal age Table'!$L$7*1000)/8.3144598)+'Thermal age Table'!$M$7))/(EXP((1/(283.15))*((-'Thermal age Table'!$L$7*1000)/8.3144598)+'Thermal age Table'!$M$7))))+P22 -> 10,653 | Q23: =(($A23-$A22)*((EXP((1/(($B23*('Thermal age Table'!$F$7*0.8))+('Thermal age Table'!$E$7-1)+273.15))*((-'Thermal age Table'!$L$7*1000)/8.3144598)+'Thermal age Table'!$M$7))/(EXP((1/(283.15))*((-'Thermal age Table'!$L$7*1000)/8.3144598)+'Thermal age Table'!$M$7))))+Q22 -> 8,283 | R23: =(($A23-$A22)*((EXP((1/(($B23*('Thermal age Table'!$F$7*1.2))+('Thermal age Table'!$E$7+1)+273.15))*((-'Thermal age Table'!$L$7*1000)/8.3144598)+'Thermal age Table'!$M$7))/(EXP((1/(283.15))*((-'Thermal age Table'!$L$7*1000)/8.3144598)+'Thermal age Table'!$M$7))))+R22 -> 13,718 | S23: =('Thermal age Table'!$E$8)+($B23*S$4) -> 7 | T23: =(($A23-$A22)*((EXP((1/(($B23*'Thermal age Table'!$F$8)+'Thermal age Table'!$E$8+273.15))*((-'Thermal age Table'!$L$8*1000)/8.3144598)+'Thermal age Table'!$M$8))/(EXP((1/(283.15))*((-'Thermal age Table'!$L$8*1000)/8.3144598)+'Thermal age Table'!$M$8))))+T22 -> 12,832 | U23: =(($A23-$A22)*((EXP((1/(($B23*('Thermal age Table'!$F$8*0.8))+('Thermal age Table'!$E$8-1)+273.15))*((-'Thermal age Table'!$L$8*1000)/8.3144598)+'Thermal age Table'!$M$8))/(EXP((1/(283.15))*((-'Thermal age Table'!$L$8*1000)/8.3144598)+'Thermal age Table'!$M$8))))+U22 -> 10,676 | V23: =(($A23-$A22)*((EXP((1/(($B23*('Thermal age Table'!$F$8*1.2))+('Thermal age Table'!$E$8+1)+273.15))*((-'Thermal age Table'!$L$8*1000)/8.3144598)+'Thermal age Table'!$M$8))/(EXP((1/(283.15))*((-'Thermal age Table'!$L$8*1000)/8.3144598)+'Thermal age Table'!$M$8))))+V22 -> 15,413 | W23: =('Thermal age Table'!$E$9+($B23*W$4)) -> 14 | X23: =(($A23-$A22)*((EXP((1/(($B23*'Thermal age Table'!$F$9)+'Thermal age Table'!$E$9+273.15))*((-'Thermal age Table'!$L$9*1000)/8.3144598)+'Thermal age Table'!$M$9))/(EXP((1/(283.15))*((-'Thermal age Table'!$L$9*1000)/8.3144598)+'Thermal age Table'!$M$9))))+X22 -> 38,125 | Y23: =(($A23-$A22)*((EXP((1/(($B23*('Thermal age Table'!$F$9*0.8))+('Thermal age Table'!$E$9-1)+273.15))*((-'Thermal age Table'!$L$9*1000)/8.3144598)+'Thermal age Table'!$M$9))/(EXP((1/(283.15))*((-'Thermal age Table'!$L$9*1000)/8.3144598)+'Thermal age Table'!$M$9))))+Y22 -> 32,379 | Z23: =(($A23-$A22)*((EXP((1/(($B23*('Thermal age Table'!$F$9*1.2))+('Thermal age Table'!$E$9+1)+273.15))*((-'Thermal age Table'!$L$9*1000)/8.3144598)+'Thermal age Table'!$M$9))/(EXP((1/(283.15))*((-'Thermal age Table'!$L$9*1000)/8.3144598)+'Thermal age Table'!$M$9))))+Z22 -> 44,863 | AA23: =('Thermal age Table'!$E$10+($B23*AA$4)) -> 16 | AB23: =(($A23-$A22)*((EXP((1/(($B23*'Thermal age Table'!$F$10)+'Thermal age Table'!$E$10+273.15))*((-'Thermal age Table'!$L$10*1000)/8.3144598)+'Thermal age Table'!$M$10))/(EXP((1/(283.15))*((-'Thermal age Table'!$L$10*1000)/8.3144598)+'Thermal age Table'!$M$10))))+AB22 -> 56,238 | AC23: =(($A23-$A22)*((EXP((1/(($B23*('Thermal age Table'!$F$10*0.8))+('Thermal age Table'!$E$10-1)+273.15))*((-'Thermal age Table'!$L$10*1000)/8.3144598)+'Thermal age Table'!$M$10))/(EXP((1/(283.15))*((-'Thermal age Table'!$L$9*1000)/8.3144598)+'Thermal age Table'!$M$10))))+AC22 -> 47,887 | AD23: =(($A23-$A22)*((EXP((1/(($B23*('Thermal age Table'!$F$10*1.2))+('Thermal age Table'!$E$10+1)+273.15))*((-'Thermal age Table'!$L$10*1000)/8.3144598)+'Thermal age Table'!$M$10))/(EXP((1/(283.15))*((-'Thermal age Table'!$L$10*1000)/8.3144598)+'Thermal age Table'!$M$10))))+AD22 -> 66,005 | AE23: =('Thermal age Table'!$E$11+($B23*AE$4)) -> 17 | AF23: =(($A23-$A22)*((EXP((1/(($B23*'Thermal age Table'!$F$11)+'Thermal age Table'!$E$11+273.15))*((-'Thermal age Table'!$L$11*1000)/8.3144598)+'Thermal age Table'!$M$11))/(EXP((1/(283.15))*((-'Thermal age Table'!$L$11*1000)/8.3144598)+'Thermal age Table'!$M$11))))+AF22 -> 63,139 | AG23: =(($A23-$A22)*((EXP((1/(($B23*('Thermal age Table'!$F$11*0.8))+('Thermal age Table'!$E$11-1)+273.15))*((-'Thermal age Table'!$L$11*1000)/8.3144598)+'Thermal age Table'!$M$11))/(EXP((1/(283.15))*((-'Thermal age Table'!$L$11*1000)/8.3144598)+'Thermal age Table'!$M$11))))+AG22 -> 53,671 | AH23: =(($A23-$A22)*((EXP((1/(($B23*('Thermal age Table'!$F$11*1.2))+('Thermal age Table'!$E$11+1)+273.15))*((-'Thermal age Table'!$L$11*1000)/8.3144598)+'Thermal age Table'!$M$11))/(EXP((1/(283.15))*((-'Thermal age Table'!$L$11*1000)/8.3144598)+'Thermal age Table'!$M$11))))+AH22 -> 74,209 | AI23: =('Thermal age Table'!$E$12+($B23*AI$4)) -> 17 | AJ23: =(($A23-$A22)*((EXP((1/(($B23*'Thermal age Table'!$F$12)+'Thermal age Table'!$E$12+273.15))*((-'Thermal age Table'!$L$12*1000)/8.3144598)+'Thermal age Table'!$M$12))/(EXP((1/(283.15))*((-'Thermal age Table'!$L$12*1000)/8.3144598)+'Thermal age Table'!$M$12))))+AJ22 -> 64,201 | AK23: =(($A23-$A22)*((EXP((1/(($B23*('Thermal age Table'!$F$12*0.8))+('Thermal age Table'!$E$12-1)+273.15))*((-'Thermal age Table'!$L$12*1000)/8.3144598)+'Thermal age Table'!$M$12))/(EXP((1/(283.15))*((-'Thermal age Table'!$L$12*1000)/8.3144598)+'Thermal age Table'!$M$12))))+AK22 -> 54,580 | AL23: =(($A23-$A22)*((EXP((1/(($B23*('Thermal age Table'!$F$12*1.2))+('Thermal age Table'!$E$12+1)+273.15))*((-'Thermal age Table'!$L$12*1000)/8.3144598)+'Thermal age Table'!$M$12))/(EXP((1/(283.15))*((-'Thermal age Table'!$L$12*1000)/8.3144598)+'Thermal age Table'!$M$12))))+AL22 -> 75,449 | AM23: =('Thermal age Table'!$E$13+($B23*AM$4)) -> 11 | AN23: =(($A23-$A22)*((EXP((1/(($B23*'Thermal age Table'!$F$13)+'Thermal age Table'!$E$13+273.15))*((-'Thermal age Table'!$L$13*1000)/8.3144598)+'Thermal age Table'!$M$13))/(EXP((1/(283.15))*((-'Thermal age Table'!$L$13*1000)/8.3144598)+'Thermal age Table'!$M$13))))+AN22 -> 18,286 | AO23: =(($A23-$A22)*((EXP((1/(($B23*('Thermal age Table'!$F$13*0.8))+('Thermal age Table'!$E$13-1)+273.15))*((-'Thermal age Table'!$L$13*1000)/8.3144598)+'Thermal age Table'!$M$13))/(EXP((1/(283.15))*((-'Thermal age Table'!$L$13*1000)/8.3144598)+'Thermal age Table'!$M$13))))+AO22 -> 15,333 | AP23: =(($A23-$A22)*((EXP((1/(($B23*('Thermal age Table'!$F$13*1.2))+('Thermal age Table'!$E$13+1)+273.15))*((-'Thermal age Table'!$L$13*1000)/8.3144598)+'Thermal age Table'!$M$13))/(EXP((1/(283.15))*((-'Thermal age Table'!$L$13*1000)/8.3144598)+'Thermal age Table'!$M$13))))+AP22 -> 21,782 | AQ23: =('Thermal age Table'!$E$14+($B23*AQ$4)) -> 25 | AR23: =(($A23-$A22)*((EXP((1/(($B23*'Thermal age Table'!$F$14)+'Thermal age Table'!$E$14+273.15))*((-'Thermal age Table'!$L$14*1000)/8.3144598)+'Thermal age Table'!$M$14))/(EXP((1/(283.15))*((-'Thermal age Table'!$L$14*1000)/8.3144598)+'Thermal age Table'!$M$14))))+AR22 -> 210,577 | AS23: =(($A23-$A22)*((EXP((1/(($B23*('Thermal age Table'!$F$14*0.8))+('Thermal age Table'!$E$14-1)+273.15))*((-'Thermal age Table'!$L$14*1000)/8.3144598)+'Thermal age Table'!$M$14))/(EXP((1/(283.15))*((-'Thermal age Table'!$L$14*1000)/8.3144598)+'Thermal age Table'!$M$14))))+AS22 -> 180,437 | AT23: =(($A23-$A22)*((EXP((1/(($B23*('Thermal age Table'!$F$14*1.2))+('Thermal age Table'!$E$14+1)+273.15))*((-'Thermal age Table'!$L$14*1000)/8.3144598)+'Thermal age Table'!$M$14))/(EXP((1/(283.15))*((-'Thermal age Table'!$L$14*1000)/8.3144598)+'Thermal age Table'!$M$14))))+AT22 -> 245,544 | AU23: =('Thermal age Table'!$E$15+($B23*AU$4)) -> 20 | AV23: =(($A23-$A22)*((EXP((1/(($B23*'Thermal age Table'!$F$15)+'Thermal age Table'!$E$15+273.15))*((-'Thermal age Table'!$L$15*1000)/8.3144598)+'Thermal age Table'!$M$15))/(EXP((1/(283.15))*((-'Thermal age Table'!$L$15*1000)/8.3144598)+'Thermal age Table'!$M$15))))+AV22 -> 108,419 | AW23: =(($A23-$A22)*((EXP((1/(($B23*('Thermal age Table'!$F$15*0.8))+('Thermal age Table'!$E$15-1)+273.15))*((-'Thermal age Table'!$L$15*1000)/8.3144598)+'Thermal age Table'!$M$15))/(EXP((1/(283.15))*((-'Thermal age Table'!$L$15*1000)/8.3144598)+'Thermal age Table'!$M$15))))+AW22 -> 92,557 | AX23: =(($A23-$A22)*((EXP((1/(($B23*('Thermal age Table'!$F$15*1.2))+('Thermal age Table'!$E$15+1)+273.15))*((-'Thermal age Table'!$L$15*1000)/8.3144598)+'Thermal age Table'!$M$15))/(EXP((1/(283.15))*((-'Thermal age Table'!$L$15*1000)/8.3144598)+'Thermal age Table'!$M$15))))+AX22 -> 126,895
A24: 16,000 | B24: -2.24 | C24: =('Thermal age Table'!$E$2)+($B24*C$4) -> -31 | D24: =(($A24-$A23)*((EXP((1/(($B24*'Thermal age Table'!$F$2)+'Thermal age Table'!$E$2+273.15))*((-'Thermal age Table'!$L$2*1000)/8.3144598)+'Thermal age Table'!$M$2))/(EXP((1/(283.15))*((-'Thermal age Table'!$L$2*1000)/8.3144598)+'Thermal age Table'!$M$2))))+D23 -> 3 | E24: =(($A24-$A23)*((EXP((1/(($B24*('Thermal age Table'!$F$2*0.8))+('Thermal age Table'!$E$2-1)+273.15))*((-'Thermal age Table'!$L$2*1000)/8.3144598)+'Thermal age Table'!$M$2))/(EXP((1/(283.15))*((-'Thermal age Table'!$L$2*1000)/8.3144598)+'Thermal age Table'!$M$2))))+E23 -> 2 | F24: =(($A24-$A23)*((EXP((1/(($B24*('Thermal age Table'!$F$2*1.2))+('Thermal age Table'!$E$2+1)+273.15))*((-'Thermal age Table'!$L$2*1000)/8.3144598)+'Thermal age Table'!$M$2))/(EXP((1/(283.15))*((-'Thermal age Table'!$L$2*1000)/8.3144598)+'Thermal age Table'!$M$2))))+F23 -> 4 | G24: =('Thermal age Table'!$E$4+($B24*G$4)) -> -15 | H24: =(($A24-$A23)*((EXP((1/(($B24*'Thermal age Table'!$F$4)+'Thermal age Table'!$E$4+273.15))*((-'Thermal age Table'!$L$4*1000)/8.3144598)+'Thermal age Table'!$M$4))/(EXP((1/(283.15))*((-'Thermal age Table'!$L$4*1000)/8.3144598)+'Thermal age Table'!$M$4))))+H23 -> 498 | I24: =(($A24-$A23)*((EXP((1/(($B24*('Thermal age Table'!$F$4*0.8))+('Thermal age Table'!$E$4-1)+273.15))*((-'Thermal age Table'!$L$4*1000)/8.3144598)+'Thermal age Table'!$M$4))/(EXP((1/(283.15))*((-'Thermal age Table'!$L$4*1000)/8.3144598)+'Thermal age Table'!$M$4))))+I23 -> 405 | J24: =(($A24-$A23)*((EXP((1/(($B24*('Thermal age Table'!$F$4*1.2))+('Thermal age Table'!$E$4+1)+273.15))*((-'Thermal age Table'!$L$4*1000)/8.3144598)+'Thermal age Table'!$M$4))/(EXP((1/(283.15))*((-'Thermal age Table'!$L$4*1000)/8.3144598)+'Thermal age Table'!$M$4))))+J23 -> 615 | K24: =('Thermal age Table'!$E$5+($B24*K$4)) -> -6 | L24: =(($A24-$A23)*((EXP((1/(($B24*'Thermal age Table'!$F$5)+'Thermal age Table'!$E$5+273.15))*((-'Thermal age Table'!$L$5*1000)/8.3144598)+'Thermal age Table'!$M$5))/(EXP((1/(283.15))*((-'Thermal age Table'!$L$5*1000)/8.3144598)+'Thermal age Table'!$M$5))))+L23 -> 876 | M24: =(($A24-$A23)*((EXP((1/(($B24*('Thermal age Table'!$F$5*0.8))+('Thermal age Table'!$E$5-1)+273.15))*((-'Thermal age Table'!$L$5*1000)/8.3144598)+'Thermal age Table'!$M$5))/(EXP((1/(283.15))*((-'Thermal age Table'!$L$5*1000)/8.3144598)+'Thermal age Table'!$M$5))))+N23 -> 1,058 | N24: =(($A24-$A23)*((EXP((1/(($B24*('Thermal age Table'!$F$5*1.2))+('Thermal age Table'!$E$5+1)+273.15))*((-'Thermal age Table'!$L$5*1000)/8.3144598)+'Thermal age Table'!$M$5))/(EXP((1/(283.15))*((-'Thermal age Table'!$L$5*1000)/8.3144598)+'Thermal age Table'!$M$5))))+N23 -> 1,069 | O24: =('Thermal age Table'!$E$7)+($B24*O$4) -> 5 | P24: =(($A24-$A23)*((EXP((1/(($B24*'Thermal age Table'!$F$7)+'Thermal age Table'!$E$7+273.15))*((-'Thermal age Table'!$L$7*1000)/8.3144598)+'Thermal age Table'!$M$7))/(EXP((1/(283.15))*((-'Thermal age Table'!$L$7*1000)/8.3144598)+'Thermal age Table'!$M$7))))+P23 -> 10,942 | Q24: =(($A24-$A23)*((EXP((1/(($B24*('Thermal age Table'!$F$7*0.8))+('Thermal age Table'!$E$7-1)+273.15))*((-'Thermal age Table'!$L$7*1000)/8.3144598)+'Thermal age Table'!$M$7))/(EXP((1/(283.15))*((-'Thermal age Table'!$L$7*1000)/8.3144598)+'Thermal age Table'!$M$7))))+Q23 -> 8,564 | R24: =(($A24-$A23)*((EXP((1/(($B24*('Thermal age Table'!$F$7*1.2))+('Thermal age Table'!$E$7+1)+273.15))*((-'Thermal age Table'!$L$7*1000)/8.3144598)+'Thermal age Table'!$M$7))/(EXP((1/(283.15))*((-'Thermal age Table'!$L$7*1000)/8.3144598)+'Thermal age Table'!$M$7))))+R23 -> 14,015 | S24: =('Thermal age Table'!$E$8)+($B24*S$4) -> 7 | T24: =(($A24-$A23)*((EXP((1/(($B24*'Thermal age Table'!$F$8)+'Thermal age Table'!$E$8+273.15))*((-'Thermal age Table'!$L$8*1000)/8.3144598)+'Thermal age Table'!$M$8))/(EXP((1/(283.15))*((-'Thermal age Table'!$L$8*1000)/8.3144598)+'Thermal age Table'!$M$8))))+T23 -> 13,541 | U24: =(($A24-$A23)*((EXP((1/(($B24*('Thermal age Table'!$F$8*0.8))+('Thermal age Table'!$E$8-1)+273.15))*((-'Thermal age Table'!$L$8*1000)/8.3144598)+'Thermal age Table'!$M$8))/(EXP((1/(283.15))*((-'Thermal age Table'!$L$8*1000)/8.3144598)+'Thermal age Table'!$M$8))))+U23 -> 11,312 | V24: =(($A24-$A23)*((EXP((1/(($B24*('Thermal age Table'!$F$8*1.2))+('Thermal age Table'!$E$8+1)+273.15))*((-'Thermal age Table'!$L$8*1000)/8.3144598)+'Thermal age Table'!$M$8))/(EXP((1/(283.15))*((-'Thermal age Table'!$L$8*1000)/8.3144598)+'Thermal age Table'!$M$8))))+V23 -> 16,202 | W24: =('Thermal age Table'!$E$9+($B24*W$4)) -> 13 | X24: =(($A24-$A23)*((EXP((1/(($B24*'Thermal age Table'!$F$9)+'Thermal age Table'!$E$9+273.15))*((-'Thermal age Table'!$L$9*1000)/8.3144598)+'Thermal age Table'!$M$9))/(EXP((1/(283.15))*((-'Thermal age Table'!$L$9*1000)/8.3144598)+'Thermal age Table'!$M$9))))+X23 -> 40,323 | Y24: =(($A24-$A23)*((EXP((1/(($B24*('Thermal age Table'!$F$9*0.8))+('Thermal age Table'!$E$9-1)+273.15))*((-'Thermal age Table'!$L$9*1000)/8.3144598)+'Thermal age Table'!$M$9))/(EXP((1/(283.15))*((-'Thermal age Table'!$L$9*1000)/8.3144598)+'Thermal age Table'!$M$9))))+Y23 -> 34,377 | Z24: =(($A24-$A23)*((EXP((1/(($B24*('Thermal age Table'!$F$9*1.2))+('Thermal age Table'!$E$9+1)+273.15))*((-'Thermal age Table'!$L$9*1000)/8.3144598)+'Thermal age Table'!$M$9))/(EXP((1/(283.15))*((-'Thermal age Table'!$L$9*1000)/8.3144598)+'Thermal age Table'!$M$9))))+Z23 -> 47,280 | AA24: =('Thermal age Table'!$E$10+($B24*AA$4)) -> 16 | AB24: =(($A24-$A23)*((EXP((1/(($B24*'Thermal age Table'!$F$10)+'Thermal age Table'!$E$10+273.15))*((-'Thermal age Table'!$L$10*1000)/8.3144598)+'Thermal age Table'!$M$10))/(EXP((1/(283.15))*((-'Thermal age Table'!$L$10*1000)/8.3144598)+'Thermal age Table'!$M$10))))+AB23 -> 59,498 | AC24: =(($A24-$A23)*((EXP((1/(($B24*('Thermal age Table'!$F$10*0.8))+('Thermal age Table'!$E$10-1)+273.15))*((-'Thermal age Table'!$L$10*1000)/8.3144598)+'Thermal age Table'!$M$10))/(EXP((1/(283.15))*((-'Thermal age Table'!$L$9*1000)/8.3144598)+'Thermal age Table'!$M$10))))+AC23 -> 50,854 | AD24: =(($A24-$A23)*((EXP((1/(($B24*('Thermal age Table'!$F$10*1.2))+('Thermal age Table'!$E$10+1)+273.15))*((-'Thermal age Table'!$L$10*1000)/8.3144598)+'Thermal age Table'!$M$10))/(EXP((1/(283.15))*((-'Thermal age Table'!$L$10*1000)/8.3144598)+'Thermal age Table'!$M$10))))+AD23 -> 69,585 | AE24: =('Thermal age Table'!$E$11+($B24*AE$4)) -> 17 | AF24: =(($A24-$A23)*((EXP((1/(($B24*'Thermal age Table'!$F$11)+'Thermal age Table'!$E$11+273.15))*((-'Thermal age Table'!$L$11*1000)/8.3144598)+'Thermal age Table'!$M$11))/(EXP((1/(283.15))*((-'Thermal age Table'!$L$11*1000)/8.3144598)+'Thermal age Table'!$M$11))))+AF23 -> 67,337 | AG24: =(($A24-$A23)*((EXP((1/(($B24*('Thermal age Table'!$F$11*0.8))+('Thermal age Table'!$E$11-1)+273.15))*((-'Thermal age Table'!$L$11*1000)/8.3144598)+'Thermal age Table'!$M$11))/(EXP((1/(283.15))*((-'Thermal age Table'!$L$11*1000)/8.3144598)+'Thermal age Table'!$M$11))))+AG23 -> 57,382 | AH24: =(($A24-$A23)*((EXP((1/(($B24*('Thermal age Table'!$F$11*1.2))+('Thermal age Table'!$E$11+1)+273.15))*((-'Thermal age Table'!$L$11*1000)/8.3144598)+'Thermal age Table'!$M$11))/(EXP((1/(283.15))*((-'Thermal age Table'!$L$11*1000)/8.3144598)+'Thermal age Table'!$M$11))))+AH23 -> 78,956 | AI24: =('Thermal age Table'!$E$12+($B24*AI$4)) -> 17 | AJ24: =(($A24-$A23)*((EXP((1/(($B24*'Thermal age Table'!$F$12)+'Thermal age Table'!$E$12+273.15))*((-'Thermal age Table'!$L$12*1000)/8.3144598)+'Thermal age Table'!$M$12))/(EXP((1/(283.15))*((-'Thermal age Table'!$L$12*1000)/8.3144598)+'Thermal age Table'!$M$12))))+AJ23 -> 68,471 | AK24: =(($A24-$A23)*((EXP((1/(($B24*('Thermal age Table'!$F$12*0.8))+('Thermal age Table'!$E$12-1)+273.15))*((-'Thermal age Table'!$L$12*1000)/8.3144598)+'Thermal age Table'!$M$12))/(EXP((1/(283.15))*((-'Thermal age Table'!$L$12*1000)/8.3144598)+'Thermal age Table'!$M$12))))+AK23 -> 58,355 | AL24: =(($A24-$A23)*((EXP((1/(($B24*('Thermal age Table'!$F$12*1.2))+('Thermal age Table'!$E$12+1)+273.15))*((-'Thermal age Table'!$L$12*1000)/8.3144598)+'Thermal age Table'!$M$12))/(EXP((1/(283.15))*((-'Thermal age Table'!$L$12*1000)/8.3144598)+'Thermal age Table'!$M$12))))+AL23 -> 80,276 | AM24: =('Thermal age Table'!$E$13+($B24*AM$4)) -> 11 | AN24: =(($A24-$A23)*((EXP((1/(($B24*'Thermal age Table'!$F$13)+'Thermal age Table'!$E$13+273.15))*((-'Thermal age Table'!$L$13*1000)/8.3144598)+'Thermal age Table'!$M$13))/(EXP((1/(283.15))*((-'Thermal age Table'!$L$13*1000)/8.3144598)+'Thermal age Table'!$M$13))))+AN23 -> 19,769 | AO24: =(($A24-$A23)*((EXP((1/(($B24*('Thermal age Table'!$F$13*0.8))+('Thermal age Table'!$E$13-1)+273.15))*((-'Thermal age Table'!$L$13*1000)/8.3144598)+'Thermal age Table'!$M$13))/(EXP((1/(283.15))*((-'Thermal age Table'!$L$13*1000)/8.3144598)+'Thermal age Table'!$M$13))))+AO23 -> 16,576 | AP24: =(($A24-$A23)*((EXP((1/(($B24*('Thermal age Table'!$F$13*1.2))+('Thermal age Table'!$E$13+1)+273.15))*((-'Thermal age Table'!$L$13*1000)/8.3144598)+'Thermal age Table'!$M$13))/(EXP((1/(283.15))*((-'Thermal age Table'!$L$13*1000)/8.3144598)+'Thermal age Table'!$M$13))))+AP23 -> 23,548 | AQ24: =('Thermal age Table'!$E$14+($B24*AQ$4)) -> 25 | AR24: =(($A24-$A23)*((EXP((1/(($B24*'Thermal age Table'!$F$14)+'Thermal age Table'!$E$14+273.15))*((-'Thermal age Table'!$L$14*1000)/8.3144598)+'Thermal age Table'!$M$14))/(EXP((1/(283.15))*((-'Thermal age Table'!$L$14*1000)/8.3144598)+'Thermal age Table'!$M$14))))+AR23 -> 224,717 | AS24: =(($A24-$A23)*((EXP((1/(($B24*('Thermal age Table'!$F$14*0.8))+('Thermal age Table'!$E$14-1)+273.15))*((-'Thermal age Table'!$L$14*1000)/8.3144598)+'Thermal age Table'!$M$14))/(EXP((1/(283.15))*((-'Thermal age Table'!$L$14*1000)/8.3144598)+'Thermal age Table'!$M$14))))+AS23 -> 193,012 | AT24: =(($A24-$A23)*((EXP((1/(($B24*('Thermal age Table'!$F$14*1.2))+('Thermal age Table'!$E$14+1)+273.15))*((-'Thermal age Table'!$L$14*1000)/8.3144598)+'Thermal age Table'!$M$14))/(EXP((1/(283.15))*((-'Thermal age Table'!$L$14*1000)/8.3144598)+'Thermal age Table'!$M$14))))+AT23 -> 261,434 | AU24: =('Thermal age Table'!$E$15+($B24*AU$4)) -> 20 | AV24: =(($A24-$A23)*((EXP((1/(($B24*'Thermal age Table'!$F$15)+'Thermal age Table'!$E$15+273.15))*((-'Thermal age Table'!$L$15*1000)/8.3144598)+'Thermal age Table'!$M$15))/(EXP((1/(283.15))*((-'Thermal age Table'!$L$15*1000)/8.3144598)+'Thermal age Table'!$M$15))))+AV23 -> 115,426 | AW24: =(($A24-$A23)*((EXP((1/(($B24*('Thermal age Table'!$F$15*0.8))+('Thermal age Table'!$E$15-1)+273.15))*((-'Thermal age Table'!$L$15*1000)/8.3144598)+'Thermal age Table'!$M$15))/(EXP((1/(283.15))*((-'Thermal age Table'!$L$15*1000)/8.3144598)+'Thermal age Table'!$M$15))))+AW23 -> 98,813 | AX24: =(($A24-$A23)*((EXP((1/(($B24*('Thermal age Table'!$F$15*1.2))+('Thermal age Table'!$E$15+1)+273.15))*((-'Thermal age Table'!$L$15*1000)/8.3144598)+'Thermal age Table'!$M$15))/(EXP((1/(283.15))*((-'Thermal age Table'!$L$15*1000)/8.3144598)+'Thermal age Table'!$M$15))))+AX23 -> 134,739
A25: 17,000 | B25: -3.08 | C25: =('Thermal age Table'!$E$2)+($B25*C$4) -> -35 | D25: =(($A25-$A24)*((EXP((1/(($B25*'Thermal age Table'!$F$2)+'Thermal age Table'!$E$2+273.15))*((-'Thermal age Table'!$L$2*1000)/8.3144598)+'Thermal age Table'!$M$2))/(EXP((1/(283.15))*((-'Thermal age Table'!$L$2*1000)/8.3144598)+'Thermal age Table'!$M$2))))+D24 -> 3 | E25: =(($A25-$A24)*((EXP((1/(($B25*('Thermal age Table'!$F$2*0.8))+('Thermal age Table'!$E$2-1)+273.15))*((-'Thermal age Table'!$L$2*1000)/8.3144598)+'Thermal age Table'!$M$2))/(EXP((1/(283.15))*((-'Thermal age Table'!$L$2*1000)/8.3144598)+'Thermal age Table'!$M$2))))+E24 -> 2 | F25: =(($A25-$A24)*((EXP((1/(($B25*('Thermal age Table'!$F$2*1.2))+('Thermal age Table'!$E$2+1)+273.15))*((-'Thermal age Table'!$L$2*1000)/8.3144598)+'Thermal age Table'!$M$2))/(EXP((1/(283.15))*((-'Thermal age Table'!$L$2*1000)/8.3144598)+'Thermal age Table'!$M$2))))+F24 -> 4 | G25: =('Thermal age Table'!$E$4+($B25*G$4)) -> -19 | H25: =(($A25-$A24)*((EXP((1/(($B25*'Thermal age Table'!$F$4)+'Thermal age Table'!$E$4+273.15))*((-'Thermal age Table'!$L$4*1000)/8.3144598)+'Thermal age Table'!$M$4))/(EXP((1/(283.15))*((-'Thermal age Table'!$L$4*1000)/8.3144598)+'Thermal age Table'!$M$4))))+H24 -> 500 | I25: =(($A25-$A24)*((EXP((1/(($B25*('Thermal age Table'!$F$4*0.8))+('Thermal age Table'!$E$4-1)+273.15))*((-'Thermal age Table'!$L$4*1000)/8.3144598)+'Thermal age Table'!$M$4))/(EXP((1/(283.15))*((-'Thermal age Table'!$L$4*1000)/8.3144598)+'Thermal age Table'!$M$4))))+I24 -> 408 | J25: =(($A25-$A24)*((EXP((1/(($B25*('Thermal age Table'!$F$4*1.2))+('Thermal age Table'!$E$4+1)+273.15))*((-'Thermal age Table'!$L$4*1000)/8.3144598)+'Thermal age Table'!$M$4))/(EXP((1/(283.15))*((-'Thermal age Table'!$L$4*1000)/8.3144598)+'Thermal age Table'!$M$4))))+J24 -> 616 | K25: =('Thermal age Table'!$E$5+($B25*K$4)) -> -7 | L25: =(($A25-$A24)*((EXP((1/(($B25*'Thermal age Table'!$F$5)+'Thermal age Table'!$E$5+273.15))*((-'Thermal age Table'!$L$5*1000)/8.3144598)+'Thermal age Table'!$M$5))/(EXP((1/(283.15))*((-'Thermal age Table'!$L$5*1000)/8.3144598)+'Thermal age Table'!$M$5))))+L24 -> 907 | M25: =(($A25-$A24)*((EXP((1/(($B25*('Thermal age Table'!$F$5*0.8))+('Thermal age Table'!$E$5-1)+273.15))*((-'Thermal age Table'!$L$5*1000)/8.3144598)+'Thermal age Table'!$M$5))/(EXP((1/(283.15))*((-'Thermal age Table'!$L$5*1000)/8.3144598)+'Thermal age Table'!$M$5))))+N24 -> 1,097 | N25: =(($A25-$A24)*((EXP((1/(($B25*('Thermal age Table'!$F$5*1.2))+('Thermal age Table'!$E$5+1)+273.15))*((-'Thermal age Table'!$L$5*1000)/8.3144598)+'Thermal age Table'!$M$5))/(EXP((1/(283.15))*((-'Thermal age Table'!$L$5*1000)/8.3144598)+'Thermal age Table'!$M$5))))+N24 -> 1,102 | O25: =('Thermal age Table'!$E$7)+($B25*O$4) -> 3 | P25: =(($A25-$A24)*((EXP((1/(($B25*'Thermal age Table'!$F$7)+'Thermal age Table'!$E$7+273.15))*((-'Thermal age Table'!$L$7*1000)/8.3144598)+'Thermal age Table'!$M$7))/(EXP((1/(283.15))*((-'Thermal age Table'!$L$7*1000)/8.3144598)+'Thermal age Table'!$M$7))))+P24 -> 11,094 | Q25: =(($A25-$A24)*((EXP((1/(($B25*('Thermal age Table'!$F$7*0.8))+('Thermal age Table'!$E$7-1)+273.15))*((-'Thermal age Table'!$L$7*1000)/8.3144598)+'Thermal age Table'!$M$7))/(EXP((1/(283.15))*((-'Thermal age Table'!$L$7*1000)/8.3144598)+'Thermal age Table'!$M$7))))+Q24 -> 8,727 | R25: =(($A25-$A24)*((EXP((1/(($B25*('Thermal age Table'!$F$7*1.2))+('Thermal age Table'!$E$7+1)+273.15))*((-'Thermal age Table'!$L$7*1000)/8.3144598)+'Thermal age Table'!$M$7))/(EXP((1/(283.15))*((-'Thermal age Table'!$L$7*1000)/8.3144598)+'Thermal age Table'!$M$7))))+R24 -> 14,159 | S25: =('Thermal age Table'!$E$8)+($B25*S$4) -> 6 | T25: =(($A25-$A24)*((EXP((1/(($B25*'Thermal age Table'!$F$8)+'Thermal age Table'!$E$8+273.15))*((-'Thermal age Table'!$L$8*1000)/8.3144598)+'Thermal age Table'!$M$8))/(EXP((1/(283.15))*((-'Thermal age Table'!$L$8*1000)/8.3144598)+'Thermal age Table'!$M$8))))+T24 -> 14,042 | U25: =(($A25-$A24)*((EXP((1/(($B25*('Thermal age Table'!$F$8*0.8))+('Thermal age Table'!$E$8-1)+273.15))*((-'Thermal age Table'!$L$8*1000)/8.3144598)+'Thermal age Table'!$M$8))/(EXP((1/(283.15))*((-'Thermal age Table'!$L$8*1000)/8.3144598)+'Thermal age Table'!$M$8))))+U24 -> 11,777 | V25: =(($A25-$A24)*((EXP((1/(($B25*('Thermal age Table'!$F$8*1.2))+('Thermal age Table'!$E$8+1)+273.15))*((-'Thermal age Table'!$L$8*1000)/8.3144598)+'Thermal age Table'!$M$8))/(EXP((1/(283.15))*((-'Thermal age Table'!$L$8*1000)/8.3144598)+'Thermal age Table'!$M$8))))+V24 -> 16,742 | W25: =('Thermal age Table'!$E$9+($B25*W$4)) -> 13 | X25: =(($A25-$A24)*((EXP((1/(($B25*'Thermal age Table'!$F$9)+'Thermal age Table'!$E$9+273.15))*((-'Thermal age Table'!$L$9*1000)/8.3144598)+'Thermal age Table'!$M$9))/(EXP((1/(283.15))*((-'Thermal age Table'!$L$9*1000)/8.3144598)+'Thermal age Table'!$M$9))))+X24 -> 41,906 | Y25: =(($A25-$A24)*((EXP((1/(($B25*('Thermal age Table'!$F$9*0.8))+('Thermal age Table'!$E$9-1)+273.15))*((-'Thermal age Table'!$L$9*1000)/8.3144598)+'Thermal age Table'!$M$9))/(EXP((1/(283.15))*((-'Thermal age Table'!$L$9*1000)/8.3144598)+'Thermal age Table'!$M$9))))+Y24 -> 35,858 | Z25: =(($A25-$A24)*((EXP((1/(($B25*('Thermal age Table'!$F$9*1.2))+('Thermal age Table'!$E$9+1)+273.15))*((-'Thermal age Table'!$L$9*1000)/8.3144598)+'Thermal age Table'!$M$9))/(EXP((1/(283.15))*((-'Thermal age Table'!$L$9*1000)/8.3144598)+'Thermal age Table'!$M$9))))+Z24 -> 48,973 | AA25: =('Thermal age Table'!$E$10+($B25*AA$4)) -> 15 | AB25: =(($A25-$A24)*((EXP((1/(($B25*'Thermal age Table'!$F$10)+'Thermal age Table'!$E$10+273.15))*((-'Thermal age Table'!$L$10*1000)/8.3144598)+'Thermal age Table'!$M$10))/(EXP((1/(283.15))*((-'Thermal age Table'!$L$10*1000)/8.3144598)+'Thermal age Table'!$M$10))))+AB24 -> 61,852 | AC25: =(($A25-$A24)*((EXP((1/(($B25*('Thermal age Table'!$F$10*0.8))+('Thermal age Table'!$E$10-1)+273.15))*((-'Thermal age Table'!$L$10*1000)/8.3144598)+'Thermal age Table'!$M$10))/(EXP((1/(283.15))*((-'Thermal age Table'!$L$9*1000)/8.3144598)+'Thermal age Table'!$M$10))))+AC24 -> 53,058 | AD25: =(($A25-$A24)*((EXP((1/(($B25*('Thermal age Table'!$F$10*1.2))+('Thermal age Table'!$E$10+1)+273.15))*((-'Thermal age Table'!$L$10*1000)/8.3144598)+'Thermal age Table'!$M$10))/(EXP((1/(283.15))*((-'Thermal age Table'!$L$10*1000)/8.3144598)+'Thermal age Table'!$M$10))))+AD24 -> 72,098 | AE25: =('Thermal age Table'!$E$11+($B25*AE$4)) -> 17 | AF25: =(($A25-$A24)*((EXP((1/(($B25*'Thermal age Table'!$F$11)+'Thermal age Table'!$E$11+273.15))*((-'Thermal age Table'!$L$11*1000)/8.3144598)+'Thermal age Table'!$M$11))/(EXP((1/(283.15))*((-'Thermal age Table'!$L$11*1000)/8.3144598)+'Thermal age Table'!$M$11))))+AF24 -> 70,551 | AG25: =(($A25-$A24)*((EXP((1/(($B25*('Thermal age Table'!$F$11*0.8))+('Thermal age Table'!$E$11-1)+273.15))*((-'Thermal age Table'!$L$11*1000)/8.3144598)+'Thermal age Table'!$M$11))/(EXP((1/(283.15))*((-'Thermal age Table'!$L$11*1000)/8.3144598)+'Thermal age Table'!$M$11))))+AG24 -> 60,270 | AH25: =(($A25-$A24)*((EXP((1/(($B25*('Thermal age Table'!$F$11*1.2))+('Thermal age Table'!$E$11+1)+273.15))*((-'Thermal age Table'!$L$11*1000)/8.3144598)+'Thermal age Table'!$M$11))/(EXP((1/(283.15))*((-'Thermal age Table'!$L$11*1000)/8.3144598)+'Thermal age Table'!$M$11))))+AH24 -> 82,529 | AI25: =('Thermal age Table'!$E$12+($B25*AI$4)) -> 17 | AJ25: =(($A25-$A24)*((EXP((1/(($B25*'Thermal age Table'!$F$12)+'Thermal age Table'!$E$12+273.15))*((-'Thermal age Table'!$L$12*1000)/8.3144598)+'Thermal age Table'!$M$12))/(EXP((1/(283.15))*((-'Thermal age Table'!$L$12*1000)/8.3144598)+'Thermal age Table'!$M$12))))+AJ24 -> 71,739 | AK25: =(($A25-$A24)*((EXP((1/(($B25*('Thermal age Table'!$F$12*0.8))+('Thermal age Table'!$E$12-1)+273.15))*((-'Thermal age Table'!$L$12*1000)/8.3144598)+'Thermal age Table'!$M$12))/(EXP((1/(283.15))*((-'Thermal age Table'!$L$12*1000)/8.3144598)+'Thermal age Table'!$M$12))))+AK24 -> 61,292 | AL25: =(($A25-$A24)*((EXP((1/(($B25*('Thermal age Table'!$F$12*1.2))+('Thermal age Table'!$E$12+1)+273.15))*((-'Thermal age Table'!$L$12*1000)/8.3144598)+'Thermal age Table'!$M$12))/(EXP((1/(283.15))*((-'Thermal age Table'!$L$12*1000)/8.3144598)+'Thermal age Table'!$M$12))))+AL24 -> 83,910 | AM25: =('Thermal age Table'!$E$13+($B25*AM$4)) -> 11 | AN25: =(($A25-$A24)*((EXP((1/(($B25*'Thermal age Table'!$F$13)+'Thermal age Table'!$E$13+273.15))*((-'Thermal age Table'!$L$13*1000)/8.3144598)+'Thermal age Table'!$M$13))/(EXP((1/(283.15))*((-'Thermal age Table'!$L$13*1000)/8.3144598)+'Thermal age Table'!$M$13))))+AN24 -> 21,005 | AO25: =(($A25-$A24)*((EXP((1/(($B25*('Thermal age Table'!$F$13*0.8))+('Thermal age Table'!$E$13-1)+273.15))*((-'Thermal age Table'!$L$13*1000)/8.3144598)+'Thermal age Table'!$M$13))/(EXP((1/(283.15))*((-'Thermal age Table'!$L$13*1000)/8.3144598)+'Thermal age Table'!$M$13))))+AO24 -> 17,612 | AP25: =(($A25-$A24)*((EXP((1/(($B25*('Thermal age Table'!$F$13*1.2))+('Thermal age Table'!$E$13+1)+273.15))*((-'Thermal age Table'!$L$13*1000)/8.3144598)+'Thermal age Table'!$M$13))/(EXP((1/(283.15))*((-'Thermal age Table'!$L$13*1000)/8.3144598)+'Thermal age Table'!$M$13))))+AP24 -> 25,019 | AQ25: =('Thermal age Table'!$E$14+($B25*AQ$4)) -> 24 | AR25: =(($A25-$A24)*((EXP((1/(($B25*'Thermal age Table'!$F$14)+'Thermal age Table'!$E$14+273.15))*((-'Thermal age Table'!$L$14*1000)/8.3144598)+'Thermal age Table'!$M$14))/(EXP((1/(283.15))*((-'Thermal age Table'!$L$14*1000)/8.3144598)+'Thermal age Table'!$M$14))))+AR24 -> 235,586 | AS25: =(($A25-$A24)*((EXP((1/(($B25*('Thermal age Table'!$F$14*0.8))+('Thermal age Table'!$E$14-1)+273.15))*((-'Thermal age Table'!$L$14*1000)/8.3144598)+'Thermal age Table'!$M$14))/(EXP((1/(283.15))*((-'Thermal age Table'!$L$14*1000)/8.3144598)+'Thermal age Table'!$M$14))))+AS24 -> 202,832 | AT25: =(($A25-$A24)*((EXP((1/(($B25*('Thermal age Table'!$F$14*1.2))+('Thermal age Table'!$E$14+1)+273.15))*((-'Thermal age Table'!$L$14*1000)/8.3144598)+'Thermal age Table'!$M$14))/(EXP((1/(283.15))*((-'Thermal age Table'!$L$14*1000)/8.3144598)+'Thermal age Table'!$M$14))))+AT24 -> 273,458 | AU25: =('Thermal age Table'!$E$15+($B25*AU$4)) -> 20 | AV25: =(($A25-$A24)*((EXP((1/(($B25*'Thermal age Table'!$F$15)+'Thermal age Table'!$E$15+273.15))*((-'Thermal age Table'!$L$15*1000)/8.3144598)+'Thermal age Table'!$M$15))/(EXP((1/(283.15))*((-'Thermal age Table'!$L$15*1000)/8.3144598)+'Thermal age Table'!$M$15))))+AV24 -> 120,725 | AW25: =(($A25-$A24)*((EXP((1/(($B25*('Thermal age Table'!$F$15*0.8))+('Thermal age Table'!$E$15-1)+273.15))*((-'Thermal age Table'!$L$15*1000)/8.3144598)+'Thermal age Table'!$M$15))/(EXP((1/(283.15))*((-'Thermal age Table'!$L$15*1000)/8.3144598)+'Thermal age Table'!$M$15))))+AW24 -> 103,635 | AX25: =(($A25-$A24)*((EXP((1/(($B25*('Thermal age Table'!$F$15*1.2))+('Thermal age Table'!$E$15+1)+273.15))*((-'Thermal age Table'!$L$15*1000)/8.3144598)+'Thermal age Table'!$M$15))/(EXP((1/(283.15))*((-'Thermal age Table'!$L$15*1000)/8.3144598)+'Thermal age Table'!$M$15))))+AX24 -> 140,560
A26: 17,600 | B26: -3.36 | C26: =('Thermal age Table'!$E$2)+($B26*C$4) -> -37 | D26: =(($A26-$A25)*((EXP((1/(($B26*'Thermal age Table'!$F$2)+'Thermal age Table'!$E$2+273.15))*((-'Thermal age Table'!$L$2*1000)/8.3144598)+'Thermal age Table'!$M$2))/(EXP((1/(283.15))*((-'Thermal age Table'!$L$2*1000)/8.3144598)+'Thermal age Table'!$M$2))))+D25 -> 3 | E26: =(($A26-$A25)*((EXP((1/(($B26*('Thermal age Table'!$F$2*0.8))+('Thermal age Table'!$E$2-1)+273.15))*((-'Thermal age Table'!$L$2*1000)/8.3144598)+'Thermal age Table'!$M$2))/(EXP((1/(283.15))*((-'Thermal age Table'!$L$2*1000)/8.3144598)+'Thermal age Table'!$M$2))))+E25 -> 2 | F26: =(($A26-$A25)*((EXP((1/(($B26*('Thermal age Table'!$F$2*1.2))+('Thermal age Table'!$E$2+1)+273.15))*((-'Thermal age Table'!$L$2*1000)/8.3144598)+'Thermal age Table'!$M$2))/(EXP((1/(283.15))*((-'Thermal age Table'!$L$2*1000)/8.3144598)+'Thermal age Table'!$M$2))))+F25 -> 4 | G26: =('Thermal age Table'!$E$4+($B26*G$4)) -> -20 | H26: =(($A26-$A25)*((EXP((1/(($B26*'Thermal age Table'!$F$4)+'Thermal age Table'!$E$4+273.15))*((-'Thermal age Table'!$L$4*1000)/8.3144598)+'Thermal age Table'!$M$4))/(EXP((1/(283.15))*((-'Thermal age Table'!$L$4*1000)/8.3144598)+'Thermal age Table'!$M$4))))+H25 -> 501 | I26: =(($A26-$A25)*((EXP((1/(($B26*('Thermal age Table'!$F$4*0.8))+('Thermal age Table'!$E$4-1)+273.15))*((-'Thermal age Table'!$L$4*1000)/8.3144598)+'Thermal age Table'!$M$4))/(EXP((1/(283.15))*((-'Thermal age Table'!$L$4*1000)/8.3144598)+'Thermal age Table'!$M$4))))+I25 -> 410 | J26: =(($A26-$A25)*((EXP((1/(($B26*('Thermal age Table'!$F$4*1.2))+('Thermal age Table'!$E$4+1)+273.15))*((-'Thermal age Table'!$L$4*1000)/8.3144598)+'Thermal age Table'!$M$4))/(EXP((1/(283.15))*((-'Thermal age Table'!$L$4*1000)/8.3144598)+'Thermal age Table'!$M$4))))+J25 -> 617 | K26: =('Thermal age Table'!$E$5+($B26*K$4)) -> -7 | L26: =(($A26-$A25)*((EXP((1/(($B26*'Thermal age Table'!$F$5)+'Thermal age Table'!$E$5+273.15))*((-'Thermal age Table'!$L$5*1000)/8.3144598)+'Thermal age Table'!$M$5))/(EXP((1/(283.15))*((-'Thermal age Table'!$L$5*1000)/8.3144598)+'Thermal age Table'!$M$5))))+L25 -> 924 | M26: =(($A26-$A25)*((EXP((1/(($B26*('Thermal age Table'!$F$5*0.8))+('Thermal age Table'!$E$5-1)+273.15))*((-'Thermal age Table'!$L$5*1000)/8.3144598)+'Thermal age Table'!$M$5))/(EXP((1/(283.15))*((-'Thermal age Table'!$L$5*1000)/8.3144598)+'Thermal age Table'!$M$5))))+N25 -> 1,118 | N26: =(($A26-$A25)*((EXP((1/(($B26*('Thermal age Table'!$F$5*1.2))+('Thermal age Table'!$E$5+1)+273.15))*((-'Thermal age Table'!$L$5*1000)/8.3144598)+'Thermal age Table'!$M$5))/(EXP((1/(283.15))*((-'Thermal age Table'!$L$5*1000)/8.3144598)+'Thermal age Table'!$M$5))))+N25 -> 1,121 | O26: =('Thermal age Table'!$E$7)+($B26*O$4) -> 2 | P26: =(($A26-$A25)*((EXP((1/(($B26*'Thermal age Table'!$F$7)+'Thermal age Table'!$E$7+273.15))*((-'Thermal age Table'!$L$7*1000)/8.3144598)+'Thermal age Table'!$M$7))/(EXP((1/(283.15))*((-'Thermal age Table'!$L$7*1000)/8.3144598)+'Thermal age Table'!$M$7))))+P25 -> 11,173 | Q26: =(($A26-$A25)*((EXP((1/(($B26*('Thermal age Table'!$F$7*0.8))+('Thermal age Table'!$E$7-1)+273.15))*((-'Thermal age Table'!$L$7*1000)/8.3144598)+'Thermal age Table'!$M$7))/(EXP((1/(283.15))*((-'Thermal age Table'!$L$7*1000)/8.3144598)+'Thermal age Table'!$M$7))))+Q25 -> 8,813 | R26: =(($A26-$A25)*((EXP((1/(($B26*('Thermal age Table'!$F$7*1.2))+('Thermal age Table'!$E$7+1)+273.15))*((-'Thermal age Table'!$L$7*1000)/8.3144598)+'Thermal age Table'!$M$7))/(EXP((1/(283.15))*((-'Thermal age Table'!$L$7*1000)/8.3144598)+'Thermal age Table'!$M$7))))+R25 -> 14,230 | S26: =('Thermal age Table'!$E$8)+($B26*S$4) -> 6 | T26: =(($A26-$A25)*((EXP((1/(($B26*'Thermal age Table'!$F$8)+'Thermal age Table'!$E$8+273.15))*((-'Thermal age Table'!$L$8*1000)/8.3144598)+'Thermal age Table'!$M$8))/(EXP((1/(283.15))*((-'Thermal age Table'!$L$8*1000)/8.3144598)+'Thermal age Table'!$M$8))))+T25 -> 14,327 | U26: =(($A26-$A25)*((EXP((1/(($B26*('Thermal age Table'!$F$8*0.8))+('Thermal age Table'!$E$8-1)+273.15))*((-'Thermal age Table'!$L$8*1000)/8.3144598)+'Thermal age Table'!$M$8))/(EXP((1/(283.15))*((-'Thermal age Table'!$L$8*1000)/8.3144598)+'Thermal age Table'!$M$8))))+U25 -> 12,044 | V26: =(($A26-$A25)*((EXP((1/(($B26*('Thermal age Table'!$F$8*1.2))+('Thermal age Table'!$E$8+1)+273.15))*((-'Thermal age Table'!$L$8*1000)/8.3144598)+'Thermal age Table'!$M$8))/(EXP((1/(283.15))*((-'Thermal age Table'!$L$8*1000)/8.3144598)+'Thermal age Table'!$M$8))))+V25 -> 17,045 | W26: =('Thermal age Table'!$E$9+($B26*W$4)) -> 12 | X26: =(($A26-$A25)*((EXP((1/(($B26*'Thermal age Table'!$F$9)+'Thermal age Table'!$E$9+273.15))*((-'Thermal age Table'!$L$9*1000)/8.3144598)+'Thermal age Table'!$M$9))/(EXP((1/(283.15))*((-'Thermal age Table'!$L$9*1000)/8.3144598)+'Thermal age Table'!$M$9))))+X25 -> 42,811 | Y26: =(($A26-$A25)*((EXP((1/(($B26*('Thermal age Table'!$F$9*0.8))+('Thermal age Table'!$E$9-1)+273.15))*((-'Thermal age Table'!$L$9*1000)/8.3144598)+'Thermal age Table'!$M$9))/(EXP((1/(283.15))*((-'Thermal age Table'!$L$9*1000)/8.3144598)+'Thermal age Table'!$M$9))))+Y25 -> 36,712 | Z26: =(($A26-$A25)*((EXP((1/(($B26*('Thermal age Table'!$F$9*1.2))+('Thermal age Table'!$E$9+1)+273.15))*((-'Thermal age Table'!$L$9*1000)/8.3144598)+'Thermal age Table'!$M$9))/(EXP((1/(283.15))*((-'Thermal age Table'!$L$9*1000)/8.3144598)+'Thermal age Table'!$M$9))))+Z25 -> 49,931 | AA26: =('Thermal age Table'!$E$10+($B26*AA$4)) -> 15 | AB26: =(($A26-$A25)*((EXP((1/(($B26*'Thermal age Table'!$F$10)+'Thermal age Table'!$E$10+273.15))*((-'Thermal age Table'!$L$10*1000)/8.3144598)+'Thermal age Table'!$M$10))/(EXP((1/(283.15))*((-'Thermal age Table'!$L$10*1000)/8.3144598)+'Thermal age Table'!$M$10))))+AB25 -> 63,198 | AC26: =(($A26-$A25)*((EXP((1/(($B26*('Thermal age Table'!$F$10*0.8))+('Thermal age Table'!$E$10-1)+273.15))*((-'Thermal age Table'!$L$10*1000)/8.3144598)+'Thermal age Table'!$M$10))/(EXP((1/(283.15))*((-'Thermal age Table'!$L$9*1000)/8.3144598)+'Thermal age Table'!$M$10))))+AC25 -> 54,330 | AD26: =(($A26-$A25)*((EXP((1/(($B26*('Thermal age Table'!$F$10*1.2))+('Thermal age Table'!$E$10+1)+273.15))*((-'Thermal age Table'!$L$10*1000)/8.3144598)+'Thermal age Table'!$M$10))/(EXP((1/(283.15))*((-'Thermal age Table'!$L$10*1000)/8.3144598)+'Thermal age Table'!$M$10))))+AD25 -> 73,522 | AE26: =('Thermal age Table'!$E$11+($B26*AE$4)) -> 17 | AF26: =(($A26-$A25)*((EXP((1/(($B26*'Thermal age Table'!$F$11)+'Thermal age Table'!$E$11+273.15))*((-'Thermal age Table'!$L$11*1000)/8.3144598)+'Thermal age Table'!$M$11))/(EXP((1/(283.15))*((-'Thermal age Table'!$L$11*1000)/8.3144598)+'Thermal age Table'!$M$11))))+AF25 -> 72,425 | AG26: =(($A26-$A25)*((EXP((1/(($B26*('Thermal age Table'!$F$11*0.8))+('Thermal age Table'!$E$11-1)+273.15))*((-'Thermal age Table'!$L$11*1000)/8.3144598)+'Thermal age Table'!$M$11))/(EXP((1/(283.15))*((-'Thermal age Table'!$L$11*1000)/8.3144598)+'Thermal age Table'!$M$11))))+AG25 -> 61,964 | AH26: =(($A26-$A25)*((EXP((1/(($B26*('Thermal age Table'!$F$11*1.2))+('Thermal age Table'!$E$11+1)+273.15))*((-'Thermal age Table'!$L$11*1000)/8.3144598)+'Thermal age Table'!$M$11))/(EXP((1/(283.15))*((-'Thermal age Table'!$L$11*1000)/8.3144598)+'Thermal age Table'!$M$11))))+AH25 -> 84,602 | AI26: =('Thermal age Table'!$E$12+($B26*AI$4)) -> 17 | AJ26: =(($A26-$A25)*((EXP((1/(($B26*'Thermal age Table'!$F$12)+'Thermal age Table'!$E$12+273.15))*((-'Thermal age Table'!$L$12*1000)/8.3144598)+'Thermal age Table'!$M$12))/(EXP((1/(283.15))*((-'Thermal age Table'!$L$12*1000)/8.3144598)+'Thermal age Table'!$M$12))))+AJ25 -> 73,645 | AK26: =(($A26-$A25)*((EXP((1/(($B26*('Thermal age Table'!$F$12*0.8))+('Thermal age Table'!$E$12-1)+273.15))*((-'Thermal age Table'!$L$12*1000)/8.3144598)+'Thermal age Table'!$M$12))/(EXP((1/(283.15))*((-'Thermal age Table'!$L$12*1000)/8.3144598)+'Thermal age Table'!$M$12))))+AK25 -> 63,015 | AL26: =(($A26-$A25)*((EXP((1/(($B26*('Thermal age Table'!$F$12*1.2))+('Thermal age Table'!$E$12+1)+273.15))*((-'Thermal age Table'!$L$12*1000)/8.3144598)+'Thermal age Table'!$M$12))/(EXP((1/(283.15))*((-'Thermal age Table'!$L$12*1000)/8.3144598)+'Thermal age Table'!$M$12))))+AL25 -> 86,018 | AM26: =('Thermal age Table'!$E$13+($B26*AM$4)) -> 11 | AN26: =(($A26-$A25)*((EXP((1/(($B26*'Thermal age Table'!$F$13)+'Thermal age Table'!$E$13+273.15))*((-'Thermal age Table'!$L$13*1000)/8.3144598)+'Thermal age Table'!$M$13))/(EXP((1/(283.15))*((-'Thermal age Table'!$L$13*1000)/8.3144598)+'Thermal age Table'!$M$13))))+AN25 -> 21,746 | AO26: =(($A26-$A25)*((EXP((1/(($B26*('Thermal age Table'!$F$13*0.8))+('Thermal age Table'!$E$13-1)+273.15))*((-'Thermal age Table'!$L$13*1000)/8.3144598)+'Thermal age Table'!$M$13))/(EXP((1/(283.15))*((-'Thermal age Table'!$L$13*1000)/8.3144598)+'Thermal age Table'!$M$13))))+AO25 -> 18,234 | AP26: =(($A26-$A25)*((EXP((1/(($B26*('Thermal age Table'!$F$13*1.2))+('Thermal age Table'!$E$13+1)+273.15))*((-'Thermal age Table'!$L$13*1000)/8.3144598)+'Thermal age Table'!$M$13))/(EXP((1/(283.15))*((-'Thermal age Table'!$L$13*1000)/8.3144598)+'Thermal age Table'!$M$13))))+AP25 -> 25,902 | AQ26: =('Thermal age Table'!$E$14+($B26*AQ$4)) -> 24 | AR26: =(($A26-$A25)*((EXP((1/(($B26*'Thermal age Table'!$F$14)+'Thermal age Table'!$E$14+273.15))*((-'Thermal age Table'!$L$14*1000)/8.3144598)+'Thermal age Table'!$M$14))/(EXP((1/(283.15))*((-'Thermal age Table'!$L$14*1000)/8.3144598)+'Thermal age Table'!$M$14))))+AR25 -> 241,934 | AS26: =(($A26-$A25)*((EXP((1/(($B26*('Thermal age Table'!$F$14*0.8))+('Thermal age Table'!$E$14-1)+273.15))*((-'Thermal age Table'!$L$14*1000)/8.3144598)+'Thermal age Table'!$M$14))/(EXP((1/(283.15))*((-'Thermal age Table'!$L$14*1000)/8.3144598)+'Thermal age Table'!$M$14))))+AS25 -> 208,598 | AT26: =(($A26-$A25)*((EXP((1/(($B26*('Thermal age Table'!$F$14*1.2))+('Thermal age Table'!$E$14+1)+273.15))*((-'Thermal age Table'!$L$14*1000)/8.3144598)+'Thermal age Table'!$M$14))/(EXP((1/(283.15))*((-'Thermal age Table'!$L$14*1000)/8.3144598)+'Thermal age Table'!$M$14))))+AT25 -> 280,444 | AU26: =('Thermal age Table'!$E$15+($B26*AU$4)) -> 20 | AV26: =(($A26-$A25)*((EXP((1/(($B26*'Thermal age Table'!$F$15)+'Thermal age Table'!$E$15+273.15))*((-'Thermal age Table'!$L$15*1000)/8.3144598)+'Thermal age Table'!$M$15))/(EXP((1/(283.15))*((-'Thermal age Table'!$L$15*1000)/8.3144598)+'Thermal age Table'!$M$15))))+AV25 -> 123,803 | AW26: =(($A26-$A25)*((EXP((1/(($B26*('Thermal age Table'!$F$15*0.8))+('Thermal age Table'!$E$15-1)+273.15))*((-'Thermal age Table'!$L$15*1000)/8.3144598)+'Thermal age Table'!$M$15))/(EXP((1/(283.15))*((-'Thermal age Table'!$L$15*1000)/8.3144598)+'Thermal age Table'!$M$15))))+AW25 -> 106,454 | AX26: =(($A26-$A25)*((EXP((1/(($B26*('Thermal age Table'!$F$15*1.2))+('Thermal age Table'!$E$15+1)+273.15))*((-'Thermal age Table'!$L$15*1000)/8.3144598)+'Thermal age Table'!$M$15))/(EXP((1/(283.15))*((-'Thermal age Table'!$L$15*1000)/8.3144598)+'Thermal age Table'!$M$15))))+AX25 -> 143,919
A27: 18,400 | B27: -4.28 | C27: =('Thermal age Table'!$E$2)+($B27*C$4) -> -41 | D27: =(($A27-$A26)*((EXP((1/(($B27*'Thermal age Table'!$F$2)+'Thermal age Table'!$E$2+273.15))*((-'Thermal age Table'!$L$2*1000)/8.3144598)+'Thermal age Table'!$M$2))/(EXP((1/(283.15))*((-'Thermal age Table'!$L$2*1000)/8.3144598)+'Thermal age Table'!$M$2))))+D26 -> 3 | E27: =(($A27-$A26)*((EXP((1/(($B27*('Thermal age Table'!$F$2*0.8))+('Thermal age Table'!$E$2-1)+273.15))*((-'Thermal age Table'!$L$2*1000)/8.3144598)+'Thermal age Table'!$M$2))/(EXP((1/(283.15))*((-'Thermal age Table'!$L$2*1000)/8.3144598)+'Thermal age Table'!$M$2))))+E26 -> 2 | F27: =(($A27-$A26)*((EXP((1/(($B27*('Thermal age Table'!$F$2*1.2))+('Thermal age Table'!$E$2+1)+273.15))*((-'Thermal age Table'!$L$2*1000)/8.3144598)+'Thermal age Table'!$M$2))/(EXP((1/(283.15))*((-'Thermal age Table'!$L$2*1000)/8.3144598)+'Thermal age Table'!$M$2))))+F26 -> 4 | G27: =('Thermal age Table'!$E$4+($B27*G$4)) -> -23 | H27: =(($A27-$A26)*((EXP((1/(($B27*'Thermal age Table'!$F$4)+'Thermal age Table'!$E$4+273.15))*((-'Thermal age Table'!$L$4*1000)/8.3144598)+'Thermal age Table'!$M$4))/(EXP((1/(283.15))*((-'Thermal age Table'!$L$4*1000)/8.3144598)+'Thermal age Table'!$M$4))))+H26 -> 502 | I27: =(($A27-$A26)*((EXP((1/(($B27*('Thermal age Table'!$F$4*0.8))+('Thermal age Table'!$E$4-1)+273.15))*((-'Thermal age Table'!$L$4*1000)/8.3144598)+'Thermal age Table'!$M$4))/(EXP((1/(283.15))*((-'Thermal age Table'!$L$4*1000)/8.3144598)+'Thermal age Table'!$M$4))))+I26 -> 411 | J27: =(($A27-$A26)*((EXP((1/(($B27*('Thermal age Table'!$F$4*1.2))+('Thermal age Table'!$E$4+1)+273.15))*((-'Thermal age Table'!$L$4*1000)/8.3144598)+'Thermal age Table'!$M$4))/(EXP((1/(283.15))*((-'Thermal age Table'!$L$4*1000)/8.3144598)+'Thermal age Table'!$M$4))))+J26 -> 617 | K27: =('Thermal age Table'!$E$5+($B27*K$4)) -> -8 | L27: =(($A27-$A26)*((EXP((1/(($B27*'Thermal age Table'!$F$5)+'Thermal age Table'!$E$5+273.15))*((-'Thermal age Table'!$L$5*1000)/8.3144598)+'Thermal age Table'!$M$5))/(EXP((1/(283.15))*((-'Thermal age Table'!$L$5*1000)/8.3144598)+'Thermal age Table'!$M$5))))+L26 -> 943 | M27: =(($A27-$A26)*((EXP((1/(($B27*('Thermal age Table'!$F$5*0.8))+('Thermal age Table'!$E$5-1)+273.15))*((-'Thermal age Table'!$L$5*1000)/8.3144598)+'Thermal age Table'!$M$5))/(EXP((1/(283.15))*((-'Thermal age Table'!$L$5*1000)/8.3144598)+'Thermal age Table'!$M$5))))+N26 -> 1,139 | N27: =(($A27-$A26)*((EXP((1/(($B27*('Thermal age Table'!$F$5*1.2))+('Thermal age Table'!$E$5+1)+273.15))*((-'Thermal age Table'!$L$5*1000)/8.3144598)+'Thermal age Table'!$M$5))/(EXP((1/(283.15))*((-'Thermal age Table'!$L$5*1000)/8.3144598)+'Thermal age Table'!$M$5))))+N26 -> 1,140 | O27: =('Thermal age Table'!$E$7)+($B27*O$4) -> 1 | P27: =(($A27-$A26)*((EXP((1/(($B27*'Thermal age Table'!$F$7)+'Thermal age Table'!$E$7+273.15))*((-'Thermal age Table'!$L$7*1000)/8.3144598)+'Thermal age Table'!$M$7))/(EXP((1/(283.15))*((-'Thermal age Table'!$L$7*1000)/8.3144598)+'Thermal age Table'!$M$7))))+P26 -> 11,236 | Q27: =(($A27-$A26)*((EXP((1/(($B27*('Thermal age Table'!$F$7*0.8))+('Thermal age Table'!$E$7-1)+273.15))*((-'Thermal age Table'!$L$7*1000)/8.3144598)+'Thermal age Table'!$M$7))/(EXP((1/(283.15))*((-'Thermal age Table'!$L$7*1000)/8.3144598)+'Thermal age Table'!$M$7))))+Q26 -> 8,890 | R27: =(($A27-$A26)*((EXP((1/(($B27*('Thermal age Table'!$F$7*1.2))+('Thermal age Table'!$E$7+1)+273.15))*((-'Thermal age Table'!$L$7*1000)/8.3144598)+'Thermal age Table'!$M$7))/(EXP((1/(283.15))*((-'Thermal age Table'!$L$7*1000)/8.3144598)+'Thermal age Table'!$M$7))))+R26 -> 14,282 | S27: =('Thermal age Table'!$E$8)+($B27*S$4) -> 5 | T27: =(($A27-$A26)*((EXP((1/(($B27*'Thermal age Table'!$F$8)+'Thermal age Table'!$E$8+273.15))*((-'Thermal age Table'!$L$8*1000)/8.3144598)+'Thermal age Table'!$M$8))/(EXP((1/(283.15))*((-'Thermal age Table'!$L$8*1000)/8.3144598)+'Thermal age Table'!$M$8))))+T26 -> 14,643 | U27: =(($A27-$A26)*((EXP((1/(($B27*('Thermal age Table'!$F$8*0.8))+('Thermal age Table'!$E$8-1)+273.15))*((-'Thermal age Table'!$L$8*1000)/8.3144598)+'Thermal age Table'!$M$8))/(EXP((1/(283.15))*((-'Thermal age Table'!$L$8*1000)/8.3144598)+'Thermal age Table'!$M$8))))+U26 -> 12,352 | V27: =(($A27-$A26)*((EXP((1/(($B27*('Thermal age Table'!$F$8*1.2))+('Thermal age Table'!$E$8+1)+273.15))*((-'Thermal age Table'!$L$8*1000)/8.3144598)+'Thermal age Table'!$M$8))/(EXP((1/(283.15))*((-'Thermal age Table'!$L$8*1000)/8.3144598)+'Thermal age Table'!$M$8))))+V26 -> 17,371 | W27: =('Thermal age Table'!$E$9+($B27*W$4)) -> 11 | X27: =(($A27-$A26)*((EXP((1/(($B27*'Thermal age Table'!$F$9)+'Thermal age Table'!$E$9+273.15))*((-'Thermal age Table'!$L$9*1000)/8.3144598)+'Thermal age Table'!$M$9))/(EXP((1/(283.15))*((-'Thermal age Table'!$L$9*1000)/8.3144598)+'Thermal age Table'!$M$9))))+X26 -> 43,839 | Y27: =(($A27-$A26)*((EXP((1/(($B27*('Thermal age Table'!$F$9*0.8))+('Thermal age Table'!$E$9-1)+273.15))*((-'Thermal age Table'!$L$9*1000)/8.3144598)+'Thermal age Table'!$M$9))/(EXP((1/(283.15))*((-'Thermal age Table'!$L$9*1000)/8.3144598)+'Thermal age Table'!$M$9))))+Y26 -> 37,714 | Z27: =(($A27-$A26)*((EXP((1/(($B27*('Thermal age Table'!$F$9*1.2))+('Thermal age Table'!$E$9+1)+273.15))*((-'Thermal age Table'!$L$9*1000)/8.3144598)+'Thermal age Table'!$M$9))/(EXP((1/(283.15))*((-'Thermal age Table'!$L$9*1000)/8.3144598)+'Thermal age Table'!$M$9))))+Z26 -> 50,984 | AA27: =('Thermal age Table'!$E$10+($B27*AA$4)) -> 14 | AB27: =(($A27-$A26)*((EXP((1/(($B27*'Thermal age Table'!$F$10)+'Thermal age Table'!$E$10+273.15))*((-'Thermal age Table'!$L$10*1000)/8.3144598)+'Thermal age Table'!$M$10))/(EXP((1/(283.15))*((-'Thermal age Table'!$L$10*1000)/8.3144598)+'Thermal age Table'!$M$10))))+AB26 -> 64,730 | AC27: =(($A27-$A26)*((EXP((1/(($B27*('Thermal age Table'!$F$10*0.8))+('Thermal age Table'!$E$10-1)+273.15))*((-'Thermal age Table'!$L$10*1000)/8.3144598)+'Thermal age Table'!$M$10))/(EXP((1/(283.15))*((-'Thermal age Table'!$L$9*1000)/8.3144598)+'Thermal age Table'!$M$10))))+AC26 -> 55,825 | AD27: =(($A27-$A26)*((EXP((1/(($B27*('Thermal age Table'!$F$10*1.2))+('Thermal age Table'!$E$10+1)+273.15))*((-'Thermal age Table'!$L$10*1000)/8.3144598)+'Thermal age Table'!$M$10))/(EXP((1/(283.15))*((-'Thermal age Table'!$L$10*1000)/8.3144598)+'Thermal age Table'!$M$10))))+AD26 -> 75,093 | AE27: =('Thermal age Table'!$E$11+($B27*AE$4)) -> 16 | AF27: =(($A27-$A26)*((EXP((1/(($B27*'Thermal age Table'!$F$11)+'Thermal age Table'!$E$11+273.15))*((-'Thermal age Table'!$L$11*1000)/8.3144598)+'Thermal age Table'!$M$11))/(EXP((1/(283.15))*((-'Thermal age Table'!$L$11*1000)/8.3144598)+'Thermal age Table'!$M$11))))+AF26 -> 74,701 | AG27: =(($A27-$A26)*((EXP((1/(($B27*('Thermal age Table'!$F$11*0.8))+('Thermal age Table'!$E$11-1)+273.15))*((-'Thermal age Table'!$L$11*1000)/8.3144598)+'Thermal age Table'!$M$11))/(EXP((1/(283.15))*((-'Thermal age Table'!$L$11*1000)/8.3144598)+'Thermal age Table'!$M$11))))+AG26 -> 64,060 | AH27: =(($A27-$A26)*((EXP((1/(($B27*('Thermal age Table'!$F$11*1.2))+('Thermal age Table'!$E$11+1)+273.15))*((-'Thermal age Table'!$L$11*1000)/8.3144598)+'Thermal age Table'!$M$11))/(EXP((1/(283.15))*((-'Thermal age Table'!$L$11*1000)/8.3144598)+'Thermal age Table'!$M$11))))+AH26 -> 87,073 | AI27: =('Thermal age Table'!$E$12+($B27*AI$4)) -> 16 | AJ27: =(($A27-$A26)*((EXP((1/(($B27*'Thermal age Table'!$F$12)+'Thermal age Table'!$E$12+273.15))*((-'Thermal age Table'!$L$12*1000)/8.3144598)+'Thermal age Table'!$M$12))/(EXP((1/(283.15))*((-'Thermal age Table'!$L$12*1000)/8.3144598)+'Thermal age Table'!$M$12))))+AJ26 -> 75,960 | AK27: =(($A27-$A26)*((EXP((1/(($B27*('Thermal age Table'!$F$12*0.8))+('Thermal age Table'!$E$12-1)+273.15))*((-'Thermal age Table'!$L$12*1000)/8.3144598)+'Thermal age Table'!$M$12))/(EXP((1/(283.15))*((-'Thermal age Table'!$L$12*1000)/8.3144598)+'Thermal age Table'!$M$12))))+AK26 -> 65,146 | AL27: =(($A27-$A26)*((EXP((1/(($B27*('Thermal age Table'!$F$12*1.2))+('Thermal age Table'!$E$12+1)+273.15))*((-'Thermal age Table'!$L$12*1000)/8.3144598)+'Thermal age Table'!$M$12))/(EXP((1/(283.15))*((-'Thermal age Table'!$L$12*1000)/8.3144598)+'Thermal age Table'!$M$12))))+AL26 -> 88,532 | AM27: =('Thermal age Table'!$E$13+($B27*AM$4)) -> 11 | AN27: =(($A27-$A26)*((EXP((1/(($B27*'Thermal age Table'!$F$13)+'Thermal age Table'!$E$13+273.15))*((-'Thermal age Table'!$L$13*1000)/8.3144598)+'Thermal age Table'!$M$13))/(EXP((1/(283.15))*((-'Thermal age Table'!$L$13*1000)/8.3144598)+'Thermal age Table'!$M$13))))+AN26 -> 22,734 | AO27: =(($A27-$A26)*((EXP((1/(($B27*('Thermal age Table'!$F$13*0.8))+('Thermal age Table'!$E$13-1)+273.15))*((-'Thermal age Table'!$L$13*1000)/8.3144598)+'Thermal age Table'!$M$13))/(EXP((1/(283.15))*((-'Thermal age Table'!$L$13*1000)/8.3144598)+'Thermal age Table'!$M$13))))+AO26 -> 19,063 | AP27: =(($A27-$A26)*((EXP((1/(($B27*('Thermal age Table'!$F$13*1.2))+('Thermal age Table'!$E$13+1)+273.15))*((-'Thermal age Table'!$L$13*1000)/8.3144598)+'Thermal age Table'!$M$13))/(EXP((1/(283.15))*((-'Thermal age Table'!$L$13*1000)/8.3144598)+'Thermal age Table'!$M$13))))+AP26 -> 27,080 | AQ27: =('Thermal age Table'!$E$14+($B27*AQ$4)) -> 23 | AR27: =(($A27-$A26)*((EXP((1/(($B27*'Thermal age Table'!$F$14)+'Thermal age Table'!$E$14+273.15))*((-'Thermal age Table'!$L$14*1000)/8.3144598)+'Thermal age Table'!$M$14))/(EXP((1/(283.15))*((-'Thermal age Table'!$L$14*1000)/8.3144598)+'Thermal age Table'!$M$14))))+AR26 -> 249,677 | AS27: =(($A27-$A26)*((EXP((1/(($B27*('Thermal age Table'!$F$14*0.8))+('Thermal age Table'!$E$14-1)+273.15))*((-'Thermal age Table'!$L$14*1000)/8.3144598)+'Thermal age Table'!$M$14))/(EXP((1/(283.15))*((-'Thermal age Table'!$L$14*1000)/8.3144598)+'Thermal age Table'!$M$14))))+AS26 -> 215,757 | AT27: =(($A27-$A26)*((EXP((1/(($B27*('Thermal age Table'!$F$14*1.2))+('Thermal age Table'!$E$14+1)+273.15))*((-'Thermal age Table'!$L$14*1000)/8.3144598)+'Thermal age Table'!$M$14))/(EXP((1/(283.15))*((-'Thermal age Table'!$L$14*1000)/8.3144598)+'Thermal age Table'!$M$14))))+AT26 -> 288,818 | AU27: =('Thermal age Table'!$E$15+($B27*AU$4)) -> 19 | AV27: =(($A27-$A26)*((EXP((1/(($B27*'Thermal age Table'!$F$15)+'Thermal age Table'!$E$15+273.15))*((-'Thermal age Table'!$L$15*1000)/8.3144598)+'Thermal age Table'!$M$15))/(EXP((1/(283.15))*((-'Thermal age Table'!$L$15*1000)/8.3144598)+'Thermal age Table'!$M$15))))+AV26 -> 127,490 | AW27: =(($A27-$A26)*((EXP((1/(($B27*('Thermal age Table'!$F$15*0.8))+('Thermal age Table'!$E$15-1)+273.15))*((-'Thermal age Table'!$L$15*1000)/8.3144598)+'Thermal age Table'!$M$15))/(EXP((1/(283.15))*((-'Thermal age Table'!$L$15*1000)/8.3144598)+'Thermal age Table'!$M$15))))+AW26 -> 109,903 | AX27: =(($A27-$A26)*((EXP((1/(($B27*('Thermal age Table'!$F$15*1.2))+('Thermal age Table'!$E$15+1)+273.15))*((-'Thermal age Table'!$L$15*1000)/8.3144598)+'Thermal age Table'!$M$15))/(EXP((1/(283.15))*((-'Thermal age Table'!$L$15*1000)/8.3144598)+'Thermal age Table'!$M$15))))+AX26 -> 147,861
A28: 18,800 | B28: -4.51 | C28: =('Thermal age Table'!$E$2)+($B28*C$4) -> -42 | D28: =(($A28-$A27)*((EXP((1/(($B28*'Thermal age Table'!$F$2)+'Thermal age Table'!$E$2+273.15))*((-'Thermal age Table'!$L$2*1000)/8.3144598)+'Thermal age Table'!$M$2))/(EXP((1/(283.15))*((-'Thermal age Table'!$L$2*1000)/8.3144598)+'Thermal age Table'!$M$2))))+D27 -> 3 | E28: =(($A28-$A27)*((EXP((1/(($B28*('Thermal age Table'!$F$2*0.8))+('Thermal age Table'!$E$2-1)+273.15))*((-'Thermal age Table'!$L$2*1000)/8.3144598)+'Thermal age Table'!$M$2))/(EXP((1/(283.15))*((-'Thermal age Table'!$L$2*1000)/8.3144598)+'Thermal age Table'!$M$2))))+E27 -> 2 | F28: =(($A28-$A27)*((EXP((1/(($B28*('Thermal age Table'!$F$2*1.2))+('Thermal age Table'!$E$2+1)+273.15))*((-'Thermal age Table'!$L$2*1000)/8.3144598)+'Thermal age Table'!$M$2))/(EXP((1/(283.15))*((-'Thermal age Table'!$L$2*1000)/8.3144598)+'Thermal age Table'!$M$2))))+F27 -> 4 | G28: =('Thermal age Table'!$E$4+($B28*G$4)) -> -24 | H28: =(($A28-$A27)*((EXP((1/(($B28*'Thermal age Table'!$F$4)+'Thermal age Table'!$E$4+273.15))*((-'Thermal age Table'!$L$4*1000)/8.3144598)+'Thermal age Table'!$M$4))/(EXP((1/(283.15))*((-'Thermal age Table'!$L$4*1000)/8.3144598)+'Thermal age Table'!$M$4))))+H27 -> 502 | I28: =(($A28-$A27)*((EXP((1/(($B28*('Thermal age Table'!$F$4*0.8))+('Thermal age Table'!$E$4-1)+273.15))*((-'Thermal age Table'!$L$4*1000)/8.3144598)+'Thermal age Table'!$M$4))/(EXP((1/(283.15))*((-'Thermal age Table'!$L$4*1000)/8.3144598)+'Thermal age Table'!$M$4))))+I27 -> 412 | J28: =(($A28-$A27)*((EXP((1/(($B28*('Thermal age Table'!$F$4*1.2))+('Thermal age Table'!$E$4+1)+273.15))*((-'Thermal age Table'!$L$4*1000)/8.3144598)+'Thermal age Table'!$M$4))/(EXP((1/(283.15))*((-'Thermal age Table'!$L$4*1000)/8.3144598)+'Thermal age Table'!$M$4))))+J27 -> 618 | K28: =('Thermal age Table'!$E$5+($B28*K$4)) -> -9 | L28: =(($A28-$A27)*((EXP((1/(($B28*'Thermal age Table'!$F$5)+'Thermal age Table'!$E$5+273.15))*((-'Thermal age Table'!$L$5*1000)/8.3144598)+'Thermal age Table'!$M$5))/(EXP((1/(283.15))*((-'Thermal age Table'!$L$5*1000)/8.3144598)+'Thermal age Table'!$M$5))))+L27 -> 952 | M28: =(($A28-$A27)*((EXP((1/(($B28*('Thermal age Table'!$F$5*0.8))+('Thermal age Table'!$E$5-1)+273.15))*((-'Thermal age Table'!$L$5*1000)/8.3144598)+'Thermal age Table'!$M$5))/(EXP((1/(283.15))*((-'Thermal age Table'!$L$5*1000)/8.3144598)+'Thermal age Table'!$M$5))))+N27 -> 1,149 | N28: =(($A28-$A27)*((EXP((1/(($B28*('Thermal age Table'!$F$5*1.2))+('Thermal age Table'!$E$5+1)+273.15))*((-'Thermal age Table'!$L$5*1000)/8.3144598)+'Thermal age Table'!$M$5))/(EXP((1/(283.15))*((-'Thermal age Table'!$L$5*1000)/8.3144598)+'Thermal age Table'!$M$5))))+N27 -> 1,149 | O28: =('Thermal age Table'!$E$7)+($B28*O$4) -> 0 | P28: =(($A28-$A27)*((EXP((1/(($B28*'Thermal age Table'!$F$7)+'Thermal age Table'!$E$7+273.15))*((-'Thermal age Table'!$L$7*1000)/8.3144598)+'Thermal age Table'!$M$7))/(EXP((1/(283.15))*((-'Thermal age Table'!$L$7*1000)/8.3144598)+'Thermal age Table'!$M$7))))+P27 -> 11,264 | Q28: =(($A28-$A27)*((EXP((1/(($B28*('Thermal age Table'!$F$7*0.8))+('Thermal age Table'!$E$7-1)+273.15))*((-'Thermal age Table'!$L$7*1000)/8.3144598)+'Thermal age Table'!$M$7))/(EXP((1/(283.15))*((-'Thermal age Table'!$L$7*1000)/8.3144598)+'Thermal age Table'!$M$7))))+Q27 -> 8,925 | R28: =(($A28-$A27)*((EXP((1/(($B28*('Thermal age Table'!$F$7*1.2))+('Thermal age Table'!$E$7+1)+273.15))*((-'Thermal age Table'!$L$7*1000)/8.3144598)+'Thermal age Table'!$M$7))/(EXP((1/(283.15))*((-'Thermal age Table'!$L$7*1000)/8.3144598)+'Thermal age Table'!$M$7))))+R27 -> 14,304 | S28: =('Thermal age Table'!$E$8)+($B28*S$4) -> 5 | T28: =(($A28-$A27)*((EXP((1/(($B28*'Thermal age Table'!$F$8)+'Thermal age Table'!$E$8+273.15))*((-'Thermal age Table'!$L$8*1000)/8.3144598)+'Thermal age Table'!$M$8))/(EXP((1/(283.15))*((-'Thermal age Table'!$L$8*1000)/8.3144598)+'Thermal age Table'!$M$8))))+T27 -> 14,795 | U28: =(($A28-$A27)*((EXP((1/(($B28*('Thermal age Table'!$F$8*0.8))+('Thermal age Table'!$E$8-1)+273.15))*((-'Thermal age Table'!$L$8*1000)/8.3144598)+'Thermal age Table'!$M$8))/(EXP((1/(283.15))*((-'Thermal age Table'!$L$8*1000)/8.3144598)+'Thermal age Table'!$M$8))))+U27 -> 12,501 | V28: =(($A28-$A27)*((EXP((1/(($B28*('Thermal age Table'!$F$8*1.2))+('Thermal age Table'!$E$8+1)+273.15))*((-'Thermal age Table'!$L$8*1000)/8.3144598)+'Thermal age Table'!$M$8))/(EXP((1/(283.15))*((-'Thermal age Table'!$L$8*1000)/8.3144598)+'Thermal age Table'!$M$8))))+V27 -> 17,526 | W28: =('Thermal age Table'!$E$9+($B28*W$4)) -> 11 | X28: =(($A28-$A27)*((EXP((1/(($B28*'Thermal age Table'!$F$9)+'Thermal age Table'!$E$9+273.15))*((-'Thermal age Table'!$L$9*1000)/8.3144598)+'Thermal age Table'!$M$9))/(EXP((1/(283.15))*((-'Thermal age Table'!$L$9*1000)/8.3144598)+'Thermal age Table'!$M$9))))+X27 -> 44,332 | Y28: =(($A28-$A27)*((EXP((1/(($B28*('Thermal age Table'!$F$9*0.8))+('Thermal age Table'!$E$9-1)+273.15))*((-'Thermal age Table'!$L$9*1000)/8.3144598)+'Thermal age Table'!$M$9))/(EXP((1/(283.15))*((-'Thermal age Table'!$L$9*1000)/8.3144598)+'Thermal age Table'!$M$9))))+Y27 -> 38,199 | Z28: =(($A28-$A27)*((EXP((1/(($B28*('Thermal age Table'!$F$9*1.2))+('Thermal age Table'!$E$9+1)+273.15))*((-'Thermal age Table'!$L$9*1000)/8.3144598)+'Thermal age Table'!$M$9))/(EXP((1/(283.15))*((-'Thermal age Table'!$L$9*1000)/8.3144598)+'Thermal age Table'!$M$9))))+Z27 -> 51,486 | AA28: =('Thermal age Table'!$E$10+($B28*AA$4)) -> 13 | AB28: =(($A28-$A27)*((EXP((1/(($B28*'Thermal age Table'!$F$10)+'Thermal age Table'!$E$10+273.15))*((-'Thermal age Table'!$L$10*1000)/8.3144598)+'Thermal age Table'!$M$10))/(EXP((1/(283.15))*((-'Thermal age Table'!$L$10*1000)/8.3144598)+'Thermal age Table'!$M$10))))+AB27 -> 65,466 | AC28: =(($A28-$A27)*((EXP((1/(($B28*('Thermal age Table'!$F$10*0.8))+('Thermal age Table'!$E$10-1)+273.15))*((-'Thermal age Table'!$L$10*1000)/8.3144598)+'Thermal age Table'!$M$10))/(EXP((1/(283.15))*((-'Thermal age Table'!$L$9*1000)/8.3144598)+'Thermal age Table'!$M$10))))+AC27 -> 56,549 | AD28: =(($A28-$A27)*((EXP((1/(($B28*('Thermal age Table'!$F$10*1.2))+('Thermal age Table'!$E$10+1)+273.15))*((-'Thermal age Table'!$L$10*1000)/8.3144598)+'Thermal age Table'!$M$10))/(EXP((1/(283.15))*((-'Thermal age Table'!$L$10*1000)/8.3144598)+'Thermal age Table'!$M$10))))+AD27 -> 75,842 | AE28: =('Thermal age Table'!$E$11+($B28*AE$4)) -> 16 | AF28: =(($A28-$A27)*((EXP((1/(($B28*'Thermal age Table'!$F$11)+'Thermal age Table'!$E$11+273.15))*((-'Thermal age Table'!$L$11*1000)/8.3144598)+'Thermal age Table'!$M$11))/(EXP((1/(283.15))*((-'Thermal age Table'!$L$11*1000)/8.3144598)+'Thermal age Table'!$M$11))))+AF27 -> 75,812 | AG28: =(($A28-$A27)*((EXP((1/(($B28*('Thermal age Table'!$F$11*0.8))+('Thermal age Table'!$E$11-1)+273.15))*((-'Thermal age Table'!$L$11*1000)/8.3144598)+'Thermal age Table'!$M$11))/(EXP((1/(283.15))*((-'Thermal age Table'!$L$11*1000)/8.3144598)+'Thermal age Table'!$M$11))))+AG27 -> 65,088 | AH28: =(($A28-$A27)*((EXP((1/(($B28*('Thermal age Table'!$F$11*1.2))+('Thermal age Table'!$E$11+1)+273.15))*((-'Thermal age Table'!$L$11*1000)/8.3144598)+'Thermal age Table'!$M$11))/(EXP((1/(283.15))*((-'Thermal age Table'!$L$11*1000)/8.3144598)+'Thermal age Table'!$M$11))))+AH27 -> 88,275 | AI28: =('Thermal age Table'!$E$12+($B28*AI$4)) -> 16 | AJ28: =(($A28-$A27)*((EXP((1/(($B28*'Thermal age Table'!$F$12)+'Thermal age Table'!$E$12+273.15))*((-'Thermal age Table'!$L$12*1000)/8.3144598)+'Thermal age Table'!$M$12))/(EXP((1/(283.15))*((-'Thermal age Table'!$L$12*1000)/8.3144598)+'Thermal age Table'!$M$12))))+AJ27 -> 77,090 | AK28: =(($A28-$A27)*((EXP((1/(($B28*('Thermal age Table'!$F$12*0.8))+('Thermal age Table'!$E$12-1)+273.15))*((-'Thermal age Table'!$L$12*1000)/8.3144598)+'Thermal age Table'!$M$12))/(EXP((1/(283.15))*((-'Thermal age Table'!$L$12*1000)/8.3144598)+'Thermal age Table'!$M$12))))+AK27 -> 66,192 | AL28: =(($A28-$A27)*((EXP((1/(($B28*('Thermal age Table'!$F$12*1.2))+('Thermal age Table'!$E$12+1)+273.15))*((-'Thermal age Table'!$L$12*1000)/8.3144598)+'Thermal age Table'!$M$12))/(EXP((1/(283.15))*((-'Thermal age Table'!$L$12*1000)/8.3144598)+'Thermal age Table'!$M$12))))+AL27 -> 89,754 | AM28: =('Thermal age Table'!$E$13+($B28*AM$4)) -> 11 | AN28: =(($A28-$A27)*((EXP((1/(($B28*'Thermal age Table'!$F$13)+'Thermal age Table'!$E$13+273.15))*((-'Thermal age Table'!$L$13*1000)/8.3144598)+'Thermal age Table'!$M$13))/(EXP((1/(283.15))*((-'Thermal age Table'!$L$13*1000)/8.3144598)+'Thermal age Table'!$M$13))))+AN27 -> 23,229 | AO28: =(($A28-$A27)*((EXP((1/(($B28*('Thermal age Table'!$F$13*0.8))+('Thermal age Table'!$E$13-1)+273.15))*((-'Thermal age Table'!$L$13*1000)/8.3144598)+'Thermal age Table'!$M$13))/(EXP((1/(283.15))*((-'Thermal age Table'!$L$13*1000)/8.3144598)+'Thermal age Table'!$M$13))))+AO27 -> 19,477 | AP28: =(($A28-$A27)*((EXP((1/(($B28*('Thermal age Table'!$F$13*1.2))+('Thermal age Table'!$E$13+1)+273.15))*((-'Thermal age Table'!$L$13*1000)/8.3144598)+'Thermal age Table'!$M$13))/(EXP((1/(283.15))*((-'Thermal age Table'!$L$13*1000)/8.3144598)+'Thermal age Table'!$M$13))))+AP27 -> 27,668 | AQ28: =('Thermal age Table'!$E$14+($B28*AQ$4)) -> 23 | AR28: =(($A28-$A27)*((EXP((1/(($B28*'Thermal age Table'!$F$14)+'Thermal age Table'!$E$14+273.15))*((-'Thermal age Table'!$L$14*1000)/8.3144598)+'Thermal age Table'!$M$14))/(EXP((1/(283.15))*((-'Thermal age Table'!$L$14*1000)/8.3144598)+'Thermal age Table'!$M$14))))+AR27 -> 253,464 | AS28: =(($A28-$A27)*((EXP((1/(($B28*('Thermal age Table'!$F$14*0.8))+('Thermal age Table'!$E$14-1)+273.15))*((-'Thermal age Table'!$L$14*1000)/8.3144598)+'Thermal age Table'!$M$14))/(EXP((1/(283.15))*((-'Thermal age Table'!$L$14*1000)/8.3144598)+'Thermal age Table'!$M$14))))+AS27 -> 219,272 | AT28: =(($A28-$A27)*((EXP((1/(($B28*('Thermal age Table'!$F$14*1.2))+('Thermal age Table'!$E$14+1)+273.15))*((-'Thermal age Table'!$L$14*1000)/8.3144598)+'Thermal age Table'!$M$14))/(EXP((1/(283.15))*((-'Thermal age Table'!$L$14*1000)/8.3144598)+'Thermal age Table'!$M$14))))+AT27 -> 292,896 | AU28: =('Thermal age Table'!$E$15+($B28*AU$4)) -> 19 | AV28: =(($A28-$A27)*((EXP((1/(($B28*'Thermal age Table'!$F$15)+'Thermal age Table'!$E$15+273.15))*((-'Thermal age Table'!$L$15*1000)/8.3144598)+'Thermal age Table'!$M$15))/(EXP((1/(283.15))*((-'Thermal age Table'!$L$15*1000)/8.3144598)+'Thermal age Table'!$M$15))))+AV27 -> 129,285 | AW28: =(($A28-$A27)*((EXP((1/(($B28*('Thermal age Table'!$F$15*0.8))+('Thermal age Table'!$E$15-1)+273.15))*((-'Thermal age Table'!$L$15*1000)/8.3144598)+'Thermal age Table'!$M$15))/(EXP((1/(283.15))*((-'Thermal age Table'!$L$15*1000)/8.3144598)+'Thermal age Table'!$M$15))))+AW27 -> 111,591 | AX28: =(($A28-$A27)*((EXP((1/(($B28*('Thermal age Table'!$F$15*1.2))+('Thermal age Table'!$E$15+1)+273.15))*((-'Thermal age Table'!$L$15*1000)/8.3144598)+'Thermal age Table'!$M$15))/(EXP((1/(283.15))*((-'Thermal age Table'!$L$15*1000)/8.3144598)+'Thermal age Table'!$M$15))))+AX27 -> 149,769
A29: 19,500 | B29: -4.65 | C29: =('Thermal age Table'!$E$2)+($B29*C$4) -> -43 | D29: =(($A29-$A28)*((EXP((1/(($B29*'Thermal age Table'!$F$2)+'Thermal age Table'!$E$2+273.15))*((-'Thermal age Table'!$L$2*1000)/8.3144598)+'Thermal age Table'!$M$2))/(EXP((1/(283.15))*((-'Thermal age Table'!$L$2*1000)/8.3144598)+'Thermal age Table'!$M$2))))+D28 -> 3 | E29: =(($A29-$A28)*((EXP((1/(($B29*('Thermal age Table'!$F$2*0.8))+('Thermal age Table'!$E$2-1)+273.15))*((-'Thermal age Table'!$L$2*1000)/8.3144598)+'Thermal age Table'!$M$2))/(EXP((1/(283.15))*((-'Thermal age Table'!$L$2*1000)/8.3144598)+'Thermal age Table'!$M$2))))+E28 -> 2 | F29: =(($A29-$A28)*((EXP((1/(($B29*('Thermal age Table'!$F$2*1.2))+('Thermal age Table'!$E$2+1)+273.15))*((-'Thermal age Table'!$L$2*1000)/8.3144598)+'Thermal age Table'!$M$2))/(EXP((1/(283.15))*((-'Thermal age Table'!$L$2*1000)/8.3144598)+'Thermal age Table'!$M$2))))+F28 -> 4 | G29: =('Thermal age Table'!$E$4+($B29*G$4)) -> -25 | H29: =(($A29-$A28)*((EXP((1/(($B29*'Thermal age Table'!$F$4)+'Thermal age Table'!$E$4+273.15))*((-'Thermal age Table'!$L$4*1000)/8.3144598)+'Thermal age Table'!$M$4))/(EXP((1/(283.15))*((-'Thermal age Table'!$L$4*1000)/8.3144598)+'Thermal age Table'!$M$4))))+H28 -> 502 | I29: =(($A29-$A28)*((EXP((1/(($B29*('Thermal age Table'!$F$4*0.8))+('Thermal age Table'!$E$4-1)+273.15))*((-'Thermal age Table'!$L$4*1000)/8.3144598)+'Thermal age Table'!$M$4))/(EXP((1/(283.15))*((-'Thermal age Table'!$L$4*1000)/8.3144598)+'Thermal age Table'!$M$4))))+I28 -> 412 | J29: =(($A29-$A28)*((EXP((1/(($B29*('Thermal age Table'!$F$4*1.2))+('Thermal age Table'!$E$4+1)+273.15))*((-'Thermal age Table'!$L$4*1000)/8.3144598)+'Thermal age Table'!$M$4))/(EXP((1/(283.15))*((-'Thermal age Table'!$L$4*1000)/8.3144598)+'Thermal age Table'!$M$4))))+J28 -> 618 | K29: =('Thermal age Table'!$E$5+($B29*K$4)) -> -9 | L29: =(($A29-$A28)*((EXP((1/(($B29*'Thermal age Table'!$F$5)+'Thermal age Table'!$E$5+273.15))*((-'Thermal age Table'!$L$5*1000)/8.3144598)+'Thermal age Table'!$M$5))/(EXP((1/(283.15))*((-'Thermal age Table'!$L$5*1000)/8.3144598)+'Thermal age Table'!$M$5))))+L28 -> 967 | M29: =(($A29-$A28)*((EXP((1/(($B29*('Thermal age Table'!$F$5*0.8))+('Thermal age Table'!$E$5-1)+273.15))*((-'Thermal age Table'!$L$5*1000)/8.3144598)+'Thermal age Table'!$M$5))/(EXP((1/(283.15))*((-'Thermal age Table'!$L$5*1000)/8.3144598)+'Thermal age Table'!$M$5))))+N28 -> 1,164 | N29: =(($A29-$A28)*((EXP((1/(($B29*('Thermal age Table'!$F$5*1.2))+('Thermal age Table'!$E$5+1)+273.15))*((-'Thermal age Table'!$L$5*1000)/8.3144598)+'Thermal age Table'!$M$5))/(EXP((1/(283.15))*((-'Thermal age Table'!$L$5*1000)/8.3144598)+'Thermal age Table'!$M$5))))+N28 -> 1,165 | O29: =('Thermal age Table'!$E$7)+($B29*O$4) -> -0 | P29: =(($A29-$A28)*((EXP((1/(($B29*'Thermal age Table'!$F$7)+'Thermal age Table'!$E$7+273.15))*((-'Thermal age Table'!$L$7*1000)/8.3144598)+'Thermal age Table'!$M$7))/(EXP((1/(283.15))*((-'Thermal age Table'!$L$7*1000)/8.3144598)+'Thermal age Table'!$M$7))))+P28 -> 11,309 | Q29: =(($A29-$A28)*((EXP((1/(($B29*('Thermal age Table'!$F$7*0.8))+('Thermal age Table'!$E$7-1)+273.15))*((-'Thermal age Table'!$L$7*1000)/8.3144598)+'Thermal age Table'!$M$7))/(EXP((1/(283.15))*((-'Thermal age Table'!$L$7*1000)/8.3144598)+'Thermal age Table'!$M$7))))+Q28 -> 8,982 | R29: =(($A29-$A28)*((EXP((1/(($B29*('Thermal age Table'!$F$7*1.2))+('Thermal age Table'!$E$7+1)+273.15))*((-'Thermal age Table'!$L$7*1000)/8.3144598)+'Thermal age Table'!$M$7))/(EXP((1/(283.15))*((-'Thermal age Table'!$L$7*1000)/8.3144598)+'Thermal age Table'!$M$7))))+R28 -> 14,339 | S29: =('Thermal age Table'!$E$8)+($B29*S$4) -> 5 | T29: =(($A29-$A28)*((EXP((1/(($B29*'Thermal age Table'!$F$8)+'Thermal age Table'!$E$8+273.15))*((-'Thermal age Table'!$L$8*1000)/8.3144598)+'Thermal age Table'!$M$8))/(EXP((1/(283.15))*((-'Thermal age Table'!$L$8*1000)/8.3144598)+'Thermal age Table'!$M$8))))+T28 -> 15,052 | U29: =(($A29-$A28)*((EXP((1/(($B29*('Thermal age Table'!$F$8*0.8))+('Thermal age Table'!$E$8-1)+273.15))*((-'Thermal age Table'!$L$8*1000)/8.3144598)+'Thermal age Table'!$M$8))/(EXP((1/(283.15))*((-'Thermal age Table'!$L$8*1000)/8.3144598)+'Thermal age Table'!$M$8))))+U28 -> 12,755 | V29: =(($A29-$A28)*((EXP((1/(($B29*('Thermal age Table'!$F$8*1.2))+('Thermal age Table'!$E$8+1)+273.15))*((-'Thermal age Table'!$L$8*1000)/8.3144598)+'Thermal age Table'!$M$8))/(EXP((1/(283.15))*((-'Thermal age Table'!$L$8*1000)/8.3144598)+'Thermal age Table'!$M$8))))+V28 -> 17,787 | W29: =('Thermal age Table'!$E$9+($B29*W$4)) -> 11 | X29: =(($A29-$A28)*((EXP((1/(($B29*'Thermal age Table'!$F$9)+'Thermal age Table'!$E$9+273.15))*((-'Thermal age Table'!$L$9*1000)/8.3144598)+'Thermal age Table'!$M$9))/(EXP((1/(283.15))*((-'Thermal age Table'!$L$9*1000)/8.3144598)+'Thermal age Table'!$M$9))))+X28 -> 45,174 | Y29: =(($A29-$A28)*((EXP((1/(($B29*('Thermal age Table'!$F$9*0.8))+('Thermal age Table'!$E$9-1)+273.15))*((-'Thermal age Table'!$L$9*1000)/8.3144598)+'Thermal age Table'!$M$9))/(EXP((1/(283.15))*((-'Thermal age Table'!$L$9*1000)/8.3144598)+'Thermal age Table'!$M$9))))+Y28 -> 39,031 | Z29: =(($A29-$A28)*((EXP((1/(($B29*('Thermal age Table'!$F$9*1.2))+('Thermal age Table'!$E$9+1)+273.15))*((-'Thermal age Table'!$L$9*1000)/8.3144598)+'Thermal age Table'!$M$9))/(EXP((1/(283.15))*((-'Thermal age Table'!$L$9*1000)/8.3144598)+'Thermal age Table'!$M$9))))+Z28 -> 52,339 | AA29: =('Thermal age Table'!$E$10+($B29*AA$4)) -> 13 | AB29: =(($A29-$A28)*((EXP((1/(($B29*'Thermal age Table'!$F$10)+'Thermal age Table'!$E$10+273.15))*((-'Thermal age Table'!$L$10*1000)/8.3144598)+'Thermal age Table'!$M$10))/(EXP((1/(283.15))*((-'Thermal age Table'!$L$10*1000)/8.3144598)+'Thermal age Table'!$M$10))))+AB28 -> 66,724 | AC29: =(($A29-$A28)*((EXP((1/(($B29*('Thermal age Table'!$F$10*0.8))+('Thermal age Table'!$E$10-1)+273.15))*((-'Thermal age Table'!$L$10*1000)/8.3144598)+'Thermal age Table'!$M$10))/(EXP((1/(283.15))*((-'Thermal age Table'!$L$9*1000)/8.3144598)+'Thermal age Table'!$M$10))))+AC28 -> 57,792 | AD29: =(($A29-$A28)*((EXP((1/(($B29*('Thermal age Table'!$F$10*1.2))+('Thermal age Table'!$E$10+1)+273.15))*((-'Thermal age Table'!$L$10*1000)/8.3144598)+'Thermal age Table'!$M$10))/(EXP((1/(283.15))*((-'Thermal age Table'!$L$10*1000)/8.3144598)+'Thermal age Table'!$M$10))))+AD28 -> 77,115 | AE29: =('Thermal age Table'!$E$11+($B29*AE$4)) -> 16 | AF29: =(($A29-$A28)*((EXP((1/(($B29*'Thermal age Table'!$F$11)+'Thermal age Table'!$E$11+273.15))*((-'Thermal age Table'!$L$11*1000)/8.3144598)+'Thermal age Table'!$M$11))/(EXP((1/(283.15))*((-'Thermal age Table'!$L$11*1000)/8.3144598)+'Thermal age Table'!$M$11))))+AF28 -> 77,730 | AG29: =(($A29-$A28)*((EXP((1/(($B29*('Thermal age Table'!$F$11*0.8))+('Thermal age Table'!$E$11-1)+273.15))*((-'Thermal age Table'!$L$11*1000)/8.3144598)+'Thermal age Table'!$M$11))/(EXP((1/(283.15))*((-'Thermal age Table'!$L$11*1000)/8.3144598)+'Thermal age Table'!$M$11))))+AG28 -> 66,866 | AH29: =(($A29-$A28)*((EXP((1/(($B29*('Thermal age Table'!$F$11*1.2))+('Thermal age Table'!$E$11+1)+273.15))*((-'Thermal age Table'!$L$11*1000)/8.3144598)+'Thermal age Table'!$M$11))/(EXP((1/(283.15))*((-'Thermal age Table'!$L$11*1000)/8.3144598)+'Thermal age Table'!$M$11))))+AH28 -> 90,342 | AI29: =('Thermal age Table'!$E$12+($B29*AI$4)) -> 16 | AJ29: =(($A29-$A28)*((EXP((1/(($B29*'Thermal age Table'!$F$12)+'Thermal age Table'!$E$12+273.15))*((-'Thermal age Table'!$L$12*1000)/8.3144598)+'Thermal age Table'!$M$12))/(EXP((1/(283.15))*((-'Thermal age Table'!$L$12*1000)/8.3144598)+'Thermal age Table'!$M$12))))+AJ28 -> 79,041 | AK29: =(($A29-$A28)*((EXP((1/(($B29*('Thermal age Table'!$F$12*0.8))+('Thermal age Table'!$E$12-1)+273.15))*((-'Thermal age Table'!$L$12*1000)/8.3144598)+'Thermal age Table'!$M$12))/(EXP((1/(283.15))*((-'Thermal age Table'!$L$12*1000)/8.3144598)+'Thermal age Table'!$M$12))))+AK28 -> 68,001 | AL29: =(($A29-$A28)*((EXP((1/(($B29*('Thermal age Table'!$F$12*1.2))+('Thermal age Table'!$E$12+1)+273.15))*((-'Thermal age Table'!$L$12*1000)/8.3144598)+'Thermal age Table'!$M$12))/(EXP((1/(283.15))*((-'Thermal age Table'!$L$12*1000)/8.3144598)+'Thermal age Table'!$M$12))))+AL28 -> 91,856 | AM29: =('Thermal age Table'!$E$13+($B29*AM$4)) -> 11 | AN29: =(($A29-$A28)*((EXP((1/(($B29*'Thermal age Table'!$F$13)+'Thermal age Table'!$E$13+273.15))*((-'Thermal age Table'!$L$13*1000)/8.3144598)+'Thermal age Table'!$M$13))/(EXP((1/(283.15))*((-'Thermal age Table'!$L$13*1000)/8.3144598)+'Thermal age Table'!$M$13))))+AN28 -> 24,093 | AO29: =(($A29-$A28)*((EXP((1/(($B29*('Thermal age Table'!$F$13*0.8))+('Thermal age Table'!$E$13-1)+273.15))*((-'Thermal age Table'!$L$13*1000)/8.3144598)+'Thermal age Table'!$M$13))/(EXP((1/(283.15))*((-'Thermal age Table'!$L$13*1000)/8.3144598)+'Thermal age Table'!$M$13))))+AO28 -> 20,202 | AP29: =(($A29-$A28)*((EXP((1/(($B29*('Thermal age Table'!$F$13*1.2))+('Thermal age Table'!$E$13+1)+273.15))*((-'Thermal age Table'!$L$13*1000)/8.3144598)+'Thermal age Table'!$M$13))/(EXP((1/(283.15))*((-'Thermal age Table'!$L$13*1000)/8.3144598)+'Thermal age Table'!$M$13))))+AP28 -> 28,699 | AQ29: =('Thermal age Table'!$E$14+($B29*AQ$4)) -> 23 | AR29: =(($A29-$A28)*((EXP((1/(($B29*'Thermal age Table'!$F$14)+'Thermal age Table'!$E$14+273.15))*((-'Thermal age Table'!$L$14*1000)/8.3144598)+'Thermal age Table'!$M$14))/(EXP((1/(283.15))*((-'Thermal age Table'!$L$14*1000)/8.3144598)+'Thermal age Table'!$M$14))))+AR28 -> 260,001 | AS29: =(($A29-$A28)*((EXP((1/(($B29*('Thermal age Table'!$F$14*0.8))+('Thermal age Table'!$E$14-1)+273.15))*((-'Thermal age Table'!$L$14*1000)/8.3144598)+'Thermal age Table'!$M$14))/(EXP((1/(283.15))*((-'Thermal age Table'!$L$14*1000)/8.3144598)+'Thermal age Table'!$M$14))))+AS28 -> 225,358 | AT29: =(($A29-$A28)*((EXP((1/(($B29*('Thermal age Table'!$F$14*1.2))+('Thermal age Table'!$E$14+1)+273.15))*((-'Thermal age Table'!$L$14*1000)/8.3144598)+'Thermal age Table'!$M$14))/(EXP((1/(283.15))*((-'Thermal age Table'!$L$14*1000)/8.3144598)+'Thermal age Table'!$M$14))))+AT28 -> 299,916 | AU29: =('Thermal age Table'!$E$15+($B29*AU$4)) -> 19 | AV29: =(($A29-$A28)*((EXP((1/(($B29*'Thermal age Table'!$F$15)+'Thermal age Table'!$E$15+273.15))*((-'Thermal age Table'!$L$15*1000)/8.3144598)+'Thermal age Table'!$M$15))/(EXP((1/(283.15))*((-'Thermal age Table'!$L$15*1000)/8.3144598)+'Thermal age Table'!$M$15))))+AV28 -> 132,376 | AW29: =(($A29-$A28)*((EXP((1/(($B29*('Thermal age Table'!$F$15*0.8))+('Thermal age Table'!$E$15-1)+273.15))*((-'Thermal age Table'!$L$15*1000)/8.3144598)+'Thermal age Table'!$M$15))/(EXP((1/(283.15))*((-'Thermal age Table'!$L$15*1000)/8.3144598)+'Thermal age Table'!$M$15))))+AW28 -> 114,507 | AX29: =(($A29-$A28)*((EXP((1/(($B29*('Thermal age Table'!$F$15*1.2))+('Thermal age Table'!$E$15+1)+273.15))*((-'Thermal age Table'!$L$15*1000)/8.3144598)+'Thermal age Table'!$M$15))/(EXP((1/(283.15))*((-'Thermal age Table'!$L$15*1000)/8.3144598)+'Thermal age Table'!$M$15))))+AX28 -> 153,044
A30: 20,500 | B30: -4.44 | C30: =('Thermal age Table'!$E$2)+($B30*C$4) -> -42 | D30: =(($A30-$A29)*((EXP((1/(($B30*'Thermal age Table'!$F$2)+'Thermal age Table'!$E$2+273.15))*((-'Thermal age Table'!$L$2*1000)/8.3144598)+'Thermal age Table'!$M$2))/(EXP((1/(283.15))*((-'Thermal age Table'!$L$2*1000)/8.3144598)+'Thermal age Table'!$M$2))))+D29 -> 3 | E30: =(($A30-$A29)*((EXP((1/(($B30*('Thermal age Table'!$F$2*0.8))+('Thermal age Table'!$E$2-1)+273.15))*((-'Thermal age Table'!$L$2*1000)/8.3144598)+'Thermal age Table'!$M$2))/(EXP((1/(283.15))*((-'Thermal age Table'!$L$2*1000)/8.3144598)+'Thermal age Table'!$M$2))))+E29 -> 2 | F30: =(($A30-$A29)*((EXP((1/(($B30*('Thermal age Table'!$F$2*1.2))+('Thermal age Table'!$E$2+1)+273.15))*((-'Thermal age Table'!$L$2*1000)/8.3144598)+'Thermal age Table'!$M$2))/(EXP((1/(283.15))*((-'Thermal age Table'!$L$2*1000)/8.3144598)+'Thermal age Table'!$M$2))))+F29 -> 4 | G30: =('Thermal age Table'!$E$4+($B30*G$4)) -> -24 | H30: =(($A30-$A29)*((EXP((1/(($B30*'Thermal age Table'!$F$4)+'Thermal age Table'!$E$4+273.15))*((-'Thermal age Table'!$L$4*1000)/8.3144598)+'Thermal age Table'!$M$4))/(EXP((1/(283.15))*((-'Thermal age Table'!$L$4*1000)/8.3144598)+'Thermal age Table'!$M$4))))+H29 -> 503 | I30: =(($A30-$A29)*((EXP((1/(($B30*('Thermal age Table'!$F$4*0.8))+('Thermal age Table'!$E$4-1)+273.15))*((-'Thermal age Table'!$L$4*1000)/8.3144598)+'Thermal age Table'!$M$4))/(EXP((1/(283.15))*((-'Thermal age Table'!$L$4*1000)/8.3144598)+'Thermal age Table'!$M$4))))+I29 -> 413 | J30: =(($A30-$A29)*((EXP((1/(($B30*('Thermal age Table'!$F$4*1.2))+('Thermal age Table'!$E$4+1)+273.15))*((-'Thermal age Table'!$L$4*1000)/8.3144598)+'Thermal age Table'!$M$4))/(EXP((1/(283.15))*((-'Thermal age Table'!$L$4*1000)/8.3144598)+'Thermal age Table'!$M$4))))+J29 -> 618 | K30: =('Thermal age Table'!$E$5+($B30*K$4)) -> -9 | L30: =(($A30-$A29)*((EXP((1/(($B30*'Thermal age Table'!$F$5)+'Thermal age Table'!$E$5+273.15))*((-'Thermal age Table'!$L$5*1000)/8.3144598)+'Thermal age Table'!$M$5))/(EXP((1/(283.15))*((-'Thermal age Table'!$L$5*1000)/8.3144598)+'Thermal age Table'!$M$5))))+L29 -> 990 | M30: =(($A30-$A29)*((EXP((1/(($B30*('Thermal age Table'!$F$5*0.8))+('Thermal age Table'!$E$5-1)+273.15))*((-'Thermal age Table'!$L$5*1000)/8.3144598)+'Thermal age Table'!$M$5))/(EXP((1/(283.15))*((-'Thermal age Table'!$L$5*1000)/8.3144598)+'Thermal age Table'!$M$5))))+N29 -> 1,187 | N30: =(($A30-$A29)*((EXP((1/(($B30*('Thermal age Table'!$F$5*1.2))+('Thermal age Table'!$E$5+1)+273.15))*((-'Thermal age Table'!$L$5*1000)/8.3144598)+'Thermal age Table'!$M$5))/(EXP((1/(283.15))*((-'Thermal age Table'!$L$5*1000)/8.3144598)+'Thermal age Table'!$M$5))))+N29 -> 1,188 | O30: =('Thermal age Table'!$E$7)+($B30*O$4) -> 0 | P30: =(($A30-$A29)*((EXP((1/(($B30*'Thermal age Table'!$F$7)+'Thermal age Table'!$E$7+273.15))*((-'Thermal age Table'!$L$7*1000)/8.3144598)+'Thermal age Table'!$M$7))/(EXP((1/(283.15))*((-'Thermal age Table'!$L$7*1000)/8.3144598)+'Thermal age Table'!$M$7))))+P29 -> 11,381 | Q30: =(($A30-$A29)*((EXP((1/(($B30*('Thermal age Table'!$F$7*0.8))+('Thermal age Table'!$E$7-1)+273.15))*((-'Thermal age Table'!$L$7*1000)/8.3144598)+'Thermal age Table'!$M$7))/(EXP((1/(283.15))*((-'Thermal age Table'!$L$7*1000)/8.3144598)+'Thermal age Table'!$M$7))))+Q29 -> 9,071 | R30: =(($A30-$A29)*((EXP((1/(($B30*('Thermal age Table'!$F$7*1.2))+('Thermal age Table'!$E$7+1)+273.15))*((-'Thermal age Table'!$L$7*1000)/8.3144598)+'Thermal age Table'!$M$7))/(EXP((1/(283.15))*((-'Thermal age Table'!$L$7*1000)/8.3144598)+'Thermal age Table'!$M$7))))+R29 -> 14,397 | S30: =('Thermal age Table'!$E$8)+($B30*S$4) -> 5 | T30: =(($A30-$A29)*((EXP((1/(($B30*'Thermal age Table'!$F$8)+'Thermal age Table'!$E$8+273.15))*((-'Thermal age Table'!$L$8*1000)/8.3144598)+'Thermal age Table'!$M$8))/(EXP((1/(283.15))*((-'Thermal age Table'!$L$8*1000)/8.3144598)+'Thermal age Table'!$M$8))))+T29 -> 15,436 | U30: =(($A30-$A29)*((EXP((1/(($B30*('Thermal age Table'!$F$8*0.8))+('Thermal age Table'!$E$8-1)+273.15))*((-'Thermal age Table'!$L$8*1000)/8.3144598)+'Thermal age Table'!$M$8))/(EXP((1/(283.15))*((-'Thermal age Table'!$L$8*1000)/8.3144598)+'Thermal age Table'!$M$8))))+U29 -> 13,130 | V30: =(($A30-$A29)*((EXP((1/(($B30*('Thermal age Table'!$F$8*1.2))+('Thermal age Table'!$E$8+1)+273.15))*((-'Thermal age Table'!$L$8*1000)/8.3144598)+'Thermal age Table'!$M$8))/(EXP((1/(283.15))*((-'Thermal age Table'!$L$8*1000)/8.3144598)+'Thermal age Table'!$M$8))))+V29 -> 18,179 | W30: =('Thermal age Table'!$E$9+($B30*W$4)) -> 11 | X30: =(($A30-$A29)*((EXP((1/(($B30*'Thermal age Table'!$F$9)+'Thermal age Table'!$E$9+273.15))*((-'Thermal age Table'!$L$9*1000)/8.3144598)+'Thermal age Table'!$M$9))/(EXP((1/(283.15))*((-'Thermal age Table'!$L$9*1000)/8.3144598)+'Thermal age Table'!$M$9))))+X29 -> 46,423 | Y30: =(($A30-$A29)*((EXP((1/(($B30*('Thermal age Table'!$F$9*0.8))+('Thermal age Table'!$E$9-1)+273.15))*((-'Thermal age Table'!$L$9*1000)/8.3144598)+'Thermal age Table'!$M$9))/(EXP((1/(283.15))*((-'Thermal age Table'!$L$9*1000)/8.3144598)+'Thermal age Table'!$M$9))))+Y29 -> 40,255 | Z30: =(($A30-$A29)*((EXP((1/(($B30*('Thermal age Table'!$F$9*1.2))+('Thermal age Table'!$E$9+1)+273.15))*((-'Thermal age Table'!$L$9*1000)/8.3144598)+'Thermal age Table'!$M$9))/(EXP((1/(283.15))*((-'Thermal age Table'!$L$9*1000)/8.3144598)+'Thermal age Table'!$M$9))))+Z29 -> 53,613 | AA30: =('Thermal age Table'!$E$10+($B30*AA$4)) -> 14 | AB30: =(($A30-$A29)*((EXP((1/(($B30*'Thermal age Table'!$F$10)+'Thermal age Table'!$E$10+273.15))*((-'Thermal age Table'!$L$10*1000)/8.3144598)+'Thermal age Table'!$M$10))/(EXP((1/(283.15))*((-'Thermal age Table'!$L$10*1000)/8.3144598)+'Thermal age Table'!$M$10))))+AB29 -> 68,588 | AC30: =(($A30-$A29)*((EXP((1/(($B30*('Thermal age Table'!$F$10*0.8))+('Thermal age Table'!$E$10-1)+273.15))*((-'Thermal age Table'!$L$10*1000)/8.3144598)+'Thermal age Table'!$M$10))/(EXP((1/(283.15))*((-'Thermal age Table'!$L$9*1000)/8.3144598)+'Thermal age Table'!$M$10))))+AC29 -> 59,620 | AD30: =(($A30-$A29)*((EXP((1/(($B30*('Thermal age Table'!$F$10*1.2))+('Thermal age Table'!$E$10+1)+273.15))*((-'Thermal age Table'!$L$10*1000)/8.3144598)+'Thermal age Table'!$M$10))/(EXP((1/(283.15))*((-'Thermal age Table'!$L$10*1000)/8.3144598)+'Thermal age Table'!$M$10))))+AD29 -> 79,015 | AE30: =('Thermal age Table'!$E$11+($B30*AE$4)) -> 16 | AF30: =(($A30-$A29)*((EXP((1/(($B30*'Thermal age Table'!$F$11)+'Thermal age Table'!$E$11+273.15))*((-'Thermal age Table'!$L$11*1000)/8.3144598)+'Thermal age Table'!$M$11))/(EXP((1/(283.15))*((-'Thermal age Table'!$L$11*1000)/8.3144598)+'Thermal age Table'!$M$11))))+AF29 -> 80,529 | AG30: =(($A30-$A29)*((EXP((1/(($B30*('Thermal age Table'!$F$11*0.8))+('Thermal age Table'!$E$11-1)+273.15))*((-'Thermal age Table'!$L$11*1000)/8.3144598)+'Thermal age Table'!$M$11))/(EXP((1/(283.15))*((-'Thermal age Table'!$L$11*1000)/8.3144598)+'Thermal age Table'!$M$11))))+AG29 -> 69,451 | AH30: =(($A30-$A29)*((EXP((1/(($B30*('Thermal age Table'!$F$11*1.2))+('Thermal age Table'!$E$11+1)+273.15))*((-'Thermal age Table'!$L$11*1000)/8.3144598)+'Thermal age Table'!$M$11))/(EXP((1/(283.15))*((-'Thermal age Table'!$L$11*1000)/8.3144598)+'Thermal age Table'!$M$11))))+AH29 -> 93,372 | AI30: =('Thermal age Table'!$E$12+($B30*AI$4)) -> 16 | AJ30: =(($A30-$A29)*((EXP((1/(($B30*'Thermal age Table'!$F$12)+'Thermal age Table'!$E$12+273.15))*((-'Thermal age Table'!$L$12*1000)/8.3144598)+'Thermal age Table'!$M$12))/(EXP((1/(283.15))*((-'Thermal age Table'!$L$12*1000)/8.3144598)+'Thermal age Table'!$M$12))))+AJ29 -> 81,888 | AK30: =(($A30-$A29)*((EXP((1/(($B30*('Thermal age Table'!$F$12*0.8))+('Thermal age Table'!$E$12-1)+273.15))*((-'Thermal age Table'!$L$12*1000)/8.3144598)+'Thermal age Table'!$M$12))/(EXP((1/(283.15))*((-'Thermal age Table'!$L$12*1000)/8.3144598)+'Thermal age Table'!$M$12))))+AK29 -> 70,631 | AL30: =(($A30-$A29)*((EXP((1/(($B30*('Thermal age Table'!$F$12*1.2))+('Thermal age Table'!$E$12+1)+273.15))*((-'Thermal age Table'!$L$12*1000)/8.3144598)+'Thermal age Table'!$M$12))/(EXP((1/(283.15))*((-'Thermal age Table'!$L$12*1000)/8.3144598)+'Thermal age Table'!$M$12))))+AL29 -> 94,937 | AM30: =('Thermal age Table'!$E$13+($B30*AM$4)) -> 11 | AN30: =(($A30-$A29)*((EXP((1/(($B30*'Thermal age Table'!$F$13)+'Thermal age Table'!$E$13+273.15))*((-'Thermal age Table'!$L$13*1000)/8.3144598)+'Thermal age Table'!$M$13))/(EXP((1/(283.15))*((-'Thermal age Table'!$L$13*1000)/8.3144598)+'Thermal age Table'!$M$13))))+AN29 -> 25,329 | AO30: =(($A30-$A29)*((EXP((1/(($B30*('Thermal age Table'!$F$13*0.8))+('Thermal age Table'!$E$13-1)+273.15))*((-'Thermal age Table'!$L$13*1000)/8.3144598)+'Thermal age Table'!$M$13))/(EXP((1/(283.15))*((-'Thermal age Table'!$L$13*1000)/8.3144598)+'Thermal age Table'!$M$13))))+AO29 -> 21,238 | AP30: =(($A30-$A29)*((EXP((1/(($B30*('Thermal age Table'!$F$13*1.2))+('Thermal age Table'!$E$13+1)+273.15))*((-'Thermal age Table'!$L$13*1000)/8.3144598)+'Thermal age Table'!$M$13))/(EXP((1/(283.15))*((-'Thermal age Table'!$L$13*1000)/8.3144598)+'Thermal age Table'!$M$13))))+AP29 -> 30,170 | AQ30: =('Thermal age Table'!$E$14+($B30*AQ$4)) -> 23 | AR30: =(($A30-$A29)*((EXP((1/(($B30*'Thermal age Table'!$F$14)+'Thermal age Table'!$E$14+273.15))*((-'Thermal age Table'!$L$14*1000)/8.3144598)+'Thermal age Table'!$M$14))/(EXP((1/(283.15))*((-'Thermal age Table'!$L$14*1000)/8.3144598)+'Thermal age Table'!$M$14))))+AR29 -> 269,532 | AS30: =(($A30-$A29)*((EXP((1/(($B30*('Thermal age Table'!$F$14*0.8))+('Thermal age Table'!$E$14-1)+273.15))*((-'Thermal age Table'!$L$14*1000)/8.3144598)+'Thermal age Table'!$M$14))/(EXP((1/(283.15))*((-'Thermal age Table'!$L$14*1000)/8.3144598)+'Thermal age Table'!$M$14))))+AS29 -> 234,195 | AT30: =(($A30-$A29)*((EXP((1/(($B30*('Thermal age Table'!$F$14*1.2))+('Thermal age Table'!$E$14+1)+273.15))*((-'Thermal age Table'!$L$14*1000)/8.3144598)+'Thermal age Table'!$M$14))/(EXP((1/(283.15))*((-'Thermal age Table'!$L$14*1000)/8.3144598)+'Thermal age Table'!$M$14))))+AT29 -> 310,192 | AU30: =('Thermal age Table'!$E$15+($B30*AU$4)) -> 19 | AV30: =(($A30-$A29)*((EXP((1/(($B30*'Thermal age Table'!$F$15)+'Thermal age Table'!$E$15+273.15))*((-'Thermal age Table'!$L$15*1000)/8.3144598)+'Thermal age Table'!$M$15))/(EXP((1/(283.15))*((-'Thermal age Table'!$L$15*1000)/8.3144598)+'Thermal age Table'!$M$15))))+AV29 -> 136,900 | AW30: =(($A30-$A29)*((EXP((1/(($B30*('Thermal age Table'!$F$15*0.8))+('Thermal age Table'!$E$15-1)+273.15))*((-'Thermal age Table'!$L$15*1000)/8.3144598)+'Thermal age Table'!$M$15))/(EXP((1/(283.15))*((-'Thermal age Table'!$L$15*1000)/8.3144598)+'Thermal age Table'!$M$15))))+AW29 -> 118,755 | AX30: =(($A30-$A29)*((EXP((1/(($B30*('Thermal age Table'!$F$15*1.2))+('Thermal age Table'!$E$15+1)+273.15))*((-'Thermal age Table'!$L$15*1000)/8.3144598)+'Thermal age Table'!$M$15))/(EXP((1/(283.15))*((-'Thermal age Table'!$L$15*1000)/8.3144598)+'Thermal age Table'!$M$15))))+AX29 -> 157,862
A31: 21,700 | B31: -4.54 | C31: =('Thermal age Table'!$E$2)+($B31*C$4) -> -42 | D31: =(($A31-$A30)*((EXP((1/(($B31*'Thermal age Table'!$F$2)+'Thermal age Table'!$E$2+273.15))*((-'Thermal age Table'!$L$2*1000)/8.3144598)+'Thermal age Table'!$M$2))/(EXP((1/(283.15))*((-'Thermal age Table'!$L$2*1000)/8.3144598)+'Thermal age Table'!$M$2))))+D30 -> 3 | E31: =(($A31-$A30)*((EXP((1/(($B31*('Thermal age Table'!$F$2*0.8))+('Thermal age Table'!$E$2-1)+273.15))*((-'Thermal age Table'!$L$2*1000)/8.3144598)+'Thermal age Table'!$M$2))/(EXP((1/(283.15))*((-'Thermal age Table'!$L$2*1000)/8.3144598)+'Thermal age Table'!$M$2))))+E30 -> 2 | F31: =(($A31-$A30)*((EXP((1/(($B31*('Thermal age Table'!$F$2*1.2))+('Thermal age Table'!$E$2+1)+273.15))*((-'Thermal age Table'!$L$2*1000)/8.3144598)+'Thermal age Table'!$M$2))/(EXP((1/(283.15))*((-'Thermal age Table'!$L$2*1000)/8.3144598)+'Thermal age Table'!$M$2))))+F30 -> 4 | G31: =('Thermal age Table'!$E$4+($B31*G$4)) -> -24 | H31: =(($A31-$A30)*((EXP((1/(($B31*'Thermal age Table'!$F$4)+'Thermal age Table'!$E$4+273.15))*((-'Thermal age Table'!$L$4*1000)/8.3144598)+'Thermal age Table'!$M$4))/(EXP((1/(283.15))*((-'Thermal age Table'!$L$4*1000)/8.3144598)+'Thermal age Table'!$M$4))))+H30 -> 503 | I31: =(($A31-$A30)*((EXP((1/(($B31*('Thermal age Table'!$F$4*0.8))+('Thermal age Table'!$E$4-1)+273.15))*((-'Thermal age Table'!$L$4*1000)/8.3144598)+'Thermal age Table'!$M$4))/(EXP((1/(283.15))*((-'Thermal age Table'!$L$4*1000)/8.3144598)+'Thermal age Table'!$M$4))))+I30 -> 415 | J31: =(($A31-$A30)*((EXP((1/(($B31*('Thermal age Table'!$F$4*1.2))+('Thermal age Table'!$E$4+1)+273.15))*((-'Thermal age Table'!$L$4*1000)/8.3144598)+'Thermal age Table'!$M$4))/(EXP((1/(283.15))*((-'Thermal age Table'!$L$4*1000)/8.3144598)+'Thermal age Table'!$M$4))))+J30 -> 618 | K31: =('Thermal age Table'!$E$5+($B31*K$4)) -> -9 | L31: =(($A31-$A30)*((EXP((1/(($B31*'Thermal age Table'!$F$5)+'Thermal age Table'!$E$5+273.15))*((-'Thermal age Table'!$L$5*1000)/8.3144598)+'Thermal age Table'!$M$5))/(EXP((1/(283.15))*((-'Thermal age Table'!$L$5*1000)/8.3144598)+'Thermal age Table'!$M$5))))+L30 -> 1,017 | M31: =(($A31-$A30)*((EXP((1/(($B31*('Thermal age Table'!$F$5*0.8))+('Thermal age Table'!$E$5-1)+273.15))*((-'Thermal age Table'!$L$5*1000)/8.3144598)+'Thermal age Table'!$M$5))/(EXP((1/(283.15))*((-'Thermal age Table'!$L$5*1000)/8.3144598)+'Thermal age Table'!$M$5))))+N30 -> 1,215 | N31: =(($A31-$A30)*((EXP((1/(($B31*('Thermal age Table'!$F$5*1.2))+('Thermal age Table'!$E$5+1)+273.15))*((-'Thermal age Table'!$L$5*1000)/8.3144598)+'Thermal age Table'!$M$5))/(EXP((1/(283.15))*((-'Thermal age Table'!$L$5*1000)/8.3144598)+'Thermal age Table'!$M$5))))+N30 -> 1,216 | O31: =('Thermal age Table'!$E$7)+($B31*O$4) -> 0 | P31: =(($A31-$A30)*((EXP((1/(($B31*'Thermal age Table'!$F$7)+'Thermal age Table'!$E$7+273.15))*((-'Thermal age Table'!$L$7*1000)/8.3144598)+'Thermal age Table'!$M$7))/(EXP((1/(283.15))*((-'Thermal age Table'!$L$7*1000)/8.3144598)+'Thermal age Table'!$M$7))))+P30 -> 11,463 | Q31: =(($A31-$A30)*((EXP((1/(($B31*('Thermal age Table'!$F$7*0.8))+('Thermal age Table'!$E$7-1)+273.15))*((-'Thermal age Table'!$L$7*1000)/8.3144598)+'Thermal age Table'!$M$7))/(EXP((1/(283.15))*((-'Thermal age Table'!$L$7*1000)/8.3144598)+'Thermal age Table'!$M$7))))+Q30 -> 9,174 | R31: =(($A31-$A30)*((EXP((1/(($B31*('Thermal age Table'!$F$7*1.2))+('Thermal age Table'!$E$7+1)+273.15))*((-'Thermal age Table'!$L$7*1000)/8.3144598)+'Thermal age Table'!$M$7))/(EXP((1/(283.15))*((-'Thermal age Table'!$L$7*1000)/8.3144598)+'Thermal age Table'!$M$7))))+R30 -> 14,463 | S31: =('Thermal age Table'!$E$8)+($B31*S$4) -> 5 | T31: =(($A31-$A30)*((EXP((1/(($B31*'Thermal age Table'!$F$8)+'Thermal age Table'!$E$8+273.15))*((-'Thermal age Table'!$L$8*1000)/8.3144598)+'Thermal age Table'!$M$8))/(EXP((1/(283.15))*((-'Thermal age Table'!$L$8*1000)/8.3144598)+'Thermal age Table'!$M$8))))+T30 -> 15,888 | U31: =(($A31-$A30)*((EXP((1/(($B31*('Thermal age Table'!$F$8*0.8))+('Thermal age Table'!$E$8-1)+273.15))*((-'Thermal age Table'!$L$8*1000)/8.3144598)+'Thermal age Table'!$M$8))/(EXP((1/(283.15))*((-'Thermal age Table'!$L$8*1000)/8.3144598)+'Thermal age Table'!$M$8))))+U30 -> 13,573 | V31: =(($A31-$A30)*((EXP((1/(($B31*('Thermal age Table'!$F$8*1.2))+('Thermal age Table'!$E$8+1)+273.15))*((-'Thermal age Table'!$L$8*1000)/8.3144598)+'Thermal age Table'!$M$8))/(EXP((1/(283.15))*((-'Thermal age Table'!$L$8*1000)/8.3144598)+'Thermal age Table'!$M$8))))+V30 -> 18,639 | W31: =('Thermal age Table'!$E$9+($B31*W$4)) -> 11 | X31: =(($A31-$A30)*((EXP((1/(($B31*'Thermal age Table'!$F$9)+'Thermal age Table'!$E$9+273.15))*((-'Thermal age Table'!$L$9*1000)/8.3144598)+'Thermal age Table'!$M$9))/(EXP((1/(283.15))*((-'Thermal age Table'!$L$9*1000)/8.3144598)+'Thermal age Table'!$M$9))))+X30 -> 47,895 | Y31: =(($A31-$A30)*((EXP((1/(($B31*('Thermal age Table'!$F$9*0.8))+('Thermal age Table'!$E$9-1)+273.15))*((-'Thermal age Table'!$L$9*1000)/8.3144598)+'Thermal age Table'!$M$9))/(EXP((1/(283.15))*((-'Thermal age Table'!$L$9*1000)/8.3144598)+'Thermal age Table'!$M$9))))+Y30 -> 41,704 | Z31: =(($A31-$A30)*((EXP((1/(($B31*('Thermal age Table'!$F$9*1.2))+('Thermal age Table'!$E$9+1)+273.15))*((-'Thermal age Table'!$L$9*1000)/8.3144598)+'Thermal age Table'!$M$9))/(EXP((1/(283.15))*((-'Thermal age Table'!$L$9*1000)/8.3144598)+'Thermal age Table'!$M$9))))+Z30 -> 55,109 | AA31: =('Thermal age Table'!$E$10+($B31*AA$4)) -> 13 | AB31: =(($A31-$A30)*((EXP((1/(($B31*'Thermal age Table'!$F$10)+'Thermal age Table'!$E$10+273.15))*((-'Thermal age Table'!$L$10*1000)/8.3144598)+'Thermal age Table'!$M$10))/(EXP((1/(283.15))*((-'Thermal age Table'!$L$10*1000)/8.3144598)+'Thermal age Table'!$M$10))))+AB30 -> 70,785 | AC31: =(($A31-$A30)*((EXP((1/(($B31*('Thermal age Table'!$F$10*0.8))+('Thermal age Table'!$E$10-1)+273.15))*((-'Thermal age Table'!$L$10*1000)/8.3144598)+'Thermal age Table'!$M$10))/(EXP((1/(283.15))*((-'Thermal age Table'!$L$9*1000)/8.3144598)+'Thermal age Table'!$M$10))))+AC30 -> 61,783 | AD31: =(($A31-$A30)*((EXP((1/(($B31*('Thermal age Table'!$F$10*1.2))+('Thermal age Table'!$E$10+1)+273.15))*((-'Thermal age Table'!$L$10*1000)/8.3144598)+'Thermal age Table'!$M$10))/(EXP((1/(283.15))*((-'Thermal age Table'!$L$10*1000)/8.3144598)+'Thermal age Table'!$M$10))))+AD30 -> 81,248 | AE31: =('Thermal age Table'!$E$11+($B31*AE$4)) -> 16 | AF31: =(($A31-$A30)*((EXP((1/(($B31*'Thermal age Table'!$F$11)+'Thermal age Table'!$E$11+273.15))*((-'Thermal age Table'!$L$11*1000)/8.3144598)+'Thermal age Table'!$M$11))/(EXP((1/(283.15))*((-'Thermal age Table'!$L$11*1000)/8.3144598)+'Thermal age Table'!$M$11))))+AF30 -> 83,853 | AG31: =(($A31-$A30)*((EXP((1/(($B31*('Thermal age Table'!$F$11*0.8))+('Thermal age Table'!$E$11-1)+273.15))*((-'Thermal age Table'!$L$11*1000)/8.3144598)+'Thermal age Table'!$M$11))/(EXP((1/(283.15))*((-'Thermal age Table'!$L$11*1000)/8.3144598)+'Thermal age Table'!$M$11))))+AG30 -> 72,528 | AH31: =(($A31-$A30)*((EXP((1/(($B31*('Thermal age Table'!$F$11*1.2))+('Thermal age Table'!$E$11+1)+273.15))*((-'Thermal age Table'!$L$11*1000)/8.3144598)+'Thermal age Table'!$M$11))/(EXP((1/(283.15))*((-'Thermal age Table'!$L$11*1000)/8.3144598)+'Thermal age Table'!$M$11))))+AH30 -> 96,963 | AI31: =('Thermal age Table'!$E$12+($B31*AI$4)) -> 16 | AJ31: =(($A31-$A30)*((EXP((1/(($B31*'Thermal age Table'!$F$12)+'Thermal age Table'!$E$12+273.15))*((-'Thermal age Table'!$L$12*1000)/8.3144598)+'Thermal age Table'!$M$12))/(EXP((1/(283.15))*((-'Thermal age Table'!$L$12*1000)/8.3144598)+'Thermal age Table'!$M$12))))+AJ30 -> 85,269 | AK31: =(($A31-$A30)*((EXP((1/(($B31*('Thermal age Table'!$F$12*0.8))+('Thermal age Table'!$E$12-1)+273.15))*((-'Thermal age Table'!$L$12*1000)/8.3144598)+'Thermal age Table'!$M$12))/(EXP((1/(283.15))*((-'Thermal age Table'!$L$12*1000)/8.3144598)+'Thermal age Table'!$M$12))))+AK30 -> 73,760 | AL31: =(($A31-$A30)*((EXP((1/(($B31*('Thermal age Table'!$F$12*1.2))+('Thermal age Table'!$E$12+1)+273.15))*((-'Thermal age Table'!$L$12*1000)/8.3144598)+'Thermal age Table'!$M$12))/(EXP((1/(283.15))*((-'Thermal age Table'!$L$12*1000)/8.3144598)+'Thermal age Table'!$M$12))))+AL30 -> 98,590 | AM31: =('Thermal age Table'!$E$13+($B31*AM$4)) -> 11 | AN31: =(($A31-$A30)*((EXP((1/(($B31*'Thermal age Table'!$F$13)+'Thermal age Table'!$E$13+273.15))*((-'Thermal age Table'!$L$13*1000)/8.3144598)+'Thermal age Table'!$M$13))/(EXP((1/(283.15))*((-'Thermal age Table'!$L$13*1000)/8.3144598)+'Thermal age Table'!$M$13))))+AN30 -> 26,812 | AO31: =(($A31-$A30)*((EXP((1/(($B31*('Thermal age Table'!$F$13*0.8))+('Thermal age Table'!$E$13-1)+273.15))*((-'Thermal age Table'!$L$13*1000)/8.3144598)+'Thermal age Table'!$M$13))/(EXP((1/(283.15))*((-'Thermal age Table'!$L$13*1000)/8.3144598)+'Thermal age Table'!$M$13))))+AO30 -> 22,481 | AP31: =(($A31-$A30)*((EXP((1/(($B31*('Thermal age Table'!$F$13*1.2))+('Thermal age Table'!$E$13+1)+273.15))*((-'Thermal age Table'!$L$13*1000)/8.3144598)+'Thermal age Table'!$M$13))/(EXP((1/(283.15))*((-'Thermal age Table'!$L$13*1000)/8.3144598)+'Thermal age Table'!$M$13))))+AP30 -> 31,936 | AQ31: =('Thermal age Table'!$E$14+($B31*AQ$4)) -> 23 | AR31: =(($A31-$A30)*((EXP((1/(($B31*'Thermal age Table'!$F$14)+'Thermal age Table'!$E$14+273.15))*((-'Thermal age Table'!$L$14*1000)/8.3144598)+'Thermal age Table'!$M$14))/(EXP((1/(283.15))*((-'Thermal age Table'!$L$14*1000)/8.3144598)+'Thermal age Table'!$M$14))))+AR30 -> 280,858 | AS31: =(($A31-$A30)*((EXP((1/(($B31*('Thermal age Table'!$F$14*0.8))+('Thermal age Table'!$E$14-1)+273.15))*((-'Thermal age Table'!$L$14*1000)/8.3144598)+'Thermal age Table'!$M$14))/(EXP((1/(283.15))*((-'Thermal age Table'!$L$14*1000)/8.3144598)+'Thermal age Table'!$M$14))))+AS30 -> 244,718 | AT31: =(($A31-$A30)*((EXP((1/(($B31*('Thermal age Table'!$F$14*1.2))+('Thermal age Table'!$E$14+1)+273.15))*((-'Thermal age Table'!$L$14*1000)/8.3144598)+'Thermal age Table'!$M$14))/(EXP((1/(283.15))*((-'Thermal age Table'!$L$14*1000)/8.3144598)+'Thermal age Table'!$M$14))))+AT30 -> 322,381 | AU31: =('Thermal age Table'!$E$15+($B31*AU$4)) -> 19 | AV31: =(($A31-$A30)*((EXP((1/(($B31*'Thermal age Table'!$F$15)+'Thermal age Table'!$E$15+273.15))*((-'Thermal age Table'!$L$15*1000)/8.3144598)+'Thermal age Table'!$M$15))/(EXP((1/(283.15))*((-'Thermal age Table'!$L$15*1000)/8.3144598)+'Thermal age Table'!$M$15))))+AV30 -> 142,266 | AW31: =(($A31-$A30)*((EXP((1/(($B31*('Thermal age Table'!$F$15*0.8))+('Thermal age Table'!$E$15-1)+273.15))*((-'Thermal age Table'!$L$15*1000)/8.3144598)+'Thermal age Table'!$M$15))/(EXP((1/(283.15))*((-'Thermal age Table'!$L$15*1000)/8.3144598)+'Thermal age Table'!$M$15))))+AW30 -> 123,804 | AX31: =(($A31-$A30)*((EXP((1/(($B31*('Thermal age Table'!$F$15*1.2))+('Thermal age Table'!$E$15+1)+273.15))*((-'Thermal age Table'!$L$15*1000)/8.3144598)+'Thermal age Table'!$M$15))/(EXP((1/(283.15))*((-'Thermal age Table'!$L$15*1000)/8.3144598)+'Thermal age Table'!$M$15))))+AX30 -> 163,564
A32: 22,500 | B32: -4.17 | C32: =('Thermal age Table'!$E$2)+($B32*C$4) -> -41 | D32: =(($A32-$A31)*((EXP((1/(($B32*'Thermal age Table'!$F$2)+'Thermal age Table'!$E$2+273.15))*((-'Thermal age Table'!$L$2*1000)/8.3144598)+'Thermal age Table'!$M$2))/(EXP((1/(283.15))*((-'Thermal age Table'!$L$2*1000)/8.3144598)+'Thermal age Table'!$M$2))))+D31 -> 3 | E32: =(($A32-$A31)*((EXP((1/(($B32*('Thermal age Table'!$F$2*0.8))+('Thermal age Table'!$E$2-1)+273.15))*((-'Thermal age Table'!$L$2*1000)/8.3144598)+'Thermal age Table'!$M$2))/(EXP((1/(283.15))*((-'Thermal age Table'!$L$2*1000)/8.3144598)+'Thermal age Table'!$M$2))))+E31 -> 2 | F32: =(($A32-$A31)*((EXP((1/(($B32*('Thermal age Table'!$F$2*1.2))+('Thermal age Table'!$E$2+1)+273.15))*((-'Thermal age Table'!$L$2*1000)/8.3144598)+'Thermal age Table'!$M$2))/(EXP((1/(283.15))*((-'Thermal age Table'!$L$2*1000)/8.3144598)+'Thermal age Table'!$M$2))))+F31 -> 4 | G32: =('Thermal age Table'!$E$4+($B32*G$4)) -> -23 | H32: =(($A32-$A31)*((EXP((1/(($B32*'Thermal age Table'!$F$4)+'Thermal age Table'!$E$4+273.15))*((-'Thermal age Table'!$L$4*1000)/8.3144598)+'Thermal age Table'!$M$4))/(EXP((1/(283.15))*((-'Thermal age Table'!$L$4*1000)/8.3144598)+'Thermal age Table'!$M$4))))+H31 -> 504 | I32: =(($A32-$A31)*((EXP((1/(($B32*('Thermal age Table'!$F$4*0.8))+('Thermal age Table'!$E$4-1)+273.15))*((-'Thermal age Table'!$L$4*1000)/8.3144598)+'Thermal age Table'!$M$4))/(EXP((1/(283.15))*((-'Thermal age Table'!$L$4*1000)/8.3144598)+'Thermal age Table'!$M$4))))+I31 -> 416 | J32: =(($A32-$A31)*((EXP((1/(($B32*('Thermal age Table'!$F$4*1.2))+('Thermal age Table'!$E$4+1)+273.15))*((-'Thermal age Table'!$L$4*1000)/8.3144598)+'Thermal age Table'!$M$4))/(EXP((1/(283.15))*((-'Thermal age Table'!$L$4*1000)/8.3144598)+'Thermal age Table'!$M$4))))+J31 -> 619 | K32: =('Thermal age Table'!$E$5+($B32*K$4)) -> -8 | L32: =(($A32-$A31)*((EXP((1/(($B32*'Thermal age Table'!$F$5)+'Thermal age Table'!$E$5+273.15))*((-'Thermal age Table'!$L$5*1000)/8.3144598)+'Thermal age Table'!$M$5))/(EXP((1/(283.15))*((-'Thermal age Table'!$L$5*1000)/8.3144598)+'Thermal age Table'!$M$5))))+L31 -> 1,036 | M32: =(($A32-$A31)*((EXP((1/(($B32*('Thermal age Table'!$F$5*0.8))+('Thermal age Table'!$E$5-1)+273.15))*((-'Thermal age Table'!$L$5*1000)/8.3144598)+'Thermal age Table'!$M$5))/(EXP((1/(283.15))*((-'Thermal age Table'!$L$5*1000)/8.3144598)+'Thermal age Table'!$M$5))))+N31 -> 1,234 | N32: =(($A32-$A31)*((EXP((1/(($B32*('Thermal age Table'!$F$5*1.2))+('Thermal age Table'!$E$5+1)+273.15))*((-'Thermal age Table'!$L$5*1000)/8.3144598)+'Thermal age Table'!$M$5))/(EXP((1/(283.15))*((-'Thermal age Table'!$L$5*1000)/8.3144598)+'Thermal age Table'!$M$5))))+N31 -> 1,236 | O32: =('Thermal age Table'!$E$7)+($B32*O$4) -> 1 | P32: =(($A32-$A31)*((EXP((1/(($B32*'Thermal age Table'!$F$7)+'Thermal age Table'!$E$7+273.15))*((-'Thermal age Table'!$L$7*1000)/8.3144598)+'Thermal age Table'!$M$7))/(EXP((1/(283.15))*((-'Thermal age Table'!$L$7*1000)/8.3144598)+'Thermal age Table'!$M$7))))+P31 -> 11,530 | Q32: =(($A32-$A31)*((EXP((1/(($B32*('Thermal age Table'!$F$7*0.8))+('Thermal age Table'!$E$7-1)+273.15))*((-'Thermal age Table'!$L$7*1000)/8.3144598)+'Thermal age Table'!$M$7))/(EXP((1/(283.15))*((-'Thermal age Table'!$L$7*1000)/8.3144598)+'Thermal age Table'!$M$7))))+Q31 -> 9,255 | R32: =(($A32-$A31)*((EXP((1/(($B32*('Thermal age Table'!$F$7*1.2))+('Thermal age Table'!$E$7+1)+273.15))*((-'Thermal age Table'!$L$7*1000)/8.3144598)+'Thermal age Table'!$M$7))/(EXP((1/(283.15))*((-'Thermal age Table'!$L$7*1000)/8.3144598)+'Thermal age Table'!$M$7))))+R31 -> 14,518 | S32: =('Thermal age Table'!$E$8)+($B32*S$4) -> 5 | T32: =(($A32-$A31)*((EXP((1/(($B32*'Thermal age Table'!$F$8)+'Thermal age Table'!$E$8+273.15))*((-'Thermal age Table'!$L$8*1000)/8.3144598)+'Thermal age Table'!$M$8))/(EXP((1/(283.15))*((-'Thermal age Table'!$L$8*1000)/8.3144598)+'Thermal age Table'!$M$8))))+T31 -> 16,211 | U32: =(($A32-$A31)*((EXP((1/(($B32*('Thermal age Table'!$F$8*0.8))+('Thermal age Table'!$E$8-1)+273.15))*((-'Thermal age Table'!$L$8*1000)/8.3144598)+'Thermal age Table'!$M$8))/(EXP((1/(283.15))*((-'Thermal age Table'!$L$8*1000)/8.3144598)+'Thermal age Table'!$M$8))))+U31 -> 13,887 | V32: =(($A32-$A31)*((EXP((1/(($B32*('Thermal age Table'!$F$8*1.2))+('Thermal age Table'!$E$8+1)+273.15))*((-'Thermal age Table'!$L$8*1000)/8.3144598)+'Thermal age Table'!$M$8))/(EXP((1/(283.15))*((-'Thermal age Table'!$L$8*1000)/8.3144598)+'Thermal age Table'!$M$8))))+V31 -> 18,974 | W32: =('Thermal age Table'!$E$9+($B32*W$4)) -> 12 | X32: =(($A32-$A31)*((EXP((1/(($B32*'Thermal age Table'!$F$9)+'Thermal age Table'!$E$9+273.15))*((-'Thermal age Table'!$L$9*1000)/8.3144598)+'Thermal age Table'!$M$9))/(EXP((1/(283.15))*((-'Thermal age Table'!$L$9*1000)/8.3144598)+'Thermal age Table'!$M$9))))+X31 -> 48,943 | Y32: =(($A32-$A31)*((EXP((1/(($B32*('Thermal age Table'!$F$9*0.8))+('Thermal age Table'!$E$9-1)+273.15))*((-'Thermal age Table'!$L$9*1000)/8.3144598)+'Thermal age Table'!$M$9))/(EXP((1/(283.15))*((-'Thermal age Table'!$L$9*1000)/8.3144598)+'Thermal age Table'!$M$9))))+Y31 -> 42,721 | Z32: =(($A32-$A31)*((EXP((1/(($B32*('Thermal age Table'!$F$9*1.2))+('Thermal age Table'!$E$9+1)+273.15))*((-'Thermal age Table'!$L$9*1000)/8.3144598)+'Thermal age Table'!$M$9))/(EXP((1/(283.15))*((-'Thermal age Table'!$L$9*1000)/8.3144598)+'Thermal age Table'!$M$9))))+Z31 -> 56,187 | AA32: =('Thermal age Table'!$E$10+($B32*AA$4)) -> 14 | AB32: =(($A32-$A31)*((EXP((1/(($B32*'Thermal age Table'!$F$10)+'Thermal age Table'!$E$10+273.15))*((-'Thermal age Table'!$L$10*1000)/8.3144598)+'Thermal age Table'!$M$10))/(EXP((1/(283.15))*((-'Thermal age Table'!$L$10*1000)/8.3144598)+'Thermal age Table'!$M$10))))+AB31 -> 72,347 | AC32: =(($A32-$A31)*((EXP((1/(($B32*('Thermal age Table'!$F$10*0.8))+('Thermal age Table'!$E$10-1)+273.15))*((-'Thermal age Table'!$L$10*1000)/8.3144598)+'Thermal age Table'!$M$10))/(EXP((1/(283.15))*((-'Thermal age Table'!$L$9*1000)/8.3144598)+'Thermal age Table'!$M$10))))+AC31 -> 63,300 | AD32: =(($A32-$A31)*((EXP((1/(($B32*('Thermal age Table'!$F$10*1.2))+('Thermal age Table'!$E$10+1)+273.15))*((-'Thermal age Table'!$L$10*1000)/8.3144598)+'Thermal age Table'!$M$10))/(EXP((1/(283.15))*((-'Thermal age Table'!$L$10*1000)/8.3144598)+'Thermal age Table'!$M$10))))+AD31 -> 82,855 | AE32: =('Thermal age Table'!$E$11+($B32*AE$4)) -> 16 | AF32: =(($A32-$A31)*((EXP((1/(($B32*'Thermal age Table'!$F$11)+'Thermal age Table'!$E$11+273.15))*((-'Thermal age Table'!$L$11*1000)/8.3144598)+'Thermal age Table'!$M$11))/(EXP((1/(283.15))*((-'Thermal age Table'!$L$11*1000)/8.3144598)+'Thermal age Table'!$M$11))))+AF31 -> 86,155 | AG32: =(($A32-$A31)*((EXP((1/(($B32*('Thermal age Table'!$F$11*0.8))+('Thermal age Table'!$E$11-1)+273.15))*((-'Thermal age Table'!$L$11*1000)/8.3144598)+'Thermal age Table'!$M$11))/(EXP((1/(283.15))*((-'Thermal age Table'!$L$11*1000)/8.3144598)+'Thermal age Table'!$M$11))))+AG31 -> 74,642 | AH32: =(($A32-$A31)*((EXP((1/(($B32*('Thermal age Table'!$F$11*1.2))+('Thermal age Table'!$E$11+1)+273.15))*((-'Thermal age Table'!$L$11*1000)/8.3144598)+'Thermal age Table'!$M$11))/(EXP((1/(283.15))*((-'Thermal age Table'!$L$11*1000)/8.3144598)+'Thermal age Table'!$M$11))))+AH31 -> 99,468 | AI32: =('Thermal age Table'!$E$12+($B32*AI$4)) -> 16 | AJ32: =(($A32-$A31)*((EXP((1/(($B32*'Thermal age Table'!$F$12)+'Thermal age Table'!$E$12+273.15))*((-'Thermal age Table'!$L$12*1000)/8.3144598)+'Thermal age Table'!$M$12))/(EXP((1/(283.15))*((-'Thermal age Table'!$L$12*1000)/8.3144598)+'Thermal age Table'!$M$12))))+AJ31 -> 87,610 | AK32: =(($A32-$A31)*((EXP((1/(($B32*('Thermal age Table'!$F$12*0.8))+('Thermal age Table'!$E$12-1)+273.15))*((-'Thermal age Table'!$L$12*1000)/8.3144598)+'Thermal age Table'!$M$12))/(EXP((1/(283.15))*((-'Thermal age Table'!$L$12*1000)/8.3144598)+'Thermal age Table'!$M$12))))+AK31 -> 75,911 | AL32: =(($A32-$A31)*((EXP((1/(($B32*('Thermal age Table'!$F$12*1.2))+('Thermal age Table'!$E$12+1)+273.15))*((-'Thermal age Table'!$L$12*1000)/8.3144598)+'Thermal age Table'!$M$12))/(EXP((1/(283.15))*((-'Thermal age Table'!$L$12*1000)/8.3144598)+'Thermal age Table'!$M$12))))+AL31 -> 101,137 | AM32: =('Thermal age Table'!$E$13+($B32*AM$4)) -> 11 | AN32: =(($A32-$A31)*((EXP((1/(($B32*'Thermal age Table'!$F$13)+'Thermal age Table'!$E$13+273.15))*((-'Thermal age Table'!$L$13*1000)/8.3144598)+'Thermal age Table'!$M$13))/(EXP((1/(283.15))*((-'Thermal age Table'!$L$13*1000)/8.3144598)+'Thermal age Table'!$M$13))))+AN31 -> 27,800 | AO32: =(($A32-$A31)*((EXP((1/(($B32*('Thermal age Table'!$F$13*0.8))+('Thermal age Table'!$E$13-1)+273.15))*((-'Thermal age Table'!$L$13*1000)/8.3144598)+'Thermal age Table'!$M$13))/(EXP((1/(283.15))*((-'Thermal age Table'!$L$13*1000)/8.3144598)+'Thermal age Table'!$M$13))))+AO31 -> 23,310 | AP32: =(($A32-$A31)*((EXP((1/(($B32*('Thermal age Table'!$F$13*1.2))+('Thermal age Table'!$E$13+1)+273.15))*((-'Thermal age Table'!$L$13*1000)/8.3144598)+'Thermal age Table'!$M$13))/(EXP((1/(283.15))*((-'Thermal age Table'!$L$13*1000)/8.3144598)+'Thermal age Table'!$M$13))))+AP31 -> 33,114 | AQ32: =('Thermal age Table'!$E$14+($B32*AQ$4)) -> 23 | AR32: =(($A32-$A31)*((EXP((1/(($B32*'Thermal age Table'!$F$14)+'Thermal age Table'!$E$14+273.15))*((-'Thermal age Table'!$L$14*1000)/8.3144598)+'Thermal age Table'!$M$14))/(EXP((1/(283.15))*((-'Thermal age Table'!$L$14*1000)/8.3144598)+'Thermal age Table'!$M$14))))+AR31 -> 288,684 | AS32: =(($A32-$A31)*((EXP((1/(($B32*('Thermal age Table'!$F$14*0.8))+('Thermal age Table'!$E$14-1)+273.15))*((-'Thermal age Table'!$L$14*1000)/8.3144598)+'Thermal age Table'!$M$14))/(EXP((1/(283.15))*((-'Thermal age Table'!$L$14*1000)/8.3144598)+'Thermal age Table'!$M$14))))+AS31 -> 251,937 | AT32: =(($A32-$A31)*((EXP((1/(($B32*('Thermal age Table'!$F$14*1.2))+('Thermal age Table'!$E$14+1)+273.15))*((-'Thermal age Table'!$L$14*1000)/8.3144598)+'Thermal age Table'!$M$14))/(EXP((1/(283.15))*((-'Thermal age Table'!$L$14*1000)/8.3144598)+'Thermal age Table'!$M$14))))+AT31 -> 330,863 | AU32: =('Thermal age Table'!$E$15+($B32*AU$4)) -> 19 | AV32: =(($A32-$A31)*((EXP((1/(($B32*'Thermal age Table'!$F$15)+'Thermal age Table'!$E$15+273.15))*((-'Thermal age Table'!$L$15*1000)/8.3144598)+'Thermal age Table'!$M$15))/(EXP((1/(283.15))*((-'Thermal age Table'!$L$15*1000)/8.3144598)+'Thermal age Table'!$M$15))))+AV31 -> 146,001 | AW32: =(($A32-$A31)*((EXP((1/(($B32*('Thermal age Table'!$F$15*0.8))+('Thermal age Table'!$E$15-1)+273.15))*((-'Thermal age Table'!$L$15*1000)/8.3144598)+'Thermal age Table'!$M$15))/(EXP((1/(283.15))*((-'Thermal age Table'!$L$15*1000)/8.3144598)+'Thermal age Table'!$M$15))))+AW31 -> 127,289 | AX32: =(($A32-$A31)*((EXP((1/(($B32*('Thermal age Table'!$F$15*1.2))+('Thermal age Table'!$E$15+1)+273.15))*((-'Thermal age Table'!$L$15*1000)/8.3144598)+'Thermal age Table'!$M$15))/(EXP((1/(283.15))*((-'Thermal age Table'!$L$15*1000)/8.3144598)+'Thermal age Table'!$M$15))))+AX31 -> 167,567
